Workbook

Sheet Store
B5: Des. Code | C5: Des. Name | D5: System Code | E5: وصف | F5: عميل | G5: امر رقم | H5: رقم الامر من واقع بيانات الاصناف | I5: التصنيف | J5: التصنيف من واقع بيانات الاصناف | K5: النوع | L5: النوع من واقع بيانات الاصناف | M5: مقاس | N5: المقاس من واقع بيانات الاصناف | O5: وزن / قطعه | P5: الوزن من واقع بيانات الاصناف | Q5: GSM | R5: Discreption of weight | S5: Color | T5: الدرجه | U5: نوع الغزل | V5: نوع الغزل من واقع بيانات الاصناف | W5: نمره الغزل | X5: نمره الغزل من واقع بيانات الاصناف | Y5: درجه الغزل | Z5: درجه الغزل من واقع بيانات الاصناف | AA5: free4 | AB5: امين المخزن | AC5: الوزن القائم للشيكاره | AD5: العدد | AE5: الوزن اجمالى كجم | AF5: Pattern | AG5: Design Type | AH5: حركه الاضافه | AI5: اسم حركه الاضافه | AJ5: تاريخ الاضافه | AK5: free1 | AL5: free2 | AM5: free3 | AN5: حركه الصرف | AO5: اسم حركه الصرفه | AP5: تاريخ حركه الصرف | AQ5: اسم العميل المصروف اليه | AR5: رقم فاتوره الصرف
B6: 0002 - 34 | C6: lion - Blue | D6: 9114000002 | E6: مشكل عميل 34 اوردر 7002 | F6: 34 | G6: 7002 | H6: 7001 | I6: Kitchen Towel | J6: Kitchen Towel | K6: Flat | L6: Flat | M6: 50 X 70 | N6: 50 X 70 | O6: 75 | P6: 0.088 | Q6: 250 | R6: Light weight | S6: dark | T6: Second Choice | U6: 100% cotton | V6: 100% cotton - Organic | W6: 24/2 - 16/1 | X6: 24/2 - 16/1 | Y6: Fresh | Z6: Fresh | AB6: محمود | AC6: 16 | AD6: 20 | AE6: 1.5 | AF6: 0 | AG6: Normal | AH6: اضافه | AI6: اضافه من المشغل | AJ6: 2021/08/09
B7: 0001 - 34 | C7: lion - Brown | D7: 9114000001 | E7: مشكل عميل 34 اوردر 7002 | F7: 34 | G7: 7002 | H7: 7001 | I7: Kitchen Towel | J7: Kitchen Towel | K7: Flat | L7: Flat | M7: 50 X 70 | N7: 50 X 70 | O7: 75 | P7: 0.088 | Q7: 250 | R7: Light weight | S7: dark | T7: Second Choice | U7: 100% cotton | V7: 100% cotton - Organic | W7: 24/2 - 16/1 | X7: 24/2 - 16/1 | Y7: Fresh | Z7: Fresh | AB7: محمود | AC7: 16 | AD7: 20 | AE7: 1.5 | AF7: 0 | AG7: Normal | AH7: اضافه | AI7: اضافه من المشغل | AJ7: 2021/08/09
B8: 0003 - 34 | C8: tiger - yellow | D8: 9112000001 | E8: مشكل عميل 34 اوردر 7002 | F8: 34 | G8: 7002 | H8: 7001 | I8: Kitchen Towel | J8: Beach Towel | K8: Flat | L8: Velour | M8: 50 X 70 | N8: 100 x 170 | O8: 75 | P8: 0.714 | Q8: 420 | R8: Medium weight | S8: dark | T8: Second Choice | U8: 100% cotton | V8: 100% cotton - Organic | W8: 24/2 - 16/1 | X8: 24/2 - 24/2 - 16/1 | Y8: Fresh | Z8: Fresh | AB8: محمود | AC8: 16 | AD8: 30 | AE8: 2.25 | AF8: 0 | AG8: Normal | AH8: اضافه | AI8: اضافه من المشغل | AJ8: 2021/08/09
B9: 0004 - 34 | C9: tiger - Orange | D9: 9112000002 | E9: مشكل عميل 34 اوردر 7002 | F9: 34 | G9: 7002 | H9: 7001 | I9: Kitchen Towel | J9: Beach Towel | K9: Flat | L9: Velour | M9: 50 X 70 | N9: 100 x 170 | O9: 75 | P9: 0.714 | Q9: 420 | R9: Medium weight | S9: dark | T9: Second Choice | U9: 100% cotton | V9: 100% cotton - Organic | W9: 24/2 - 16/1 | X9: 24/2 - 24/2 - 16/1 | Y9: Fresh | Z9: Fresh | AB9: محمود | AC9: 16 | AD9: 50 | AE9: 3.75 | AF9: 0 | AG9: Normal | AH9: اضافه | AI9: اضافه من المشغل | AJ9: 2021/08/09
B10: 0005 - 34 | C10: sun - red | D10: 9112000003 | E10: مشكل عميل 34 اوردر 7002 | F10: 34 | G10: 7002 | H10: 7002 | I10: Kitchen Towel | J10: Beach Towel | K10: Flat | L10: Velour | M10: 50 X 70 | N10: 90 x 160 | O10: 75 | P10: 0.576 | Q10: 400 | R10: Medium weight | S10: dark | T10: Second Choice | U10: 100% cotton | V10: 100% cotton | W10: 24/2 - 16/1 | X10: 24/2 - 24/2 - 16/1 | Y10: Fresh | Z10: Fresh | AB10: محمود | AC10: 16 | AD10: 10 | AE10: 0.75 | AF10: 0 | AG10: Normal | AH10: اضافه | AI10: اضافه من المشغل | AJ10: 2021/08/09
B11: 0006 - 34 | C11: sun - orange | D11: 9112000004 | E11: مشكل عميل 34 اوردر 7002 | F11: 34 | G11: 7002 | H11: 7002 | I11: Kitchen Towel | J11: Beach Towel | K11: Flat | L11: Velour | M11: 50 X 70 | N11: 90 x 160 | O11: 75 | P11: 0.576 | Q11: 400 | R11: Medium weight | S11: dark | T11: Second Choice | U11: 100% cotton | V11: 100% cotton | W11: 24/2 - 16/1 | X11: 24/2 - 24/2 - 16/1 | Y11: Fresh | Z11: Fresh | AB11: محمود | AC11: 16 | AD11: 25 | AE11: 1.875 | AF11: DOBBY | AG11: Normal | AH11: اضافه | AI11: اضافه من المشغل | AJ11: 2021/08/09
B12: 0007 - 34 | C12: LOO | D12: 9114000003 | E12: مشكل عميل 34 اوردر 7002 | F12: 34 | G12: 7002 | H12: 7003 | I12: Kitchen Towel | J12: Kitchen Towel | K12: Flat | L12: Flat | M12: 50 X 70 | N12: 50 X 70 | O12: 75 | P12: 0.07 | Q12: 200 | R12: Very Light weight | S12: dark | T12: Second Choice | U12: 100% cotton | V12: 100% cotton | W12: 24/2 - 16/1 | X12: 24/2 - 16/1 | Y12: Fresh | Z12: Fresh | AB12: محمود | AC12: 16 | AD12: 25 | AE12: 1.875 | AF12: Jacquard | AG12: Normal | AH12: اضافه | AI12: اضافه من المشغل | AJ12: 2021/08/09
B13: 0008 - 34 | C13: TOO | D13: 9114000004 | E13: مشكل عميل 34 اوردر 7002 | F13: 34 | G13: 7002 | H13: 7003 | I13: Kitchen Towel | J13: Kitchen Towel | K13: Flat | L13: Flat | M13: 50 X 70 | N13: 50 X 70 | O13: 75 | P13: 0.07 | Q13: 200 | R13: Very Light weight | S13: dark | T13: Second Choice | U13: 100% cotton | V13: 100% cotton | W13: 24/2 - 16/1 | X13: 24/2 - 16/1 | Y13: Fresh | Z13: Fresh | AB13: محمود | AC13: 16 | AD13: 10 | AE13: 0.75 | AF13: Jacquard | AG13: Normal | AH13: اضافه | AI13: اضافه من المشغل | AJ13: 2021/08/09
B14: 0010 - 34 | C14: BOO | D14: 9114000006 | E14: مشكل عميل 34 اوردر 7002 | F14: 34 | G14: 7002 | H14: 7003 | I14: Kitchen Towel | J14: Kitchen Towel | K14: Flat | L14: Flat | M14: 50 X 70 | N14: 50 X 70 | O14: 75 | P14: 0.07 | Q14: 200 | R14: Very Light weight | S14: dark | T14: Second Choice | U14: 100% cotton | V14: 100% cotton | W14: 24/2 - 16/1 | X14: 24/2 - 16/1 | Y14: Fresh | Z14: Fresh | AB14: محمود | AC14: 16 | AD14: 10 | AE14: 0.75 | AF14: Jacquard | AG14: Normal | AH14: اضافه | AI14: اضافه من المشغل | AJ14: 2021/08/09
B15: 0002 - 34 | C15: lion - Blue | D15: 9114000002 | E15: مشكل عميل 34 اوردر 7002 | F15: 34 | G15: 7002 | H15: 7001 | I15: Kitchen Towel | J15: Kitchen Towel | K15: Flat | L15: Flat | M15: 50 X 70 | N15: 50 X 70 | O15: 75 | P15: 0.088 | Q15: 250 | R15: Light weight | S15: dark | T15: Second Choice | U15: 100% cotton | V15: 100% cotton - Organic | W15: 24/2 - 16/1 | X15: 24/2 - 16/1 | Y15: Fresh | Z15: Fresh | AB15: محمود | AC15: 16 | AD15: 20 | AE15: 1.5 | AF15: 0 | AG15: Normal | AH15: اضافه | AI15: اضافه من المشغل | AJ15: 2021/08/09
B16: 0001 - 34 | C16: lion - Brown | D16: 9114000001 | E16: مشكل عميل 34 اوردر 7002 | F16: 34 | G16: 7002 | H16: 7001 | I16: Kitchen Towel | J16: Kitchen Towel | K16: Flat | L16: Flat | M16: 50 X 70 | N16: 50 X 70 | O16: 75 | P16: 0.088 | Q16: 250 | R16: Light weight | S16: dark | T16: Second Choice | U16: 100% cotton | V16: 100% cotton - Organic | W16: 24/2 - 16/1 | X16: 24/2 - 16/1 | Y16: Fresh | Z16: Fresh | AB16: محمود | AC16: 16 | AD16: 20 | AE16: 1.5 | AF16: 0 | AG16: Normal | AH16: اضافه | AI16: اضافه من المشغل | AJ16: 2021/08/09
B17: 0003 - 34 | C17: tiger - yellow | D17: 9112000001 | E17: مشكل عميل 34 اوردر 7002 | F17: 34 | G17: 7002 | H17: 7001 | I17: Kitchen Towel | J17: Beach Towel | K17: Flat | L17: Velour | M17: 50 X 70 | N17: 100 x 170 | O17: 75 | P17: 0.714 | Q17: 420 | R17: Medium weight | S17: dark | T17: Second Choice | U17: 100% cotton | V17: 100% cotton - Organic | W17: 24/2 - 16/1 | X17: 24/2 - 24/2 - 16/1 | Y17: Fresh | Z17: Fresh | AB17: محمود | AC17: 16 | AD17: 30 | AE17: 2.25 | AF17: 0 | AG17: Normal | AH17: اضافه | AI17: اضافه من المشغل | AJ17: 2021/08/09
B18: 0004 - 34 | C18: tiger - Orange | D18: 9112000002 | E18: مشكل عميل 34 اوردر 7002 | F18: 34 | G18: 7002 | H18: 7001 | I18: Kitchen Towel | J18: Beach Towel | K18: Flat | L18: Velour | M18: 50 X 70 | N18: 100 x 170 | O18: 75 | P18: 0.714 | Q18: 420 | R18: Medium weight | S18: dark | T18: Second Choice | U18: 100% cotton | V18: 100% cotton - Organic | W18: 24/2 - 16/1 | X18: 24/2 - 24/2 - 16/1 | Y18: Fresh | Z18: Fresh | AB18: محمود | AC18: 16 | AD18: 50 | AE18: 3.75 | AF18: 0 | AG18: Normal | AH18: اضافه | AI18: اضافه من المشغل | AJ18: 2021/08/09
B19: 0005 - 34 | C19: sun - red | D19: 9112000003 | E19: مشكل عميل 34 اوردر 7002 | F19: 34 | G19: 7002 | H19: 7002 | I19: Kitchen Towel | J19: Beach Towel | K19: Flat | L19: Velour | M19: 50 X 70 | N19: 90 x 160 | O19: 75 | P19: 0.576 | Q19: 400 | R19: Medium weight | S19: dark | T19: Second Choice | U19: 100% cotton | V19: 100% cotton | W19: 24/2 - 16/1 | X19: 24/2 - 24/2 - 16/1 | Y19: Fresh | Z19: Fresh | AB19: محمود | AC19: 16 | AD19: 10 | AE19: 0.75 | AF19: 0 | AG19: Normal | AH19: اضافه | AI19: اضافه من المشغل | AJ19: 2021/08/09
B20: 0006 - 34 | C20: sun - orange | D20: 9112000004 | E20: مشكل عميل 34 اوردر 7002 | F20: 34 | G20: 7002 | H20: 7002 | I20: Kitchen Towel | J20: Beach Towel | K20: Flat | L20: Velour | M20: 50 X 70 | N20: 90 x 160 | O20: 75 | P20: 0.576 | Q20: 400 | R20: Medium weight | S20: dark | T20: Second Choice | U20: 100% cotton | V20: 100% cotton | W20: 24/2 - 16/1 | X20: 24/2 - 24/2 - 16/1 | Y20: Fresh | Z20: Fresh | AB20: محمود | AC20: 16 | AD20: 25 | AE20: 1.875 | AF20: DOBBY | AG20: Normal | AH20: اضافه | AI20: اضافه من المشغل | AJ20: 2021/08/09
B21: 0007 - 34 | C21: LOO | D21: 9114000003 | E21: مشكل عميل 34 اوردر 7002 | F21: 34 | G21: 7002 | H21: 7003 | I21: Kitchen Towel | J21: Kitchen Towel | K21: Flat | L21: Flat | M21: 50 X 70 | N21: 50 X 70 | O21: 75 | P21: 0.07 | Q21: 200 | R21: Very Light weight | S21: dark | T21: Second Choice | U21: 100% cotton | V21: 100% cotton | W21: 24/2 - 16/1 | X21: 24/2 - 16/1 | Y21: Fresh | Z21: Fresh | AB21: محمود | AC21: 16 | AD21: 25 | AE21: 1.875 | AF21: Jacquard | AG21: Normal | AH21: اضافه | AI21: اضافه من المشغل | AJ21: 2021/08/09
B22: 0008 - 34 | C22: TOO | D22: 9114000004 | E22: مشكل عميل 34 اوردر 7002 | F22: 34 | G22: 7002 | H22: 7003 | I22: Kitchen Towel | J22: Kitchen Towel | K22: Flat | L22: Flat | M22: 50 X 70 | N22: 50 X 70 | O22: 75 | P22: 0.07 | Q22: 200 | R22: Very Light weight | S22: dark | T22: Second Choice | U22: 100% cotton | V22: 100% cotton | W22: 24/2 - 16/1 | X22: 24/2 - 16/1 | Y22: Fresh | Z22: Fresh | AB22: محمود | AC22: 16 | AD22: 10 | AE22: 0.75 | AF22: Jacquard | AG22: Normal | AH22: اضافه | AI22: اضافه من المشغل | AJ22: 2021/08/09
B23: 0010 - 34 | C23: BOO | D23: 9114000006 | E23: مشكل عميل 34 اوردر 7002 | F23: 34 | G23: 7002 | H23: 7003 | I23: Kitchen Towel | J23: Kitchen Towel | K23: Flat | L23: Flat | M23: 50 X 70 | N23: 50 X 70 | O23: 75 | P23: 0.07 | Q23: 200 | R23: Very Light weight | S23: dark | T23: Second Choice | U23: 100% cotton | V23: 100% cotton | W23: 24/2 - 16/1 | X23: 24/2 - 16/1 | Y23: Fresh | Z23: Fresh | AB23: محمود | AC23: 16 | AD23: 10 | AE23: 0.75 | AF23: Jacquard | AG23: Normal | AH23: اضافه | AI23: اضافه من المشغل | AJ23: 2021/08/09
B24: 0002 - 34 | C24: lion - Blue | D24: 9114000002 | E24: مشكل عميل 34 اوردر 7002 | F24: 34 | G24: 7002 | H24: 7001 | I24: Kitchen Towel | J24: Kitchen Towel | K24: Flat | L24: Flat | M24: 50 X 70 | N24: 50 X 70 | O24: 75 | P24: 0.088 | Q24: 250 | R24: Light weight | S24: dark | T24: Second Choice | U24: 100% cotton | V24: 100% cotton - Organic | W24: 24/2 - 16/1 | X24: 24/2 - 16/1 | Y24: Fresh | Z24: Fresh | AB24: محمود | AC24: 1.6 | AD24: 20 | AE24: 1.5 | AF24: 0 | AG24: Normal | AH24: اضافه | AI24: اضافه من المشغل | AJ24: 2021/08/09
B25: 0001 - 34 | C25: lion - Brown | D25: 9114000001 | E25: مشكل عميل 34 اوردر 7002 | F25: 34 | G25: 7002 | H25: 7001 | I25: Kitchen Towel | J25: Kitchen Towel | K25: Flat | L25: Flat | M25: 50 X 70 | N25: 50 X 70 | O25: 75 | P25: 0.088 | Q25: 250 | R25: Light weight | S25: dark | T25: Second Choice | U25: 100% cotton | V25: 100% cotton - Organic | W25: 24/2 - 16/1 | X25: 24/2 - 16/1 | Y25: Fresh | Z25: Fresh | AB25: محمود | AC25: 1.6 | AD25: 20 | AE25: 1.5 | AF25: 0 | AG25: Normal | AH25: اضافه | AI25: اضافه من المشغل | AJ25: 2021/08/09
B26: 0003 - 34 | C26: tiger - yellow | D26: 9112000001 | E26: مشكل عميل 34 اوردر 7002 | F26: 34 | G26: 7002 | H26: 7001 | I26: Kitchen Towel | J26: Beach Towel | K26: Flat | L26: Velour | M26: 50 X 70 | N26: 100 x 170 | O26: 75 | P26: 0.714 | Q26: 420 | R26: Medium weight | S26: dark | T26: Second Choice | U26: 100% cotton | V26: 100% cotton - Organic | W26: 24/2 - 16/1 | X26: 24/2 - 24/2 - 16/1 | Y26: Fresh | Z26: Fresh | AB26: محمود | AC26: 2.4 | AD26: 30 | AE26: 2.25 | AF26: 0 | AG26: Normal | AH26: اضافه | AI26: اضافه من المشغل | AJ26: 2021/08/09
B27: 0004 - 34 | C27: tiger - Orange | D27: 9112000002 | E27: مشكل عميل 34 اوردر 7002 | F27: 34 | G27: 7002 | H27: 7001 | I27: Kitchen Towel | J27: Beach Towel | K27: Flat | L27: Velour | M27: 50 X 70 | N27: 100 x 170 | O27: 75 | P27: 0.714 | Q27: 420 | R27: Medium weight | S27: dark | T27: Second Choice | U27: 100% cotton | V27: 100% cotton - Organic | W27: 24/2 - 16/1 | X27: 24/2 - 24/2 - 16/1 | Y27: Fresh | Z27: Fresh | AB27: محمود | AC27: 4 | AD27: 50 | AE27: 3.75 | AF27: 0 | AG27: Normal | AH27: اضافه | AI27: اضافه من المشغل | AJ27: 2021/08/09
B28: 0005 - 34 | C28: sun - red | D28: 9112000003 | E28: مشكل عميل 34 اوردر 7002 | F28: 34 | G28: 7002 | H28: 7002 | I28: Kitchen Towel | J28: Beach Towel | K28: Flat | L28: Velour | M28: 50 X 70 | N28: 90 x 160 | O28: 75 | P28: 0.576 | Q28: 400 | R28: Medium weight | S28: dark | T28: Second Choice | U28: 100% cotton | V28: 100% cotton | W28: 24/2 - 16/1 | X28: 24/2 - 24/2 - 16/1 | Y28: Fresh | Z28: Fresh | AB28: محمود | AC28: 0.8 | AD28: 10 | AE28: 0.75 | AF28: 0 | AG28: Normal | AH28: اضافه | AI28: اضافه من المشغل | AJ28: 2021/08/09
B29: 0006 - 34 | C29: sun - orange | D29: 9112000004 | E29: مشكل عميل 34 اوردر 7002 | F29: 34 | G29: 7002 | H29: 7002 | I29: Kitchen Towel | J29: Beach Towel | K29: Flat | L29: Velour | M29: 50 X 70 | N29: 90 x 160 | O29: 75 | P29: 0.576 | Q29: 400 | R29: Medium weight | S29: dark | T29: Second Choice | U29: 100% cotton | V29: 100% cotton | W29: 24/2 - 16/1 | X29: 24/2 - 24/2 - 16/1 | Y29: Fresh | Z29: Fresh | AB29: محمود | AC29: 2 | AD29: 25 | AE29: 1.875 | AF29: DOBBY | AG29: Normal | AH29: اضافه | AI29: اضافه من المشغل | AJ29: 2021/08/09
B30: 0007 - 34 | C30: LOO | D30: 9114000003 | E30: مشكل عميل 34 اوردر 7002 | F30: 34 | G30: 7002 | H30: 7003 | I30: Kitchen Towel | J30: Kitchen Towel | K30: Flat | L30: Flat | M30: 50 X 70 | N30: 50 X 70 | O30: 75 | P30: 0.07 | Q30: 200 | R30: Very Light weight | S30: dark | T30: Second Choice | U30: 100% cotton | V30: 100% cotton | W30: 24/2 - 16/1 | X30: 24/2 - 16/1 | Y30: Fresh | Z30: Fresh | AB30: محمود | AC30: 2 | AD30: 25 | AE30: 1.875 | AF30: Jacquard | AG30: Normal | AH30: اضافه | AI30: اضافه من المشغل | AJ30: 2021/08/09
B31: 0008 - 34 | C31: TOO | D31: 9114000004 | E31: مشكل عميل 34 اوردر 7002 | F31: 34 | G31: 7002 | H31: 7003 | I31: Kitchen Towel | J31: Kitchen Towel | K31: Flat | L31: Flat | M31: 50 X 70 | N31: 50 X 70 | O31: 75 | P31: 0.07 | Q31: 200 | R31: Very Light weight | S31: dark | T31: Second Choice | U31: 100% cotton | V31: 100% cotton | W31: 24/2 - 16/1 | X31: 24/2 - 16/1 | Y31: Fresh | Z31: Fresh | AB31: محمود | AC31: 0.8 | AD31: 10 | AE31: 0.75 | AF31: Jacquard | AG31: Normal | AH31: اضافه | AI31: اضافه من المشغل | AJ31: 2021/08/09
B32: 0010 - 34 | C32: BOO | D32: 9114000006 | E32: مشكل عميل 34 اوردر 7002 | F32: 34 | G32: 7002 | H32: 7003 | I32: Kitchen Towel | J32: Kitchen Towel | K32: Flat | L32: Flat | M32: 50 X 70 | N32: 50 X 70 | O32: 75 | P32: 0.07 | Q32: 200 | R32: Very Light weight | S32: dark | T32: Second Choice | U32: 100% cotton | V32: 100% cotton | W32: 24/2 - 16/1 | X32: 24/2 - 16/1 | Y32: Fresh | Z32: Fresh | AB32: محمود | AC32: 0.8 | AD32: 10 | AE32: 0.75 | AF32: Jacquard | AG32: Normal | AH32: اضافه | AI32: اضافه من المشغل | AJ32: 2021/08/09
B33: 0013 - 34 | C33: AAAA | D33: 9114000009 | E33: مشكل عميل 34 اوردر 7002 | F33: 34 | G33: 7007 | H33: 7007 | I33: Kitchen Towel | J33: Kitchen Towel | K33: Flat | L33: Flat | M33: 50 X 70 | N33: 50 X 70 | O33: 70 | P33: 70 | Q33: 200 | R33: Very Light weight | S33: dark | T33: Second Choice | U33: 100% cotton | V33: 100% cotton | W33: 24/2 - 16/1 | X33: 24/2 - 16/1 | Y33: Fresh | Z33: Fresh | AB33: محمود | AC33: 1.2 | AD33: 20 | AE33: 1.4 | AF33: Jacquard | AG33: Normal | AH33: اضافه | AI33: اضافه من المشغل | AJ33: 2021/08/09
B34: 0014 - 34 | C34: BBBB | D34: 9114000010 | E34: مشكل عميل 34 اوردر 7002 | F34: 34 | G34: 7007 | H34: 7007 | I34: Kitchen Towel | J34: Kitchen Towel | K34: Flat | L34: Flat | M34: 50 X 70 | N34: 50 X 70 | O34: 70 | P34: 70 | Q34: 200 | R34: Very Light weight | S34: dark | T34: Second Choice | U34: 100% cotton | V34: 100% cotton | W34: 24/2 - 16/1 | X34: 24/2 - 16/1 | Y34: Fresh | Z34: Fresh | AB34: محمود | AC34: 1.2 | AD34: 20 | AE34: 1.4 | AF34: Dobby | AG34: Normal | AH34: اضافه | AI34: اضافه من المشغل | AJ34: 2021/08/09
B35: 0015 - 34 | C35: CCCC | D35: 9114000011 | E35: مشكل عميل 34 اوردر 7002 | F35: 34 | G35: 7007 | H35: 7007 | I35: Kitchen Towel | J35: Kitchen Towel | K35: Flat | L35: Flat | M35: 50 X 70 | N35: 50 X 70 | O35: 70 | P35: 70 | Q35: 200 | R35: Very Light weight | S35: dark | T35: Second Choice | U35: 100% cotton | V35: 100% cotton | W35: 24/2 - 16/1 | X35: 24/2 - 16/1 | Y35: Fresh | Z35: Fresh | AB35: محمود | AC35: 1.8 | AD35: 30 | AE35: 2.1 | AF35: Jacquard | AG35: Normal | AH35: اضافه | AI35: اضافه من المشغل | AJ35: 2021/08/09
B36: 0016 - 34 | C36: DDDD | D36: 9114000012 | E36: مشكل عميل 34 اوردر 7002 | F36: 34 | G36: 7007 | H36: 7007 | I36: Kitchen Towel | J36: Kitchen Towel | K36: Flat | L36: Flat | M36: 50 X 70 | N36: 50 X 70 | O36: 70 | P36: 70 | Q36: 200 | R36: Very Light weight | S36: dark | T36: Second Choice | U36: 100% cotton | V36: 100% cotton | W36: 24/2 - 16/1 | X36: 24/2 - 16/1 | Y36: Fresh | Z36: Fresh | AB36: محمود | AC36: 3 | AD36: 50 | AE36: 3.5 | AF36: Dobby | AG36: Normal | AH36: اضافه | AI36: اضافه من المشغل | AJ36: 2021/08/09
B37: 0017 - 34 | C37: EEEE | D37: 9114000013 | E37: مشكل عميل 34 اوردر 7002 | F37: 34 | G37: 7007 | H37: 7007 | I37: Kitchen Towel | J37: Kitchen Towel | K37: Flat | L37: Flat | M37: 50 X 70 | N37: 50 X 70 | O37: 70 | P37: 70 | Q37: 200 | R37: Very Light weight | S37: dark | T37: Second Choice | U37: 100% cotton | V37: 100% cotton | W37: 24/2 - 16/1 | X37: 24/2 - 16/1 | Y37: Fresh | Z37: Fresh | AB37: محمود | AC37: 0.6 | AD37: 10 | AE37: 0.7 | AF37: Dobby | AG37: Normal | AH37: اضافه | AI37: اضافه من المشغل | AJ37: 2021/08/09
B38: 0018 - 34 | C38: FFFFF | D38: 9114000014 | E38: مشكل عميل 34 اوردر 7002 | F38: 34 | G38: 7007 | H38: 7007 | I38: Kitchen Towel | J38: Kitchen Towel | K38: Flat | L38: Flat | M38: 50 X 70 | N38: 50 X 70 | O38: 70 | P38: 70 | Q38: 200 | R38: Very Light weight | S38: dark | T38: Second Choice | U38: 100% cotton | V38: 100% cotton | W38: 24/2 - 16/1 | X38: 24/2 - 16/1 | Y38: Fresh | Z38: Fresh | AB38: محمود | AC38: 1.5 | AD38: 25 | AE38: 1.75 | AF38: Jacquard | AG38: Normal | AH38: اضافه | AI38: اضافه من المشغل | AJ38: 2021/08/09
B39: 0019 - 34 | C39: GGGG | D39: 9114000015 | E39: مشكل عميل 34 اوردر 7002 | F39: 34 | G39: 7007 | H39: 7007 | I39: Kitchen Towel | J39: Kitchen Towel | K39: Flat | L39: Flat | M39: 50 X 70 | N39: 50 X 70 | O39: 70 | P39: 70 | Q39: 200 | R39: Very Light weight | S39: dark | T39: Second Choice | U39: 100% cotton | V39: 100% cotton | W39: 24/2 - 16/1 | X39: 24/2 - 16/1 | Y39: Fresh | Z39: Fresh | AB39: محمود | AC39: 1.5 | AD39: 25 | AE39: 1.75 | AF39: Dobby | AG39: Normal | AH39: اضافه | AI39: اضافه من المشغل | AJ39: 2021/08/09
B40: 0020 - 34 | C40: HHHHH | D40: 9114000016 | E40: مشكل عميل 34 اوردر 7002 | F40: 34 | G40: 7007 | H40: 7007 | I40: Kitchen Towel | J40: Kitchen Towel | K40: Flat | L40: Flat | M40: 50 X 70 | N40: 50 X 70 | O40: 70 | P40: 70 | Q40: 200 | R40: Very Light weight | S40: dark | T40: Second Choice | U40: 100% cotton | V40: 100% cotton | W40: 24/2 - 16/1 | X40: 24/2 - 16/1 | Y40: Fresh | Z40: Fresh | AB40: محمود | AC40: 0.6 | AD40: 10 | AE40: 0.7 | AF40: Dobby | AG40: Normal | AH40: اضافه | AI40: اضافه من المشغل | AJ40: 2021/08/09
B41: 0021 - 34 | C41: JJJJJJ | D41: 9114000017 | E41: مشكل عميل 34 اوردر 7002 | F41: 34 | G41: 7007 | H41: 7007 | I41: Kitchen Towel | J41: Kitchen Towel | K41: Flat | L41: Flat | M41: 50 X 70 | N41: 50 X 70 | O41: 70 | P41: 70 | Q41: 200 | R41: Very Light weight | S41: dark | T41: Second Choice | U41: 100% cotton | V41: 100% cotton | W41: 24/2 - 16/1 | X41: 24/2 - 16/1 | Y41: Fresh | Z41: Fresh | AB41: محمود | AC41: 0.6 | AD41: 10 | AE41: 0.7 | AF41: Jacquard | AG41: Normal | AH41: اضافه | AI41: اضافه من المشغل | AJ41: 2021/08/09
B42: 0013 - 34 | C42: AAAA | D42: 9114000009 | E42: مشكل عميل 34 اوردر 7002 | F42: 34 | G42: 7007 | H42: 7007 | I42: Kitchen Towel | J42: Kitchen Towel | K42: Flat | L42: Flat | M42: 50 X 70 | N42: 50 X 70 | O42: 70 | P42: 70 | Q42: 200 | R42: Very Light weight | S42: dark | T42: Second Choice | U42: 100% cotton | V42: 100% cotton | W42: 24/2 - 16/1 | X42: 24/2 - 16/1 | Y42: Fresh | Z42: Fresh | AB42: محمود | AC42: 1.863354037 | AD42: 20 | AE42: 1.4 | AF42: Jacquard | AG42: Normal | AH42: اضافه | AI42: اضافه من المشغل | AJ42: 2021/08/09
B43: 0014 - 34 | C43: BBBB | D43: 9114000010 | E43: مشكل عميل 34 اوردر 7002 | F43: 34 | G43: 7007 | H43: 7007 | I43: Kitchen Towel | J43: Kitchen Towel | K43: Flat | L43: Flat | M43: 50 X 70 | N43: 50 X 70 | O43: 70 | P43: 70 | Q43: 200 | R43: Very Light weight | S43: dark | T43: Second Choice | U43: 100% cotton | V43: 100% cotton | W43: 24/2 - 16/1 | X43: 24/2 - 16/1 | Y43: Fresh | Z43: Fresh | AB43: محمود | AC43: 2.795031056 | AD43: 30 | AE43: 2.1 | AF43: Dobby | AG43: Normal | AH43: اضافه | AI43: اضافه من المشغل | AJ43: 2021/08/09
B44: 0015 - 34 | C44: CCCC | D44: 9114000011 | E44: مشكل عميل 34 اوردر 7002 | F44: 34 | G44: 7007 | H44: 7007 | I44: Kitchen Towel | J44: Kitchen Towel | K44: Flat | L44: Flat | M44: 50 X 70 | N44: 50 X 70 | O44: 70 | P44: 70 | Q44: 200 | R44: Very Light weight | S44: dark | T44: Second Choice | U44: 100% cotton | V44: 100% cotton | W44: 24/2 - 16/1 | X44: 24/2 - 16/1 | Y44: Fresh | Z44: Fresh | AB44: محمود | AC44: 2.795031056 | AD44: 30 | AE44: 2.1 | AF44: Jacquard | AG44: Normal | AH44: اضافه | AI44: اضافه من المشغل | AJ44: 2021/08/09
B45: 0016 - 34 | C45: DDDD | D45: 9114000012 | E45: مشكل عميل 34 اوردر 7002 | F45: 34 | G45: 7007 | H45: 7007 | I45: Kitchen Towel | J45: Kitchen Towel | K45: Flat | L45: Flat | M45: 50 X 70 | N45: 50 X 70 | O45: 70 | P45: 70 | Q45: 200 | R45: Very Light weight | S45: dark | T45: Second Choice | U45: 100% cotton | V45: 100% cotton | W45: 24/2 - 16/1 | X45: 24/2 - 16/1 | Y45: Fresh | Z45: Fresh | AB45: محمود | AC45: 1.118012422 | AD45: 12 | AE45: 0.84 | AF45: Dobby | AG45: Normal | AH45: اضافه | AI45: اضافه من المشغل | AJ45: 2021/08/09
B46: 0017 - 34 | C46: EEEE | D46: 9114000013 | E46: مشكل عميل 34 اوردر 7002 | F46: 34 | G46: 7007 | H46: 7007 | I46: Kitchen Towel | J46: Kitchen Towel | K46: Flat | L46: Flat | M46: 50 X 70 | N46: 50 X 70 | O46: 70 | P46: 70 | Q46: 200 | R46: Very Light weight | S46: dark | T46: Second Choice | U46: 100% cotton | V46: 100% cotton | W46: 24/2 - 16/1 | X46: 24/2 - 16/1 | Y46: Fresh | Z46: Fresh | AB46: محمود | AC46: 0.9316770186 | AD46: 10 | AE46: 0.7 | AF46: Dobby | AG46: Normal | AH46: اضافه | AI46: اضافه من المشغل | AJ46: 2021/08/09
B47: 0018 - 34 | C47: FFFFF | D47: 9114000014 | E47: مشكل عميل 34 اوردر 7002 | F47: 34 | G47: 7007 | H47: 7007 | I47: Kitchen Towel | J47: Kitchen Towel | K47: Flat | L47: Flat | M47: 50 X 70 | N47: 50 X 70 | O47: 70 | P47: 70 | Q47: 200 | R47: Very Light weight | S47: dark | T47: Second Choice | U47: 100% cotton | V47: 100% cotton | W47: 24/2 - 16/1 | X47: 24/2 - 16/1 | Y47: Fresh | Z47: Fresh | AB47: محمود | AC47: 1.304347826 | AD47: 14 | AE47: 0.98 | AF47: Jacquard | AG47: Normal | AH47: اضافه | AI47: اضافه من المشغل | AJ47: 2021/08/09
B48: 0019 - 34 | C48: GGGG | D48: 9114000015 | E48: مشكل عميل 34 اوردر 7002 | F48: 34 | G48: 7007 | H48: 7007 | I48: Kitchen Towel | J48: Kitchen Towel | K48: Flat | L48: Flat | M48: 50 X 70 | N48: 50 X 70 | O48: 70 | P48: 70 | Q48: 200 | R48: Very Light weight | S48: dark | T48: Second Choice | U48: 100% cotton | V48: 100% cotton | W48: 24/2 - 16/1 | X48: 24/2 - 16/1 | Y48: Fresh | Z48: Fresh | AB48: محمود | AC48: 2.329192547 | AD48: 25 | AE48: 1.75 | AF48: Dobby | AG48: Normal | AH48: اضافه | AI48: اضافه من المشغل | AJ48: 2021/08/09
B49: 0020 - 34 | C49: HHHHH | D49: 9114000016 | E49: مشكل عميل 34 اوردر 7002 | F49: 34 | G49: 7007 | H49: 7007 | I49: Kitchen Towel | J49: Kitchen Towel | K49: Flat | L49: Flat | M49: 50 X 70 | N49: 50 X 70 | O49: 70 | P49: 70 | Q49: 200 | R49: Very Light weight | S49: dark | T49: Second Choice | U49: 100% cotton | V49: 100% cotton | W49: 24/2 - 16/1 | X49: 24/2 - 16/1 | Y49: Fresh | Z49: Fresh | AB49: محمود | AC49: 0.9316770186 | AD49: 10 | AE49: 0.7 | AF49: Dobby | AG49: Normal | AH49: اضافه | AI49: اضافه من المشغل | AJ49: 2021/08/09
B50: 0021 - 34 | C50: JJJJJJ | D50: 9114000017 | E50: مشكل عميل 34 اوردر 7002 | F50: 34 | G50: 7007 | H50: 7007 | I50: Kitchen Towel | J50: Kitchen Towel | K50: Flat | L50: Flat | M50: 50 X 70 | N50: 50 X 70 | O50: 70 | P50: 70 | Q50: 200 | R50: Very Light weight | S50: dark | T50: Second Choice | U50: 100% cotton | V50: 100% cotton | W50: 24/2 - 16/1 | X50: 24/2 - 16/1 | Y50: Fresh | Z50: Fresh | AB50: محمود | AC50: 0.9316770186 | AD50: 10 | AE50: 0.7 | AF50: Jacquard | AG50: Normal | AH50: اضافه | AI50: اضافه من المشغل | AJ50: 2021/08/09
B51: 0013 - 34 | C51: AAAA | D51: 9114000009 | E51: مشكل عميل 34 اوردر 7002 | F51: 34 | G51: 7007 | H51: 7007 | I51: Kitchen Towel | J51: Kitchen Towel | K51: Flat | L51: Flat | M51: 50 X 70 | N51: 50 X 70 | O51: 70 | P51: 70 | Q51: 200 | R51: Very Light weight | S51: dark | T51: Second Choice | U51: 100% cotton | V51: 100% cotton | W51: 24/2 - 16/1 | X51: 24/2 - 16/1 | Y51: Fresh | Z51: Fresh | AB51: محمود | AC51: 1.2 | AD51: 20 | AE51: 1.4 | AF51: Jacquard | AG51: Normal | AN51: صرف | AO51: بيع محلى | AP51: 2021/08/09 | AQ51: 34 | AR51: 1
B52: 0014 - 34 | C52: BBBB | D52: 9114000010 | E52: مشكل عميل 34 اوردر 7002 | F52: 34 | G52: 7007 | H52: 7007 | I52: Kitchen Towel | J52: Kitchen Towel | K52: Flat | L52: Flat | M52: 50 X 70 | N52: 50 X 70 | O52: 70 | P52: 70 | Q52: 200 | R52: Very Light weight | S52: dark | T52: Second Choice | U52: 100% cotton | V52: 100% cotton | W52: 24/2 - 16/1 | X52: 24/2 - 16/1 | Y52: Fresh | Z52: Fresh | AB52: محمود | AC52: 1.2 | AD52: 20 | AE52: 1.4 | AF52: Dobby | AG52: Normal | AN52: صرف | AO52: بيع محلى | AP52: 2021/08/09 | AQ52: 34 | AR52: 1
B53: 0015 - 34 | C53: CCCC | D53: 9114000011 | E53: مشكل عميل 34 اوردر 7002 | F53: 34 | G53: 7007 | H53: 7007 | I53: Kitchen Towel | J53: Kitchen Towel | K53: Flat | L53: Flat | M53: 50 X 70 | N53: 50 X 70 | O53: 70 | P53: 70 | Q53: 200 | R53: Very Light weight | S53: dark | T53: Second Choice | U53: 100% cotton | V53: 100% cotton | W53: 24/2 - 16/1 | X53: 24/2 - 16/1 | Y53: Fresh | Z53: Fresh | AB53: محمود | AC53: 1.8 | AD53: 30 | AE53: 2.1 | AF53: Jacquard | AG53: Normal | AN53: صرف | AO53: بيع محلى | AP53: 2021/08/09 | AQ53: 34 | AR53: 1
B54: 0016 - 34 | C54: DDDD | D54: 9114000012 | E54: مشكل عميل 34 اوردر 7002 | F54: 34 | G54: 7007 | H54: 7007 | I54: Kitchen Towel | J54: Kitchen Towel | K54: Flat | L54: Flat | M54: 50 X 70 | N54: 50 X 70 | O54: 70 | P54: 70 | Q54: 200 | R54: Very Light weight | S54: dark | T54: Second Choice | U54: 100% cotton | V54: 100% cotton | W54: 24/2 - 16/1 | X54: 24/2 - 16/1 | Y54: Fresh | Z54: Fresh | AB54: محمود | AC54: 3 | AD54: 50 | AE54: 3.5 | AF54: Dobby | AG54: Normal | AN54: صرف | AO54: بيع محلى | AP54: 2021/08/09 | AQ54: 34 | AR54: 1
B55: 0017 - 34 | C55: EEEE | D55: 9114000013 | E55: مشكل عميل 34 اوردر 7002 | F55: 34 | G55: 7007 | H55: 7007 | I55: Kitchen Towel | J55: Kitchen Towel | K55: Flat | L55: Flat | M55: 50 X 70 | N55: 50 X 70 | O55: 70 | P55: 70 | Q55: 200 | R55: Very Light weight | S55: dark | T55: Second Choice | U55: 100% cotton | V55: 100% cotton | W55: 24/2 - 16/1 | X55: 24/2 - 16/1 | Y55: Fresh | Z55: Fresh | AB55: محمود | AC55: 0.6 | AD55: 10 | AE55: 0.7 | AF55: Dobby | AG55: Normal | AN55: صرف | AO55: بيع محلى | AP55: 2021/08/09 | AQ55: 34 | AR55: 1
B56: 0018 - 34 | C56: FFFFF | D56: 9114000014 | E56: مشكل عميل 34 اوردر 7002 | F56: 34 | G56: 7007 | H56: 7007 | I56: Kitchen Towel | J56: Kitchen Towel | K56: Flat | L56: Flat | M56: 50 X 70 | N56: 50 X 70 | O56: 70 | P56: 70 | Q56: 200 | R56: Very Light weight | S56: dark | T56: Second Choice | U56: 100% cotton | V56: 100% cotton | W56: 24/2 - 16/1 | X56: 24/2 - 16/1 | Y56: Fresh | Z56: Fresh | AB56: محمود | AC56: 1.5 | AD56: 25 | AE56: 1.75 | AF56: Jacquard | AG56: Normal | AN56: صرف | AO56: بيع محلى | AP56: 2021/08/09 | AQ56: 34 | AR56: 1
B57: 0019 - 34 | C57: GGGG | D57: 9114000015 | E57: مشكل عميل 34 اوردر 7002 | F57: 34 | G57: 7007 | H57: 7007 | I57: Kitchen Towel | J57: Kitchen Towel | K57: Flat | L57: Flat | M57: 50 X 70 | N57: 50 X 70 | O57: 70 | P57: 70 | Q57: 200 | R57: Very Light weight | S57: dark | T57: Second Choice | U57: 100% cotton | V57: 100% cotton | W57: 24/2 - 16/1 | X57: 24/2 - 16/1 | Y57: Fresh | Z57: Fresh | AB57: محمود | AC57: 1.5 | AD57: 25 | AE57: 1.75 | AF57: Dobby | AG57: Normal | AN57: صرف | AO57: بيع محلى | AP57: 2021/08/09 | AQ57: 34 | AR57: 1
B58: 0020 - 34 | C58: HHHHH | D58: 9114000016 | E58: مشكل عميل 34 اوردر 7002 | F58: 34 | G58: 7007 | H58: 7007 | I58: Kitchen Towel | J58: Kitchen Towel | K58: Flat | L58: Flat | M58: 50 X 70 | N58: 50 X 70 | O58: 70 | P58: 70 | Q58: 200 | R58: Very Light weight | S58: dark | T58: Second Choice | U58: 100% cotton | V58: 100% cotton | W58: 24/2 - 16/1 | X58: 24/2 - 16/1 | Y58: Fresh | Z58: Fresh | AB58: محمود | AC58: 0.6 | AD58: 10 | AE58: 0.7 | AF58: Dobby | AG58: Normal | AN58: صرف | AO58: بيع محلى | AP58: 2021/08/09 | AQ58: 34 | AR58: 1
B59: 0021 - 34 | C59: JJJJJJ | D59: 9114000017 | E59: مشكل عميل 34 اوردر 7002 | F59: 34 | G59: 7007 | H59: 7007 | I59: Kitchen Towel | J59: Kitchen Towel | K59: Flat | L59: Flat | M59: 50 X 70 | N59: 50 X 70 | O59: 70 | P59: 70 | Q59: 200 | R59: Very Light weight | S59: dark | T59: Second Choice | U59: 100% cotton | V59: 100% cotton | W59: 24/2 - 16/1 | X59: 24/2 - 16/1 | Y59: Fresh | Z59: Fresh | AB59: محمود | AC59: 0.6 | AD59: 10 | AE59: 0.7 | AF59: Jacquard | AG59: Normal | AN59: صرف | AO59: بيع محلى | AP59: 2021/08/09 | AQ59: 34 | AR59: 1
B60: 0013 - 34 | C60: AAAA | D60: 9114000009 | E60: مشكل عميل 34 اوردر 7002 | F60: 34 | G60: 7007 | H60: 7007 | I60: Kitchen Towel | J60: Kitchen Towel | K60: Flat | L60: Flat | M60: 50 X 70 | N60: 50 X 70 | O60: 70 | P60: 70 | Q60: 200 | R60: Very Light weight | S60: dark | T60: Second Choice | U60: 100% cotton | V60: 100% cotton | W60: 24/2 - 16/1 | X60: 24/2 - 16/1 | Y60: Fresh | Z60: Fresh | AB60: محمود | AC60: 1.863354037 | AD60: 20 | AE60: 1.4 | AF60: Jacquard | AG60: Normal | AN60: صرف | AO60: بيع محلى | AP60: 2021/08/09 | AQ60: 34 | AR60: 1
B61: 0014 - 34 | C61: BBBB | D61: 9114000010 | E61: مشكل عميل 34 اوردر 7002 | F61: 34 | G61: 7007 | H61: 7007 | I61: Kitchen Towel | J61: Kitchen Towel | K61: Flat | L61: Flat | M61: 50 X 70 | N61: 50 X 70 | O61: 70 | P61: 70 | Q61: 200 | R61: Very Light weight | S61: dark | T61: Second Choice | U61: 100% cotton | V61: 100% cotton | W61: 24/2 - 16/1 | X61: 24/2 - 16/1 | Y61: Fresh | Z61: Fresh | AB61: محمود | AC61: 2.795031056 | AD61: 30 | AE61: 2.1 | AF61: Dobby | AG61: Normal | AN61: صرف | AO61: بيع محلى | AP61: 2021/08/09 | AQ61: 34 | AR61: 1
B62: 0015 - 34 | C62: CCCC | D62: 9114000011 | E62: مشكل عميل 34 اوردر 7002 | F62: 34 | G62: 7007 | H62: 7007 | I62: Kitchen Towel | J62: Kitchen Towel | K62: Flat | L62: Flat | M62: 50 X 70 | N62: 50 X 70 | O62: 70 | P62: 70 | Q62: 200 | R62: Very Light weight | S62: dark | T62: Second Choice | U62: 100% cotton | V62: 100% cotton | W62: 24/2 - 16/1 | X62: 24/2 - 16/1 | Y62: Fresh | Z62: Fresh | AB62: محمود | AC62: 2.795031056 | AD62: 30 | AE62: 2.1 | AF62: Jacquard | AG62: Normal | AN62: صرف | AO62: بيع محلى | AP62: 2021/08/09 | AQ62: 34 | AR62: 1
B63: 0016 - 34 | C63: DDDD | D63: 9114000012 | E63: مشكل عميل 34 اوردر 7002 | F63: 34 | G63: 7007 | H63: 7007 | I63: Kitchen Towel | J63: Kitchen Towel | K63: Flat | L63: Flat | M63: 50 X 70 | N63: 50 X 70 | O63: 70 | P63: 70 | Q63: 200 | R63: Very Light weight | S63: dark | T63: Second Choice | U63: 100% cotton | V63: 100% cotton | W63: 24/2 - 16/1 | X63: 24/2 - 16/1 | Y63: Fresh | Z63: Fresh | AB63: محمود | AC63: 1.118012422 | AD63: 12 | AE63: 0.84 | AF63: Dobby | AG63: Normal | AN63: صرف | AO63: بيع محلى | AP63: 2021/08/09 | AQ63: 34 | AR63: 1
B64: 0017 - 34 | C64: EEEE | D64: 9114000013 | E64: مشكل عميل 34 اوردر 7002 | F64: 34 | G64: 7007 | H64: 7007 | I64: Kitchen Towel | J64: Kitchen Towel | K64: Flat | L64: Flat | M64: 50 X 70 | N64: 50 X 70 | O64: 70 | P64: 70 | Q64: 200 | R64: Very Light weight | S64: dark | T64: Second Choice | U64: 100% cotton | V64: 100% cotton | W64: 24/2 - 16/1 | X64: 24/2 - 16/1 | Y64: Fresh | Z64: Fresh | AB64: محمود | AC64: 0.9316770186 | AD64: 10 | AE64: 0.7 | AF64: Dobby | AG64: Normal | AN64: صرف | AO64: بيع محلى | AP64: 2021/08/09 | AQ64: 34 | AR64: 1
B65: 0018 - 34 | C65: FFFFF | D65: 9114000014 | E65: مشكل عميل 34 اوردر 7002 | F65: 34 | G65: 7007 | H65: 7007 | I65: Kitchen Towel | J65: Kitchen Towel | K65: Flat | L65: Flat | M65: 50 X 70 | N65: 50 X 70 | O65: 70 | P65: 70 | Q65: 200 | R65: Very Light weight | S65: dark | T65: Second Choice | U65: 100% cotton | V65: 100% cotton | W65: 24/2 - 16/1 | X65: 24/2 - 16/1 | Y65: Fresh | Z65: Fresh | AB65: محمود | AC65: 1.304347826 | AD65: 14 | AE65: 0.98 | AF65: Jacquard | AG65: Normal | AN65: صرف | AO65: بيع محلى | AP65: 2021/08/09 | AQ65: 34 | AR65: 1
B66: 0019 - 34 | C66: GGGG | D66: 9114000015 | E66: مشكل عميل 34 اوردر 7002 | F66: 34 | G66: 7007 | H66: 7007 | I66: Kitchen Towel | J66: Kitchen Towel | K66: Flat | L66: Flat | M66: 50 X 70 | N66: 50 X 70 | O66: 70 | P66: 70 | Q66: 200 | R66: Very Light weight | S66: dark | T66: Second Choice | U66: 100% cotton | V66: 100% cotton | W66: 24/2 - 16/1 | X66: 24/2 - 16/1 | Y66: Fresh | Z66: Fresh | AB66: محمود | AC66: 2.329192547 | AD66: 25 | AE66: 1.75 | AF66: Dobby | AG66: Normal | AN66: صرف | AO66: بيع محلى | AP66: 2021/08/09 | AQ66: 34 | AR66: 1
B67: 0020 - 34 | C67: HHHHH | D67: 9114000016 | E67: مشكل عميل 34 اوردر 7002 | F67: 34 | G67: 7007 | H67: 7007 | I67: Kitchen Towel | J67: Kitchen Towel | K67: Flat | L67: Flat | M67: 50 X 70 | N67: 50 X 70 | O67: 70 | P67: 70 | Q67: 200 | R67: Very Light weight | S67: dark | T67: Second Choice | U67: 100% cotton | V67: 100% cotton | W67: 24/2 - 16/1 | X67: 24/2 - 16/1 | Y67: Fresh | Z67: Fresh | AB67: محمود | AC67: 0.9316770186 | AD67: 10 | AE67: 0.7 | AF67: Dobby | AG67: Normal | AN67: صرف | AO67: بيع محلى | AP67: 2021/08/09 | AQ67: 34 | AR67: 1
B68: 0021 - 34 | C68: JJJJJJ | D68: 9114000017 | E68: مشكل عميل 34 اوردر 7002 | F68: 34 | G68: 7007 | H68: 7007 | I68: Kitchen Towel | J68: Kitchen Towel | K68: Flat | L68: Flat | M68: 50 X 70 | N68: 50 X 70 | O68: 70 | P68: 70 | Q68: 200 | R68: Very Light weight | S68: dark | T68: Second Choice | U68: 100% cotton | V68: 100% cotton | W68: 24/2 - 16/1 | X68: 24/2 - 16/1 | Y68: Fresh | Z68: Fresh | AB68: محمود | AC68: 0.9316770186 | AD68: 10 | AE68: 0.7 | AF68: Jacquard | AG68: Normal | AN68: صرف | AO68: بيع محلى | AP68: 2021/08/09 | AQ68: 34 | AR68: 1
B69: 0013 - 34 | C69: AAAA | D69: 9114000009 | E69: مشكل عميل 34 اوردر 7002 | F69: 34 | G69: 7007 | H69: 7007 | I69: Kitchen Towel | J69: Kitchen Towel | K69: Flat | L69: Flat | M69: 50 X 70 | N69: 50 X 70 | O69: 70 | P69: 70 | Q69: 200 | R69: Very Light weight | S69: dark | T69: Second Choice | U69: 100% cotton | V69: 100% cotton | W69: 24/2 - 16/1 | X69: 24/2 - 16/1 | Y69: Fresh | Z69: Fresh | AB69: محمود | AC69: 0.9473684211 | AD69: 12 | AE69: 0.84 | AF69: Jacquard | AG69: Normal | AH69: اضافه | AI69: اضافه من المشغل | AJ69: 2021/08/09
B70: 0014 - 34 | C70: BBBB | D70: 9114000010 | E70: مشكل عميل 34 اوردر 7002 | F70: 34 | G70: 7007 | H70: 7007 | I70: Kitchen Towel | J70: Kitchen Towel | K70: Flat | L70: Flat | M70: 50 X 70 | N70: 50 X 70 | O70: 70 | P70: 70 | Q70: 200 | R70: Very Light weight | S70: dark | T70: Second Choice | U70: 100% cotton | V70: 100% cotton | W70: 24/2 - 16/1 | X70: 24/2 - 16/1 | Y70: Fresh | Z70: Fresh | AB70: محمود | AC70: 1.815789474 | AD70: 23 | AE70: 1.61 | AF70: Dobby | AG70: Normal | AH70: اضافه | AI70: اضافه من المشغل | AJ70: 2021/08/09
B71: 0015 - 34 | C71: CCCC | D71: 9114000011 | E71: مشكل عميل 34 اوردر 7002 | F71: 34 | G71: 7007 | H71: 7007 | I71: Kitchen Towel | J71: Kitchen Towel | K71: Flat | L71: Flat | M71: 50 X 70 | N71: 50 X 70 | O71: 70 | P71: 70 | Q71: 200 | R71: Very Light weight | S71: dark | T71: Second Choice | U71: 100% cotton | V71: 100% cotton | W71: 24/2 - 16/1 | X71: 24/2 - 16/1 | Y71: Fresh | Z71: Fresh | AB71: محمود | AC71: 3.552631579 | AD71: 45 | AE71: 3.15 | AF71: Jacquard | AG71: Normal | AH71: اضافه | AI71: اضافه من المشغل | AJ71: 2021/08/09
B72: 0016 - 34 | C72: DDDD | D72: 9114000012 | E72: مشكل عميل 34 اوردر 7002 | F72: 34 | G72: 7007 | H72: 7007 | I72: Kitchen Towel | J72: Kitchen Towel | K72: Flat | L72: Flat | M72: 50 X 70 | N72: 50 X 70 | O72: 70 | P72: 70 | Q72: 200 | R72: Very Light weight | S72: dark | T72: Second Choice | U72: 100% cotton | V72: 100% cotton | W72: 24/2 - 16/1 | X72: 24/2 - 16/1 | Y72: Fresh | Z72: Fresh | AB72: محمود | AC72: 3.947368421 | AD72: 50 | AE72: 3.5 | AF72: Dobby | AG72: Normal | AH72: اضافه | AI72: اضافه من المشغل | AJ72: 2021/08/09
B73: 0017 - 34 | C73: EEEE | D73: 9114000013 | E73: مشكل عميل 34 اوردر 7002 | F73: 34 | G73: 7007 | H73: 7007 | I73: Kitchen Towel | J73: Kitchen Towel | K73: Flat | L73: Flat | M73: 50 X 70 | N73: 50 X 70 | O73: 70 | P73: 70 | Q73: 200 | R73: Very Light weight | S73: dark | T73: Second Choice | U73: 100% cotton | V73: 100% cotton | W73: 24/2 - 16/1 | X73: 24/2 - 16/1 | Y73: Fresh | Z73: Fresh | AB73: محمود | AC73: 0.7894736842 | AD73: 10 | AE73: 0.7 | AF73: Dobby | AG73: Normal | AH73: اضافه | AI73: اضافه من المشغل | AJ73: 2021/08/09
B74: 0018 - 34 | C74: FFFFF | D74: 9114000014 | E74: مشكل عميل 34 اوردر 7002 | F74: 34 | G74: 7007 | H74: 7007 | I74: Kitchen Towel | J74: Kitchen Towel | K74: Flat | L74: Flat | M74: 50 X 70 | N74: 50 X 70 | O74: 70 | P74: 70 | Q74: 200 | R74: Very Light weight | S74: dark | T74: Second Choice | U74: 100% cotton | V74: 100% cotton | W74: 24/2 - 16/1 | X74: 24/2 - 16/1 | Y74: Fresh | Z74: Fresh | AB74: محمود | AC74: 0.8684210526 | AD74: 11 | AE74: 0.77 | AF74: Jacquard | AG74: Normal | AH74: اضافه | AI74: اضافه من المشغل | AJ74: 2021/08/09
B75: 0019 - 34 | C75: GGGG | D75: 9114000015 | E75: مشكل عميل 34 اوردر 7002 | F75: 34 | G75: 7007 | H75: 7007 | I75: Kitchen Towel | J75: Kitchen Towel | K75: Flat | L75: Flat | M75: 50 X 70 | N75: 50 X 70 | O75: 70 | P75: 70 | Q75: 200 | R75: Very Light weight | S75: dark | T75: Second Choice | U75: 100% cotton | V75: 100% cotton | W75: 24/2 - 16/1 | X75: 24/2 - 16/1 | Y75: Fresh | Z75: Fresh | AB75: محمود | AC75: 0.5526315789 | AD75: 7 | AE75: 0.49 | AF75: Dobby | AG75: Normal | AH75: اضافه | AI75: اضافه من المشغل | AJ75: 2021/08/09
B76: 0020 - 34 | C76: HHHHH | D76: 9114000016 | E76: مشكل عميل 34 اوردر 7002 | F76: 34 | G76: 7007 | H76: 7007 | I76: Kitchen Towel | J76: Kitchen Towel | K76: Flat | L76: Flat | M76: 50 X 70 | N76: 50 X 70 | O76: 70 | P76: 70 | Q76: 200 | R76: Very Light weight | S76: dark | T76: Second Choice | U76: 100% cotton | V76: 100% cotton | W76: 24/2 - 16/1 | X76: 24/2 - 16/1 | Y76: Fresh | Z76: Fresh | AB76: محمود | AC76: 0.9473684211 | AD76: 12 | AE76: 0.84 | AF76: Dobby | AG76: Normal | AH76: اضافه | AI76: اضافه من المشغل | AJ76: 2021/08/09
B77: 0021 - 34 | C77: JJJJJJ | D77: 9114000017 | E77: مشكل عميل 34 اوردر 7002 | F77: 34 | G77: 7007 | H77: 7007 | I77: Kitchen Towel | J77: Kitchen Towel | K77: Flat | L77: Flat | M77: 50 X 70 | N77: 50 X 70 | O77: 70 | P77: 70 | Q77: 200 | R77: Very Light weight | S77: dark | T77: Second Choice | U77: 100% cotton | V77: 100% cotton | W77: 24/2 - 16/1 | X77: 24/2 - 16/1 | Y77: Fresh | Z77: Fresh | AB77: محمود | AC77: 1.578947368 | AD77: 20 | AE77: 1.4 | AF77: Jacquard | AG77: Normal | AH77: اضافه | AI77: اضافه من المشغل | AJ77: 2021/08/09
B78: 0013 - 34 | C78: AAAA | D78: 9114000009 | E78: مشكل عميل 34 اوردر 7002 | F78: 34 | G78: 7007 | H78: 7007 | I78: Kitchen Towel | J78: Kitchen Towel | K78: Flat | L78: Flat | M78: 50 X 70 | N78: 50 X 70 | O78: 70 | P78: 70 | Q78: 200 | R78: Very Light weight | S78: dark | T78: Second Choice | U78: 100% cotton | V78: 100% cotton | W78: 24/2 - 16/1 | X78: 24/2 - 16/1 | Y78: Fresh | Z78: Fresh | AB78: محمود | AC78: 0.9473684211 | AD78: 12 | AE78: 0.84 | AF78: Jacquard | AG78: Normal | AN78: صرف | AO78: بيع محلى | AP78: 2021/08/09 | AQ78: 34 | AR78: 2
B79: 0014 - 34 | C79: BBBB | D79: 9114000010 | E79: مشكل عميل 34 اوردر 7002 | F79: 34 | G79: 7007 | H79: 7007 | I79: Kitchen Towel | J79: Kitchen Towel | K79: Flat | L79: Flat | M79: 50 X 70 | N79: 50 X 70 | O79: 70 | P79: 70 | Q79: 200 | R79: Very Light weight | S79: dark | T79: Second Choice | U79: 100% cotton | V79: 100% cotton | W79: 24/2 - 16/1 | X79: 24/2 - 16/1 | Y79: Fresh | Z79: Fresh | AB79: محمود | AC79: 1.815789474 | AD79: 23 | AE79: 1.61 | AF79: Dobby | AG79: Normal | AN79: صرف | AO79: بيع محلى | AP79: 2021/08/09 | AQ79: 34 | AR79: 2
B80: 0015 - 34 | C80: CCCC | D80: 9114000011 | E80: مشكل عميل 34 اوردر 7002 | F80: 34 | G80: 7007 | H80: 7007 | I80: Kitchen Towel | J80: Kitchen Towel | K80: Flat | L80: Flat | M80: 50 X 70 | N80: 50 X 70 | O80: 70 | P80: 70 | Q80: 200 | R80: Very Light weight | S80: dark | T80: Second Choice | U80: 100% cotton | V80: 100% cotton | W80: 24/2 - 16/1 | X80: 24/2 - 16/1 | Y80: Fresh | Z80: Fresh | AB80: محمود | AC80: 3.552631579 | AD80: 45 | AE80: 3.15 | AF80: Jacquard | AG80: Normal | AN80: صرف | AO80: بيع محلى | AP80: 2021/08/09 | AQ80: 34 | AR80: 2
B81: 0016 - 34 | C81: DDDD | D81: 9114000012 | E81: مشكل عميل 34 اوردر 7002 | F81: 34 | G81: 7007 | H81: 7007 | I81: Kitchen Towel | J81: Kitchen Towel | K81: Flat | L81: Flat | M81: 50 X 70 | N81: 50 X 70 | O81: 70 | P81: 70 | Q81: 200 | R81: Very Light weight | S81: dark | T81: Second Choice | U81: 100% cotton | V81: 100% cotton | W81: 24/2 - 16/1 | X81: 24/2 - 16/1 | Y81: Fresh | Z81: Fresh | AB81: محمود | AC81: 3.947368421 | AD81: 50 | AE81: 3.5 | AF81: Dobby | AG81: Normal | AN81: صرف | AO81: بيع محلى | AP81: 2021/08/09 | AQ81: 34 | AR81: 2
B82: 0017 - 34 | C82: EEEE | D82: 9114000013 | E82: مشكل عميل 34 اوردر 7002 | F82: 34 | G82: 7007 | H82: 7007 | I82: Kitchen Towel | J82: Kitchen Towel | K82: Flat | L82: Flat | M82: 50 X 70 | N82: 50 X 70 | O82: 70 | P82: 70 | Q82: 200 | R82: Very Light weight | S82: dark | T82: Second Choice | U82: 100% cotton | V82: 100% cotton | W82: 24/2 - 16/1 | X82: 24/2 - 16/1 | Y82: Fresh | Z82: Fresh | AB82: محمود | AC82: 0.7894736842 | AD82: 10 | AE82: 0.7 | AF82: Dobby | AG82: Normal | AN82: صرف | AO82: بيع محلى | AP82: 2021/08/09 | AQ82: 34 | AR82: 2
B83: 0018 - 34 | C83: FFFFF | D83: 9114000014 | E83: مشكل عميل 34 اوردر 7002 | F83: 34 | G83: 7007 | H83: 7007 | I83: Kitchen Towel | J83: Kitchen Towel | K83: Flat | L83: Flat | M83: 50 X 70 | N83: 50 X 70 | O83: 70 | P83: 70 | Q83: 200 | R83: Very Light weight | S83: dark | T83: Second Choice | U83: 100% cotton | V83: 100% cotton | W83: 24/2 - 16/1 | X83: 24/2 - 16/1 | Y83: Fresh | Z83: Fresh | AB83: محمود | AC83: 0.8684210526 | AD83: 11 | AE83: 0.77 | AF83: Jacquard | AG83: Normal | AN83: صرف | AO83: بيع محلى | AP83: 2021/08/09 | AQ83: 34 | AR83: 2
B84: 0019 - 34 | C84: GGGG | D84: 9114000015 | E84: مشكل عميل 34 اوردر 7002 | F84: 34 | G84: 7007 | H84: 7007 | I84: Kitchen Towel | J84: Kitchen Towel | K84: Flat | L84: Flat | M84: 50 X 70 | N84: 50 X 70 | O84: 70 | P84: 70 | Q84: 200 | R84: Very Light weight | S84: dark | T84: Second Choice | U84: 100% cotton | V84: 100% cotton | W84: 24/2 - 16/1 | X84: 24/2 - 16/1 | Y84: Fresh | Z84: Fresh | AB84: محمود | AC84: 0.5526315789 | AD84: 7 | AE84: 0.49 | AF84: Dobby | AG84: Normal | AN84: صرف | AO84: بيع محلى | AP84: 2021/08/09 | AQ84: 34 | AR84: 2
B85: 0020 - 34 | C85: HHHHH | D85: 9114000016 | E85: مشكل عميل 34 اوردر 7002 | F85: 34 | G85: 7007 | H85: 7007 | I85: Kitchen Towel | J85: Kitchen Towel | K85: Flat | L85: Flat | M85: 50 X 70 | N85: 50 X 70 | O85: 70 | P85: 70 | Q85: 200 | R85: Very Light weight | S85: dark | T85: Second Choice | U85: 100% cotton | V85: 100% cotton | W85: 24/2 - 16/1 | X85: 24/2 - 16/1 | Y85: Fresh | Z85: Fresh | AB85: محمود | AC85: 0.9473684211 | AD85: 12 | AE85: 0.84 | AF85: Dobby | AG85: Normal | AN85: صرف | AO85: بيع محلى | AP85: 2021/08/09 | AQ85: 34 | AR85: 2
B86: 0021 - 34 | C86: JJJJJJ | D86: 9114000017 | E86: مشكل عميل 34 اوردر 7002 | F86: 34 | G86: 7007 | H86: 7007 | I86: Kitchen Towel | J86: Kitchen Towel | K86: Flat | L86: Flat | M86: 50 X 70 | N86: 50 X 70 | O86: 70 | P86: 70 | Q86: 200 | R86: Very Light weight | S86: dark | T86: Second Choice | U86: 100% cotton | V86: 100% cotton | W86: 24/2 - 16/1 | X86: 24/2 - 16/1 | Y86: Fresh | Z86: Fresh | AB86: محمود | AC86: 1.578947368 | AD86: 20 | AE86: 1.4 | AF86: Jacquard | AG86: Normal | AN86: صرف | AO86: بيع محلى | AP86: 2021/08/09 | AQ86: 34 | AR86: 2
B87: 0001 - 44 | C87: Elephnt | D87: 9114000018 | E87: مشكل عميل 44 اوردر 7008 | F87: 44 | G87: 7008 | H87: 7008 | I87: Kitchen Towel | J87: Kitchen Towel | K87: Flat | L87: Flat | M87: 50 X 70 | N87: 50 X 70 | O87: 70 | P87: 70 | Q87: 200 | R87: Very Light weight | S87: dark | T87: Second Choice | U87: 100% cotton | V87: 100% cotton | W87: 24/2 - 16/1 | X87: 24/2 - 16/1 | Y87: Fresh | Z87: Fresh | AB87: محمود | AC87: 7.272727273 | AD87: 100 | AE87: 7 | AF87: Dobby | AG87: Normal | AH87: اضافه | AI87: اضافه من المشغل | AJ87: 2021/08/10
B88: 0002 - 44 | C88: BroB | D88: 9114000019 | E88: مشكل عميل 44 اوردر 7008 | F88: 44 | G88: 7008 | H88: 7008 | I88: Kitchen Towel | J88: Kitchen Towel | K88: Flat | L88: Flat | M88: 50 X 70 | N88: 50 X 70 | O88: 70 | P88: 70 | Q88: 200 | R88: Very Light weight | S88: dark | T88: Second Choice | U88: 100% cotton | V88: 100% cotton | W88: 24/2 - 16/1 | X88: 24/2 - 16/1 | Y88: Fresh | Z88: Fresh | AB88: محمود | AC88: 10.90909091 | AD88: 150 | AE88: 10.5 | AF88: Dobby | AG88: Normal | AH88: اضافه | AI88: اضافه من المشغل | AJ88: 2021/08/10
B89: 0003 - 44 | C89: hgh | D89: 9114000020 | E89: مشكل عميل 44 اوردر 7008 | F89: 44 | G89: 7008 | H89: 7008 | I89: Kitchen Towel | J89: Kitchen Towel | K89: Flat | L89: Flat | M89: 50 X 70 | N89: 50 X 70 | O89: 70 | P89: 70 | Q89: 200 | R89: Very Light weight | S89: dark | T89: Second Choice | U89: 100% cotton | V89: 100% cotton | W89: 24/2 - 16/1 | X89: 24/2 - 16/2 | Y89: Fresh | Z89: Fresh | AB89: محمود | AC89: 14.54545455 | AD89: 200 | AE89: 14 | AF89: Jacquard | AG89: Normal | AH89: اضافه | AI89: اضافه من المشغل | AJ89: 2021/08/10
B90: 0004 - 44 | C90: yurturhy | D90: 9114000021 | E90: مشكل عميل 44 اوردر 7008 | F90: 44 | G90: 7008 | H90: 7008 | I90: Kitchen Towel | J90: Kitchen Towel | K90: Flat | L90: Flat | M90: 50 X 70 | N90: 50 X 70 | O90: 70 | P90: 70 | Q90: 200 | R90: Very Light weight | S90: dark | T90: Second Choice | U90: 100% cotton | V90: 100% cotton | W90: 24/2 - 16/1 | X90: 24/2 - 16/3 | Y90: Fresh | Z90: Fresh | AB90: محمود | AC90: 21.81818182 | AD90: 300 | AE90: 21 | AF90: Jacquard | AG90: Normal | AH90: اضافه | AI90: اضافه من المشغل | AJ90: 2021/08/10
B91: 0005 - 44 | C91: dytrto | D91: 9114000022 | E91: مشكل عميل 44 اوردر 7008 | F91: 44 | G91: 7008 | H91: 7008 | I91: Kitchen Towel | J91: Kitchen Towel | K91: Flat | L91: Flat | M91: 50 X 70 | N91: 50 X 70 | O91: 70 | P91: 70 | Q91: 200 | R91: Very Light weight | S91: dark | T91: Second Choice | U91: 100% cotton | V91: 100% cotton | W91: 24/2 - 16/1 | X91: 24/2 - 16/4 | Y91: Fresh | Z91: Fresh | AB91: محمود | AC91: 29.09090909 | AD91: 400 | AE91: 28 | AF91: Jacquard | AG91: Normal | AH91: اضافه | AI91: اضافه من المشغل | AJ91: 2021/08/10
B92: 0006 - 44 | C92: srttLLLLl | D92: 9114000023 | E92: مشكل عميل 44 اوردر 7008 | F92: 44 | G92: 7008 | H92: 7008 | I92: Kitchen Towel | J92: Kitchen Towel | K92: Flat | L92: Flat | M92: 50 X 70 | N92: 50 X 70 | O92: 70 | P92: 70 | Q92: 200 | R92: Very Light weight | S92: dark | T92: Second Choice | U92: 100% cotton | V92: 100% cotton | W92: 24/2 - 16/1 | X92: 24/2 - 16/5 | Y92: Fresh | Z92: Fresh | AB92: محمود | AC92: 36.36363636 | AD92: 500 | AE92: 35 | AF92: Jacquard | AG92: Normal | AH92: اضافه | AI92: اضافه من المشغل | AJ92: 2021/08/10
B93: 0001 - 44 | C93: Elephnt | D93: 9114000018 | E93: مشكل عميل 44 اوردر 7008 | F93: 44 | G93: 7008 | H93: 7008 | I93: Kitchen Towel | J93: Kitchen Towel | K93: Flat | L93: Flat | M93: 50 X 70 | N93: 50 X 70 | O93: 70 | P93: 70 | Q93: 200 | R93: Very Light weight | S93: dark | T93: Second Choice | U93: 100% cotton | V93: 100% cotton | W93: 24/2 - 16/1 | X93: 24/2 - 16/1 | Y93: Fresh | Z93: Fresh | AB93: محمود | AC93: 7.272727273 | AD93: 100 | AE93: 7 | AF93: Dobby | AG93: Normal | AN93: صرف | AO93: بيع محلى | AP93: 2021/08/10 | AQ93: 34 | AR93: 3
B94: 0002 - 44 | C94: BroB | D94: 9114000019 | E94: مشكل عميل 44 اوردر 7008 | F94: 44 | G94: 7008 | H94: 7008 | I94: Kitchen Towel | J94: Kitchen Towel | K94: Flat | L94: Flat | M94: 50 X 70 | N94: 50 X 70 | O94: 70 | P94: 70 | Q94: 200 | R94: Very Light weight | S94: dark | T94: Second Choice | U94: 100% cotton | V94: 100% cotton | W94: 24/2 - 16/1 | X94: 24/2 - 16/1 | Y94: Fresh | Z94: Fresh | AB94: محمود | AC94: 10.90909091 | AD94: 150 | AE94: 10.5 | AF94: Dobby | AG94: Normal | AN94: صرف | AO94: بيع محلى | AP94: 2021/08/10 | AQ94: 34 | AR94: 3
B95: 0003 - 44 | C95: hgh | D95: 9114000020 | E95: مشكل عميل 44 اوردر 7008 | F95: 44 | G95: 7008 | H95: 7008 | I95: Kitchen Towel | J95: Kitchen Towel | K95: Flat | L95: Flat | M95: 50 X 70 | N95: 50 X 70 | O95: 70 | P95: 70 | Q95: 200 | R95: Very Light weight | S95: dark | T95: Second Choice | U95: 100% cotton | V95: 100% cotton | W95: 24/2 - 16/1 | X95: 24/2 - 16/2 | Y95: Fresh | Z95: Fresh | AB95: محمود | AC95: 14.54545455 | AD95: 200 | AE95: 14 | AF95: Jacquard | AG95: Normal | AN95: صرف | AO95: بيع محلى | AP95: 2021/08/10 | AQ95: 34 | AR95: 3
B96: 0004 - 44 | C96: yurturhy | D96: 9114000021 | E96: مشكل عميل 44 اوردر 7008 | F96: 44 | G96: 7008 | H96: 7008 | I96: Kitchen Towel | J96: Kitchen Towel | K96: Flat | L96: Flat | M96: 50 X 70 | N96: 50 X 70 | O96: 70 | P96: 70 | Q96: 200 | R96: Very Light weight | S96: dark | T96: Second Choice | U96: 100% cotton | V96: 100% cotton | W96: 24/2 - 16/1 | X96: 24/2 - 16/3 | Y96: Fresh | Z96: Fresh | AB96: محمود | AC96: 21.81818182 | AD96: 300 | AE96: 21 | AF96: Jacquard | AG96: Normal | AN96: صرف | AO96: بيع محلى | AP96: 2021/08/10 | AQ96: 34 | AR96: 3
B97: 0005 - 44 | C97: dytrto | D97: 9114000022 | E97: مشكل عميل 44 اوردر 7008 | F97: 44 | G97: 7008 | H97: 7008 | I97: Kitchen Towel | J97: Kitchen Towel | K97: Flat | L97: Flat | M97: 50 X 70 | N97: 50 X 70 | O97: 70 | P97: 70 | Q97: 200 | R97: Very Light weight | S97: dark | T97: Second Choice | U97: 100% cotton | V97: 100% cotton | W97: 24/2 - 16/1 | X97: 24/2 - 16/4 | Y97: Fresh | Z97: Fresh | AB97: محمود | AC97: 29.09090909 | AD97: 400 | AE97: 28 | AF97: Jacquard | AG97: Normal | AN97: صرف | AO97: بيع محلى | AP97: 2021/08/10 | AQ97: 34 | AR97: 3
B98: 0006 - 44 | C98: srttLLLLl | D98: 9114000023 | E98: مشكل عميل 44 اوردر 7008 | F98: 44 | G98: 7008 | H98: 7008 | I98: Kitchen Towel | J98: Kitchen Towel | K98: Flat | L98: Flat | M98: 50 X 70 | N98: 50 X 70 | O98: 70 | P98: 70 | Q98: 200 | R98: Very Light weight | S98: dark | T98: Second Choice | U98: 100% cotton | V98: 100% cotton | W98: 24/2 - 16/1 | X98: 24/2 - 16/5 | Y98: Fresh | Z98: Fresh | AB98: محمود | AC98: 36.36363636 | AD98: 500 | AE98: 35 | AF98: Jacquard | AG98: Normal | AN98: صرف | AO98: بيع محلى | AP98: 2021/08/10 | AQ98: 34 | AR98: 3
B99: 0001 - 44 | C99: Elephnt | D99: 9114000018 | E99: مشكل عميل 44 اوردر 7008 | F99: 44 | G99: 7008 | H99: 7008 | I99: Kitchen Towel | J99: Kitchen Towel | K99: Flat | L99: Flat | M99: 50 X 70 | N99: 50 X 70 | O99: 70 | P99: 70 | Q99: 200 | R99: Very Light weight | S99: dark | T99: Second Choice | U99: 100% cotton | V99: 100% cotton | W99: 24/2 - 16/1 | X99: 24/2 - 16/1 | Y99: Fresh | Z99: Fresh | AB99: محمود | AC99: 17.5 | AD99: 250 | AE99: 17.5 | AF99: Dobby | AG99: Normal | AH99: اضافه | AI99: اضافه من المشغل | AJ99: 2021/08/10
B100: 0001 - 44 | C100: Elephnt | D100: 9114000018 | E100: مشكل عميل 44 اوردر 7008 | F100: 44 | G100: 7008 | H100: 7008 | I100: Kitchen Towel | J100: Kitchen Towel | K100: Flat | L100: Flat | M100: 50 X 70 | N100: 50 X 70 | O100: 70 | P100: 70 | Q100: 200 | R100: Very Light weight | S100: dark | T100: Second Choice | U100: 100% cotton | V100: 100% cotton | W100: 24/2 - 16/1 | X100: 24/2 - 16/1 | Y100: Fresh | Z100: Fresh | AB100: محمود | AC100: 28 | AD100: 400 | AE100: 28 | AF100: Dobby | AG100: Normal | AH100: اضافه | AI100: اضافه من المشغل | AJ100: 2021/08/10
B101: 0001 - 44 | C101: Elephnt | D101: 9114000018 | E101: مشكل عميل 44 اوردر 7008 | F101: 44 | G101: 7008 | H101: 7008 | I101: Kitchen Towel | J101: Kitchen Towel | K101: Flat | L101: Flat | M101: 50 X 70 | N101: 50 X 70 | O101: 70 | P101: 70 | Q101: 200 | R101: Very Light weight | S101: dark | T101: Second Choice | U101: 100% cotton | V101: 100% cotton | W101: 24/2 - 16/1 | X101: 24/2 - 16/1 | Y101: Fresh | Z101: Fresh | AB101: محمود | AC101: 56 | AD101: 800 | AE101: 56 | AF101: Dobby | AG101: Normal | AH101: اضافه | AI101: اضافه من المشغل | AJ101: 2021/08/10
B102: 0001 - 44 | C102: Elephnt | D102: 9114000018 | E102: مشكل عميل 44 اوردر 7008 | F102: 44 | G102: 7008 | H102: 7008 | I102: Kitchen Towel | J102: Kitchen Towel | K102: Flat | L102: Flat | M102: 50 X 70 | N102: 50 X 70 | O102: 70 | P102: 70 | Q102: 200 | R102: Very Light weight | S102: dark | T102: Second Choice | U102: 100% cotton | V102: 100% cotton | W102: 24/2 - 16/1 | X102: 24/2 - 16/1 | Y102: Fresh | Z102: Fresh | AB102: محمود | AC102: 28 | AD102: 400 | AE102: 28 | AF102: Dobby | AG102: Normal | AN102: صرف | AO102: بيع محلى | AP102: 2021/08/10 | AQ102: 34 | AR102: 4
B103: 0001 - 55 | C103: palm blue | D103: 9114000024 | E103: مشكل عميل 55 اوردر 7009 | F103: 55 | G103: 7009 | H103: 7009 | I103: Kitchen Towel | J103: Kitchen Towel | K103: Flat | L103: Flat | M103: 50 X 70 | N103: 50 X 70 | O103: 70 | P103: 70 | Q103: 200 | R103: Very Light weight | S103: dark | T103: Second Choice | U103: 100% cotton | V103: 100% cotton | W103: 24/2 - 16/1 | X103: 24/2 - 16/1 | Y103: Fresh | Z103: Fresh | AB103: محمود | AC103: 14 | AD103: 200 | AE103: 14 | AF103: Dobby | AG103: Normal | AH103: اضافه | AI103: اضافه من المشغل | AJ103: 2021/08/10
B104: 0002 - 55 | C104: palm nel | D104: 9114000025 | E104: مشكل عميل 55 اوردر 7009 | F104: 55 | G104: 7009 | H104: 7009 | I104: Kitchen Towel | J104: Kitchen Towel | K104: Flat | L104: Flat | M104: 50 X 70 | N104: 50 X 70 | O104: 70 | P104: 70 | Q104: 200 | R104: Very Light weight | S104: dark | T104: Second Choice | U104: 100% cotton | V104: 100% cotton | W104: 24/2 - 16/1 | X104: 24/2 - 16/1 | Y104: Fresh | Z104: Fresh | AB104: محمود | AC104: 3.5 | AD104: 50 | AE104: 3.5 | AF104: Dobby | AG104: Normal | AH104: اضافه | AI104: اضافه من المشغل | AJ104: 2021/08/10
B105: 0003 - 55 | C105: palm Turq | D105: 9114000026 | E105: مشكل عميل 55 اوردر 7009 | F105: 55 | G105: 7009 | H105: 7009 | I105: Kitchen Towel | J105: Kitchen Towel | K105: Flat | L105: Flat | M105: 50 X 70 | N105: 50 X 70 | O105: 70 | P105: 70 | Q105: 200 | R105: Very Light weight | S105: dark | T105: Second Choice | U105: 100% cotton | V105: 100% cotton | W105: 24/2 - 16/1 | X105: 24/2 - 16/1 | Y105: Fresh | Z105: Fresh | AB105: محمود | AC105: 1.75 | AD105: 25 | AE105: 1.75 | AF105: Dobby | AG105: Normal | AH105: اضافه | AI105: اضافه من المشغل | AJ105: 2021/08/10
B106: 0004 - 55 | C106: palm orange | D106: 9114000027 | E106: مشكل عميل 55 اوردر 7009 | F106: 55 | G106: 7009 | H106: 7009 | I106: Kitchen Towel | J106: Kitchen Towel | K106: Flat | L106: Flat | M106: 50 X 70 | N106: 50 X 70 | O106: 70 | P106: 70 | Q106: 200 | R106: Very Light weight | S106: dark | T106: Second Choice | U106: 100% cotton | V106: 100% cotton | W106: 24/2 - 16/1 | X106: 24/2 - 16/1 | Y106: Fresh | Z106: Fresh | AB106: محمود | AC106: 2.1 | AD106: 30 | AE106: 2.1 | AF106: Dobby | AG106: Normal | AH106: اضافه | AI106: اضافه من المشغل | AJ106: 2021/08/10
B107: 0005 - 55 | C107: palm red | D107: 9114000028 | E107: مشكل عميل 55 اوردر 7009 | F107: 55 | G107: 7009 | H107: 7009 | I107: Kitchen Towel | J107: Kitchen Towel | K107: Flat | L107: Flat | M107: 50 X 70 | N107: 50 X 70 | O107: 70 | P107: 70 | Q107: 200 | R107: Very Light weight | S107: dark | T107: Second Choice | U107: 100% cotton | V107: 100% cotton | W107: 24/2 - 16/1 | X107: 24/2 - 16/1 | Y107: Fresh | Z107: Fresh | AB107: محمود | AC107: 0.84 | AD107: 12 | AE107: 0.84 | AF107: Dobby | AG107: Normal | AH107: اضافه | AI107: اضافه من المشغل | AJ107: 2021/08/10
B108: 0006 - 55 | C108: palm Brown | D108: 9114000029 | E108: مشكل عميل 55 اوردر 7009 | F108: 55 | G108: 7009 | H108: 7009 | I108: Kitchen Towel | J108: Kitchen Towel | K108: Flat | L108: Flat | M108: 50 X 70 | N108: 50 X 70 | O108: 70 | P108: 70 | Q108: 200 | R108: Very Light weight | S108: dark | T108: Second Choice | U108: 100% cotton | V108: 100% cotton | W108: 24/2 - 16/1 | X108: 24/2 - 16/1 | Y108: Fresh | Z108: Fresh | AB108: محمود | AC108: 0.56 | AD108: 8 | AE108: 0.56 | AF108: Dobby | AG108: Normal | AH108: اضافه | AI108: اضافه من المشغل | AJ108: 2021/08/10
B109: 0001 - 55 | C109: palm blue | D109: 9114000024 | E109: مشكل عميل 55 اوردر 7009 | F109: 55 | G109: 7009 | H109: 7009 | I109: Kitchen Towel | J109: Kitchen Towel | K109: Flat | L109: Flat | M109: 50 X 70 | N109: 50 X 70 | O109: 70 | P109: 70 | Q109: 200 | R109: Very Light weight | S109: dark | T109: Second Choice | U109: 100% cotton | V109: 100% cotton | W109: 24/2 - 16/1 | X109: 24/2 - 16/1 | Y109: Fresh | Z109: Fresh | AB109: محمود | AC109: 28 | AD109: 400 | AE109: 28 | AF109: Dobby | AG109: Normal | AH109: اضافه | AI109: اضافه من المشغل | AJ109: 2021/08/10
B110: 0002 - 55 | C110: palm nel | D110: 9114000025 | E110: مشكل عميل 55 اوردر 7009 | F110: 55 | G110: 7009 | H110: 7009 | I110: Kitchen Towel | J110: Kitchen Towel | K110: Flat | L110: Flat | M110: 50 X 70 | N110: 50 X 70 | O110: 70 | P110: 70 | Q110: 200 | R110: Very Light weight | S110: dark | T110: Second Choice | U110: 100% cotton | V110: 100% cotton | W110: 24/2 - 16/1 | X110: 24/2 - 16/1 | Y110: Fresh | Z110: Fresh | AB110: محمود | AC110: 8.4 | AD110: 120 | AE110: 8.4 | AF110: Dobby | AG110: Normal | AH110: اضافه | AI110: اضافه من المشغل | AJ110: 2021/08/10
B111: 0003 - 55 | C111: palm Turq | D111: 9114000026 | E111: مشكل عميل 55 اوردر 7009 | F111: 55 | G111: 7009 | H111: 7009 | I111: Kitchen Towel | J111: Kitchen Towel | K111: Flat | L111: Flat | M111: 50 X 70 | N111: 50 X 70 | O111: 70 | P111: 70 | Q111: 200 | R111: Very Light weight | S111: dark | T111: Second Choice | U111: 100% cotton | V111: 100% cotton | W111: 24/2 - 16/1 | X111: 24/2 - 16/1 | Y111: Fresh | Z111: Fresh | AB111: محمود | AC111: 0.56 | AD111: 8 | AE111: 0.56 | AF111: Dobby | AG111: Normal | AH111: اضافه | AI111: اضافه من المشغل | AJ111: 2021/08/10
B112: 0004 - 55 | C112: palm orange | D112: 9114000027 | E112: مشكل عميل 55 اوردر 7009 | F112: 55 | G112: 7009 | H112: 7009 | I112: Kitchen Towel | J112: Kitchen Towel | K112: Flat | L112: Flat | M112: 50 X 70 | N112: 50 X 70 | O112: 70 | P112: 70 | Q112: 200 | R112: Very Light weight | S112: dark | T112: Second Choice | U112: 100% cotton | V112: 100% cotton | W112: 24/2 - 16/1 | X112: 24/2 - 16/1 | Y112: Fresh | Z112: Fresh | AB112: محمود | AC112: 0.84 | AD112: 12 | AE112: 0.84 | AF112: Dobby | AG112: Normal | AH112: اضافه | AI112: اضافه من المشغل | AJ112: 2021/08/10
B113: 0005 - 55 | C113: palm red | D113: 9114000028 | E113: مشكل عميل 55 اوردر 7009 | F113: 55 | G113: 7009 | H113: 7009 | I113: Kitchen Towel | J113: Kitchen Towel | K113: Flat | L113: Flat | M113: 50 X 70 | N113: 50 X 70 | O113: 70 | P113: 70 | Q113: 200 | R113: Very Light weight | S113: dark | T113: Second Choice | U113: 100% cotton | V113: 100% cotton | W113: 24/2 - 16/1 | X113: 24/2 - 16/1 | Y113: Fresh | Z113: Fresh | AB113: محمود | AC113: 2.1 | AD113: 30 | AE113: 2.1 | AF113: Dobby | AG113: Normal | AH113: اضافه | AI113: اضافه من المشغل | AJ113: 2021/08/10
B114: 0006 - 55 | C114: palm Brown | D114: 9114000029 | E114: مشكل عميل 55 اوردر 7009 | F114: 55 | G114: 7009 | H114: 7009 | I114: Kitchen Towel | J114: Kitchen Towel | K114: Flat | L114: Flat | M114: 50 X 70 | N114: 50 X 70 | O114: 70 | P114: 70 | Q114: 200 | R114: Very Light weight | S114: dark | T114: Second Choice | U114: 100% cotton | V114: 100% cotton | W114: 24/2 - 16/1 | X114: 24/2 - 16/1 | Y114: Fresh | Z114: Fresh | AB114: محمود | AC114: 1.54 | AD114: 22 | AE114: 1.54 | AF114: Dobby | AG114: Normal | AH114: اضافه | AI114: اضافه من المشغل | AJ114: 2021/08/10
B115: 0001 - 55 | C115: palm blue | D115: 9114000024 | E115: مشكل عميل 55 اوردر 7009 | F115: 55 | G115: 7009 | H115: 7009 | I115: Kitchen Towel | J115: Kitchen Towel | K115: Flat | L115: Flat | M115: 50 X 70 | N115: 50 X 70 | O115: 70 | P115: 70 | Q115: 200 | R115: Very Light weight | S115: dark | T115: Second Choice | U115: 100% cotton | V115: 100% cotton | W115: 24/2 - 16/1 | X115: 24/2 - 16/1 | Y115: Fresh | Z115: Fresh | AB115: محمود | AC115: 28 | AD115: 400 | AE115: 28 | AF115: Dobby | AG115: Normal | AN115: صرف | AO115: بيع محلى | AP115: 2021/08/10 | AQ115: 34 | AR115: 5
B116: 0002 - 55 | C116: palm nel | D116: 9114000025 | E116: مشكل عميل 55 اوردر 7009 | F116: 55 | G116: 7009 | H116: 7009 | I116: Kitchen Towel | J116: Kitchen Towel | K116: Flat | L116: Flat | M116: 50 X 70 | N116: 50 X 70 | O116: 70 | P116: 70 | Q116: 200 | R116: Very Light weight | S116: dark | T116: Second Choice | U116: 100% cotton | V116: 100% cotton | W116: 24/2 - 16/1 | X116: 24/2 - 16/1 | Y116: Fresh | Z116: Fresh | AB116: محمود | AC116: 8.4 | AD116: 120 | AE116: 8.4 | AF116: Dobby | AG116: Normal | AN116: صرف | AO116: بيع محلى | AP116: 2021/08/10 | AQ116: 34 | AR116: 5
B117: 0003 - 55 | C117: palm Turq | D117: 9114000026 | E117: مشكل عميل 55 اوردر 7009 | F117: 55 | G117: 7009 | H117: 7009 | I117: Kitchen Towel | J117: Kitchen Towel | K117: Flat | L117: Flat | M117: 50 X 70 | N117: 50 X 70 | O117: 70 | P117: 70 | Q117: 200 | R117: Very Light weight | S117: dark | T117: Second Choice | U117: 100% cotton | V117: 100% cotton | W117: 24/2 - 16/1 | X117: 24/2 - 16/1 | Y117: Fresh | Z117: Fresh | AB117: محمود | AC117: 0.56 | AD117: 8 | AE117: 0.56 | AF117: Dobby | AG117: Normal | AN117: صرف | AO117: بيع محلى | AP117: 2021/08/10 | AQ117: 34 | AR117: 5
B118: 0004 - 55 | C118: palm orange | D118: 9114000027 | E118: مشكل عميل 55 اوردر 7009 | F118: 55 | G118: 7009 | H118: 7009 | I118: Kitchen Towel | J118: Kitchen Towel | K118: Flat | L118: Flat | M118: 50 X 70 | N118: 50 X 70 | O118: 70 | P118: 70 | Q118: 200 | R118: Very Light weight | S118: dark | T118: Second Choice | U118: 100% cotton | V118: 100% cotton | W118: 24/2 - 16/1 | X118: 24/2 - 16/1 | Y118: Fresh | Z118: Fresh | AB118: محمود | AC118: 0.84 | AD118: 12 | AE118: 0.84 | AF118: Dobby | AG118: Normal | AN118: صرف | AO118: بيع محلى | AP118: 2021/08/10 | AQ118: 34 | AR118: 5
B119: 0005 - 55 | C119: palm red | D119: 9114000028 | E119: مشكل عميل 55 اوردر 7009 | F119: 55 | G119: 7009 | H119: 7009 | I119: Kitchen Towel | J119: Kitchen Towel | K119: Flat | L119: Flat | M119: 50 X 70 | N119: 50 X 70 | O119: 70 | P119: 70 | Q119: 200 | R119: Very Light weight | S119: dark | T119: Second Choice | U119: 100% cotton | V119: 100% cotton | W119: 24/2 - 16/1 | X119: 24/2 - 16/1 | Y119: Fresh | Z119: Fresh | AB119: محمود | AC119: 2.1 | AD119: 30 | AE119: 2.1 | AF119: Dobby | AG119: Normal | AN119: صرف | AO119: بيع محلى | AP119: 2021/08/10 | AQ119: 34 | AR119: 5
B120: 0006 - 55 | C120: palm Brown | D120: 9114000029 | E120: مشكل عميل 55 اوردر 7009 | F120: 55 | G120: 7009 | H120: 7009 | I120: Kitchen Towel | J120: Kitchen Towel | K120: Flat | L120: Flat | M120: 50 X 70 | N120: 50 X 70 | O120: 70 | P120: 70 | Q120: 200 | R120: Very Light weight | S120: dark | T120: Second Choice | U120: 100% cotton | V120: 100% cotton | W120: 24/2 - 16/1 | X120: 24/2 - 16/1 | Y120: Fresh | Z120: Fresh | AB120: محمود | AC120: 1.54 | AD120: 22 | AE120: 1.54 | AF120: Dobby | AG120: Normal | AN120: صرف | AO120: بيع محلى | AP120: 2021/08/10 | AQ120: 34 | AR120: 5
B121: 0007 - 55 | C121: Moon - Blue | D121: 9114000030 | E121: مشكل عميل 55 اوردر 7010 | F121: 55 | G121: 7010 | H121: 7010 | I121: Kitchen Towel | J121: Kitchen Towel | K121: Flat | L121: Flat | M121: 50 X 70 | N121: 50 X 70 | O121: 70 | P121: 70 | Q121: 200 | R121: Very Light weight | S121: dark | T121: Second Choice | U121: 100% cotton | V121: 100% cotton | W121: 24/2 - 16/1 | X121: 24/2 - 16/1 | Y121: Fresh | Z121: Fresh | AB121: محمود | AC121: 28 | AD121: 400 | AE121: 28 | AF121: Dobby | AG121: Normal | AH121: اضافه | AI121: اضافه من المشغل | AJ121: 2021/08/10
B122: 0008 - 55 | C122: Moon - Red | D122: 9114000031 | E122: مشكل عميل 55 اوردر 7010 | F122: 55 | G122: 7010 | H122: 7010 | I122: Kitchen Towel | J122: Kitchen Towel | K122: Flat | L122: Flat | M122: 50 X 70 | N122: 50 X 70 | O122: 70 | P122: 70 | Q122: 200 | R122: Very Light weight | S122: dark | T122: Second Choice | U122: 100% cotton | V122: 100% cotton | W122: 24/2 - 16/1 | X122: 24/2 - 16/1 | Y122: Fresh | Z122: Fresh | AB122: محمود | AC122: 8.4 | AD122: 120 | AE122: 8.4 | AF122: Jacquard | AG122: Normal | AH122: اضافه | AI122: اضافه من المشغل | AJ122: 2021/08/10
B123: 0007 - 55 | C123: Moon - Blue | D123: 9114000030 | E123: مشكل عميل 55 اوردر 7010 | F123: 55 | G123: 7010 | H123: 7010 | I123: Kitchen Towel | J123: Kitchen Towel | K123: Flat | L123: Flat | M123: 50 X 70 | N123: 50 X 70 | O123: 70 | P123: 70 | Q123: 200 | R123: Very Light weight | S123: dark | T123: Second Choice | U123: 100% cotton | V123: 100% cotton | W123: 24/2 - 16/1 | X123: 24/2 - 16/1 | Y123: Fresh | Z123: Fresh | AB123: محمود | AC123: 28 | AD123: 400 | AE123: 28 | AF123: Dobby | AG123: Normal | AN123: صرف | AO123: بيع محلى | AP123: 2021/08/10 | AQ123: 34 | AR123: 6
B124: 0008 - 55 | C124: Moon - Red | D124: 9114000031 | E124: مشكل عميل 55 اوردر 7010 | F124: 55 | G124: 7010 | H124: 7010 | I124: Kitchen Towel | J124: Kitchen Towel | K124: Flat | L124: Flat | M124: 50 X 70 | N124: 50 X 70 | O124: 70 | P124: 70 | Q124: 200 | R124: Very Light weight | S124: dark | T124: Second Choice | U124: 100% cotton | V124: 100% cotton | W124: 24/2 - 16/1 | X124: 24/2 - 16/1 | Y124: Fresh | Z124: Fresh | AB124: محمود | AC124: 8.4 | AD124: 120 | AE124: 8.4 | AF124: Jacquard | AG124: Normal | AN124: صرف | AO124: بيع محلى | AP124: 2021/08/10 | AQ124: 34 | AR124: 6
B125: 0007 - 55 | C125: Moon - Blue | D125: 9114000030 | E125: مشكل عميل 55 اوردر 7010 | F125: 55 | G125: 7010 | H125: 7010 | I125: Kitchen Towel | J125: Kitchen Towel | K125: Flat | L125: Flat | M125: 50 X 70 | N125: 50 X 70 | O125: 70 | P125: 70 | Q125: 200 | R125: Very Light weight | S125: dark | T125: Second Choice | U125: 100% cotton | V125: 100% cotton | W125: 24/2 - 16/1 | X125: 24/2 - 16/1 | Y125: Fresh | Z125: Fresh | AB125: محمود | AC125: 70 | AD125: 1000 | AE125: 70 | AF125: Dobby | AG125: Normal | AH125: اضافه | AI125: اضافه من المشغل | AJ125: 2021/08/10
B126: 0007 - 55 | C126: Moon - Blue | D126: 9114000030 | E126: مشكل عميل 55 اوردر 7010 | F126: 55 | G126: 7010 | H126: 7010 | I126: Kitchen Towel | J126: Kitchen Towel | K126: Flat | L126: Flat | M126: 50 X 70 | N126: 50 X 70 | O126: 70 | P126: 70 | Q126: 200 | R126: Very Light weight | S126: dark | T126: Second Choice | U126: 100% cotton | V126: 100% cotton | W126: 24/2 - 16/1 | X126: 24/2 - 16/1 | Y126: Fresh | Z126: Fresh | AB126: محمود | AC126: 70 | AD126: 1000 | AE126: 70 | AF126: Dobby | AG126: Normal | AN126: صرف | AO126: بيع محلى | AP126: 2021/08/10 | AQ126: 34 | AR126: 7
B127: 0007 - 55 | C127: Moon - Blue | D127: 9114000030 | E127: مشكل عميل 55 اوردر 7010 | F127: 55 | G127: 7010 | H127: 7010 | I127: Kitchen Towel | J127: Kitchen Towel | K127: Flat | L127: Flat | M127: 50 X 70 | N127: 50 X 70 | O127: 70 | P127: 70 | Q127: 200 | R127: Very Light weight | S127: dark | T127: Second Choice | U127: 100% cotton | V127: 100% cotton | W127: 24/2 - 16/1 | X127: 24/2 - 16/1 | Y127: Fresh | Z127: Fresh | AB127: محمود | AC127: 70 | AD127: 100 | AE127: 7 | AF127: Dobby | AG127: Normal | AH127: اضافه | AI127: اضافه من المشغل | AJ127: 2021/08/10
B128: 0007 - 55 | C128: Moon - Blue | D128: 9114000030 | E128: مشكل عميل 55 اوردر 7010 | F128: 55 | G128: 7010 | H128: 7010 | I128: Kitchen Towel | J128: Kitchen Towel | K128: Flat | L128: Flat | M128: 50 X 70 | N128: 50 X 70 | O128: 70 | P128: 70 | Q128: 200 | R128: Very Light weight | S128: dark | T128: Second Choice | U128: 100% cotton | V128: 100% cotton | W128: 24/2 - 16/1 | X128: 24/2 - 16/1 | Y128: Fresh | Z128: Fresh | AB128: محمود | AC128: 70 | AD128: 100 | AE128: 7 | AF128: Dobby | AG128: Normal | AH128: اضافه | AI128: اضافه من المشغل | AJ128: 2021/08/10
B129: 0007 - 55 | C129: Moon - Blue | D129: 9114000030 | E129: مشكل عميل 55 اوردر 7010 | F129: 55 | G129: 7010 | H129: 7010 | I129: Kitchen Towel | J129: Kitchen Towel | K129: Flat | L129: Flat | M129: 50 X 70 | N129: 50 X 70 | O129: 70 | P129: 70 | Q129: 200 | R129: Very Light weight | S129: dark | T129: Second Choice | U129: 100% cotton | V129: 100% cotton | W129: 24/2 - 16/1 | X129: 24/2 - 16/1 | Y129: Fresh | Z129: Fresh | AB129: محمود | AC129: 70 | AD129: 100 | AE129: 7 | AF129: Dobby | AG129: Normal | AH129: اضافه | AI129: اضافه من المشغل | AJ129: 2021/08/10
B130: 0007 - 55 | C130: Moon - Blue | D130: 9114000030 | E130: مشكل عميل 55 اوردر 7010 | F130: 55 | G130: 7010 | H130: 7010 | I130: Kitchen Towel | J130: Kitchen Towel | K130: Flat | L130: Flat | M130: 50 X 70 | N130: 50 X 70 | O130: 70 | P130: 70 | Q130: 200 | R130: Very Light weight | S130: dark | T130: Second Choice | U130: 100% cotton | V130: 100% cotton | W130: 24/2 - 16/1 | X130: 24/2 - 16/1 | Y130: Fresh | Z130: Fresh | AB130: محمود | AC130: 70 | AD130: 100 | AE130: 7 | AF130: Dobby | AG130: Normal | AH130: اضافه | AI130: اضافه من المشغل | AJ130: 2021/08/10
B131: 0007 - 55 | C131: Moon - Blue | D131: 9114000030 | E131: مشكل عميل 55 اوردر 7010 | F131: 55 | G131: 7010 | H131: 7010 | I131: Kitchen Towel | J131: Kitchen Towel | K131: Flat | L131: Flat | M131: 50 X 70 | N131: 50 X 70 | O131: 70 | P131: 70 | Q131: 200 | R131: Very Light weight | S131: dark | T131: Second Choice | U131: 100% cotton | V131: 100% cotton | W131: 24/2 - 16/1 | X131: 24/2 - 16/1 | Y131: Fresh | Z131: Fresh | AB131: محمود | AC131: 70 | AD131: 100 | AE131: 7 | AF131: Dobby | AG131: Normal | AN131: صرف | AO131: بيع محلى | AP131: 2021/08/10 | AQ131: 34 | AR131: 8
B132: 0001 - 60 | C132: ttoo | D132: 9114000032 | E132: مشكل عميل 60 اوردر 7011 | F132: 60 | G132: 7011 | H132: 7011 | I132: Kitchen Towel | J132: Kitchen Towel | K132: Flat | L132: Flat | M132: 50 X 70 | N132: 50 X 70 | O132: 70 | P132: 70 | Q132: 200 | R132: Very Light weight | S132: dark | T132: Second Choice | U132: 100% cotton | V132: 100% cotton | W132: 24/2 - 16/1 | X132: 24/2 - 16/1 | Y132: Fresh | Z132: Fresh | AB132: محمود | AC132: 7 | AD132: 100 | AE132: 7 | AF132: Dobby | AG132: Normal | AH132: اضافه | AI132: اضافه من المشغل | AJ132: 2021/08/10
B133: 0002 - 60 | C133: cairo | D133: 9114000033 | E133: مشكل عميل 60 اوردر 7011 | F133: 60 | G133: 7011 | H133: 7011 | I133: Kitchen Towel | J133: Kitchen Towel | K133: Flat | L133: Flat | M133: 50 X 70 | N133: 50 X 70 | O133: 70 | P133: 70 | Q133: 200 | R133: Very Light weight | S133: dark | T133: Second Choice | U133: 100% cotton | V133: 100% cotton | W133: 24/2 - 16/1 | X133: 24/2 - 16/1 | Y133: Fresh | Z133: Fresh | AB133: محمود | AC133: 8.4 | AD133: 120 | AE133: 8.4 | AF133: Jacquard | AG133: Normal | AH133: اضافه | AI133: اضافه من المشغل | AJ133: 2021/08/10
B134: 0003 - 60 | C134: mansura | D134: 9114000034 | E134: مشكل عميل 60 اوردر 7011 | F134: 60 | G134: 7011 | H134: 7011 | I134: Kitchen Towel | J134: Kitchen Towel | K134: Flat | L134: Flat | M134: 50 X 70 | N134: 50 X 70 | O134: 70 | P134: 70 | Q134: 200 | R134: Very Light weight | S134: dark | T134: Second Choice | U134: 100% cotton | V134: 100% cotton | W134: 24/2 - 16/1 | X134: 24/2 - 16/1 | Y134: Fresh | Z134: Fresh | AB134: محمود | AC134: 2.1 | AD134: 30 | AE134: 2.1 | AF134: Jacquard | AG134: Normal | AH134: اضافه | AI134: اضافه من المشغل | AJ134: 2021/08/10
B135: 0004 - 60 | C135: mahalla | D135: 9114000035 | E135: مشكل عميل 60 اوردر 7011 | F135: 60 | G135: 7011 | H135: 7011 | I135: Kitchen Towel | J135: Kitchen Towel | K135: Flat | L135: Flat | M135: 50 X 70 | N135: 50 X 70 | O135: 70 | P135: 70 | Q135: 200 | R135: Very Light weight | S135: dark | T135: Second Choice | U135: 100% cotton | V135: 100% cotton | W135: 24/2 - 16/1 | X135: 24/2 - 16/1 | Y135: Fresh | Z135: Fresh | AB135: محمود | AC135: 1.05 | AD135: 15 | AE135: 1.05 | AF135: Dobby | AG135: Normal | AH135: اضافه | AI135: اضافه من المشغل | AJ135: 2021/08/10
B136: 0005 - 60 | C136: louxur | D136: 9114000036 | E136: مشكل عميل 60 اوردر 7011 | F136: 60 | G136: 7011 | H136: 7011 | I136: Kitchen Towel | J136: Kitchen Towel | K136: Flat | L136: Flat | M136: 50 X 70 | N136: 50 X 70 | O136: 70 | P136: 70 | Q136: 200 | R136: Very Light weight | S136: dark | T136: Second Choice | U136: 100% cotton | V136: 100% cotton | W136: 24/2 - 16/1 | X136: 24/2 - 16/1 | Y136: Fresh | Z136: Fresh | AB136: محمود | AC136: 0.7 | AD136: 10 | AE136: 0.7 | AF136: Dobby | AG136: Normal | AH136: اضافه | AI136: اضافه من المشغل | AJ136: 2021/08/10
B137: 0006 - 60 | C137: aswan | D137: 9114000037 | E137: مشكل عميل 60 اوردر 7011 | F137: 60 | G137: 7011 | H137: 7011 | I137: Kitchen Towel | J137: Kitchen Towel | K137: Flat | L137: Flat | M137: 50 X 70 | N137: 50 X 70 | O137: 70 | P137: 70 | Q137: 200 | R137: Very Light weight | S137: dark | T137: Second Choice | U137: 100% cotton | V137: 100% cotton | W137: 24/2 - 16/1 | X137: 24/2 - 16/1 | Y137: Fresh | Z137: Fresh | AB137: محمود | AC137: 1.75 | AD137: 25 | AE137: 1.75 | AF137: Jacquard | AG137: Normal | AH137: اضافه | AI137: اضافه من المشغل | AJ137: 2021/08/10
B138: 0001 - 60 | C138: ttoo | D138: 9114000032 | E138: مشكل عميل 60 اوردر 7011 | F138: 60 | G138: 7011 | H138: 7011 | I138: Kitchen Towel | J138: Kitchen Towel | K138: Flat | L138: Flat | M138: 50 X 70 | N138: 50 X 70 | O138: 70 | P138: 70 | Q138: 200 | R138: Very Light weight | S138: dark | T138: Second Choice | U138: 100% cotton | V138: 100% cotton | W138: 24/2 - 16/1 | X138: 24/2 - 16/1 | Y138: Fresh | Z138: Fresh | AB138: محمود | AC138: 21 | AD138: 220 | AE138: 15.4 | AF138: Dobby | AG138: Normal | AH138: اضافه | AI138: اضافه من المشغل | AJ138: 2021/08/10
B139: 0002 - 60 | C139: cairo | D139: 9114000033 | E139: مشكل عميل 60 اوردر 7011 | F139: 60 | G139: 7011 | H139: 7011 | I139: Kitchen Towel | J139: Kitchen Towel | K139: Flat | L139: Flat | M139: 50 X 70 | N139: 50 X 70 | O139: 70 | P139: 70 | Q139: 200 | R139: Very Light weight | S139: dark | T139: Second Choice | U139: 100% cotton | V139: 100% cotton | W139: 24/2 - 16/1 | X139: 24/2 - 16/1 | Y139: Fresh | Z139: Fresh | AB139: محمود | AC139: 21 | AD139: 318 | AE139: 22.26 | AF139: Jacquard | AG139: Normal | AH139: اضافه | AI139: اضافه من المشغل | AJ139: 2021/08/10
B140: 0001 - 60 | C140: ttoo | D140: 9114000032 | E140: مشكل عميل 60 اوردر 7011 | F140: 60 | G140: 7011 | H140: 7011 | I140: Kitchen Towel | J140: Kitchen Towel | K140: Flat | L140: Flat | M140: 50 X 70 | N140: 50 X 70 | O140: 70 | P140: 70 | Q140: 200 | R140: Very Light weight | S140: dark | T140: Second Choice | U140: 100% cotton | V140: 100% cotton | W140: 24/2 - 16/1 | X140: 24/2 - 16/1 | Y140: Fresh | Z140: Fresh | AB140: محمود | AC140: 7 | AD140: 100 | AE140: 7 | AF140: Dobby | AG140: Normal | AN140: صرف | AO140: بيع محلى | AP140: 2021/08/10 | AQ140: 34 | AR140: 9
B141: 0002 - 60 | C141: cairo | D141: 9114000033 | E141: مشكل عميل 60 اوردر 7011 | F141: 60 | G141: 7011 | H141: 7011 | I141: Kitchen Towel | J141: Kitchen Towel | K141: Flat | L141: Flat | M141: 50 X 70 | N141: 50 X 70 | O141: 70 | P141: 70 | Q141: 200 | R141: Very Light weight | S141: dark | T141: Second Choice | U141: 100% cotton | V141: 100% cotton | W141: 24/2 - 16/1 | X141: 24/2 - 16/1 | Y141: Fresh | Z141: Fresh | AB141: محمود | AC141: 8.4 | AD141: 120 | AE141: 8.4 | AF141: Jacquard | AG141: Normal | AN141: صرف | AO141: بيع محلى | AP141: 2021/08/10 | AQ141: 34 | AR141: 9
B142: 0003 - 60 | C142: mansura | D142: 9114000034 | E142: مشكل عميل 60 اوردر 7011 | F142: 60 | G142: 7011 | H142: 7011 | I142: Kitchen Towel | J142: Kitchen Towel | K142: Flat | L142: Flat | M142: 50 X 70 | N142: 50 X 70 | O142: 70 | P142: 70 | Q142: 200 | R142: Very Light weight | S142: dark | T142: Second Choice | U142: 100% cotton | V142: 100% cotton | W142: 24/2 - 16/1 | X142: 24/2 - 16/1 | Y142: Fresh | Z142: Fresh | AB142: محمود | AC142: 2.1 | AD142: 30 | AE142: 2.1 | AF142: Jacquard | AG142: Normal | AN142: صرف | AO142: بيع محلى | AP142: 2021/08/10 | AQ142: 34 | AR142: 9
B143: 0004 - 60 | C143: mahalla | D143: 9114000035 | E143: مشكل عميل 60 اوردر 7011 | F143: 60 | G143: 7011 | H143: 7011 | I143: Kitchen Towel | J143: Kitchen Towel | K143: Flat | L143: Flat | M143: 50 X 70 | N143: 50 X 70 | O143: 70 | P143: 70 | Q143: 200 | R143: Very Light weight | S143: dark | T143: Second Choice | U143: 100% cotton | V143: 100% cotton | W143: 24/2 - 16/1 | X143: 24/2 - 16/1 | Y143: Fresh | Z143: Fresh | AB143: محمود | AC143: 1.05 | AD143: 15 | AE143: 1.05 | AF143: Dobby | AG143: Normal | AN143: صرف | AO143: بيع محلى | AP143: 2021/08/10 | AQ143: 34 | AR143: 9
B144: 0005 - 60 | C144: louxur | D144: 9114000036 | E144: مشكل عميل 60 اوردر 7011 | F144: 60 | G144: 7011 | H144: 7011 | I144: Kitchen Towel | J144: Kitchen Towel | K144: Flat | L144: Flat | M144: 50 X 70 | N144: 50 X 70 | O144: 70 | P144: 70 | Q144: 200 | R144: Very Light weight | S144: dark | T144: Second Choice | U144: 100% cotton | V144: 100% cotton | W144: 24/2 - 16/1 | X144: 24/2 - 16/1 | Y144: Fresh | Z144: Fresh | AB144: محمود | AC144: 0.7 | AD144: 10 | AE144: 0.7 | AF144: Dobby | AG144: Normal | AN144: صرف | AO144: بيع محلى | AP144: 2021/08/10 | AQ144: 34 | AR144: 9
B145: 0006 - 60 | C145: aswan | D145: 9114000037 | E145: مشكل عميل 60 اوردر 7011 | F145: 60 | G145: 7011 | H145: 7011 | I145: Kitchen Towel | J145: Kitchen Towel | K145: Flat | L145: Flat | M145: 50 X 70 | N145: 50 X 70 | O145: 70 | P145: 70 | Q145: 200 | R145: Very Light weight | S145: dark | T145: Second Choice | U145: 100% cotton | V145: 100% cotton | W145: 24/2 - 16/1 | X145: 24/2 - 16/1 | Y145: Fresh | Z145: Fresh | AB145: محمود | AC145: 1.75 | AD145: 25 | AE145: 1.75 | AF145: Jacquard | AG145: Normal | AN145: صرف | AO145: بيع محلى | AP145: 2021/08/10 | AQ145: 34 | AR145: 9
B146: 0013 - 34 | C146: AAAA | D146: 9114000009 | E146: مشكل عميل 34 اوردر 7002 | F146: 34 | G146: 7007 | H146: 7007 | I146: Kitchen Towel | J146: Kitchen Towel | K146: Flat | L146: Flat | M146: 50 X 70 | N146: 50 X 70 | O146: 70 | P146: 70 | Q146: 200 | R146: Very Light weight | S146: dark | T146: Second Choice | U146: 100% cotton | V146: 100% cotton | W146: 24/2 - 16/1 | X146: 24/2 - 16/1 | Y146: Fresh | Z146: Fresh | AB146: محمود | AC146: 1.2 | AD146: 20 | AE146: 1.4 | AF146: Jacquard | AG146: Normal | AN146: صرف | AO146: بيع محلى | AP146: 2021/08/11 | AQ146: 34 | AR146: 10
B147: 0014 - 34 | C147: BBBB | D147: 9114000010 | E147: مشكل عميل 34 اوردر 7002 | F147: 34 | G147: 7007 | H147: 7007 | I147: Kitchen Towel | J147: Kitchen Towel | K147: Flat | L147: Flat | M147: 50 X 70 | N147: 50 X 70 | O147: 70 | P147: 70 | Q147: 200 | R147: Very Light weight | S147: dark | T147: Second Choice | U147: 100% cotton | V147: 100% cotton | W147: 24/2 - 16/1 | X147: 24/2 - 16/1 | Y147: Fresh | Z147: Fresh | AB147: محمود | AC147: 1.2 | AD147: 20 | AE147: 1.4 | AF147: Dobby | AG147: Normal | AN147: صرف | AO147: بيع محلى | AP147: 2021/08/11 | AQ147: 34 | AR147: 10
B148: 0015 - 34 | C148: CCCC | D148: 9114000011 | E148: مشكل عميل 34 اوردر 7002 | F148: 34 | G148: 7007 | H148: 7007 | I148: Kitchen Towel | J148: Kitchen Towel | K148: Flat | L148: Flat | M148: 50 X 70 | N148: 50 X 70 | O148: 70 | P148: 70 | Q148: 200 | R148: Very Light weight | S148: dark | T148: Second Choice | U148: 100% cotton | V148: 100% cotton | W148: 24/2 - 16/1 | X148: 24/2 - 16/1 | Y148: Fresh | Z148: Fresh | AB148: محمود | AC148: 1.8 | AD148: 30 | AE148: 2.1 | AF148: Jacquard | AG148: Normal | AN148: صرف | AO148: بيع محلى | AP148: 2021/08/11 | AQ148: 34 | AR148: 10
B149: 0016 - 34 | C149: DDDD | D149: 9114000012 | E149: مشكل عميل 34 اوردر 7002 | F149: 34 | G149: 7007 | H149: 7007 | I149: Kitchen Towel | J149: Kitchen Towel | K149: Flat | L149: Flat | M149: 50 X 70 | N149: 50 X 70 | O149: 70 | P149: 70 | Q149: 200 | R149: Very Light weight | S149: dark | T149: Second Choice | U149: 100% cotton | V149: 100% cotton | W149: 24/2 - 16/1 | X149: 24/2 - 16/1 | Y149: Fresh | Z149: Fresh | AB149: محمود | AC149: 3 | AD149: 50 | AE149: 3.5 | AF149: Dobby | AG149: Normal | AN149: صرف | AO149: بيع محلى | AP149: 2021/08/11 | AQ149: 34 | AR149: 10
B150: 0017 - 34 | C150: EEEE | D150: 9114000013 | E150: مشكل عميل 34 اوردر 7002 | F150: 34 | G150: 7007 | H150: 7007 | I150: Kitchen Towel | J150: Kitchen Towel | K150: Flat | L150: Flat | M150: 50 X 70 | N150: 50 X 70 | O150: 70 | P150: 70 | Q150: 200 | R150: Very Light weight | S150: dark | T150: Second Choice | U150: 100% cotton | V150: 100% cotton | W150: 24/2 - 16/1 | X150: 24/2 - 16/1 | Y150: Fresh | Z150: Fresh | AB150: محمود | AC150: 0.6 | AD150: 10 | AE150: 0.7 | AF150: Dobby | AG150: Normal | AN150: صرف | AO150: بيع محلى | AP150: 2021/08/11 | AQ150: 34 | AR150: 10
B151: 0018 - 34 | C151: FFFFF | D151: 9114000014 | E151: مشكل عميل 34 اوردر 7002 | F151: 34 | G151: 7007 | H151: 7007 | I151: Kitchen Towel | J151: Kitchen Towel | K151: Flat | L151: Flat | M151: 50 X 70 | N151: 50 X 70 | O151: 70 | P151: 70 | Q151: 200 | R151: Very Light weight | S151: dark | T151: Second Choice | U151: 100% cotton | V151: 100% cotton | W151: 24/2 - 16/1 | X151: 24/2 - 16/1 | Y151: Fresh | Z151: Fresh | AB151: محمود | AC151: 1.5 | AD151: 25 | AE151: 1.75 | AF151: Jacquard | AG151: Normal | AN151: صرف | AO151: بيع محلى | AP151: 2021/08/11 | AQ151: 34 | AR151: 10
B152: 0019 - 34 | C152: GGGG | D152: 9114000015 | E152: مشكل عميل 34 اوردر 7002 | F152: 34 | G152: 7007 | H152: 7007 | I152: Kitchen Towel | J152: Kitchen Towel | K152: Flat | L152: Flat | M152: 50 X 70 | N152: 50 X 70 | O152: 70 | P152: 70 | Q152: 200 | R152: Very Light weight | S152: dark | T152: Second Choice | U152: 100% cotton | V152: 100% cotton | W152: 24/2 - 16/1 | X152: 24/2 - 16/1 | Y152: Fresh | Z152: Fresh | AB152: محمود | AC152: 1.5 | AD152: 25 | AE152: 1.75 | AF152: Dobby | AG152: Normal | AN152: صرف | AO152: بيع محلى | AP152: 2021/08/11 | AQ152: 34 | AR152: 10
B153: 0020 - 34 | C153: HHHHH | D153: 9114000016 | E153: مشكل عميل 34 اوردر 7002 | F153: 34 | G153: 7007 | H153: 7007 | I153: Kitchen Towel | J153: Kitchen Towel | K153: Flat | L153: Flat | M153: 50 X 70 | N153: 50 X 70 | O153: 70 | P153: 70 | Q153: 200 | R153: Very Light weight | S153: dark | T153: Second Choice | U153: 100% cotton | V153: 100% cotton | W153: 24/2 - 16/1 | X153: 24/2 - 16/1 | Y153: Fresh | Z153: Fresh | AB153: محمود | AC153: 0.6 | AD153: 10 | AE153: 0.7 | AF153: Dobby | AG153: Normal | AN153: صرف | AO153: بيع محلى | AP153: 2021/08/11 | AQ153: 34 | AR153: 10
B154: 0021 - 34 | C154: JJJJJJ | D154: 9114000017 | E154: مشكل عميل 34 اوردر 7002 | F154: 34 | G154: 7007 | H154: 7007 | I154: Kitchen Towel | J154: Kitchen Towel | K154: Flat | L154: Flat | M154: 50 X 70 | N154: 50 X 70 | O154: 70 | P154: 70 | Q154: 200 | R154: Very Light weight | S154: dark | T154: Second Choice | U154: 100% cotton | V154: 100% cotton | W154: 24/2 - 16/1 | X154: 24/2 - 16/1 | Y154: Fresh | Z154: Fresh | AB154: محمود | AC154: 0.6 | AD154: 10 | AE154: 0.7 | AF154: Jacquard | AG154: Normal | AN154: صرف | AO154: بيع محلى | AP154: 2021/08/11 | AQ154: 34 | AR154: 10
B155: 0002 - 34 | C155: lion - Blue | D155: 9114000002 | E155: مشكل عميل 34 اوردر 7002 | F155: 34 | G155: 7002 | H155: 7001 | I155: Kitchen Towel | J155: Kitchen Towel | K155: Flat | L155: Flat | M155: 50 X 70 | N155: 50 X 70 | O155: 75 | P155: 0.088 | Q155: 250 | R155: Light weight | S155: dark | T155: Second Choice | U155: 100% cotton | V155: 100% cotton - Organic | W155: 24/2 - 16/1 | X155: 24/2 - 16/1 | Y155: Fresh | Z155: Fresh | AB155: محمود | AC155: 1.6 | AD155: 20 | AE155: 1.5 | AF155: 0 | AG155: Normal | AN155: صرف | AO155: بيع محلى | AP155: 2021/08/11 | AQ155: 45 | AR155: 11
B156: 0001 - 34 | C156: lion - Brown | D156: 9114000001 | E156: مشكل عميل 34 اوردر 7002 | F156: 34 | G156: 7002 | H156: 7001 | I156: Kitchen Towel | J156: Kitchen Towel | K156: Flat | L156: Flat | M156: 50 X 70 | N156: 50 X 70 | O156: 75 | P156: 0.088 | Q156: 250 | R156: Light weight | S156: dark | T156: Second Choice | U156: 100% cotton | V156: 100% cotton - Organic | W156: 24/2 - 16/1 | X156: 24/2 - 16/1 | Y156: Fresh | Z156: Fresh | AB156: محمود | AC156: 1.6 | AD156: 20 | AE156: 1.5 | AF156: 0 | AG156: Normal | AN156: صرف | AO156: بيع محلى | AP156: 2021/08/11 | AQ156: 45 | AR156: 11
B157: 0003 - 34 | C157: tiger - yellow | D157: 9112000001 | E157: مشكل عميل 34 اوردر 7002 | F157: 34 | G157: 7002 | H157: 7001 | I157: Kitchen Towel | J157: Beach Towel | K157: Flat | L157: Velour | M157: 50 X 70 | N157: 100 x 170 | O157: 75 | P157: 0.714 | Q157: 420 | R157: Medium weight | S157: dark | T157: Second Choice | U157: 100% cotton | V157: 100% cotton - Organic | W157: 24/2 - 16/1 | X157: 24/2 - 24/2 - 16/1 | Y157: Fresh | Z157: Fresh | AB157: محمود | AC157: 2.4 | AD157: 30 | AE157: 2.25 | AF157: 0 | AG157: Normal | AN157: صرف | AO157: بيع محلى | AP157: 2021/08/11 | AQ157: 45 | AR157: 11
B158: 0004 - 34 | C158: tiger - Orange | D158: 9112000002 | E158: مشكل عميل 34 اوردر 7002 | F158: 34 | G158: 7002 | H158: 7001 | I158: Kitchen Towel | J158: Beach Towel | K158: Flat | L158: Velour | M158: 50 X 70 | N158: 100 x 170 | O158: 75 | P158: 0.714 | Q158: 420 | R158: Medium weight | S158: dark | T158: Second Choice | U158: 100% cotton | V158: 100% cotton - Organic | W158: 24/2 - 16/1 | X158: 24/2 - 24/2 - 16/1 | Y158: Fresh | Z158: Fresh | AB158: محمود | AC158: 4 | AD158: 50 | AE158: 3.75 | AF158: 0 | AG158: Normal | AN158: صرف | AO158: بيع محلى | AP158: 2021/08/11 | AQ158: 45 | AR158: 11
B159: 0005 - 34 | C159: sun - red | D159: 9112000003 | E159: مشكل عميل 34 اوردر 7002 | F159: 34 | G159: 7002 | H159: 7002 | I159: Kitchen Towel | J159: Beach Towel | K159: Flat | L159: Velour | M159: 50 X 70 | N159: 90 x 160 | O159: 75 | P159: 0.576 | Q159: 400 | R159: Medium weight | S159: dark | T159: Second Choice | U159: 100% cotton | V159: 100% cotton | W159: 24/2 - 16/1 | X159: 24/2 - 24/2 - 16/1 | Y159: Fresh | Z159: Fresh | AB159: محمود | AC159: 0.8 | AD159: 10 | AE159: 0.75 | AF159: 0 | AG159: Normal | AN159: صرف | AO159: بيع محلى | AP159: 2021/08/11 | AQ159: 45 | AR159: 11
B160: 0006 - 34 | C160: sun - orange | D160: 9112000004 | E160: مشكل عميل 34 اوردر 7002 | F160: 34 | G160: 7002 | H160: 7002 | I160: Kitchen Towel | J160: Beach Towel | K160: Flat | L160: Velour | M160: 50 X 70 | N160: 90 x 160 | O160: 75 | P160: 0.576 | Q160: 400 | R160: Medium weight | S160: dark | T160: Second Choice | U160: 100% cotton | V160: 100% cotton | W160: 24/2 - 16/1 | X160: 24/2 - 24/2 - 16/1 | Y160: Fresh | Z160: Fresh | AB160: محمود | AC160: 2 | AD160: 25 | AE160: 1.875 | AF160: DOBBY | AG160: Normal | AN160: صرف | AO160: بيع محلى | AP160: 2021/08/11 | AQ160: 45 | AR160: 11
B161: 0007 - 34 | C161: LOO | D161: 9114000003 | E161: مشكل عميل 34 اوردر 7002 | F161: 34 | G161: 7002 | H161: 7003 | I161: Kitchen Towel | J161: Kitchen Towel | K161: Flat | L161: Flat | M161: 50 X 70 | N161: 50 X 70 | O161: 75 | P161: 0.07 | Q161: 200 | R161: Very Light weight | S161: dark | T161: Second Choice | U161: 100% cotton | V161: 100% cotton | W161: 24/2 - 16/1 | X161: 24/2 - 16/1 | Y161: Fresh | Z161: Fresh | AB161: محمود | AC161: 2 | AD161: 25 | AE161: 1.875 | AF161: Jacquard | AG161: Normal | AN161: صرف | AO161: بيع محلى | AP161: 2021/08/11 | AQ161: 45 | AR161: 11
B162: 0008 - 34 | C162: TOO | D162: 9114000004 | E162: مشكل عميل 34 اوردر 7002 | F162: 34 | G162: 7002 | H162: 7003 | I162: Kitchen Towel | J162: Kitchen Towel | K162: Flat | L162: Flat | M162: 50 X 70 | N162: 50 X 70 | O162: 75 | P162: 0.07 | Q162: 200 | R162: Very Light weight | S162: dark | T162: Second Choice | U162: 100% cotton | V162: 100% cotton | W162: 24/2 - 16/1 | X162: 24/2 - 16/1 | Y162: Fresh | Z162: Fresh | AB162: محمود | AC162: 0.8 | AD162: 10 | AE162: 0.75 | AF162: Jacquard | AG162: Normal | AN162: صرف | AO162: بيع محلى | AP162: 2021/08/11 | AQ162: 45 | AR162: 11
B163: 0010 - 34 | C163: BOO | D163: 9114000006 | E163: مشكل عميل 34 اوردر 7002 | F163: 34 | G163: 7002 | H163: 7003 | I163: Kitchen Towel | J163: Kitchen Towel | K163: Flat | L163: Flat | M163: 50 X 70 | N163: 50 X 70 | O163: 75 | P163: 0.07 | Q163: 200 | R163: Very Light weight | S163: dark | T163: Second Choice | U163: 100% cotton | V163: 100% cotton | W163: 24/2 - 16/1 | X163: 24/2 - 16/1 | Y163: Fresh | Z163: Fresh | AB163: محمود | AC163: 0.8 | AD163: 10 | AE163: 0.75 | AF163: Jacquard | AG163: Normal | AN163: صرف | AO163: بيع محلى | AP163: 2021/08/11 | AQ163: 45 | AR163: 11
B164: 0013 - 34 | C164: AAAA | D164: 9114000009 | E164: مشكل عميل 34 اوردر 7002 | F164: 34 | G164: 7007 | H164: 7007 | I164: Kitchen Towel | J164: Kitchen Towel | K164: Flat | L164: Flat | M164: 50 X 70 | N164: 50 X 70 | O164: 70 | P164: 70 | Q164: 200 | R164: Very Light weight | S164: dark | T164: Second Choice | U164: 100% cotton | V164: 100% cotton | W164: 24/2 - 16/1 | X164: 24/2 - 16/1 | Y164: Fresh | Z164: Fresh | AB164: محمود | AC164: 1.863354037 | AD164: 20 | AE164: 1.4 | AF164: Jacquard | AG164: Normal | AN164: صرف | AO164: بيع محلى | AP164: 2021/08/11 | AQ164: 33 | AR164: 12
B165: 0014 - 34 | C165: BBBB | D165: 9114000010 | E165: مشكل عميل 34 اوردر 7002 | F165: 34 | G165: 7007 | H165: 7007 | I165: Kitchen Towel | J165: Kitchen Towel | K165: Flat | L165: Flat | M165: 50 X 70 | N165: 50 X 70 | O165: 70 | P165: 70 | Q165: 200 | R165: Very Light weight | S165: dark | T165: Second Choice | U165: 100% cotton | V165: 100% cotton | W165: 24/2 - 16/1 | X165: 24/2 - 16/1 | Y165: Fresh | Z165: Fresh | AB165: محمود | AC165: 2.795031056 | AD165: 30 | AE165: 2.1 | AF165: Dobby | AG165: Normal | AN165: صرف | AO165: بيع محلى | AP165: 2021/08/11 | AQ165: 33 | AR165: 12
B166: 0015 - 34 | C166: CCCC | D166: 9114000011 | E166: مشكل عميل 34 اوردر 7002 | F166: 34 | G166: 7007 | H166: 7007 | I166: Kitchen Towel | J166: Kitchen Towel | K166: Flat | L166: Flat | M166: 50 X 70 | N166: 50 X 70 | O166: 70 | P166: 70 | Q166: 200 | R166: Very Light weight | S166: dark | T166: Second Choice | U166: 100% cotton | V166: 100% cotton | W166: 24/2 - 16/1 | X166: 24/2 - 16/1 | Y166: Fresh | Z166: Fresh | AB166: محمود | AC166: 2.795031056 | AD166: 30 | AE166: 2.1 | AF166: Jacquard | AG166: Normal | AN166: صرف | AO166: بيع محلى | AP166: 2021/08/11 | AQ166: 33 | AR166: 12
B167: 0016 - 34 | C167: DDDD | D167: 9114000012 | E167: مشكل عميل 34 اوردر 7002 | F167: 34 | G167: 7007 | H167: 7007 | I167: Kitchen Towel | J167: Kitchen Towel | K167: Flat | L167: Flat | M167: 50 X 70 | N167: 50 X 70 | O167: 70 | P167: 70 | Q167: 200 | R167: Very Light weight | S167: dark | T167: Second Choice | U167: 100% cotton | V167: 100% cotton | W167: 24/2 - 16/1 | X167: 24/2 - 16/1 | Y167: Fresh | Z167: Fresh | AB167: محمود | AC167: 1.118012422 | AD167: 12 | AE167: 0.84 | AF167: Dobby | AG167: Normal | AN167: صرف | AO167: بيع محلى | AP167: 2021/08/11 | AQ167: 33 | AR167: 12
B168: 0017 - 34 | C168: EEEE | D168: 9114000013 | E168: مشكل عميل 34 اوردر 7002 | F168: 34 | G168: 7007 | H168: 7007 | I168: Kitchen Towel | J168: Kitchen Towel | K168: Flat | L168: Flat | M168: 50 X 70 | N168: 50 X 70 | O168: 70 | P168: 70 | Q168: 200 | R168: Very Light weight | S168: dark | T168: Second Choice | U168: 100% cotton | V168: 100% cotton | W168: 24/2 - 16/1 | X168: 24/2 - 16/1 | Y168: Fresh | Z168: Fresh | AB168: محمود | AC168: 0.9316770186 | AD168: 10 | AE168: 0.7 | AF168: Dobby | AG168: Normal | AN168: صرف | AO168: بيع محلى | AP168: 2021/08/11 | AQ168: 33 | AR168: 12
B169: 0018 - 34 | C169: FFFFF | D169: 9114000014 | E169: مشكل عميل 34 اوردر 7002 | F169: 34 | G169: 7007 | H169: 7007 | I169: Kitchen Towel | J169: Kitchen Towel | K169: Flat | L169: Flat | M169: 50 X 70 | N169: 50 X 70 | O169: 70 | P169: 70 | Q169: 200 | R169: Very Light weight | S169: dark | T169: Second Choice | U169: 100% cotton | V169: 100% cotton | W169: 24/2 - 16/1 | X169: 24/2 - 16/1 | Y169: Fresh | Z169: Fresh | AB169: محمود | AC169: 1.304347826 | AD169: 14 | AE169: 0.98 | AF169: Jacquard | AG169: Normal | AN169: صرف | AO169: بيع محلى | AP169: 2021/08/11 | AQ169: 33 | AR169: 12
B170: 0019 - 34 | C170: GGGG | D170: 9114000015 | E170: مشكل عميل 34 اوردر 7002 | F170: 34 | G170: 7007 | H170: 7007 | I170: Kitchen Towel | J170: Kitchen Towel | K170: Flat | L170: Flat | M170: 50 X 70 | N170: 50 X 70 | O170: 70 | P170: 70 | Q170: 200 | R170: Very Light weight | S170: dark | T170: Second Choice | U170: 100% cotton | V170: 100% cotton | W170: 24/2 - 16/1 | X170: 24/2 - 16/1 | Y170: Fresh | Z170: Fresh | AB170: محمود | AC170: 2.329192547 | AD170: 25 | AE170: 1.75 | AF170: Dobby | AG170: Normal | AN170: صرف | AO170: بيع محلى | AP170: 2021/08/11 | AQ170: 33 | AR170: 12
B171: 0020 - 34 | C171: HHHHH | D171: 9114000016 | E171: مشكل عميل 34 اوردر 7002 | F171: 34 | G171: 7007 | H171: 7007 | I171: Kitchen Towel | J171: Kitchen Towel | K171: Flat | L171: Flat | M171: 50 X 70 | N171: 50 X 70 | O171: 70 | P171: 70 | Q171: 200 | R171: Very Light weight | S171: dark | T171: Second Choice | U171: 100% cotton | V171: 100% cotton | W171: 24/2 - 16/1 | X171: 24/2 - 16/1 | Y171: Fresh | Z171: Fresh | AB171: محمود | AC171: 0.9316770186 | AD171: 10 | AE171: 0.7 | AF171: Dobby | AG171: Normal | AN171: صرف | AO171: بيع محلى | AP171: 2021/08/11 | AQ171: 33 | AR171: 12
B172: 0021 - 34 | C172: JJJJJJ | D172: 9114000017 | E172: مشكل عميل 34 اوردر 7002 | F172: 34 | G172: 7007 | H172: 7007 | I172: Kitchen Towel | J172: Kitchen Towel | K172: Flat | L172: Flat | M172: 50 X 70 | N172: 50 X 70 | O172: 70 | P172: 70 | Q172: 200 | R172: Very Light weight | S172: dark | T172: Second Choice | U172: 100% cotton | V172: 100% cotton | W172: 24/2 - 16/1 | X172: 24/2 - 16/1 | Y172: Fresh | Z172: Fresh | AB172: محمود | AC172: 0.9316770186 | AD172: 10 | AE172: 0.7 | AF172: Jacquard | AG172: Normal | AN172: صرف | AO172: بيع محلى | AP172: 2021/08/11 | AQ172: 33 | AR172: 12
B173: 0001 - 75 | C173: frgg | D173: 9114000001 | E173: yhy | F173: 75 | G173: 7015 | H173: 7015 | I173: Kitchen Towel | J173: Kitchen Towel | K173: Flat | L173: Flat | M173: 50 X 70 | N173: 50 X 70 | O173: 60.9 | P173: 70 | Q173: 200 | R173: Very Light weight | S173: dark | T173: Second Choice | U173: 100% cotton | V173: 100% cotton | W173: 24/2 - 16/1 | X173: 24/2 - 16/1 | Y173: Fresh | Z173: Fresh | AB173: محمود | AC173: 14.02298851 | AD173: 200 | AE173: 14 | AF173: Dobby | AG173: Normal | AH173: اضافه | AI173: اضافه من المشغل | AJ173: 2021/08/11
B174: 0002 - 75 | C174: dfgdfg | D174: 9114000002 | E174: yhy | F174: 75 | G174: 7015 | H174: 7015 | I174: Kitchen Towel | J174: Kitchen Towel | K174: Flat | L174: Flat | M174: 40 x 60 | N174: 40 x 60 | O174: 60.9 | P174: 48 | Q174: 200 | R174: Very Light weight | S174: dark | T174: Second Choice | U174: 100% cotton | V174: 100% cotton | W174: 24/2 - 16/1 | X174: 24/2 - 16/1 | Y174: Fresh | Z174: Fresh | AB174: محمود | AC174: 14.42364532 | AD174: 300 | AE174: 14.4 | AF174: Jacquard | AG174: Normal | AH174: اضافه | AI174: اضافه من المشغل | AJ174: 2021/08/11
B175: 0003 - 75 | C175: dfgdfg | D175: 9114000003 | E175: yhy | F175: 75 | G175: 7015 | H175: 7015 | I175: Kitchen Towel | J175: Kitchen Towel | K175: Flat | L175: Flat | M175: 50 x 65 | N175: 50 x 65 | O175: 60.9 | P175: 65 | Q175: 200 | R175: Very Light weight | S175: dark | T175: Second Choice | U175: 100% cotton | V175: 100% cotton | W175: 24/2 - 16/1 | X175: 24/2 - 16/1 | Y175: Fresh | Z175: Fresh | AB175: محمود | AC175: 32.55336617 | AD175: 500 | AE175: 32.5 | AF175: Jacquard | AG175: Normal | AH175: اضافه | AI175: اضافه من المشغل | AJ175: 2021/08/11
B176: 0001 - 75 | C176: frgg | D176: 9114000001 | E176: yhy | F176: 75 | G176: 7015 | H176: 7015 | I176: Kitchen Towel | J176: Kitchen Towel | K176: Flat | L176: Flat | M176: 50 X 70 | N176: 50 X 70 | O176: 60.9 | P176: 70 | Q176: 200 | R176: Very Light weight | S176: dark | T176: Second Choice | U176: 100% cotton | V176: 100% cotton | W176: 24/2 - 16/1 | X176: 24/2 - 16/1 | Y176: Fresh | Z176: Fresh | AB176: محمود | AC176: 14.02298851 | AD176: 200 | AE176: 14 | AF176: Dobby | AG176: Normal | AN176: صرف | AO176: بيع محلى | AP176: 2021/08/11 | AQ176: 34 | AR176: 13
B177: 0002 - 75 | C177: dfgdfg | D177: 9114000002 | E177: yhy | F177: 75 | G177: 7015 | H177: 7015 | I177: Kitchen Towel | J177: Kitchen Towel | K177: Flat | L177: Flat | M177: 40 x 60 | N177: 40 x 60 | O177: 60.9 | P177: 48 | Q177: 200 | R177: Very Light weight | S177: dark | T177: Second Choice | U177: 100% cotton | V177: 100% cotton | W177: 24/2 - 16/1 | X177: 24/2 - 16/1 | Y177: Fresh | Z177: Fresh | AB177: محمود | AC177: 14.42364532 | AD177: 300 | AE177: 14.4 | AF177: Jacquard | AG177: Normal | AN177: صرف | AO177: بيع محلى | AP177: 2021/08/11 | AQ177: 34 | AR177: 13
B178: 0003 - 75 | C178: dfgdfg | D178: 9114000003 | E178: yhy | F178: 75 | G178: 7015 | H178: 7015 | I178: Kitchen Towel | J178: Kitchen Towel | K178: Flat | L178: Flat | M178: 50 x 65 | N178: 50 x 65 | O178: 60.9 | P178: 65 | Q178: 200 | R178: Very Light weight | S178: dark | T178: Second Choice | U178: 100% cotton | V178: 100% cotton | W178: 24/2 - 16/1 | X178: 24/2 - 16/1 | Y178: Fresh | Z178: Fresh | AB178: محمود | AC178: 32.55336617 | AD178: 500 | AE178: 32.5 | AF178: Jacquard | AG178: Normal | AN178: صرف | AO178: بيع محلى | AP178: 2021/08/11 | AQ178: 34 | AR178: 13
B179: 0002 - 34 | C179: lion - Blue | D179: 9114000002 | E179: مشكل عميل 34 اوردر 7002 | F179: 34 | G179: 7002 | H179: 7001 | I179: Kitchen Towel | J179: Kitchen Towel | K179: Flat | L179: Flat | M179: 50 X 70 | N179: 50 X 70 | O179: 75 | P179: 0.088 | Q179: 250 | R179: Light weight | S179: dark | T179: Second Choice | U179: 100% cotton | V179: 100% cotton - Organic | W179: 24/2 - 16/1 | X179: 24/2 - 16/1 | Y179: Fresh | Z179: Fresh | AB179: محمود | AC179: 16 | AD179: 20 | AE179: 1.5 | AF179: 0 | AG179: Normal | AN179: صرف | AO179: تصدير | AP179: 2021/08/11 | AQ179: 53 | AR179: 14
B180: 0001 - 34 | C180: lion - Brown | D180: 9114000001 | E180: مشكل عميل 34 اوردر 7002 | F180: 34 | G180: 7002 | H180: 7001 | I180: Kitchen Towel | J180: Kitchen Towel | K180: Flat | L180: Flat | M180: 50 X 70 | N180: 50 X 70 | O180: 75 | P180: 0.088 | Q180: 250 | R180: Light weight | S180: dark | T180: Second Choice | U180: 100% cotton | V180: 100% cotton - Organic | W180: 24/2 - 16/1 | X180: 24/2 - 16/1 | Y180: Fresh | Z180: Fresh | AB180: محمود | AC180: 16 | AD180: 20 | AE180: 1.5 | AF180: 0 | AG180: Normal | AN180: صرف | AO180: تصدير | AP180: 2021/08/11 | AQ180: 53 | AR180: 14
B181: 0003 - 34 | C181: tiger - yellow | D181: 9112000001 | E181: مشكل عميل 34 اوردر 7002 | F181: 34 | G181: 7002 | H181: 7001 | I181: Kitchen Towel | J181: Beach Towel | K181: Flat | L181: Velour | M181: 50 X 70 | N181: 100 x 170 | O181: 75 | P181: 0.714 | Q181: 420 | R181: Medium weight | S181: dark | T181: Second Choice | U181: 100% cotton | V181: 100% cotton - Organic | W181: 24/2 - 16/1 | X181: 24/2 - 24/2 - 16/1 | Y181: Fresh | Z181: Fresh | AB181: محمود | AC181: 16 | AD181: 30 | AE181: 2.25 | AF181: 0 | AG181: Normal | AN181: صرف | AO181: تصدير | AP181: 2021/08/11 | AQ181: 53 | AR181: 14
B182: 0004 - 34 | C182: tiger - Orange | D182: 9112000002 | E182: مشكل عميل 34 اوردر 7002 | F182: 34 | G182: 7002 | H182: 7001 | I182: Kitchen Towel | J182: Beach Towel | K182: Flat | L182: Velour | M182: 50 X 70 | N182: 100 x 170 | O182: 75 | P182: 0.714 | Q182: 420 | R182: Medium weight | S182: dark | T182: Second Choice | U182: 100% cotton | V182: 100% cotton - Organic | W182: 24/2 - 16/1 | X182: 24/2 - 24/2 - 16/1 | Y182: Fresh | Z182: Fresh | AB182: محمود | AC182: 16 | AD182: 50 | AE182: 3.75 | AF182: 0 | AG182: Normal | AN182: صرف | AO182: تصدير | AP182: 2021/08/11 | AQ182: 53 | AR182: 14
B183: 0005 - 34 | C183: sun - red | D183: 9112000003 | E183: مشكل عميل 34 اوردر 7002 | F183: 34 | G183: 7002 | H183: 7002 | I183: Kitchen Towel | J183: Beach Towel | K183: Flat | L183: Velour | M183: 50 X 70 | N183: 90 x 160 | O183: 75 | P183: 0.576 | Q183: 400 | R183: Medium weight | S183: dark | T183: Second Choice | U183: 100% cotton | V183: 100% cotton | W183: 24/2 - 16/1 | X183: 24/2 - 24/2 - 16/1 | Y183: Fresh | Z183: Fresh | AB183: محمود | AC183: 16 | AD183: 10 | AE183: 0.75 | AF183: 0 | AG183: Normal | AN183: صرف | AO183: تصدير | AP183: 2021/08/11 | AQ183: 53 | AR183: 14
B184: 0006 - 34 | C184: sun - orange | D184: 9112000004 | E184: مشكل عميل 34 اوردر 7002 | F184: 34 | G184: 7002 | H184: 7002 | I184: Kitchen Towel | J184: Beach Towel | K184: Flat | L184: Velour | M184: 50 X 70 | N184: 90 x 160 | O184: 75 | P184: 0.576 | Q184: 400 | R184: Medium weight | S184: dark | T184: Second Choice | U184: 100% cotton | V184: 100% cotton | W184: 24/2 - 16/1 | X184: 24/2 - 24/2 - 16/1 | Y184: Fresh | Z184: Fresh | AB184: محمود | AC184: 16 | AD184: 25 | AE184: 1.875 | AF184: DOBBY | AG184: Normal | AN184: صرف | AO184: تصدير | AP184: 2021/08/11 | AQ184: 53 | AR184: 14
B185: 0007 - 34 | C185: LOO | D185: 9114000003 | E185: مشكل عميل 34 اوردر 7002 | F185: 34 | G185: 7002 | H185: 7003 | I185: Kitchen Towel | J185: Kitchen Towel | K185: Flat | L185: Flat | M185: 50 X 70 | N185: 50 X 70 | O185: 75 | P185: 0.07 | Q185: 200 | R185: Very Light weight | S185: dark | T185: Second Choice | U185: 100% cotton | V185: 100% cotton | W185: 24/2 - 16/1 | X185: 24/2 - 16/1 | Y185: Fresh | Z185: Fresh | AB185: محمود | AC185: 16 | AD185: 25 | AE185: 1.875 | AF185: Jacquard | AG185: Normal | AN185: صرف | AO185: تصدير | AP185: 2021/08/11 | AQ185: 53 | AR185: 14
B186: 0008 - 34 | C186: TOO | D186: 9114000004 | E186: مشكل عميل 34 اوردر 7002 | F186: 34 | G186: 7002 | H186: 7003 | I186: Kitchen Towel | J186: Kitchen Towel | K186: Flat | L186: Flat | M186: 50 X 70 | N186: 50 X 70 | O186: 75 | P186: 0.07 | Q186: 200 | R186: Very Light weight | S186: dark | T186: Second Choice | U186: 100% cotton | V186: 100% cotton | W186: 24/2 - 16/1 | X186: 24/2 - 16/1 | Y186: Fresh | Z186: Fresh | AB186: محمود | AC186: 16 | AD186: 10 | AE186: 0.75 | AF186: Jacquard | AG186: Normal | AN186: صرف | AO186: تصدير | AP186: 2021/08/11 | AQ186: 53 | AR186: 14
B187: 0010 - 34 | C187: BOO | D187: 9114000006 | E187: مشكل عميل 34 اوردر 7002 | F187: 34 | G187: 7002 | H187: 7003 | I187: Kitchen Towel | J187: Kitchen Towel | K187: Flat | L187: Flat | M187: 50 X 70 | N187: 50 X 70 | O187: 75 | P187: 0.07 | Q187: 200 | R187: Very Light weight | S187: dark | T187: Second Choice | U187: 100% cotton | V187: 100% cotton | W187: 24/2 - 16/1 | X187: 24/2 - 16/1 | Y187: Fresh | Z187: Fresh | AB187: محمود | AC187: 16 | AD187: 10 | AE187: 0.75 | AF187: Jacquard | AG187: Normal | AN187: صرف | AO187: تصدير | AP187: 2021/08/11 | AQ187: 53 | AR187: 14
B188: 0009 - 75 | C188: dfgdfg | D188: 9114000009 | E188: بيبل | F188: 75 | G188: 7015 | H188: 7015 | I188: Kitchen Towel | J188: Kitchen Towel | K188: Flat | L188: Flat | M188: 50 x 65 | N188: 50 x 65 | O188: 65 | P188: 65 | Q188: 200 | R188: Very Light weight | S188: dark | T188: Second Choice | U188: 100% cotton | V188: 100% cotton | W188: 24/2 - 16/1 | X188: 24/2 - 16/1 | Y188: Fresh | Z188: Fresh | AB188: بل | AC188: 1.379310345 | AD188: 20 | AE188: 1.3 | AF188: Jacquard | AG188: Normal | AH188: اضافه | AI188: اضافه من المشغل | AJ188: 2021/08/12
B189: 0003 - 75 | C189: dfgdfg | D189: 9114000003 | E189: بيبل | F189: 75 | G189: 7015 | H189: 7015 | I189: Kitchen Towel | J189: Kitchen Towel | K189: Flat | L189: Flat | M189: 50 x 65 | N189: 50 x 65 | O189: 65 | P189: 65 | Q189: 200 | R189: Very Light weight | S189: dark | T189: Second Choice | U189: 100% cotton | V189: 100% cotton | W189: 24/2 - 16/1 | X189: 24/2 - 16/1 | Y189: Fresh | Z189: Fresh | AB189: بل | AC189: 2.75862069 | AD189: 40 | AE189: 2.6 | AF189: Jacquard | AG189: Normal | AH189: اضافه | AI189: اضافه من المشغل | AJ189: 2021/08/12
B190: 0005 - 75 | C190: dfgdfg | D190: 9114000005 | E190: بيبل | F190: 75 | G190: 7015 | H190: 7015 | I190: Kitchen Towel | J190: Kitchen Towel | K190: Flat | L190: Flat | M190: 50 x 65 | N190: 50 x 65 | O190: 65 | P190: 65 | Q190: 200 | R190: Very Light weight | S190: dark | T190: Second Choice | U190: 100% cotton | V190: 100% cotton | W190: 24/2 - 16/1 | X190: 24/2 - 16/1 | Y190: Fresh | Z190: Fresh | AB190: بل | AC190: 0.8275862069 | AD190: 12 | AE190: 0.78 | AF190: Jacquard | AG190: Normal | AH190: اضافه | AI190: اضافه من المشغل | AJ190: 2021/08/12
B191: 0008 - 75 | C191: dfgdfg | D191: 9114000008 | E191: بيبل | F191: 75 | G191: 7015 | H191: 7015 | I191: Kitchen Towel | J191: Kitchen Towel | K191: Flat | L191: Flat | M191: 50 x 65 | N191: 50 x 65 | O191: 65 | P191: 65 | Q191: 200 | R191: Very Light weight | S191: dark | T191: Second Choice | U191: 100% cotton | V191: 100% cotton | W191: 24/2 - 16/1 | X191: 24/2 - 16/1 | Y191: Fresh | Z191: Fresh | AB191: بل | AC191: 0.5517241379 | AD191: 8 | AE191: 0.52 | AF191: Jacquard | AG191: Normal | AH191: اضافه | AI191: اضافه من المشغل | AJ191: 2021/08/12
B192: 0006 - 75 | C192: dfgdfg | D192: 9114000006 | E192: بيبل | F192: 75 | G192: 7015 | H192: 7015 | I192: Kitchen Towel | J192: Kitchen Towel | K192: Flat | L192: Flat | M192: 50 x 65 | N192: 50 x 65 | O192: 65 | P192: 65 | Q192: 200 | R192: Very Light weight | S192: dark | T192: Second Choice | U192: 100% cotton | V192: 100% cotton | W192: 24/2 - 16/1 | X192: 24/2 - 16/1 | Y192: Fresh | Z192: Fresh | AB192: بل | AC192: 0.4827586207 | AD192: 7 | AE192: 0.455 | AF192: Jacquard | AG192: Normal | AH192: اضافه | AI192: اضافه من المشغل | AJ192: 2021/08/12
B193: 0002 - 75 | C193: dfgdfg | D193: 9114000002 | E193: يبليل | F193: 75 | G193: 7015 | H193: 7015 | I193: Kitchen Towel | J193: Kitchen Towel | K193: Flat | L193: Flat | M193: 40 x 60 | N193: 40 x 60 | O193: 62.24324324 | P193: 48 | Q193: 200 | R193: Very Light weight | S193: dark | T193: Second Choice | U193: 100% cotton | V193: 100% cotton | W193: 24/2 - 16/1 | X193: 24/2 - 16/1 | Y193: Fresh | Z193: Fresh | AB193: سيسب | AC193: 0.6252713851 | AD193: 12 | AE193: 0.576 | AF193: Jacquard | AG193: Normal | AH193: اضافه | AI193: اضافه من المشغل | AJ193: 2021/08/12
B194: 0003 - 75 | C194: dfgdfg | D194: 9114000003 | E194: يبليل | F194: 75 | G194: 7015 | H194: 7015 | I194: Kitchen Towel | J194: Kitchen Towel | K194: Flat | L194: Flat | M194: 50 x 65 | N194: 50 x 65 | O194: 62.24324324 | P194: 65 | Q194: 200 | R194: Very Light weight | S194: dark | T194: Second Choice | U194: 100% cotton | V194: 100% cotton | W194: 24/2 - 16/1 | X194: 24/2 - 16/1 | Y194: Fresh | Z194: Fresh | AB194: سيسب | AC194: 1.058402084 | AD194: 15 | AE194: 0.975 | AF194: Jacquard | AG194: Normal | AH194: اضافه | AI194: اضافه من المشغل | AJ194: 2021/08/12
B195: 0005 - 75 | C195: dfgdfg | D195: 9114000005 | E195: يبليل | F195: 75 | G195: 7015 | H195: 7015 | I195: Kitchen Towel | J195: Kitchen Towel | K195: Flat | L195: Flat | M195: 50 x 65 | N195: 50 x 65 | O195: 62.24324324 | P195: 65 | Q195: 200 | R195: Very Light weight | S195: dark | T195: Second Choice | U195: 100% cotton | V195: 100% cotton | W195: 24/2 - 16/1 | X195: 24/2 - 16/1 | Y195: Fresh | Z195: Fresh | AB195: سيسب | AC195: 1.199522362 | AD195: 17 | AE195: 1.105 | AF195: Jacquard | AG195: Normal | AH195: اضافه | AI195: اضافه من المشغل | AJ195: 2021/08/12
B196: 0009 - 75 | C196: dfgdfg | D196: 9114000009 | E196: يبليل | F196: 75 | G196: 7015 | H196: 7015 | I196: Kitchen Towel | J196: Kitchen Towel | K196: Flat | L196: Flat | M196: 50 x 65 | N196: 50 x 65 | O196: 62.24324324 | P196: 65 | Q196: 200 | R196: Very Light weight | S196: dark | T196: Second Choice | U196: 100% cotton | V196: 100% cotton | W196: 24/2 - 16/1 | X196: 24/2 - 16/1 | Y196: Fresh | Z196: Fresh | AB196: سيسب | AC196: 2.116804168 | AD196: 30 | AE196: 1.95 | AF196: Jacquard | AG196: Normal | AH196: اضافه | AI196: اضافه من المشغل | AJ196: 2021/08/12
B197: 0002 - 75 | C197: dfgdfg | D197: 9114000002 | E197: يبليل | F197: 75 | G197: 7015 | H197: 7015 | I197: Kitchen Towel | J197: Kitchen Towel | K197: Flat | L197: Flat | M197: 40 x 60 | N197: 40 x 60 | O197: 62.24324324 | P197: 48 | Q197: 200 | R197: Very Light weight | S197: dark | T197: Second Choice | U197: 100% cotton | V197: 100% cotton | W197: 24/2 - 16/1 | X197: 24/2 - 16/1 | Y197: Fresh | Z197: Fresh | AB197: سيسب | AC197: 0.6252713851 | AD197: 12 | AE197: 0.576 | AF197: Jacquard | AG197: Normal | AN197: صرف | AO197: بيع محلى | AP197: 2021/08/12 | AQ197: 34 | AR197: 15
B198: 0003 - 75 | C198: dfgdfg | D198: 9114000003 | E198: يبليل | F198: 75 | G198: 7015 | H198: 7015 | I198: Kitchen Towel | J198: Kitchen Towel | K198: Flat | L198: Flat | M198: 50 x 65 | N198: 50 x 65 | O198: 62.24324324 | P198: 65 | Q198: 200 | R198: Very Light weight | S198: dark | T198: Second Choice | U198: 100% cotton | V198: 100% cotton | W198: 24/2 - 16/1 | X198: 24/2 - 16/1 | Y198: Fresh | Z198: Fresh | AB198: سيسب | AC198: 1.058402084 | AD198: 15 | AE198: 0.975 | AF198: Jacquard | AG198: Normal | AN198: صرف | AO198: بيع محلى | AP198: 2021/08/12 | AQ198: 34 | AR198: 15
B199: 0005 - 75 | C199: dfgdfg | D199: 9114000005 | E199: يبليل | F199: 75 | G199: 7015 | H199: 7015 | I199: Kitchen Towel | J199: Kitchen Towel | K199: Flat | L199: Flat | M199: 50 x 65 | N199: 50 x 65 | O199: 62.24324324 | P199: 65 | Q199: 200 | R199: Very Light weight | S199: dark | T199: Second Choice | U199: 100% cotton | V199: 100% cotton | W199: 24/2 - 16/1 | X199: 24/2 - 16/1 | Y199: Fresh | Z199: Fresh | AB199: سيسب | AC199: 1.199522362 | AD199: 17 | AE199: 1.105 | AF199: Jacquard | AG199: Normal | AN199: صرف | AO199: بيع محلى | AP199: 2021/08/12 | AQ199: 34 | AR199: 15
B200: 0009 - 75 | C200: dfgdfg | D200: 9114000009 | E200: يبليل | F200: 75 | G200: 7015 | H200: 7015 | I200: Kitchen Towel | J200: Kitchen Towel | K200: Flat | L200: Flat | M200: 50 x 65 | N200: 50 x 65 | O200: 62.24324324 | P200: 65 | Q200: 200 | R200: Very Light weight | S200: dark | T200: Second Choice | U200: 100% cotton | V200: 100% cotton | W200: 24/2 - 16/1 | X200: 24/2 - 16/1 | Y200: Fresh | Z200: Fresh | AB200: سيسب | AC200: 2.116804168 | AD200: 30 | AE200: 1.95 | AF200: Jacquard | AG200: Normal | AN200: صرف | AO200: بيع محلى | AP200: 2021/08/12 | AQ200: 34 | AR200: 15
B201: 0001 - 75 | C201: frgg | D201: 9114000001 | E201: dfd | F201: 75 | G201: 7015 | H201: 7015 | I201: Kitchen Towel | J201: Kitchen Towel | K201: Flat | L201: Flat | M201: 50 X 70 | N201: 50 X 70 | O201: 70 | P201: 70 | Q201: 200 | R201: Very Light weight | S201: dark | T201: Second Choice | U201: 100% cotton | V201: 100% cotton | W201: 24/2 - 16/1 | X201: 24/2 - 16/1 | Y201: Fresh | Z201: Fresh | AB201: jgj | AC201: 35 | AD201: 500 | AE201: 35 | AF201: Dobby | AG201: Normal | AH201: اضافه | AI201: اضافه من المشغل | AJ201: 2021/08/12
B202: 0002 - 34 | C202: lion - Blue | D202: 9114000002 | E202: مشكل عميل 34 اوردر 7002 | F202: 34 | G202: 7002 | H202: 7001 | I202: Kitchen Towel | J202: Kitchen Towel | K202: Flat | L202: Flat | M202: 50 X 70 | N202: 50 X 70 | O202: 75 | P202: 0.088 | Q202: 250 | R202: Light weight | S202: dark | T202: Second Choice | U202: 100% cotton | V202: 100% cotton - Organic | W202: 24/2 - 16/1 | X202: 24/2 - 16/1 | Y202: Fresh | Z202: Fresh | AB202: محمود | AC202: 16 | AD202: 20 | AE202: 1.5 | AF202: 0 | AG202: Normal | AN202: صرف | AO202: بيع محلى | AP202: 2021/08/12 | AQ202: 55 | AR202: 16
B203: 0001 - 34 | C203: lion - Brown | D203: 9114000001 | E203: مشكل عميل 34 اوردر 7002 | F203: 34 | G203: 7002 | H203: 7001 | I203: Kitchen Towel | J203: Kitchen Towel | K203: Flat | L203: Flat | M203: 50 X 70 | N203: 50 X 70 | O203: 75 | P203: 0.088 | Q203: 250 | R203: Light weight | S203: dark | T203: Second Choice | U203: 100% cotton | V203: 100% cotton - Organic | W203: 24/2 - 16/1 | X203: 24/2 - 16/1 | Y203: Fresh | Z203: Fresh | AB203: محمود | AC203: 16 | AD203: 20 | AE203: 1.5 | AF203: 0 | AG203: Normal | AN203: صرف | AO203: بيع محلى | AP203: 2021/08/12 | AQ203: 55 | AR203: 16
B204: 0003 - 34 | C204: tiger - yellow | D204: 9112000001 | E204: مشكل عميل 34 اوردر 7002 | F204: 34 | G204: 7002 | H204: 7001 | I204: Kitchen Towel | J204: Beach Towel | K204: Flat | L204: Velour | M204: 50 X 70 | N204: 100 x 170 | O204: 75 | P204: 0.714 | Q204: 420 | R204: Medium weight | S204: dark | T204: Second Choice | U204: 100% cotton | V204: 100% cotton - Organic | W204: 24/2 - 16/1 | X204: 24/2 - 24/2 - 16/1 | Y204: Fresh | Z204: Fresh | AB204: محمود | AC204: 16 | AD204: 30 | AE204: 2.25 | AF204: 0 | AG204: Normal | AN204: صرف | AO204: بيع محلى | AP204: 2021/08/12 | AQ204: 55 | AR204: 16
... 104 more rows

Sheet Rassed
C4: last one
B7: Des. Code | C7: Des. Name | D7: System Code | E7: وصف | F7: عميل | G7: امر رقم | H7: رقم الامر من واقع بيانات الاصناف | I7: التصنيف | J7: التصنيف من واقع بيانات الاصناف | K7: النوع | L7: النوع من واقع بيانات الاصناف | M7: مقاس | N7: المقاس من واقع بيانات الاصناف | O7: وزن / قطعه | P7: الوزن من واقع بيانات الاصناف | Q7: GSM | R7: Discreption of weight | S7: Color | T7: الدرجه | U7: نوع الغزل | V7: نوع الغزل من واقع بيانات الاصناف | W7: نمره الغزل | X7: نمره الغزل من واقع بيانات الاصناف | Y7: درجه الغزل | Z7: درجه الغزل من واقع بيانات الاصناف | AA7: free4 | AB7: امين المخزن | AC7: الوزن القائم للشيكاره | AD7: العدد | AE7: الوزن اجمالى كجم | AF7: Pattern | AG7: Design Type | AJ7: اضافه | AK7: صرف | AL7: الرصيد
B8: 0002 - 34 | C8: =VLOOKUP($B8,Store!$B$6:$AG$308,COLUMN()-1,0) -> lion - Blue | D8: =VLOOKUP($B8,Store!$B$6:$AG$308,COLUMN()-1,0) -> 9114000002 | E8: =VLOOKUP($B8,Store!$B$6:$AG$308,COLUMN()-1,0) -> مشكل عميل 34 اوردر 7002 | F8: =VLOOKUP($B8,Store!$B$6:$AG$308,COLUMN()-1,0) -> 34 | G8: =VLOOKUP($B8,Store!$B$6:$AG$308,COLUMN()-1,0) -> 7002 | H8: =VLOOKUP($B8,Store!$B$6:$AG$308,COLUMN()-1,0) -> 7001 | I8: =VLOOKUP($B8,Store!$B$6:$AG$308,COLUMN()-1,0) -> Kitchen Towel | J8: =VLOOKUP($B8,Store!$B$6:$AG$308,COLUMN()-1,0) -> Kitchen Towel | K8: =VLOOKUP($B8,Store!$B$6:$AG$308,COLUMN()-1,0) -> Flat | L8: =VLOOKUP($B8,Store!$B$6:$AG$308,COLUMN()-1,0) -> Flat | M8: =VLOOKUP($B8,Store!$B$6:$AG$308,COLUMN()-1,0) -> 50 X 70 | N8: =VLOOKUP($B8,Store!$B$6:$AG$308,COLUMN()-1,0) -> 50 X 70 | O8: =VLOOKUP($B8,Store!$B$6:$AG$308,COLUMN()-1,0) -> 75 | P8: =VLOOKUP($B8,Store!$B$6:$AG$308,COLUMN()-1,0) -> 0.088 | Q8: =VLOOKUP($B8,Store!$B$6:$AG$308,COLUMN()-1,0) -> 250 | R8: =VLOOKUP($B8,Store!$B$6:$AG$308,COLUMN()-1,0) -> Light weight | S8: =VLOOKUP($B8,Store!$B$6:$AG$308,COLUMN()-1,0) -> dark | T8: =VLOOKUP($B8,Store!$B$6:$AG$308,COLUMN()-1,0) -> Second Choice | U8: =VLOOKUP($B8,Store!$B$6:$AG$308,COLUMN()-1,0) -> 100% cotton | V8: =VLOOKUP($B8,Store!$B$6:$AG$308,COLUMN()-1,0) -> 100% cotton - Organic | W8: =VLOOKUP($B8,Store!$B$6:$AG$308,COLUMN()-1,0) -> 24/2 - 16/1 | X8: =VLOOKUP($B8,Store!$B$6:$AG$308,COLUMN()-1,0) -> 24/2 - 16/1 | Y8: =VLOOKUP($B8,Store!$B$6:$AG$308,COLUMN()-1,0) -> Fresh | Z8: =VLOOKUP($B8,Store!$B$6:$AG$308,COLUMN()-1,0) -> Fresh | AA8: =VLOOKUP($B8,Store!$B$6:$AG$308,COLUMN()-1,0) -> 0 | AB8: =VLOOKUP($B8,Store!$B$6:$AG$308,COLUMN()-1,0) -> محمود | AC8: =VLOOKUP($B8,Store!$B$6:$AG$308,COLUMN()-1,0) -> 16 | AD8: =VLOOKUP($B8,Store!$B$6:$AG$308,COLUMN()-1,0) -> 20 | AE8: =VLOOKUP($B8,Store!$B$6:$AG$308,COLUMN()-1,0) -> 1.5 | AF8: =VLOOKUP($B8,Store!$B$6:$AG$308,COLUMN()-1,0) -> 0 | AG8: =VLOOKUP($B8,Store!$B$6:$AG$308,COLUMN()-1,0) -> Normal | AJ8: =SUMIFS(Store!$AD$6:$AD$308,Store!$B$6:$B$308,Rassed!B8,Store!$AH$6:$AH$308,"اضافه") -> 60 | AK8: =SUMIFS(Store!$AD$6:$AD$308,Store!$B$6:$B$308,Rassed!B8,Store!$AN$6:$AN$308,"صرف") -> 60 | AL8: =AJ8-AK8 -> 0
B9: 0001 - 34 | C9: =VLOOKUP($B9,Store!$B$6:$AG$308,COLUMN()-1,0) -> lion - Brown | D9: =VLOOKUP($B9,Store!$B$6:$AG$308,COLUMN()-1,0) -> 9114000001 | E9: =VLOOKUP($B9,Store!$B$6:$AG$308,COLUMN()-1,0) -> مشكل عميل 34 اوردر 7002 | F9: =VLOOKUP($B9,Store!$B$6:$AG$308,COLUMN()-1,0) -> 34 | G9: =VLOOKUP($B9,Store!$B$6:$AG$308,COLUMN()-1,0) -> 7002 | H9: =VLOOKUP($B9,Store!$B$6:$AG$308,COLUMN()-1,0) -> 7001 | I9: =VLOOKUP($B9,Store!$B$6:$AG$308,COLUMN()-1,0) -> Kitchen Towel | J9: =VLOOKUP($B9,Store!$B$6:$AG$308,COLUMN()-1,0) -> Kitchen Towel | K9: =VLOOKUP($B9,Store!$B$6:$AG$308,COLUMN()-1,0) -> Flat | L9: =VLOOKUP($B9,Store!$B$6:$AG$308,COLUMN()-1,0) -> Flat | M9: =VLOOKUP($B9,Store!$B$6:$AG$308,COLUMN()-1,0) -> 50 X 70 | N9: =VLOOKUP($B9,Store!$B$6:$AG$308,COLUMN()-1,0) -> 50 X 70 | O9: =VLOOKUP($B9,Store!$B$6:$AG$308,COLUMN()-1,0) -> 75 | P9: =VLOOKUP($B9,Store!$B$6:$AG$308,COLUMN()-1,0) -> 0.088 | Q9: =VLOOKUP($B9,Store!$B$6:$AG$308,COLUMN()-1,0) -> 250 | R9: =VLOOKUP($B9,Store!$B$6:$AG$308,COLUMN()-1,0) -> Light weight | S9: =VLOOKUP($B9,Store!$B$6:$AG$308,COLUMN()-1,0) -> dark | T9: =VLOOKUP($B9,Store!$B$6:$AG$308,COLUMN()-1,0) -> Second Choice | U9: =VLOOKUP($B9,Store!$B$6:$AG$308,COLUMN()-1,0) -> 100% cotton | V9: =VLOOKUP($B9,Store!$B$6:$AG$308,COLUMN()-1,0) -> 100% cotton - Organic | W9: =VLOOKUP($B9,Store!$B$6:$AG$308,COLUMN()-1,0) -> 24/2 - 16/1 | X9: =VLOOKUP($B9,Store!$B$6:$AG$308,COLUMN()-1,0) -> 24/2 - 16/1 | Y9: =VLOOKUP($B9,Store!$B$6:$AG$308,COLUMN()-1,0) -> Fresh | Z9: =VLOOKUP($B9,Store!$B$6:$AG$308,COLUMN()-1,0) -> Fresh | AA9: =VLOOKUP($B9,Store!$B$6:$AG$308,COLUMN()-1,0) -> 0 | AB9: =VLOOKUP($B9,Store!$B$6:$AG$308,COLUMN()-1,0) -> محمود | AC9: =VLOOKUP($B9,Store!$B$6:$AG$308,COLUMN()-1,0) -> 16 | AD9: =VLOOKUP($B9,Store!$B$6:$AG$308,COLUMN()-1,0) -> 20 | AE9: =VLOOKUP($B9,Store!$B$6:$AG$308,COLUMN()-1,0) -> 1.5 | AF9: =VLOOKUP($B9,Store!$B$6:$AG$308,COLUMN()-1,0) -> 0 | AG9: =VLOOKUP($B9,Store!$B$6:$AG$308,COLUMN()-1,0) -> Normal | AJ9: =SUMIFS(Store!$AD$6:$AD$308,Store!$B$6:$B$308,Rassed!B9,Store!$AH$6:$AH$308,"اضافه") -> 60 | AK9: =SUMIFS(Store!$AD$6:$AD$308,Store!$B$6:$B$308,Rassed!B9,Store!$AN$6:$AN$308,"صرف") -> 60 | AL9: =AJ9-AK9 -> 0
B10: 0003 - 34 | C10: =VLOOKUP($B10,Store!$B$6:$AG$308,COLUMN()-1,0) -> tiger - yellow | D10: =VLOOKUP($B10,Store!$B$6:$AG$308,COLUMN()-1,0) -> 9112000001 | E10: =VLOOKUP($B10,Store!$B$6:$AG$308,COLUMN()-1,0) -> مشكل عميل 34 اوردر 7002 | F10: =VLOOKUP($B10,Store!$B$6:$AG$308,COLUMN()-1,0) -> 34 | G10: =VLOOKUP($B10,Store!$B$6:$AG$308,COLUMN()-1,0) -> 7002 | H10: =VLOOKUP($B10,Store!$B$6:$AG$308,COLUMN()-1,0) -> 7001 | I10: =VLOOKUP($B10,Store!$B$6:$AG$308,COLUMN()-1,0) -> Kitchen Towel | J10: =VLOOKUP($B10,Store!$B$6:$AG$308,COLUMN()-1,0) -> Beach Towel | K10: =VLOOKUP($B10,Store!$B$6:$AG$308,COLUMN()-1,0) -> Flat | L10: =VLOOKUP($B10,Store!$B$6:$AG$308,COLUMN()-1,0) -> Velour | M10: =VLOOKUP($B10,Store!$B$6:$AG$308,COLUMN()-1,0) -> 50 X 70 | N10: =VLOOKUP($B10,Store!$B$6:$AG$308,COLUMN()-1,0) -> 100 x 170 | O10: =VLOOKUP($B10,Store!$B$6:$AG$308,COLUMN()-1,0) -> 75 | P10: =VLOOKUP($B10,Store!$B$6:$AG$308,COLUMN()-1,0) -> 0.714 | Q10: =VLOOKUP($B10,Store!$B$6:$AG$308,COLUMN()-1,0) -> 420 | R10: =VLOOKUP($B10,Store!$B$6:$AG$308,COLUMN()-1,0) -> Medium weight | S10: =VLOOKUP($B10,Store!$B$6:$AG$308,COLUMN()-1,0) -> dark | T10: =VLOOKUP($B10,Store!$B$6:$AG$308,COLUMN()-1,0) -> Second Choice | U10: =VLOOKUP($B10,Store!$B$6:$AG$308,COLUMN()-1,0) -> 100% cotton | V10: =VLOOKUP($B10,Store!$B$6:$AG$308,COLUMN()-1,0) -> 100% cotton - Organic | W10: =VLOOKUP($B10,Store!$B$6:$AG$308,COLUMN()-1,0) -> 24/2 - 16/1 | X10: =VLOOKUP($B10,Store!$B$6:$AG$308,COLUMN()-1,0) -> 24/2 - 24/2 - 16/1 | Y10: =VLOOKUP($B10,Store!$B$6:$AG$308,COLUMN()-1,0) -> Fresh | Z10: =VLOOKUP($B10,Store!$B$6:$AG$308,COLUMN()-1,0) -> Fresh | AA10: =VLOOKUP($B10,Store!$B$6:$AG$308,COLUMN()-1,0) -> 0 | AB10: =VLOOKUP($B10,Store!$B$6:$AG$308,COLUMN()-1,0) -> محمود | AC10: =VLOOKUP($B10,Store!$B$6:$AG$308,COLUMN()-1,0) -> 16 | AD10: =VLOOKUP($B10,Store!$B$6:$AG$308,COLUMN()-1,0) -> 30 | AE10: =VLOOKUP($B10,Store!$B$6:$AG$308,COLUMN()-1,0) -> 2.25 | AF10: =VLOOKUP($B10,Store!$B$6:$AG$308,COLUMN()-1,0) -> 0 | AG10: =VLOOKUP($B10,Store!$B$6:$AG$308,COLUMN()-1,0) -> Normal | AJ10: =SUMIFS(Store!$AD$6:$AD$308,Store!$B$6:$B$308,Rassed!B10,Store!$AH$6:$AH$308,"اضافه") -> 90 | AK10: =SUMIFS(Store!$AD$6:$AD$308,Store!$B$6:$B$308,Rassed!B10,Store!$AN$6:$AN$308,"صرف") -> 90 | AL10: 0
B11: 0004 - 34 | C11: =VLOOKUP($B11,Store!$B$6:$AG$308,COLUMN()-1,0) -> tiger - Orange | D11: =VLOOKUP($B11,Store!$B$6:$AG$308,COLUMN()-1,0) -> 9112000002 | E11: =VLOOKUP($B11,Store!$B$6:$AG$308,COLUMN()-1,0) -> مشكل عميل 34 اوردر 7002 | F11: =VLOOKUP($B11,Store!$B$6:$AG$308,COLUMN()-1,0) -> 34 | G11: =VLOOKUP($B11,Store!$B$6:$AG$308,COLUMN()-1,0) -> 7002 | H11: =VLOOKUP($B11,Store!$B$6:$AG$308,COLUMN()-1,0) -> 7001 | I11: =VLOOKUP($B11,Store!$B$6:$AG$308,COLUMN()-1,0) -> Kitchen Towel | J11: =VLOOKUP($B11,Store!$B$6:$AG$308,COLUMN()-1,0) -> Beach Towel | K11: =VLOOKUP($B11,Store!$B$6:$AG$308,COLUMN()-1,0) -> Flat | L11: =VLOOKUP($B11,Store!$B$6:$AG$308,COLUMN()-1,0) -> Velour | M11: =VLOOKUP($B11,Store!$B$6:$AG$308,COLUMN()-1,0) -> 50 X 70 | N11: =VLOOKUP($B11,Store!$B$6:$AG$308,COLUMN()-1,0) -> 100 x 170 | O11: =VLOOKUP($B11,Store!$B$6:$AG$308,COLUMN()-1,0) -> 75 | P11: =VLOOKUP($B11,Store!$B$6:$AG$308,COLUMN()-1,0) -> 0.714 | Q11: =VLOOKUP($B11,Store!$B$6:$AG$308,COLUMN()-1,0) -> 420 | R11: =VLOOKUP($B11,Store!$B$6:$AG$308,COLUMN()-1,0) -> Medium weight | S11: =VLOOKUP($B11,Store!$B$6:$AG$308,COLUMN()-1,0) -> dark | T11: =VLOOKUP($B11,Store!$B$6:$AG$308,COLUMN()-1,0) -> Second Choice | U11: =VLOOKUP($B11,Store!$B$6:$AG$308,COLUMN()-1,0) -> 100% cotton | V11: =VLOOKUP($B11,Store!$B$6:$AG$308,COLUMN()-1,0) -> 100% cotton - Organic | W11: =VLOOKUP($B11,Store!$B$6:$AG$308,COLUMN()-1,0) -> 24/2 - 16/1 | X11: =VLOOKUP($B11,Store!$B$6:$AG$308,COLUMN()-1,0) -> 24/2 - 24/2 - 16/1 | Y11: =VLOOKUP($B11,Store!$B$6:$AG$308,COLUMN()-1,0) -> Fresh | Z11: =VLOOKUP($B11,Store!$B$6:$AG$308,COLUMN()-1,0) -> Fresh | AA11: =VLOOKUP($B11,Store!$B$6:$AG$308,COLUMN()-1,0) -> 0 | AB11: =VLOOKUP($B11,Store!$B$6:$AG$308,COLUMN()-1,0) -> محمود | AC11: =VLOOKUP($B11,Store!$B$6:$AG$308,COLUMN()-1,0) -> 16 | AD11: =VLOOKUP($B11,Store!$B$6:$AG$308,COLUMN()-1,0) -> 50 | AE11: =VLOOKUP($B11,Store!$B$6:$AG$308,COLUMN()-1,0) -> 3.75 | AF11: =VLOOKUP($B11,Store!$B$6:$AG$308,COLUMN()-1,0) -> 0 | AG11: =VLOOKUP($B11,Store!$B$6:$AG$308,COLUMN()-1,0) -> Normal | AJ11: =SUMIFS(Store!$AD$6:$AD$308,Store!$B$6:$B$308,Rassed!B11,Store!$AH$6:$AH$308,"اضافه") -> 150 | AK11: =SUMIFS(Store!$AD$6:$AD$308,Store!$B$6:$B$308,Rassed!B11,Store!$AN$6:$AN$308,"صرف") -> 150 | AL11: 0
B12: 0005 - 34 | C12: =VLOOKUP($B12,Store!$B$6:$AG$308,COLUMN()-1,0) -> sun - red | D12: =VLOOKUP($B12,Store!$B$6:$AG$308,COLUMN()-1,0) -> 9112000003 | E12: =VLOOKUP($B12,Store!$B$6:$AG$308,COLUMN()-1,0) -> مشكل عميل 34 اوردر 7002 | F12: =VLOOKUP($B12,Store!$B$6:$AG$308,COLUMN()-1,0) -> 34 | G12: =VLOOKUP($B12,Store!$B$6:$AG$308,COLUMN()-1,0) -> 7002 | H12: =VLOOKUP($B12,Store!$B$6:$AG$308,COLUMN()-1,0) -> 7002 | I12: =VLOOKUP($B12,Store!$B$6:$AG$308,COLUMN()-1,0) -> Kitchen Towel | J12: =VLOOKUP($B12,Store!$B$6:$AG$308,COLUMN()-1,0) -> Beach Towel | K12: =VLOOKUP($B12,Store!$B$6:$AG$308,COLUMN()-1,0) -> Flat | L12: =VLOOKUP($B12,Store!$B$6:$AG$308,COLUMN()-1,0) -> Velour | M12: =VLOOKUP($B12,Store!$B$6:$AG$308,COLUMN()-1,0) -> 50 X 70 | N12: =VLOOKUP($B12,Store!$B$6:$AG$308,COLUMN()-1,0) -> 90 x 160 | O12: =VLOOKUP($B12,Store!$B$6:$AG$308,COLUMN()-1,0) -> 75 | P12: =VLOOKUP($B12,Store!$B$6:$AG$308,COLUMN()-1,0) -> 0.576 | Q12: =VLOOKUP($B12,Store!$B$6:$AG$308,COLUMN()-1,0) -> 400 | R12: =VLOOKUP($B12,Store!$B$6:$AG$308,COLUMN()-1,0) -> Medium weight | S12: =VLOOKUP($B12,Store!$B$6:$AG$308,COLUMN()-1,0) -> dark | T12: =VLOOKUP($B12,Store!$B$6:$AG$308,COLUMN()-1,0) -> Second Choice | U12: =VLOOKUP($B12,Store!$B$6:$AG$308,COLUMN()-1,0) -> 100% cotton | V12: =VLOOKUP($B12,Store!$B$6:$AG$308,COLUMN()-1,0) -> 100% cotton | W12: =VLOOKUP($B12,Store!$B$6:$AG$308,COLUMN()-1,0) -> 24/2 - 16/1 | X12: =VLOOKUP($B12,Store!$B$6:$AG$308,COLUMN()-1,0) -> 24/2 - 24/2 - 16/1 | Y12: =VLOOKUP($B12,Store!$B$6:$AG$308,COLUMN()-1,0) -> Fresh | Z12: =VLOOKUP($B12,Store!$B$6:$AG$308,COLUMN()-1,0) -> Fresh | AA12: =VLOOKUP($B12,Store!$B$6:$AG$308,COLUMN()-1,0) -> 0 | AB12: =VLOOKUP($B12,Store!$B$6:$AG$308,COLUMN()-1,0) -> محمود | AC12: =VLOOKUP($B12,Store!$B$6:$AG$308,COLUMN()-1,0) -> 16 | AD12: =VLOOKUP($B12,Store!$B$6:$AG$308,COLUMN()-1,0) -> 10 | AE12: =VLOOKUP($B12,Store!$B$6:$AG$308,COLUMN()-1,0) -> 0.75 | AF12: =VLOOKUP($B12,Store!$B$6:$AG$308,COLUMN()-1,0) -> 0 | AG12: =VLOOKUP($B12,Store!$B$6:$AG$308,COLUMN()-1,0) -> Normal | AJ12: =SUMIFS(Store!$AD$6:$AD$308,Store!$B$6:$B$308,Rassed!B12,Store!$AH$6:$AH$308,"اضافه") -> 30 | AK12: =SUMIFS(Store!$AD$6:$AD$308,Store!$B$6:$B$308,Rassed!B12,Store!$AN$6:$AN$308,"صرف") -> 30 | AL12: 0
B13: 0006 - 34 | C13: =VLOOKUP($B13,Store!$B$6:$AG$308,COLUMN()-1,0) -> sun - orange | D13: =VLOOKUP($B13,Store!$B$6:$AG$308,COLUMN()-1,0) -> 9112000004 | E13: =VLOOKUP($B13,Store!$B$6:$AG$308,COLUMN()-1,0) -> مشكل عميل 34 اوردر 7002 | F13: =VLOOKUP($B13,Store!$B$6:$AG$308,COLUMN()-1,0) -> 34 | G13: =VLOOKUP($B13,Store!$B$6:$AG$308,COLUMN()-1,0) -> 7002 | H13: =VLOOKUP($B13,Store!$B$6:$AG$308,COLUMN()-1,0) -> 7002 | I13: =VLOOKUP($B13,Store!$B$6:$AG$308,COLUMN()-1,0) -> Kitchen Towel | J13: =VLOOKUP($B13,Store!$B$6:$AG$308,COLUMN()-1,0) -> Beach Towel | K13: =VLOOKUP($B13,Store!$B$6:$AG$308,COLUMN()-1,0) -> Flat | L13: =VLOOKUP($B13,Store!$B$6:$AG$308,COLUMN()-1,0) -> Velour | M13: =VLOOKUP($B13,Store!$B$6:$AG$308,COLUMN()-1,0) -> 50 X 70 | N13: =VLOOKUP($B13,Store!$B$6:$AG$308,COLUMN()-1,0) -> 90 x 160 | O13: =VLOOKUP($B13,Store!$B$6:$AG$308,COLUMN()-1,0) -> 75 | P13: =VLOOKUP($B13,Store!$B$6:$AG$308,COLUMN()-1,0) -> 0.576 | Q13: =VLOOKUP($B13,Store!$B$6:$AG$308,COLUMN()-1,0) -> 400 | R13: =VLOOKUP($B13,Store!$B$6:$AG$308,COLUMN()-1,0) -> Medium weight | S13: =VLOOKUP($B13,Store!$B$6:$AG$308,COLUMN()-1,0) -> dark | T13: =VLOOKUP($B13,Store!$B$6:$AG$308,COLUMN()-1,0) -> Second Choice | U13: =VLOOKUP($B13,Store!$B$6:$AG$308,COLUMN()-1,0) -> 100% cotton | V13: =VLOOKUP($B13,Store!$B$6:$AG$308,COLUMN()-1,0) -> 100% cotton | W13: =VLOOKUP($B13,Store!$B$6:$AG$308,COLUMN()-1,0) -> 24/2 - 16/1 | X13: =VLOOKUP($B13,Store!$B$6:$AG$308,COLUMN()-1,0) -> 24/2 - 24/2 - 16/1 | Y13: =VLOOKUP($B13,Store!$B$6:$AG$308,COLUMN()-1,0) -> Fresh | Z13: =VLOOKUP($B13,Store!$B$6:$AG$308,COLUMN()-1,0) -> Fresh | AA13: =VLOOKUP($B13,Store!$B$6:$AG$308,COLUMN()-1,0) -> 0 | AB13: =VLOOKUP($B13,Store!$B$6:$AG$308,COLUMN()-1,0) -> محمود | AC13: =VLOOKUP($B13,Store!$B$6:$AG$308,COLUMN()-1,0) -> 16 | AD13: =VLOOKUP($B13,Store!$B$6:$AG$308,COLUMN()-1,0) -> 25 | AE13: =VLOOKUP($B13,Store!$B$6:$AG$308,COLUMN()-1,0) -> 1.875 | AF13: =VLOOKUP($B13,Store!$B$6:$AG$308,COLUMN()-1,0) -> DOBBY | AG13: =VLOOKUP($B13,Store!$B$6:$AG$308,COLUMN()-1,0) -> Normal | AJ13: =SUMIFS(Store!$AD$6:$AD$308,Store!$B$6:$B$308,Rassed!B13,Store!$AH$6:$AH$308,"اضافه") -> 75 | AK13: =SUMIFS(Store!$AD$6:$AD$308,Store!$B$6:$B$308,Rassed!B13,Store!$AN$6:$AN$308,"صرف") -> 75 | AL13: 0
B14: 0007 - 34 | C14: =VLOOKUP($B14,Store!$B$6:$AG$308,COLUMN()-1,0) -> LOO | D14: =VLOOKUP($B14,Store!$B$6:$AG$308,COLUMN()-1,0) -> 9114000003 | E14: =VLOOKUP($B14,Store!$B$6:$AG$308,COLUMN()-1,0) -> مشكل عميل 34 اوردر 7002 | F14: =VLOOKUP($B14,Store!$B$6:$AG$308,COLUMN()-1,0) -> 34 | G14: =VLOOKUP($B14,Store!$B$6:$AG$308,COLUMN()-1,0) -> 7002 | H14: =VLOOKUP($B14,Store!$B$6:$AG$308,COLUMN()-1,0) -> 7003 | I14: =VLOOKUP($B14,Store!$B$6:$AG$308,COLUMN()-1,0) -> Kitchen Towel | J14: =VLOOKUP($B14,Store!$B$6:$AG$308,COLUMN()-1,0) -> Kitchen Towel | K14: =VLOOKUP($B14,Store!$B$6:$AG$308,COLUMN()-1,0) -> Flat | L14: =VLOOKUP($B14,Store!$B$6:$AG$308,COLUMN()-1,0) -> Flat | M14: =VLOOKUP($B14,Store!$B$6:$AG$308,COLUMN()-1,0) -> 50 X 70 | N14: =VLOOKUP($B14,Store!$B$6:$AG$308,COLUMN()-1,0) -> 50 X 70 | O14: =VLOOKUP($B14,Store!$B$6:$AG$308,COLUMN()-1,0) -> 75 | P14: =VLOOKUP($B14,Store!$B$6:$AG$308,COLUMN()-1,0) -> 0.07 | Q14: =VLOOKUP($B14,Store!$B$6:$AG$308,COLUMN()-1,0) -> 200 | R14: =VLOOKUP($B14,Store!$B$6:$AG$308,COLUMN()-1,0) -> Very Light weight | S14: =VLOOKUP($B14,Store!$B$6:$AG$308,COLUMN()-1,0) -> dark | T14: =VLOOKUP($B14,Store!$B$6:$AG$308,COLUMN()-1,0) -> Second Choice | U14: =VLOOKUP($B14,Store!$B$6:$AG$308,COLUMN()-1,0) -> 100% cotton | V14: =VLOOKUP($B14,Store!$B$6:$AG$308,COLUMN()-1,0) -> 100% cotton | W14: =VLOOKUP($B14,Store!$B$6:$AG$308,COLUMN()-1,0) -> 24/2 - 16/1 | X14: =VLOOKUP($B14,Store!$B$6:$AG$308,COLUMN()-1,0) -> 24/2 - 16/1 | Y14: =VLOOKUP($B14,Store!$B$6:$AG$308,COLUMN()-1,0) -> Fresh | Z14: =VLOOKUP($B14,Store!$B$6:$AG$308,COLUMN()-1,0) -> Fresh | AA14: =VLOOKUP($B14,Store!$B$6:$AG$308,COLUMN()-1,0) -> 0 | AB14: =VLOOKUP($B14,Store!$B$6:$AG$308,COLUMN()-1,0) -> محمود | AC14: =VLOOKUP($B14,Store!$B$6:$AG$308,COLUMN()-1,0) -> 16 | AD14: =VLOOKUP($B14,Store!$B$6:$AG$308,COLUMN()-1,0) -> 25 | AE14: =VLOOKUP($B14,Store!$B$6:$AG$308,COLUMN()-1,0) -> 1.875 | AF14: =VLOOKUP($B14,Store!$B$6:$AG$308,COLUMN()-1,0) -> Jacquard | AG14: =VLOOKUP($B14,Store!$B$6:$AG$308,COLUMN()-1,0) -> Normal | AJ14: =SUMIFS(Store!$AD$6:$AD$308,Store!$B$6:$B$308,Rassed!B14,Store!$AH$6:$AH$308,"اضافه") -> 75 | AK14: =SUMIFS(Store!$AD$6:$AD$308,Store!$B$6:$B$308,Rassed!B14,Store!$AN$6:$AN$308,"صرف") -> 75 | AL14: 0
B15: 0008 - 34 | C15: =VLOOKUP($B15,Store!$B$6:$AG$308,COLUMN()-1,0) -> TOO | D15: =VLOOKUP($B15,Store!$B$6:$AG$308,COLUMN()-1,0) -> 9114000004 | E15: =VLOOKUP($B15,Store!$B$6:$AG$308,COLUMN()-1,0) -> مشكل عميل 34 اوردر 7002 | F15: =VLOOKUP($B15,Store!$B$6:$AG$308,COLUMN()-1,0) -> 34 | G15: =VLOOKUP($B15,Store!$B$6:$AG$308,COLUMN()-1,0) -> 7002 | H15: =VLOOKUP($B15,Store!$B$6:$AG$308,COLUMN()-1,0) -> 7003 | I15: =VLOOKUP($B15,Store!$B$6:$AG$308,COLUMN()-1,0) -> Kitchen Towel | J15: =VLOOKUP($B15,Store!$B$6:$AG$308,COLUMN()-1,0) -> Kitchen Towel | K15: =VLOOKUP($B15,Store!$B$6:$AG$308,COLUMN()-1,0) -> Flat | L15: =VLOOKUP($B15,Store!$B$6:$AG$308,COLUMN()-1,0) -> Flat | M15: =VLOOKUP($B15,Store!$B$6:$AG$308,COLUMN()-1,0) -> 50 X 70 | N15: =VLOOKUP($B15,Store!$B$6:$AG$308,COLUMN()-1,0) -> 50 X 70 | O15: =VLOOKUP($B15,Store!$B$6:$AG$308,COLUMN()-1,0) -> 75 | P15: =VLOOKUP($B15,Store!$B$6:$AG$308,COLUMN()-1,0) -> 0.07 | Q15: =VLOOKUP($B15,Store!$B$6:$AG$308,COLUMN()-1,0) -> 200 | R15: =VLOOKUP($B15,Store!$B$6:$AG$308,COLUMN()-1,0) -> Very Light weight | S15: =VLOOKUP($B15,Store!$B$6:$AG$308,COLUMN()-1,0) -> dark | T15: =VLOOKUP($B15,Store!$B$6:$AG$308,COLUMN()-1,0) -> Second Choice | U15: =VLOOKUP($B15,Store!$B$6:$AG$308,COLUMN()-1,0) -> 100% cotton | V15: =VLOOKUP($B15,Store!$B$6:$AG$308,COLUMN()-1,0) -> 100% cotton | W15: =VLOOKUP($B15,Store!$B$6:$AG$308,COLUMN()-1,0) -> 24/2 - 16/1 | X15: =VLOOKUP($B15,Store!$B$6:$AG$308,COLUMN()-1,0) -> 24/2 - 16/1 | Y15: =VLOOKUP($B15,Store!$B$6:$AG$308,COLUMN()-1,0) -> Fresh | Z15: =VLOOKUP($B15,Store!$B$6:$AG$308,COLUMN()-1,0) -> Fresh | AA15: =VLOOKUP($B15,Store!$B$6:$AG$308,COLUMN()-1,0) -> 0 | AB15: =VLOOKUP($B15,Store!$B$6:$AG$308,COLUMN()-1,0) -> محمود | AC15: =VLOOKUP($B15,Store!$B$6:$AG$308,COLUMN()-1,0) -> 16 | AD15: =VLOOKUP($B15,Store!$B$6:$AG$308,COLUMN()-1,0) -> 10 | AE15: =VLOOKUP($B15,Store!$B$6:$AG$308,COLUMN()-1,0) -> 0.75 | AF15: =VLOOKUP($B15,Store!$B$6:$AG$308,COLUMN()-1,0) -> Jacquard | AG15: =VLOOKUP($B15,Store!$B$6:$AG$308,COLUMN()-1,0) -> Normal | AJ15: =SUMIFS(Store!$AD$6:$AD$308,Store!$B$6:$B$308,Rassed!B15,Store!$AH$6:$AH$308,"اضافه") -> 30 | AK15: =SUMIFS(Store!$AD$6:$AD$308,Store!$B$6:$B$308,Rassed!B15,Store!$AN$6:$AN$308,"صرف") -> 30 | AL15: 0
B16: 0010 - 34 | C16: =VLOOKUP($B16,Store!$B$6:$AG$308,COLUMN()-1,0) -> BOO | D16: =VLOOKUP($B16,Store!$B$6:$AG$308,COLUMN()-1,0) -> 9114000006 | E16: =VLOOKUP($B16,Store!$B$6:$AG$308,COLUMN()-1,0) -> مشكل عميل 34 اوردر 7002 | F16: =VLOOKUP($B16,Store!$B$6:$AG$308,COLUMN()-1,0) -> 34 | G16: =VLOOKUP($B16,Store!$B$6:$AG$308,COLUMN()-1,0) -> 7002 | H16: =VLOOKUP($B16,Store!$B$6:$AG$308,COLUMN()-1,0) -> 7003 | I16: =VLOOKUP($B16,Store!$B$6:$AG$308,COLUMN()-1,0) -> Kitchen Towel | J16: =VLOOKUP($B16,Store!$B$6:$AG$308,COLUMN()-1,0) -> Kitchen Towel | K16: =VLOOKUP($B16,Store!$B$6:$AG$308,COLUMN()-1,0) -> Flat | L16: =VLOOKUP($B16,Store!$B$6:$AG$308,COLUMN()-1,0) -> Flat | M16: =VLOOKUP($B16,Store!$B$6:$AG$308,COLUMN()-1,0) -> 50 X 70 | N16: =VLOOKUP($B16,Store!$B$6:$AG$308,COLUMN()-1,0) -> 50 X 70 | O16: =VLOOKUP($B16,Store!$B$6:$AG$308,COLUMN()-1,0) -> 75 | P16: =VLOOKUP($B16,Store!$B$6:$AG$308,COLUMN()-1,0) -> 0.07 | Q16: =VLOOKUP($B16,Store!$B$6:$AG$308,COLUMN()-1,0) -> 200 | R16: =VLOOKUP($B16,Store!$B$6:$AG$308,COLUMN()-1,0) -> Very Light weight | S16: =VLOOKUP($B16,Store!$B$6:$AG$308,COLUMN()-1,0) -> dark | T16: =VLOOKUP($B16,Store!$B$6:$AG$308,COLUMN()-1,0) -> Second Choice | U16: =VLOOKUP($B16,Store!$B$6:$AG$308,COLUMN()-1,0) -> 100% cotton | V16: =VLOOKUP($B16,Store!$B$6:$AG$308,COLUMN()-1,0) -> 100% cotton | W16: =VLOOKUP($B16,Store!$B$6:$AG$308,COLUMN()-1,0) -> 24/2 - 16/1 | X16: =VLOOKUP($B16,Store!$B$6:$AG$308,COLUMN()-1,0) -> 24/2 - 16/1 | Y16: =VLOOKUP($B16,Store!$B$6:$AG$308,COLUMN()-1,0) -> Fresh | Z16: =VLOOKUP($B16,Store!$B$6:$AG$308,COLUMN()-1,0) -> Fresh | AA16: =VLOOKUP($B16,Store!$B$6:$AG$308,COLUMN()-1,0) -> 0 | AB16: =VLOOKUP($B16,Store!$B$6:$AG$308,COLUMN()-1,0) -> محمود | AC16: =VLOOKUP($B16,Store!$B$6:$AG$308,COLUMN()-1,0) -> 16 | AD16: =VLOOKUP($B16,Store!$B$6:$AG$308,COLUMN()-1,0) -> 10 | AE16: =VLOOKUP($B16,Store!$B$6:$AG$308,COLUMN()-1,0) -> 0.75 | AF16: =VLOOKUP($B16,Store!$B$6:$AG$308,COLUMN()-1,0) -> Jacquard | AG16: =VLOOKUP($B16,Store!$B$6:$AG$308,COLUMN()-1,0) -> Normal | AJ16: =SUMIFS(Store!$AD$6:$AD$308,Store!$B$6:$B$308,Rassed!B16,Store!$AH$6:$AH$308,"اضافه") -> 30 | AK16: =SUMIFS(Store!$AD$6:$AD$308,Store!$B$6:$B$308,Rassed!B16,Store!$AN$6:$AN$308,"صرف") -> 30 | AL16: 0
B17: 0013 - 34 | C17: =VLOOKUP($B17,Store!$B$6:$AG$308,COLUMN()-1,0) -> AAAA | D17: =VLOOKUP($B17,Store!$B$6:$AG$308,COLUMN()-1,0) -> 9114000009 | E17: =VLOOKUP($B17,Store!$B$6:$AG$308,COLUMN()-1,0) -> مشكل عميل 34 اوردر 7002 | F17: =VLOOKUP($B17,Store!$B$6:$AG$308,COLUMN()-1,0) -> 34 | G17: =VLOOKUP($B17,Store!$B$6:$AG$308,COLUMN()-1,0) -> 7007 | H17: =VLOOKUP($B17,Store!$B$6:$AG$308,COLUMN()-1,0) -> 7007 | I17: =VLOOKUP($B17,Store!$B$6:$AG$308,COLUMN()-1,0) -> Kitchen Towel | J17: =VLOOKUP($B17,Store!$B$6:$AG$308,COLUMN()-1,0) -> Kitchen Towel | K17: =VLOOKUP($B17,Store!$B$6:$AG$308,COLUMN()-1,0) -> Flat | L17: =VLOOKUP($B17,Store!$B$6:$AG$308,COLUMN()-1,0) -> Flat | M17: =VLOOKUP($B17,Store!$B$6:$AG$308,COLUMN()-1,0) -> 50 X 70 | N17: =VLOOKUP($B17,Store!$B$6:$AG$308,COLUMN()-1,0) -> 50 X 70 | O17: =VLOOKUP($B17,Store!$B$6:$AG$308,COLUMN()-1,0) -> 70 | P17: =VLOOKUP($B17,Store!$B$6:$AG$308,COLUMN()-1,0) -> 70 | Q17: =VLOOKUP($B17,Store!$B$6:$AG$308,COLUMN()-1,0) -> 200 | R17: =VLOOKUP($B17,Store!$B$6:$AG$308,COLUMN()-1,0) -> Very Light weight | S17: =VLOOKUP($B17,Store!$B$6:$AG$308,COLUMN()-1,0) -> dark | T17: =VLOOKUP($B17,Store!$B$6:$AG$308,COLUMN()-1,0) -> Second Choice | U17: =VLOOKUP($B17,Store!$B$6:$AG$308,COLUMN()-1,0) -> 100% cotton | V17: =VLOOKUP($B17,Store!$B$6:$AG$308,COLUMN()-1,0) -> 100% cotton | W17: =VLOOKUP($B17,Store!$B$6:$AG$308,COLUMN()-1,0) -> 24/2 - 16/1 | X17: =VLOOKUP($B17,Store!$B$6:$AG$308,COLUMN()-1,0) -> 24/2 - 16/1 | Y17: =VLOOKUP($B17,Store!$B$6:$AG$308,COLUMN()-1,0) -> Fresh | Z17: =VLOOKUP($B17,Store!$B$6:$AG$308,COLUMN()-1,0) -> Fresh | AA17: =VLOOKUP($B17,Store!$B$6:$AG$308,COLUMN()-1,0) -> 0 | AB17: =VLOOKUP($B17,Store!$B$6:$AG$308,COLUMN()-1,0) -> محمود | AC17: =VLOOKUP($B17,Store!$B$6:$AG$308,COLUMN()-1,0) -> 1.2 | AD17: =VLOOKUP($B17,Store!$B$6:$AG$308,COLUMN()-1,0) -> 20 | AE17: =VLOOKUP($B17,Store!$B$6:$AG$308,COLUMN()-1,0) -> 1.4 | AF17: =VLOOKUP($B17,Store!$B$6:$AG$308,COLUMN()-1,0) -> Jacquard | AG17: =VLOOKUP($B17,Store!$B$6:$AG$308,COLUMN()-1,0) -> Normal | AJ17: =SUMIFS(Store!$AD$6:$AD$308,Store!$B$6:$B$308,Rassed!B17,Store!$AH$6:$AH$308,"اضافه") -> 52 | AK17: =SUMIFS(Store!$AD$6:$AD$308,Store!$B$6:$B$308,Rassed!B17,Store!$AN$6:$AN$308,"صرف") -> 112 | AL17: -60
B18: 0014 - 34 | C18: =VLOOKUP($B18,Store!$B$6:$AG$308,COLUMN()-1,0) -> BBBB | D18: =VLOOKUP($B18,Store!$B$6:$AG$308,COLUMN()-1,0) -> 9114000010 | E18: =VLOOKUP($B18,Store!$B$6:$AG$308,COLUMN()-1,0) -> مشكل عميل 34 اوردر 7002 | F18: =VLOOKUP($B18,Store!$B$6:$AG$308,COLUMN()-1,0) -> 34 | G18: =VLOOKUP($B18,Store!$B$6:$AG$308,COLUMN()-1,0) -> 7007 | H18: =VLOOKUP($B18,Store!$B$6:$AG$308,COLUMN()-1,0) -> 7007 | I18: =VLOOKUP($B18,Store!$B$6:$AG$308,COLUMN()-1,0) -> Kitchen Towel | J18: =VLOOKUP($B18,Store!$B$6:$AG$308,COLUMN()-1,0) -> Kitchen Towel | K18: =VLOOKUP($B18,Store!$B$6:$AG$308,COLUMN()-1,0) -> Flat | L18: =VLOOKUP($B18,Store!$B$6:$AG$308,COLUMN()-1,0) -> Flat | M18: =VLOOKUP($B18,Store!$B$6:$AG$308,COLUMN()-1,0) -> 50 X 70 | N18: =VLOOKUP($B18,Store!$B$6:$AG$308,COLUMN()-1,0) -> 50 X 70 | O18: =VLOOKUP($B18,Store!$B$6:$AG$308,COLUMN()-1,0) -> 70 | P18: =VLOOKUP($B18,Store!$B$6:$AG$308,COLUMN()-1,0) -> 70 | Q18: =VLOOKUP($B18,Store!$B$6:$AG$308,COLUMN()-1,0) -> 200 | R18: =VLOOKUP($B18,Store!$B$6:$AG$308,COLUMN()-1,0) -> Very Light weight | S18: =VLOOKUP($B18,Store!$B$6:$AG$308,COLUMN()-1,0) -> dark | T18: =VLOOKUP($B18,Store!$B$6:$AG$308,COLUMN()-1,0) -> Second Choice | U18: =VLOOKUP($B18,Store!$B$6:$AG$308,COLUMN()-1,0) -> 100% cotton | V18: =VLOOKUP($B18,Store!$B$6:$AG$308,COLUMN()-1,0) -> 100% cotton | W18: =VLOOKUP($B18,Store!$B$6:$AG$308,COLUMN()-1,0) -> 24/2 - 16/1 | X18: =VLOOKUP($B18,Store!$B$6:$AG$308,COLUMN()-1,0) -> 24/2 - 16/1 | Y18: =VLOOKUP($B18,Store!$B$6:$AG$308,COLUMN()-1,0) -> Fresh | Z18: =VLOOKUP($B18,Store!$B$6:$AG$308,COLUMN()-1,0) -> Fresh | AA18: =VLOOKUP($B18,Store!$B$6:$AG$308,COLUMN()-1,0) -> 0 | AB18: =VLOOKUP($B18,Store!$B$6:$AG$308,COLUMN()-1,0) -> محمود | AC18: =VLOOKUP($B18,Store!$B$6:$AG$308,COLUMN()-1,0) -> 1.2 | AD18: =VLOOKUP($B18,Store!$B$6:$AG$308,COLUMN()-1,0) -> 20 | AE18: =VLOOKUP($B18,Store!$B$6:$AG$308,COLUMN()-1,0) -> 1.4 | AF18: =VLOOKUP($B18,Store!$B$6:$AG$308,COLUMN()-1,0) -> Dobby | AG18: =VLOOKUP($B18,Store!$B$6:$AG$308,COLUMN()-1,0) -> Normal | AJ18: =SUMIFS(Store!$AD$6:$AD$308,Store!$B$6:$B$308,Rassed!B18,Store!$AH$6:$AH$308,"اضافه") -> 73 | AK18: =SUMIFS(Store!$AD$6:$AD$308,Store!$B$6:$B$308,Rassed!B18,Store!$AN$6:$AN$308,"صرف") -> 143 | AL18: -70
B19: 0015 - 34 | C19: =VLOOKUP($B19,Store!$B$6:$AG$308,COLUMN()-1,0) -> CCCC | D19: =VLOOKUP($B19,Store!$B$6:$AG$308,COLUMN()-1,0) -> 9114000011 | E19: =VLOOKUP($B19,Store!$B$6:$AG$308,COLUMN()-1,0) -> مشكل عميل 34 اوردر 7002 | F19: =VLOOKUP($B19,Store!$B$6:$AG$308,COLUMN()-1,0) -> 34 | G19: =VLOOKUP($B19,Store!$B$6:$AG$308,COLUMN()-1,0) -> 7007 | H19: =VLOOKUP($B19,Store!$B$6:$AG$308,COLUMN()-1,0) -> 7007 | I19: =VLOOKUP($B19,Store!$B$6:$AG$308,COLUMN()-1,0) -> Kitchen Towel | J19: =VLOOKUP($B19,Store!$B$6:$AG$308,COLUMN()-1,0) -> Kitchen Towel | K19: =VLOOKUP($B19,Store!$B$6:$AG$308,COLUMN()-1,0) -> Flat | L19: =VLOOKUP($B19,Store!$B$6:$AG$308,COLUMN()-1,0) -> Flat | M19: =VLOOKUP($B19,Store!$B$6:$AG$308,COLUMN()-1,0) -> 50 X 70 | N19: =VLOOKUP($B19,Store!$B$6:$AG$308,COLUMN()-1,0) -> 50 X 70 | O19: =VLOOKUP($B19,Store!$B$6:$AG$308,COLUMN()-1,0) -> 70 | P19: =VLOOKUP($B19,Store!$B$6:$AG$308,COLUMN()-1,0) -> 70 | Q19: =VLOOKUP($B19,Store!$B$6:$AG$308,COLUMN()-1,0) -> 200 | R19: =VLOOKUP($B19,Store!$B$6:$AG$308,COLUMN()-1,0) -> Very Light weight | S19: =VLOOKUP($B19,Store!$B$6:$AG$308,COLUMN()-1,0) -> dark | T19: =VLOOKUP($B19,Store!$B$6:$AG$308,COLUMN()-1,0) -> Second Choice | U19: =VLOOKUP($B19,Store!$B$6:$AG$308,COLUMN()-1,0) -> 100% cotton | V19: =VLOOKUP($B19,Store!$B$6:$AG$308,COLUMN()-1,0) -> 100% cotton | W19: =VLOOKUP($B19,Store!$B$6:$AG$308,COLUMN()-1,0) -> 24/2 - 16/1 | X19: =VLOOKUP($B19,Store!$B$6:$AG$308,COLUMN()-1,0) -> 24/2 - 16/1 | Y19: =VLOOKUP($B19,Store!$B$6:$AG$308,COLUMN()-1,0) -> Fresh | Z19: =VLOOKUP($B19,Store!$B$6:$AG$308,COLUMN()-1,0) -> Fresh | AA19: =VLOOKUP($B19,Store!$B$6:$AG$308,COLUMN()-1,0) -> 0 | AB19: =VLOOKUP($B19,Store!$B$6:$AG$308,COLUMN()-1,0) -> محمود | AC19: =VLOOKUP($B19,Store!$B$6:$AG$308,COLUMN()-1,0) -> 1.8 | AD19: =VLOOKUP($B19,Store!$B$6:$AG$308,COLUMN()-1,0) -> 30 | AE19: =VLOOKUP($B19,Store!$B$6:$AG$308,COLUMN()-1,0) -> 2.1 | AF19: =VLOOKUP($B19,Store!$B$6:$AG$308,COLUMN()-1,0) -> Jacquard | AG19: =VLOOKUP($B19,Store!$B$6:$AG$308,COLUMN()-1,0) -> Normal | AJ19: =SUMIFS(Store!$AD$6:$AD$308,Store!$B$6:$B$308,Rassed!B19,Store!$AH$6:$AH$308,"اضافه") -> 105 | AK19: =SUMIFS(Store!$AD$6:$AD$308,Store!$B$6:$B$308,Rassed!B19,Store!$AN$6:$AN$308,"صرف") -> 195 | AL19: -90
B20: 0016 - 34 | C20: =VLOOKUP($B20,Store!$B$6:$AG$308,COLUMN()-1,0) -> DDDD | D20: =VLOOKUP($B20,Store!$B$6:$AG$308,COLUMN()-1,0) -> 9114000012 | E20: =VLOOKUP($B20,Store!$B$6:$AG$308,COLUMN()-1,0) -> مشكل عميل 34 اوردر 7002 | F20: =VLOOKUP($B20,Store!$B$6:$AG$308,COLUMN()-1,0) -> 34 | G20: =VLOOKUP($B20,Store!$B$6:$AG$308,COLUMN()-1,0) -> 7007 | H20: =VLOOKUP($B20,Store!$B$6:$AG$308,COLUMN()-1,0) -> 7007 | I20: =VLOOKUP($B20,Store!$B$6:$AG$308,COLUMN()-1,0) -> Kitchen Towel | J20: =VLOOKUP($B20,Store!$B$6:$AG$308,COLUMN()-1,0) -> Kitchen Towel | K20: =VLOOKUP($B20,Store!$B$6:$AG$308,COLUMN()-1,0) -> Flat | L20: =VLOOKUP($B20,Store!$B$6:$AG$308,COLUMN()-1,0) -> Flat | M20: =VLOOKUP($B20,Store!$B$6:$AG$308,COLUMN()-1,0) -> 50 X 70 | N20: =VLOOKUP($B20,Store!$B$6:$AG$308,COLUMN()-1,0) -> 50 X 70 | O20: =VLOOKUP($B20,Store!$B$6:$AG$308,COLUMN()-1,0) -> 70 | P20: =VLOOKUP($B20,Store!$B$6:$AG$308,COLUMN()-1,0) -> 70 | Q20: =VLOOKUP($B20,Store!$B$6:$AG$308,COLUMN()-1,0) -> 200 | R20: =VLOOKUP($B20,Store!$B$6:$AG$308,COLUMN()-1,0) -> Very Light weight | S20: =VLOOKUP($B20,Store!$B$6:$AG$308,COLUMN()-1,0) -> dark | T20: =VLOOKUP($B20,Store!$B$6:$AG$308,COLUMN()-1,0) -> Second Choice | U20: =VLOOKUP($B20,Store!$B$6:$AG$308,COLUMN()-1,0) -> 100% cotton | V20: =VLOOKUP($B20,Store!$B$6:$AG$308,COLUMN()-1,0) -> 100% cotton | W20: =VLOOKUP($B20,Store!$B$6:$AG$308,COLUMN()-1,0) -> 24/2 - 16/1 | X20: =VLOOKUP($B20,Store!$B$6:$AG$308,COLUMN()-1,0) -> 24/2 - 16/1 | Y20: =VLOOKUP($B20,Store!$B$6:$AG$308,COLUMN()-1,0) -> Fresh | Z20: =VLOOKUP($B20,Store!$B$6:$AG$308,COLUMN()-1,0) -> Fresh | AA20: =VLOOKUP($B20,Store!$B$6:$AG$308,COLUMN()-1,0) -> 0 | AB20: =VLOOKUP($B20,Store!$B$6:$AG$308,COLUMN()-1,0) -> محمود | AC20: =VLOOKUP($B20,Store!$B$6:$AG$308,COLUMN()-1,0) -> 3 | AD20: =VLOOKUP($B20,Store!$B$6:$AG$308,COLUMN()-1,0) -> 50 | AE20: =VLOOKUP($B20,Store!$B$6:$AG$308,COLUMN()-1,0) -> 3.5 | AF20: =VLOOKUP($B20,Store!$B$6:$AG$308,COLUMN()-1,0) -> Dobby | AG20: =VLOOKUP($B20,Store!$B$6:$AG$308,COLUMN()-1,0) -> Normal | AJ20: =SUMIFS(Store!$AD$6:$AD$308,Store!$B$6:$B$308,Rassed!B20,Store!$AH$6:$AH$308,"اضافه") -> 112 | AK20: =SUMIFS(Store!$AD$6:$AD$308,Store!$B$6:$B$308,Rassed!B20,Store!$AN$6:$AN$308,"صرف") -> 224 | AL20: -112
B21: 0017 - 34 | C21: =VLOOKUP($B21,Store!$B$6:$AG$308,COLUMN()-1,0) -> EEEE | D21: =VLOOKUP($B21,Store!$B$6:$AG$308,COLUMN()-1,0) -> 9114000013 | E21: =VLOOKUP($B21,Store!$B$6:$AG$308,COLUMN()-1,0) -> مشكل عميل 34 اوردر 7002 | F21: =VLOOKUP($B21,Store!$B$6:$AG$308,COLUMN()-1,0) -> 34 | G21: =VLOOKUP($B21,Store!$B$6:$AG$308,COLUMN()-1,0) -> 7007 | H21: =VLOOKUP($B21,Store!$B$6:$AG$308,COLUMN()-1,0) -> 7007 | I21: =VLOOKUP($B21,Store!$B$6:$AG$308,COLUMN()-1,0) -> Kitchen Towel | J21: =VLOOKUP($B21,Store!$B$6:$AG$308,COLUMN()-1,0) -> Kitchen Towel | K21: =VLOOKUP($B21,Store!$B$6:$AG$308,COLUMN()-1,0) -> Flat | L21: =VLOOKUP($B21,Store!$B$6:$AG$308,COLUMN()-1,0) -> Flat | M21: =VLOOKUP($B21,Store!$B$6:$AG$308,COLUMN()-1,0) -> 50 X 70 | N21: =VLOOKUP($B21,Store!$B$6:$AG$308,COLUMN()-1,0) -> 50 X 70 | O21: =VLOOKUP($B21,Store!$B$6:$AG$308,COLUMN()-1,0) -> 70 | P21: =VLOOKUP($B21,Store!$B$6:$AG$308,COLUMN()-1,0) -> 70 | Q21: =VLOOKUP($B21,Store!$B$6:$AG$308,COLUMN()-1,0) -> 200 | R21: =VLOOKUP($B21,Store!$B$6:$AG$308,COLUMN()-1,0) -> Very Light weight | S21: =VLOOKUP($B21,Store!$B$6:$AG$308,COLUMN()-1,0) -> dark | T21: =VLOOKUP($B21,Store!$B$6:$AG$308,COLUMN()-1,0) -> Second Choice | U21: =VLOOKUP($B21,Store!$B$6:$AG$308,COLUMN()-1,0) -> 100% cotton | V21: =VLOOKUP($B21,Store!$B$6:$AG$308,COLUMN()-1,0) -> 100% cotton | W21: =VLOOKUP($B21,Store!$B$6:$AG$308,COLUMN()-1,0) -> 24/2 - 16/1 | X21: =VLOOKUP($B21,Store!$B$6:$AG$308,COLUMN()-1,0) -> 24/2 - 16/1 | Y21: =VLOOKUP($B21,Store!$B$6:$AG$308,COLUMN()-1,0) -> Fresh | Z21: =VLOOKUP($B21,Store!$B$6:$AG$308,COLUMN()-1,0) -> Fresh | AA21: =VLOOKUP($B21,Store!$B$6:$AG$308,COLUMN()-1,0) -> 0 | AB21: =VLOOKUP($B21,Store!$B$6:$AG$308,COLUMN()-1,0) -> محمود | AC21: =VLOOKUP($B21,Store!$B$6:$AG$308,COLUMN()-1,0) -> 0.6 | AD21: =VLOOKUP($B21,Store!$B$6:$AG$308,COLUMN()-1,0) -> 10 | AE21: =VLOOKUP($B21,Store!$B$6:$AG$308,COLUMN()-1,0) -> 0.7 | AF21: =VLOOKUP($B21,Store!$B$6:$AG$308,COLUMN()-1,0) -> Dobby | AG21: =VLOOKUP($B21,Store!$B$6:$AG$308,COLUMN()-1,0) -> Normal | AJ21: =SUMIFS(Store!$AD$6:$AD$308,Store!$B$6:$B$308,Rassed!B21,Store!$AH$6:$AH$308,"اضافه") -> 30 | AK21: =SUMIFS(Store!$AD$6:$AD$308,Store!$B$6:$B$308,Rassed!B21,Store!$AN$6:$AN$308,"صرف") -> 60 | AL21: -30
B22: 0018 - 34 | C22: =VLOOKUP($B22,Store!$B$6:$AG$308,COLUMN()-1,0) -> FFFFF | D22: =VLOOKUP($B22,Store!$B$6:$AG$308,COLUMN()-1,0) -> 9114000014 | E22: =VLOOKUP($B22,Store!$B$6:$AG$308,COLUMN()-1,0) -> مشكل عميل 34 اوردر 7002 | F22: =VLOOKUP($B22,Store!$B$6:$AG$308,COLUMN()-1,0) -> 34 | G22: =VLOOKUP($B22,Store!$B$6:$AG$308,COLUMN()-1,0) -> 7007 | H22: =VLOOKUP($B22,Store!$B$6:$AG$308,COLUMN()-1,0) -> 7007 | I22: =VLOOKUP($B22,Store!$B$6:$AG$308,COLUMN()-1,0) -> Kitchen Towel | J22: =VLOOKUP($B22,Store!$B$6:$AG$308,COLUMN()-1,0) -> Kitchen Towel | K22: =VLOOKUP($B22,Store!$B$6:$AG$308,COLUMN()-1,0) -> Flat | L22: =VLOOKUP($B22,Store!$B$6:$AG$308,COLUMN()-1,0) -> Flat | M22: =VLOOKUP($B22,Store!$B$6:$AG$308,COLUMN()-1,0) -> 50 X 70 | N22: =VLOOKUP($B22,Store!$B$6:$AG$308,COLUMN()-1,0) -> 50 X 70 | O22: =VLOOKUP($B22,Store!$B$6:$AG$308,COLUMN()-1,0) -> 70 | P22: =VLOOKUP($B22,Store!$B$6:$AG$308,COLUMN()-1,0) -> 70 | Q22: =VLOOKUP($B22,Store!$B$6:$AG$308,COLUMN()-1,0) -> 200 | R22: =VLOOKUP($B22,Store!$B$6:$AG$308,COLUMN()-1,0) -> Very Light weight | S22: =VLOOKUP($B22,Store!$B$6:$AG$308,COLUMN()-1,0) -> dark | T22: =VLOOKUP($B22,Store!$B$6:$AG$308,COLUMN()-1,0) -> Second Choice | U22: =VLOOKUP($B22,Store!$B$6:$AG$308,COLUMN()-1,0) -> 100% cotton | V22: =VLOOKUP($B22,Store!$B$6:$AG$308,COLUMN()-1,0) -> 100% cotton | W22: =VLOOKUP($B22,Store!$B$6:$AG$308,COLUMN()-1,0) -> 24/2 - 16/1 | X22: =VLOOKUP($B22,Store!$B$6:$AG$308,COLUMN()-1,0) -> 24/2 - 16/1 | Y22: =VLOOKUP($B22,Store!$B$6:$AG$308,COLUMN()-1,0) -> Fresh | Z22: =VLOOKUP($B22,Store!$B$6:$AG$308,COLUMN()-1,0) -> Fresh | AA22: =VLOOKUP($B22,Store!$B$6:$AG$308,COLUMN()-1,0) -> 0 | AB22: =VLOOKUP($B22,Store!$B$6:$AG$308,COLUMN()-1,0) -> محمود | AC22: =VLOOKUP($B22,Store!$B$6:$AG$308,COLUMN()-1,0) -> 1.5 | AD22: =VLOOKUP($B22,Store!$B$6:$AG$308,COLUMN()-1,0) -> 25 | AE22: =VLOOKUP($B22,Store!$B$6:$AG$308,COLUMN()-1,0) -> 1.75 | AF22: =VLOOKUP($B22,Store!$B$6:$AG$308,COLUMN()-1,0) -> Jacquard | AG22: =VLOOKUP($B22,Store!$B$6:$AG$308,COLUMN()-1,0) -> Normal | AJ22: =SUMIFS(Store!$AD$6:$AD$308,Store!$B$6:$B$308,Rassed!B22,Store!$AH$6:$AH$308,"اضافه") -> 50 | AK22: =SUMIFS(Store!$AD$6:$AD$308,Store!$B$6:$B$308,Rassed!B22,Store!$AN$6:$AN$308,"صرف") -> 114 | AL22: -64
B23: 0019 - 34 | C23: =VLOOKUP($B23,Store!$B$6:$AG$308,COLUMN()-1,0) -> GGGG | D23: =VLOOKUP($B23,Store!$B$6:$AG$308,COLUMN()-1,0) -> 9114000015 | E23: =VLOOKUP($B23,Store!$B$6:$AG$308,COLUMN()-1,0) -> مشكل عميل 34 اوردر 7002 | F23: =VLOOKUP($B23,Store!$B$6:$AG$308,COLUMN()-1,0) -> 34 | G23: =VLOOKUP($B23,Store!$B$6:$AG$308,COLUMN()-1,0) -> 7007 | H23: =VLOOKUP($B23,Store!$B$6:$AG$308,COLUMN()-1,0) -> 7007 | I23: =VLOOKUP($B23,Store!$B$6:$AG$308,COLUMN()-1,0) -> Kitchen Towel | J23: =VLOOKUP($B23,Store!$B$6:$AG$308,COLUMN()-1,0) -> Kitchen Towel | K23: =VLOOKUP($B23,Store!$B$6:$AG$308,COLUMN()-1,0) -> Flat | L23: =VLOOKUP($B23,Store!$B$6:$AG$308,COLUMN()-1,0) -> Flat | M23: =VLOOKUP($B23,Store!$B$6:$AG$308,COLUMN()-1,0) -> 50 X 70 | N23: =VLOOKUP($B23,Store!$B$6:$AG$308,COLUMN()-1,0) -> 50 X 70 | O23: =VLOOKUP($B23,Store!$B$6:$AG$308,COLUMN()-1,0) -> 70 | P23: =VLOOKUP($B23,Store!$B$6:$AG$308,COLUMN()-1,0) -> 70 | Q23: =VLOOKUP($B23,Store!$B$6:$AG$308,COLUMN()-1,0) -> 200 | R23: =VLOOKUP($B23,Store!$B$6:$AG$308,COLUMN()-1,0) -> Very Light weight | S23: =VLOOKUP($B23,Store!$B$6:$AG$308,COLUMN()-1,0) -> dark | T23: =VLOOKUP($B23,Store!$B$6:$AG$308,COLUMN()-1,0) -> Second Choice | U23: =VLOOKUP($B23,Store!$B$6:$AG$308,COLUMN()-1,0) -> 100% cotton | V23: =VLOOKUP($B23,Store!$B$6:$AG$308,COLUMN()-1,0) -> 100% cotton | W23: =VLOOKUP($B23,Store!$B$6:$AG$308,COLUMN()-1,0) -> 24/2 - 16/1 | X23: =VLOOKUP($B23,Store!$B$6:$AG$308,COLUMN()-1,0) -> 24/2 - 16/1 | Y23: =VLOOKUP($B23,Store!$B$6:$AG$308,COLUMN()-1,0) -> Fresh | Z23: =VLOOKUP($B23,Store!$B$6:$AG$308,COLUMN()-1,0) -> Fresh | AA23: =VLOOKUP($B23,Store!$B$6:$AG$308,COLUMN()-1,0) -> 0 | AB23: =VLOOKUP($B23,Store!$B$6:$AG$308,COLUMN()-1,0) -> محمود | AC23: =VLOOKUP($B23,Store!$B$6:$AG$308,COLUMN()-1,0) -> 1.5 | AD23: =VLOOKUP($B23,Store!$B$6:$AG$308,COLUMN()-1,0) -> 25 | AE23: =VLOOKUP($B23,Store!$B$6:$AG$308,COLUMN()-1,0) -> 1.75 | AF23: =VLOOKUP($B23,Store!$B$6:$AG$308,COLUMN()-1,0) -> Dobby | AG23: =VLOOKUP($B23,Store!$B$6:$AG$308,COLUMN()-1,0) -> Normal | AJ23: =SUMIFS(Store!$AD$6:$AD$308,Store!$B$6:$B$308,Rassed!B23,Store!$AH$6:$AH$308,"اضافه") -> 57 | AK23: =SUMIFS(Store!$AD$6:$AD$308,Store!$B$6:$B$308,Rassed!B23,Store!$AN$6:$AN$308,"صرف") -> 132 | AL23: -75
B24: 0020 - 34 | C24: =VLOOKUP($B24,Store!$B$6:$AG$308,COLUMN()-1,0) -> HHHHH | D24: =VLOOKUP($B24,Store!$B$6:$AG$308,COLUMN()-1,0) -> 9114000016 | E24: =VLOOKUP($B24,Store!$B$6:$AG$308,COLUMN()-1,0) -> مشكل عميل 34 اوردر 7002 | F24: =VLOOKUP($B24,Store!$B$6:$AG$308,COLUMN()-1,0) -> 34 | G24: =VLOOKUP($B24,Store!$B$6:$AG$308,COLUMN()-1,0) -> 7007 | H24: =VLOOKUP($B24,Store!$B$6:$AG$308,COLUMN()-1,0) -> 7007 | I24: =VLOOKUP($B24,Store!$B$6:$AG$308,COLUMN()-1,0) -> Kitchen Towel | J24: =VLOOKUP($B24,Store!$B$6:$AG$308,COLUMN()-1,0) -> Kitchen Towel | K24: =VLOOKUP($B24,Store!$B$6:$AG$308,COLUMN()-1,0) -> Flat | L24: =VLOOKUP($B24,Store!$B$6:$AG$308,COLUMN()-1,0) -> Flat | M24: =VLOOKUP($B24,Store!$B$6:$AG$308,COLUMN()-1,0) -> 50 X 70 | N24: =VLOOKUP($B24,Store!$B$6:$AG$308,COLUMN()-1,0) -> 50 X 70 | O24: =VLOOKUP($B24,Store!$B$6:$AG$308,COLUMN()-1,0) -> 70 | P24: =VLOOKUP($B24,Store!$B$6:$AG$308,COLUMN()-1,0) -> 70 | Q24: =VLOOKUP($B24,Store!$B$6:$AG$308,COLUMN()-1,0) -> 200 | R24: =VLOOKUP($B24,Store!$B$6:$AG$308,COLUMN()-1,0) -> Very Light weight | S24: =VLOOKUP($B24,Store!$B$6:$AG$308,COLUMN()-1,0) -> dark | T24: =VLOOKUP($B24,Store!$B$6:$AG$308,COLUMN()-1,0) -> Second Choice | U24: =VLOOKUP($B24,Store!$B$6:$AG$308,COLUMN()-1,0) -> 100% cotton | V24: =VLOOKUP($B24,Store!$B$6:$AG$308,COLUMN()-1,0) -> 100% cotton | W24: =VLOOKUP($B24,Store!$B$6:$AG$308,COLUMN()-1,0) -> 24/2 - 16/1 | X24: =VLOOKUP($B24,Store!$B$6:$AG$308,COLUMN()-1,0) -> 24/2 - 16/1 | Y24: =VLOOKUP($B24,Store!$B$6:$AG$308,COLUMN()-1,0) -> Fresh | Z24: =VLOOKUP($B24,Store!$B$6:$AG$308,COLUMN()-1,0) -> Fresh | AA24: =VLOOKUP($B24,Store!$B$6:$AG$308,COLUMN()-1,0) -> 0 | AB24: =VLOOKUP($B24,Store!$B$6:$AG$308,COLUMN()-1,0) -> محمود | AC24: =VLOOKUP($B24,Store!$B$6:$AG$308,COLUMN()-1,0) -> 0.6 | AD24: =VLOOKUP($B24,Store!$B$6:$AG$308,COLUMN()-1,0) -> 10 | AE24: =VLOOKUP($B24,Store!$B$6:$AG$308,COLUMN()-1,0) -> 0.7 | AF24: =VLOOKUP($B24,Store!$B$6:$AG$308,COLUMN()-1,0) -> Dobby | AG24: =VLOOKUP($B24,Store!$B$6:$AG$308,COLUMN()-1,0) -> Normal | AJ24: =SUMIFS(Store!$AD$6:$AD$308,Store!$B$6:$B$308,Rassed!B24,Store!$AH$6:$AH$308,"اضافه") -> 32 | AK24: =SUMIFS(Store!$AD$6:$AD$308,Store!$B$6:$B$308,Rassed!B24,Store!$AN$6:$AN$308,"صرف") -> 62 | AL24: -30
B25: 0021 - 34 | C25: =VLOOKUP($B25,Store!$B$6:$AG$308,COLUMN()-1,0) -> JJJJJJ | D25: =VLOOKUP($B25,Store!$B$6:$AG$308,COLUMN()-1,0) -> 9114000017 | E25: =VLOOKUP($B25,Store!$B$6:$AG$308,COLUMN()-1,0) -> مشكل عميل 34 اوردر 7002 | F25: =VLOOKUP($B25,Store!$B$6:$AG$308,COLUMN()-1,0) -> 34 | G25: =VLOOKUP($B25,Store!$B$6:$AG$308,COLUMN()-1,0) -> 7007 | H25: =VLOOKUP($B25,Store!$B$6:$AG$308,COLUMN()-1,0) -> 7007 | I25: =VLOOKUP($B25,Store!$B$6:$AG$308,COLUMN()-1,0) -> Kitchen Towel | J25: =VLOOKUP($B25,Store!$B$6:$AG$308,COLUMN()-1,0) -> Kitchen Towel | K25: =VLOOKUP($B25,Store!$B$6:$AG$308,COLUMN()-1,0) -> Flat | L25: =VLOOKUP($B25,Store!$B$6:$AG$308,COLUMN()-1,0) -> Flat | M25: =VLOOKUP($B25,Store!$B$6:$AG$308,COLUMN()-1,0) -> 50 X 70 | N25: =VLOOKUP($B25,Store!$B$6:$AG$308,COLUMN()-1,0) -> 50 X 70 | O25: =VLOOKUP($B25,Store!$B$6:$AG$308,COLUMN()-1,0) -> 70 | P25: =VLOOKUP($B25,Store!$B$6:$AG$308,COLUMN()-1,0) -> 70 | Q25: =VLOOKUP($B25,Store!$B$6:$AG$308,COLUMN()-1,0) -> 200 | R25: =VLOOKUP($B25,Store!$B$6:$AG$308,COLUMN()-1,0) -> Very Light weight | S25: =VLOOKUP($B25,Store!$B$6:$AG$308,COLUMN()-1,0) -> dark | T25: =VLOOKUP($B25,Store!$B$6:$AG$308,COLUMN()-1,0) -> Second Choice | U25: =VLOOKUP($B25,Store!$B$6:$AG$308,COLUMN()-1,0) -> 100% cotton | V25: =VLOOKUP($B25,Store!$B$6:$AG$308,COLUMN()-1,0) -> 100% cotton | W25: =VLOOKUP($B25,Store!$B$6:$AG$308,COLUMN()-1,0) -> 24/2 - 16/1 | X25: =VLOOKUP($B25,Store!$B$6:$AG$308,COLUMN()-1,0) -> 24/2 - 16/1 | Y25: =VLOOKUP($B25,Store!$B$6:$AG$308,COLUMN()-1,0) -> Fresh | Z25: =VLOOKUP($B25,Store!$B$6:$AG$308,COLUMN()-1,0) -> Fresh | AA25: =VLOOKUP($B25,Store!$B$6:$AG$308,COLUMN()-1,0) -> 0 | AB25: =VLOOKUP($B25,Store!$B$6:$AG$308,COLUMN()-1,0) -> محمود | AC25: =VLOOKUP($B25,Store!$B$6:$AG$308,COLUMN()-1,0) -> 0.6 | AD25: =VLOOKUP($B25,Store!$B$6:$AG$308,COLUMN()-1,0) -> 10 | AE25: =VLOOKUP($B25,Store!$B$6:$AG$308,COLUMN()-1,0) -> 0.7 | AF25: =VLOOKUP($B25,Store!$B$6:$AG$308,COLUMN()-1,0) -> Jacquard | AG25: =VLOOKUP($B25,Store!$B$6:$AG$308,COLUMN()-1,0) -> Normal | AJ25: =SUMIFS(Store!$AD$6:$AD$308,Store!$B$6:$B$308,Rassed!B25,Store!$AH$6:$AH$308,"اضافه") -> 40 | AK25: =SUMIFS(Store!$AD$6:$AD$308,Store!$B$6:$B$308,Rassed!B25,Store!$AN$6:$AN$308,"صرف") -> 70 | AL25: -30
B26: 0001 - 44 | C26: =VLOOKUP($B26,Store!$B$6:$AG$308,COLUMN()-1,0) -> Elephnt | D26: =VLOOKUP($B26,Store!$B$6:$AG$308,COLUMN()-1,0) -> 9114000018 | E26: =VLOOKUP($B26,Store!$B$6:$AG$308,COLUMN()-1,0) -> مشكل عميل 44 اوردر 7008 | F26: =VLOOKUP($B26,Store!$B$6:$AG$308,COLUMN()-1,0) -> 44 | G26: =VLOOKUP($B26,Store!$B$6:$AG$308,COLUMN()-1,0) -> 7008 | H26: =VLOOKUP($B26,Store!$B$6:$AG$308,COLUMN()-1,0) -> 7008 | I26: =VLOOKUP($B26,Store!$B$6:$AG$308,COLUMN()-1,0) -> Kitchen Towel | J26: =VLOOKUP($B26,Store!$B$6:$AG$308,COLUMN()-1,0) -> Kitchen Towel | K26: =VLOOKUP($B26,Store!$B$6:$AG$308,COLUMN()-1,0) -> Flat | L26: =VLOOKUP($B26,Store!$B$6:$AG$308,COLUMN()-1,0) -> Flat | M26: =VLOOKUP($B26,Store!$B$6:$AG$308,COLUMN()-1,0) -> 50 X 70 | N26: =VLOOKUP($B26,Store!$B$6:$AG$308,COLUMN()-1,0) -> 50 X 70 | O26: =VLOOKUP($B26,Store!$B$6:$AG$308,COLUMN()-1,0) -> 70 | P26: =VLOOKUP($B26,Store!$B$6:$AG$308,COLUMN()-1,0) -> 70 | Q26: =VLOOKUP($B26,Store!$B$6:$AG$308,COLUMN()-1,0) -> 200 | R26: =VLOOKUP($B26,Store!$B$6:$AG$308,COLUMN()-1,0) -> Very Light weight | S26: =VLOOKUP($B26,Store!$B$6:$AG$308,COLUMN()-1,0) -> dark | T26: =VLOOKUP($B26,Store!$B$6:$AG$308,COLUMN()-1,0) -> Second Choice | U26: =VLOOKUP($B26,Store!$B$6:$AG$308,COLUMN()-1,0) -> 100% cotton | V26: =VLOOKUP($B26,Store!$B$6:$AG$308,COLUMN()-1,0) -> 100% cotton | W26: =VLOOKUP($B26,Store!$B$6:$AG$308,COLUMN()-1,0) -> 24/2 - 16/1 | X26: =VLOOKUP($B26,Store!$B$6:$AG$308,COLUMN()-1,0) -> 24/2 - 16/1 | Y26: =VLOOKUP($B26,Store!$B$6:$AG$308,COLUMN()-1,0) -> Fresh | Z26: =VLOOKUP($B26,Store!$B$6:$AG$308,COLUMN()-1,0) -> Fresh | AA26: =VLOOKUP($B26,Store!$B$6:$AG$308,COLUMN()-1,0) -> 0 | AB26: =VLOOKUP($B26,Store!$B$6:$AG$308,COLUMN()-1,0) -> محمود | AC26: =VLOOKUP($B26,Store!$B$6:$AG$308,COLUMN()-1,0) -> 7.272727273 | AD26: =VLOOKUP($B26,Store!$B$6:$AG$308,COLUMN()-1,0) -> 100 | AE26: =VLOOKUP($B26,Store!$B$6:$AG$308,COLUMN()-1,0) -> 7 | AF26: =VLOOKUP($B26,Store!$B$6:$AG$308,COLUMN()-1,0) -> Dobby | AG26: =VLOOKUP($B26,Store!$B$6:$AG$308,COLUMN()-1,0) -> Normal | AJ26: =SUMIFS(Store!$AD$6:$AD$308,Store!$B$6:$B$308,Rassed!B26,Store!$AH$6:$AH$308,"اضافه") -> 1550 | AK26: =SUMIFS(Store!$AD$6:$AD$308,Store!$B$6:$B$308,Rassed!B26,Store!$AN$6:$AN$308,"صرف") -> 2050 | AL26: -500
B27: 0002 - 44 | C27: =VLOOKUP($B27,Store!$B$6:$AG$308,COLUMN()-1,0) -> BroB | D27: =VLOOKUP($B27,Store!$B$6:$AG$308,COLUMN()-1,0) -> 9114000019 | E27: =VLOOKUP($B27,Store!$B$6:$AG$308,COLUMN()-1,0) -> مشكل عميل 44 اوردر 7008 | F27: =VLOOKUP($B27,Store!$B$6:$AG$308,COLUMN()-1,0) -> 44 | G27: =VLOOKUP($B27,Store!$B$6:$AG$308,COLUMN()-1,0) -> 7008 | H27: =VLOOKUP($B27,Store!$B$6:$AG$308,COLUMN()-1,0) -> 7008 | I27: =VLOOKUP($B27,Store!$B$6:$AG$308,COLUMN()-1,0) -> Kitchen Towel | J27: =VLOOKUP($B27,Store!$B$6:$AG$308,COLUMN()-1,0) -> Kitchen Towel | K27: =VLOOKUP($B27,Store!$B$6:$AG$308,COLUMN()-1,0) -> Flat | L27: =VLOOKUP($B27,Store!$B$6:$AG$308,COLUMN()-1,0) -> Flat | M27: =VLOOKUP($B27,Store!$B$6:$AG$308,COLUMN()-1,0) -> 50 X 70 | N27: =VLOOKUP($B27,Store!$B$6:$AG$308,COLUMN()-1,0) -> 50 X 70 | O27: =VLOOKUP($B27,Store!$B$6:$AG$308,COLUMN()-1,0) -> 70 | P27: =VLOOKUP($B27,Store!$B$6:$AG$308,COLUMN()-1,0) -> 70 | Q27: =VLOOKUP($B27,Store!$B$6:$AG$308,COLUMN()-1,0) -> 200 | R27: =VLOOKUP($B27,Store!$B$6:$AG$308,COLUMN()-1,0) -> Very Light weight | S27: =VLOOKUP($B27,Store!$B$6:$AG$308,COLUMN()-1,0) -> dark | T27: =VLOOKUP($B27,Store!$B$6:$AG$308,COLUMN()-1,0) -> Second Choice | U27: =VLOOKUP($B27,Store!$B$6:$AG$308,COLUMN()-1,0) -> 100% cotton | V27: =VLOOKUP($B27,Store!$B$6:$AG$308,COLUMN()-1,0) -> 100% cotton | W27: =VLOOKUP($B27,Store!$B$6:$AG$308,COLUMN()-1,0) -> 24/2 - 16/1 | X27: =VLOOKUP($B27,Store!$B$6:$AG$308,COLUMN()-1,0) -> 24/2 - 16/1 | Y27: =VLOOKUP($B27,Store!$B$6:$AG$308,COLUMN()-1,0) -> Fresh | Z27: =VLOOKUP($B27,Store!$B$6:$AG$308,COLUMN()-1,0) -> Fresh | AA27: =VLOOKUP($B27,Store!$B$6:$AG$308,COLUMN()-1,0) -> 0 | AB27: =VLOOKUP($B27,Store!$B$6:$AG$308,COLUMN()-1,0) -> محمود | AC27: =VLOOKUP($B27,Store!$B$6:$AG$308,COLUMN()-1,0) -> 10.90909091 | AD27: =VLOOKUP($B27,Store!$B$6:$AG$308,COLUMN()-1,0) -> 150 | AE27: =VLOOKUP($B27,Store!$B$6:$AG$308,COLUMN()-1,0) -> 10.5 | AF27: =VLOOKUP($B27,Store!$B$6:$AG$308,COLUMN()-1,0) -> Dobby | AG27: =VLOOKUP($B27,Store!$B$6:$AG$308,COLUMN()-1,0) -> Normal | AJ27: =SUMIFS(Store!$AD$6:$AD$308,Store!$B$6:$B$308,Rassed!B27,Store!$AH$6:$AH$308,"اضافه") -> 150 | AK27: =SUMIFS(Store!$AD$6:$AD$308,Store!$B$6:$B$308,Rassed!B27,Store!$AN$6:$AN$308,"صرف") -> 300 | AL27: -150
B28: 0003 - 44 | C28: =VLOOKUP($B28,Store!$B$6:$AG$308,COLUMN()-1,0) -> hgh | D28: =VLOOKUP($B28,Store!$B$6:$AG$308,COLUMN()-1,0) -> 9114000020 | E28: =VLOOKUP($B28,Store!$B$6:$AG$308,COLUMN()-1,0) -> مشكل عميل 44 اوردر 7008 | F28: =VLOOKUP($B28,Store!$B$6:$AG$308,COLUMN()-1,0) -> 44 | G28: =VLOOKUP($B28,Store!$B$6:$AG$308,COLUMN()-1,0) -> 7008 | H28: =VLOOKUP($B28,Store!$B$6:$AG$308,COLUMN()-1,0) -> 7008 | I28: =VLOOKUP($B28,Store!$B$6:$AG$308,COLUMN()-1,0) -> Kitchen Towel | J28: =VLOOKUP($B28,Store!$B$6:$AG$308,COLUMN()-1,0) -> Kitchen Towel | K28: =VLOOKUP($B28,Store!$B$6:$AG$308,COLUMN()-1,0) -> Flat | L28: =VLOOKUP($B28,Store!$B$6:$AG$308,COLUMN()-1,0) -> Flat | M28: =VLOOKUP($B28,Store!$B$6:$AG$308,COLUMN()-1,0) -> 50 X 70 | N28: =VLOOKUP($B28,Store!$B$6:$AG$308,COLUMN()-1,0) -> 50 X 70 | O28: =VLOOKUP($B28,Store!$B$6:$AG$308,COLUMN()-1,0) -> 70 | P28: =VLOOKUP($B28,Store!$B$6:$AG$308,COLUMN()-1,0) -> 70 | Q28: =VLOOKUP($B28,Store!$B$6:$AG$308,COLUMN()-1,0) -> 200 | R28: =VLOOKUP($B28,Store!$B$6:$AG$308,COLUMN()-1,0) -> Very Light weight | S28: =VLOOKUP($B28,Store!$B$6:$AG$308,COLUMN()-1,0) -> dark | T28: =VLOOKUP($B28,Store!$B$6:$AG$308,COLUMN()-1,0) -> Second Choice | U28: =VLOOKUP($B28,Store!$B$6:$AG$308,COLUMN()-1,0) -> 100% cotton | V28: =VLOOKUP($B28,Store!$B$6:$AG$308,COLUMN()-1,0) -> 100% cotton | W28: =VLOOKUP($B28,Store!$B$6:$AG$308,COLUMN()-1,0) -> 24/2 - 16/1 | X28: =VLOOKUP($B28,Store!$B$6:$AG$308,COLUMN()-1,0) -> 24/2 - 16/2 | Y28: =VLOOKUP($B28,Store!$B$6:$AG$308,COLUMN()-1,0) -> Fresh | Z28: =VLOOKUP($B28,Store!$B$6:$AG$308,COLUMN()-1,0) -> Fresh | AA28: =VLOOKUP($B28,Store!$B$6:$AG$308,COLUMN()-1,0) -> 0 | AB28: =VLOOKUP($B28,Store!$B$6:$AG$308,COLUMN()-1,0) -> محمود | AC28: =VLOOKUP($B28,Store!$B$6:$AG$308,COLUMN()-1,0) -> 14.54545455 | AD28: =VLOOKUP($B28,Store!$B$6:$AG$308,COLUMN()-1,0) -> 200 | AE28: =VLOOKUP($B28,Store!$B$6:$AG$308,COLUMN()-1,0) -> 14 | AF28: =VLOOKUP($B28,Store!$B$6:$AG$308,COLUMN()-1,0) -> Jacquard | AG28: =VLOOKUP($B28,Store!$B$6:$AG$308,COLUMN()-1,0) -> Normal | AJ28: =SUMIFS(Store!$AD$6:$AD$308,Store!$B$6:$B$308,Rassed!B28,Store!$AH$6:$AH$308,"اضافه") -> 200 | AK28: =SUMIFS(Store!$AD$6:$AD$308,Store!$B$6:$B$308,Rassed!B28,Store!$AN$6:$AN$308,"صرف") -> 400 | AL28: -200
B29: 0004 - 44 | C29: =VLOOKUP($B29,Store!$B$6:$AG$308,COLUMN()-1,0) -> yurturhy | D29: =VLOOKUP($B29,Store!$B$6:$AG$308,COLUMN()-1,0) -> 9114000021 | E29: =VLOOKUP($B29,Store!$B$6:$AG$308,COLUMN()-1,0) -> مشكل عميل 44 اوردر 7008 | F29: =VLOOKUP($B29,Store!$B$6:$AG$308,COLUMN()-1,0) -> 44 | G29: =VLOOKUP($B29,Store!$B$6:$AG$308,COLUMN()-1,0) -> 7008 | H29: =VLOOKUP($B29,Store!$B$6:$AG$308,COLUMN()-1,0) -> 7008 | I29: =VLOOKUP($B29,Store!$B$6:$AG$308,COLUMN()-1,0) -> Kitchen Towel | J29: =VLOOKUP($B29,Store!$B$6:$AG$308,COLUMN()-1,0) -> Kitchen Towel | K29: =VLOOKUP($B29,Store!$B$6:$AG$308,COLUMN()-1,0) -> Flat | L29: =VLOOKUP($B29,Store!$B$6:$AG$308,COLUMN()-1,0) -> Flat | M29: =VLOOKUP($B29,Store!$B$6:$AG$308,COLUMN()-1,0) -> 50 X 70 | N29: =VLOOKUP($B29,Store!$B$6:$AG$308,COLUMN()-1,0) -> 50 X 70 | O29: =VLOOKUP($B29,Store!$B$6:$AG$308,COLUMN()-1,0) -> 70 | P29: =VLOOKUP($B29,Store!$B$6:$AG$308,COLUMN()-1,0) -> 70 | Q29: =VLOOKUP($B29,Store!$B$6:$AG$308,COLUMN()-1,0) -> 200 | R29: =VLOOKUP($B29,Store!$B$6:$AG$308,COLUMN()-1,0) -> Very Light weight | S29: =VLOOKUP($B29,Store!$B$6:$AG$308,COLUMN()-1,0) -> dark | T29: =VLOOKUP($B29,Store!$B$6:$AG$308,COLUMN()-1,0) -> Second Choice | U29: =VLOOKUP($B29,Store!$B$6:$AG$308,COLUMN()-1,0) -> 100% cotton | V29: =VLOOKUP($B29,Store!$B$6:$AG$308,COLUMN()-1,0) -> 100% cotton | W29: =VLOOKUP($B29,Store!$B$6:$AG$308,COLUMN()-1,0) -> 24/2 - 16/1 | X29: =VLOOKUP($B29,Store!$B$6:$AG$308,COLUMN()-1,0) -> 24/2 - 16/3 | Y29: =VLOOKUP($B29,Store!$B$6:$AG$308,COLUMN()-1,0) -> Fresh | Z29: =VLOOKUP($B29,Store!$B$6:$AG$308,COLUMN()-1,0) -> Fresh | AA29: =VLOOKUP($B29,Store!$B$6:$AG$308,COLUMN()-1,0) -> 0 | AB29: =VLOOKUP($B29,Store!$B$6:$AG$308,COLUMN()-1,0) -> محمود | AC29: =VLOOKUP($B29,Store!$B$6:$AG$308,COLUMN()-1,0) -> 21.81818182 | AD29: =VLOOKUP($B29,Store!$B$6:$AG$308,COLUMN()-1,0) -> 300 | AE29: =VLOOKUP($B29,Store!$B$6:$AG$308,COLUMN()-1,0) -> 21 | AF29: =VLOOKUP($B29,Store!$B$6:$AG$308,COLUMN()-1,0) -> Jacquard | AG29: =VLOOKUP($B29,Store!$B$6:$AG$308,COLUMN()-1,0) -> Normal | AJ29: =SUMIFS(Store!$AD$6:$AD$308,Store!$B$6:$B$308,Rassed!B29,Store!$AH$6:$AH$308,"اضافه") -> 300 | AK29: =SUMIFS(Store!$AD$6:$AD$308,Store!$B$6:$B$308,Rassed!B29,Store!$AN$6:$AN$308,"صرف") -> 600 | AL29: -300
B30: 0005 - 44 | C30: =VLOOKUP($B30,Store!$B$6:$AG$308,COLUMN()-1,0) -> dytrto | D30: =VLOOKUP($B30,Store!$B$6:$AG$308,COLUMN()-1,0) -> 9114000022 | E30: =VLOOKUP($B30,Store!$B$6:$AG$308,COLUMN()-1,0) -> مشكل عميل 44 اوردر 7008 | F30: =VLOOKUP($B30,Store!$B$6:$AG$308,COLUMN()-1,0) -> 44 | G30: =VLOOKUP($B30,Store!$B$6:$AG$308,COLUMN()-1,0) -> 7008 | H30: =VLOOKUP($B30,Store!$B$6:$AG$308,COLUMN()-1,0) -> 7008 | I30: =VLOOKUP($B30,Store!$B$6:$AG$308,COLUMN()-1,0) -> Kitchen Towel | J30: =VLOOKUP($B30,Store!$B$6:$AG$308,COLUMN()-1,0) -> Kitchen Towel | K30: =VLOOKUP($B30,Store!$B$6:$AG$308,COLUMN()-1,0) -> Flat | L30: =VLOOKUP($B30,Store!$B$6:$AG$308,COLUMN()-1,0) -> Flat | M30: =VLOOKUP($B30,Store!$B$6:$AG$308,COLUMN()-1,0) -> 50 X 70 | N30: =VLOOKUP($B30,Store!$B$6:$AG$308,COLUMN()-1,0) -> 50 X 70 | O30: =VLOOKUP($B30,Store!$B$6:$AG$308,COLUMN()-1,0) -> 70 | P30: =VLOOKUP($B30,Store!$B$6:$AG$308,COLUMN()-1,0) -> 70 | Q30: =VLOOKUP($B30,Store!$B$6:$AG$308,COLUMN()-1,0) -> 200 | R30: =VLOOKUP($B30,Store!$B$6:$AG$308,COLUMN()-1,0) -> Very Light weight | S30: =VLOOKUP($B30,Store!$B$6:$AG$308,COLUMN()-1,0) -> dark | T30: =VLOOKUP($B30,Store!$B$6:$AG$308,COLUMN()-1,0) -> Second Choice | U30: =VLOOKUP($B30,Store!$B$6:$AG$308,COLUMN()-1,0) -> 100% cotton | V30: =VLOOKUP($B30,Store!$B$6:$AG$308,COLUMN()-1,0) -> 100% cotton | W30: =VLOOKUP($B30,Store!$B$6:$AG$308,COLUMN()-1,0) -> 24/2 - 16/1 | X30: =VLOOKUP($B30,Store!$B$6:$AG$308,COLUMN()-1,0) -> 24/2 - 16/4 | Y30: =VLOOKUP($B30,Store!$B$6:$AG$308,COLUMN()-1,0) -> Fresh | Z30: =VLOOKUP($B30,Store!$B$6:$AG$308,COLUMN()-1,0) -> Fresh | AA30: =VLOOKUP($B30,Store!$B$6:$AG$308,COLUMN()-1,0) -> 0 | AB30: =VLOOKUP($B30,Store!$B$6:$AG$308,COLUMN()-1,0) -> محمود | AC30: =VLOOKUP($B30,Store!$B$6:$AG$308,COLUMN()-1,0) -> 29.09090909 | AD30: =VLOOKUP($B30,Store!$B$6:$AG$308,COLUMN()-1,0) -> 400 | AE30: =VLOOKUP($B30,Store!$B$6:$AG$308,COLUMN()-1,0) -> 28 | AF30: =VLOOKUP($B30,Store!$B$6:$AG$308,COLUMN()-1,0) -> Jacquard | AG30: =VLOOKUP($B30,Store!$B$6:$AG$308,COLUMN()-1,0) -> Normal | AJ30: =SUMIFS(Store!$AD$6:$AD$308,Store!$B$6:$B$308,Rassed!B30,Store!$AH$6:$AH$308,"اضافه") -> 400 | AK30: =SUMIFS(Store!$AD$6:$AD$308,Store!$B$6:$B$308,Rassed!B30,Store!$AN$6:$AN$308,"صرف") -> 800 | AL30: -400
B31: 0006 - 44 | C31: =VLOOKUP($B31,Store!$B$6:$AG$308,COLUMN()-1,0) -> srttLLLLl | D31: =VLOOKUP($B31,Store!$B$6:$AG$308,COLUMN()-1,0) -> 9114000023 | E31: =VLOOKUP($B31,Store!$B$6:$AG$308,COLUMN()-1,0) -> مشكل عميل 44 اوردر 7008 | F31: =VLOOKUP($B31,Store!$B$6:$AG$308,COLUMN()-1,0) -> 44 | G31: =VLOOKUP($B31,Store!$B$6:$AG$308,COLUMN()-1,0) -> 7008 | H31: =VLOOKUP($B31,Store!$B$6:$AG$308,COLUMN()-1,0) -> 7008 | I31: =VLOOKUP($B31,Store!$B$6:$AG$308,COLUMN()-1,0) -> Kitchen Towel | J31: =VLOOKUP($B31,Store!$B$6:$AG$308,COLUMN()-1,0) -> Kitchen Towel | K31: =VLOOKUP($B31,Store!$B$6:$AG$308,COLUMN()-1,0) -> Flat | L31: =VLOOKUP($B31,Store!$B$6:$AG$308,COLUMN()-1,0) -> Flat | M31: =VLOOKUP($B31,Store!$B$6:$AG$308,COLUMN()-1,0) -> 50 X 70 | N31: =VLOOKUP($B31,Store!$B$6:$AG$308,COLUMN()-1,0) -> 50 X 70 | O31: =VLOOKUP($B31,Store!$B$6:$AG$308,COLUMN()-1,0) -> 70 | P31: =VLOOKUP($B31,Store!$B$6:$AG$308,COLUMN()-1,0) -> 70 | Q31: =VLOOKUP($B31,Store!$B$6:$AG$308,COLUMN()-1,0) -> 200 | R31: =VLOOKUP($B31,Store!$B$6:$AG$308,COLUMN()-1,0) -> Very Light weight | S31: =VLOOKUP($B31,Store!$B$6:$AG$308,COLUMN()-1,0) -> dark | T31: =VLOOKUP($B31,Store!$B$6:$AG$308,COLUMN()-1,0) -> Second Choice | U31: =VLOOKUP($B31,Store!$B$6:$AG$308,COLUMN()-1,0) -> 100% cotton | V31: =VLOOKUP($B31,Store!$B$6:$AG$308,COLUMN()-1,0) -> 100% cotton | W31: =VLOOKUP($B31,Store!$B$6:$AG$308,COLUMN()-1,0) -> 24/2 - 16/1 | X31: =VLOOKUP($B31,Store!$B$6:$AG$308,COLUMN()-1,0) -> 24/2 - 16/5 | Y31: =VLOOKUP($B31,Store!$B$6:$AG$308,COLUMN()-1,0) -> Fresh | Z31: =VLOOKUP($B31,Store!$B$6:$AG$308,COLUMN()-1,0) -> Fresh | AA31: =VLOOKUP($B31,Store!$B$6:$AG$308,COLUMN()-1,0) -> 0 | AB31: =VLOOKUP($B31,Store!$B$6:$AG$308,COLUMN()-1,0) -> محمود | AC31: =VLOOKUP($B31,Store!$B$6:$AG$308,COLUMN()-1,0) -> 36.36363636 | AD31: =VLOOKUP($B31,Store!$B$6:$AG$308,COLUMN()-1,0) -> 500 | AE31: =VLOOKUP($B31,Store!$B$6:$AG$308,COLUMN()-1,0) -> 35 | AF31: =VLOOKUP($B31,Store!$B$6:$AG$308,COLUMN()-1,0) -> Jacquard | AG31: =VLOOKUP($B31,Store!$B$6:$AG$308,COLUMN()-1,0) -> Normal | AJ31: =SUMIFS(Store!$AD$6:$AD$308,Store!$B$6:$B$308,Rassed!B31,Store!$AH$6:$AH$308,"اضافه") -> 500 | AK31: =SUMIFS(Store!$AD$6:$AD$308,Store!$B$6:$B$308,Rassed!B31,Store!$AN$6:$AN$308,"صرف") -> 1000 | AL31: -500
B32: 0001 - 55 | C32: =VLOOKUP($B32,Store!$B$6:$AG$308,COLUMN()-1,0) -> palm blue | D32: =VLOOKUP($B32,Store!$B$6:$AG$308,COLUMN()-1,0) -> 9114000024 | E32: =VLOOKUP($B32,Store!$B$6:$AG$308,COLUMN()-1,0) -> مشكل عميل 55 اوردر 7009 | F32: =VLOOKUP($B32,Store!$B$6:$AG$308,COLUMN()-1,0) -> 55 | G32: =VLOOKUP($B32,Store!$B$6:$AG$308,COLUMN()-1,0) -> 7009 | H32: =VLOOKUP($B32,Store!$B$6:$AG$308,COLUMN()-1,0) -> 7009 | I32: =VLOOKUP($B32,Store!$B$6:$AG$308,COLUMN()-1,0) -> Kitchen Towel | J32: =VLOOKUP($B32,Store!$B$6:$AG$308,COLUMN()-1,0) -> Kitchen Towel | K32: =VLOOKUP($B32,Store!$B$6:$AG$308,COLUMN()-1,0) -> Flat | L32: =VLOOKUP($B32,Store!$B$6:$AG$308,COLUMN()-1,0) -> Flat | M32: =VLOOKUP($B32,Store!$B$6:$AG$308,COLUMN()-1,0) -> 50 X 70 | N32: =VLOOKUP($B32,Store!$B$6:$AG$308,COLUMN()-1,0) -> 50 X 70 | O32: =VLOOKUP($B32,Store!$B$6:$AG$308,COLUMN()-1,0) -> 70 | P32: =VLOOKUP($B32,Store!$B$6:$AG$308,COLUMN()-1,0) -> 70 | Q32: =VLOOKUP($B32,Store!$B$6:$AG$308,COLUMN()-1,0) -> 200 | R32: =VLOOKUP($B32,Store!$B$6:$AG$308,COLUMN()-1,0) -> Very Light weight | S32: =VLOOKUP($B32,Store!$B$6:$AG$308,COLUMN()-1,0) -> dark | T32: =VLOOKUP($B32,Store!$B$6:$AG$308,COLUMN()-1,0) -> Second Choice | U32: =VLOOKUP($B32,Store!$B$6:$AG$308,COLUMN()-1,0) -> 100% cotton | V32: =VLOOKUP($B32,Store!$B$6:$AG$308,COLUMN()-1,0) -> 100% cotton | W32: =VLOOKUP($B32,Store!$B$6:$AG$308,COLUMN()-1,0) -> 24/2 - 16/1 | X32: =VLOOKUP($B32,Store!$B$6:$AG$308,COLUMN()-1,0) -> 24/2 - 16/1 | Y32: =VLOOKUP($B32,Store!$B$6:$AG$308,COLUMN()-1,0) -> Fresh | Z32: =VLOOKUP($B32,Store!$B$6:$AG$308,COLUMN()-1,0) -> Fresh | AA32: =VLOOKUP($B32,Store!$B$6:$AG$308,COLUMN()-1,0) -> 0 | AB32: =VLOOKUP($B32,Store!$B$6:$AG$308,COLUMN()-1,0) -> محمود | AC32: =VLOOKUP($B32,Store!$B$6:$AG$308,COLUMN()-1,0) -> 14 | AD32: =VLOOKUP($B32,Store!$B$6:$AG$308,COLUMN()-1,0) -> 200 | AE32: =VLOOKUP($B32,Store!$B$6:$AG$308,COLUMN()-1,0) -> 14 | AF32: =VLOOKUP($B32,Store!$B$6:$AG$308,COLUMN()-1,0) -> Dobby | AG32: =VLOOKUP($B32,Store!$B$6:$AG$308,COLUMN()-1,0) -> Normal | AJ32: =SUMIFS(Store!$AD$6:$AD$308,Store!$B$6:$B$308,Rassed!B32,Store!$AH$6:$AH$308,"اضافه") -> 600 | AK32: =SUMIFS(Store!$AD$6:$AD$308,Store!$B$6:$B$308,Rassed!B32,Store!$AN$6:$AN$308,"صرف") -> 1000 | AL32: -400
B33: 0002 - 55 | C33: =VLOOKUP($B33,Store!$B$6:$AG$308,COLUMN()-1,0) -> palm nel | D33: =VLOOKUP($B33,Store!$B$6:$AG$308,COLUMN()-1,0) -> 9114000025 | E33: =VLOOKUP($B33,Store!$B$6:$AG$308,COLUMN()-1,0) -> مشكل عميل 55 اوردر 7009 | F33: =VLOOKUP($B33,Store!$B$6:$AG$308,COLUMN()-1,0) -> 55 | G33: =VLOOKUP($B33,Store!$B$6:$AG$308,COLUMN()-1,0) -> 7009 | H33: =VLOOKUP($B33,Store!$B$6:$AG$308,COLUMN()-1,0) -> 7009 | I33: =VLOOKUP($B33,Store!$B$6:$AG$308,COLUMN()-1,0) -> Kitchen Towel | J33: =VLOOKUP($B33,Store!$B$6:$AG$308,COLUMN()-1,0) -> Kitchen Towel | K33: =VLOOKUP($B33,Store!$B$6:$AG$308,COLUMN()-1,0) -> Flat | L33: =VLOOKUP($B33,Store!$B$6:$AG$308,COLUMN()-1,0) -> Flat | M33: =VLOOKUP($B33,Store!$B$6:$AG$308,COLUMN()-1,0) -> 50 X 70 | N33: =VLOOKUP($B33,Store!$B$6:$AG$308,COLUMN()-1,0) -> 50 X 70 | O33: =VLOOKUP($B33,Store!$B$6:$AG$308,COLUMN()-1,0) -> 70 | P33: =VLOOKUP($B33,Store!$B$6:$AG$308,COLUMN()-1,0) -> 70 | Q33: =VLOOKUP($B33,Store!$B$6:$AG$308,COLUMN()-1,0) -> 200 | R33: =VLOOKUP($B33,Store!$B$6:$AG$308,COLUMN()-1,0) -> Very Light weight | S33: =VLOOKUP($B33,Store!$B$6:$AG$308,COLUMN()-1,0) -> dark | T33: =VLOOKUP($B33,Store!$B$6:$AG$308,COLUMN()-1,0) -> Second Choice | U33: =VLOOKUP($B33,Store!$B$6:$AG$308,COLUMN()-1,0) -> 100% cotton | V33: =VLOOKUP($B33,Store!$B$6:$AG$308,COLUMN()-1,0) -> 100% cotton | W33: =VLOOKUP($B33,Store!$B$6:$AG$308,COLUMN()-1,0) -> 24/2 - 16/1 | X33: =VLOOKUP($B33,Store!$B$6:$AG$308,COLUMN()-1,0) -> 24/2 - 16/1 | Y33: =VLOOKUP($B33,Store!$B$6:$AG$308,COLUMN()-1,0) -> Fresh | Z33: =VLOOKUP($B33,Store!$B$6:$AG$308,COLUMN()-1,0) -> Fresh | AA33: =VLOOKUP($B33,Store!$B$6:$AG$308,COLUMN()-1,0) -> 0 | AB33: =VLOOKUP($B33,Store!$B$6:$AG$308,COLUMN()-1,0) -> محمود | AC33: =VLOOKUP($B33,Store!$B$6:$AG$308,COLUMN()-1,0) -> 3.5 | AD33: =VLOOKUP($B33,Store!$B$6:$AG$308,COLUMN()-1,0) -> 50 | AE33: =VLOOKUP($B33,Store!$B$6:$AG$308,COLUMN()-1,0) -> 3.5 | AF33: =VLOOKUP($B33,Store!$B$6:$AG$308,COLUMN()-1,0) -> Dobby | AG33: =VLOOKUP($B33,Store!$B$6:$AG$308,COLUMN()-1,0) -> Normal | AJ33: =SUMIFS(Store!$AD$6:$AD$308,Store!$B$6:$B$308,Rassed!B33,Store!$AH$6:$AH$308,"اضافه") -> 170 | AK33: =SUMIFS(Store!$AD$6:$AD$308,Store!$B$6:$B$308,Rassed!B33,Store!$AN$6:$AN$308,"صرف") -> 290 | AL33: -120
B34: 0003 - 55 | C34: =VLOOKUP($B34,Store!$B$6:$AG$308,COLUMN()-1,0) -> palm Turq | D34: =VLOOKUP($B34,Store!$B$6:$AG$308,COLUMN()-1,0) -> 9114000026 | E34: =VLOOKUP($B34,Store!$B$6:$AG$308,COLUMN()-1,0) -> مشكل عميل 55 اوردر 7009 | F34: =VLOOKUP($B34,Store!$B$6:$AG$308,COLUMN()-1,0) -> 55 | G34: =VLOOKUP($B34,Store!$B$6:$AG$308,COLUMN()-1,0) -> 7009 | H34: =VLOOKUP($B34,Store!$B$6:$AG$308,COLUMN()-1,0) -> 7009 | I34: =VLOOKUP($B34,Store!$B$6:$AG$308,COLUMN()-1,0) -> Kitchen Towel | J34: =VLOOKUP($B34,Store!$B$6:$AG$308,COLUMN()-1,0) -> Kitchen Towel | K34: =VLOOKUP($B34,Store!$B$6:$AG$308,COLUMN()-1,0) -> Flat | L34: =VLOOKUP($B34,Store!$B$6:$AG$308,COLUMN()-1,0) -> Flat | M34: =VLOOKUP($B34,Store!$B$6:$AG$308,COLUMN()-1,0) -> 50 X 70 | N34: =VLOOKUP($B34,Store!$B$6:$AG$308,COLUMN()-1,0) -> 50 X 70 | O34: =VLOOKUP($B34,Store!$B$6:$AG$308,COLUMN()-1,0) -> 70 | P34: =VLOOKUP($B34,Store!$B$6:$AG$308,COLUMN()-1,0) -> 70 | Q34: =VLOOKUP($B34,Store!$B$6:$AG$308,COLUMN()-1,0) -> 200 | R34: =VLOOKUP($B34,Store!$B$6:$AG$308,COLUMN()-1,0) -> Very Light weight | S34: =VLOOKUP($B34,Store!$B$6:$AG$308,COLUMN()-1,0) -> dark | T34: =VLOOKUP($B34,Store!$B$6:$AG$308,COLUMN()-1,0) -> Second Choice | U34: =VLOOKUP($B34,Store!$B$6:$AG$308,COLUMN()-1,0) -> 100% cotton | V34: =VLOOKUP($B34,Store!$B$6:$AG$308,COLUMN()-1,0) -> 100% cotton | W34: =VLOOKUP($B34,Store!$B$6:$AG$308,COLUMN()-1,0) -> 24/2 - 16/1 | X34: =VLOOKUP($B34,Store!$B$6:$AG$308,COLUMN()-1,0) -> 24/2 - 16/1 | Y34: =VLOOKUP($B34,Store!$B$6:$AG$308,COLUMN()-1,0) -> Fresh | Z34: =VLOOKUP($B34,Store!$B$6:$AG$308,COLUMN()-1,0) -> Fresh | AA34: =VLOOKUP($B34,Store!$B$6:$AG$308,COLUMN()-1,0) -> 0 | AB34: =VLOOKUP($B34,Store!$B$6:$AG$308,COLUMN()-1,0) -> محمود | AC34: =VLOOKUP($B34,Store!$B$6:$AG$308,COLUMN()-1,0) -> 1.75 | AD34: =VLOOKUP($B34,Store!$B$6:$AG$308,COLUMN()-1,0) -> 25 | AE34: =VLOOKUP($B34,Store!$B$6:$AG$308,COLUMN()-1,0) -> 1.75 | AF34: =VLOOKUP($B34,Store!$B$6:$AG$308,COLUMN()-1,0) -> Dobby | AG34: =VLOOKUP($B34,Store!$B$6:$AG$308,COLUMN()-1,0) -> Normal | AJ34: =SUMIFS(Store!$AD$6:$AD$308,Store!$B$6:$B$308,Rassed!B34,Store!$AH$6:$AH$308,"اضافه") -> 33 | AK34: =SUMIFS(Store!$AD$6:$AD$308,Store!$B$6:$B$308,Rassed!B34,Store!$AN$6:$AN$308,"صرف") -> 41 | AL34: -8
B35: 0004 - 55 | C35: =VLOOKUP($B35,Store!$B$6:$AG$308,COLUMN()-1,0) -> palm orange | D35: =VLOOKUP($B35,Store!$B$6:$AG$308,COLUMN()-1,0) -> 9114000027 | E35: =VLOOKUP($B35,Store!$B$6:$AG$308,COLUMN()-1,0) -> مشكل عميل 55 اوردر 7009 | F35: =VLOOKUP($B35,Store!$B$6:$AG$308,COLUMN()-1,0) -> 55 | G35: =VLOOKUP($B35,Store!$B$6:$AG$308,COLUMN()-1,0) -> 7009 | H35: =VLOOKUP($B35,Store!$B$6:$AG$308,COLUMN()-1,0) -> 7009 | I35: =VLOOKUP($B35,Store!$B$6:$AG$308,COLUMN()-1,0) -> Kitchen Towel | J35: =VLOOKUP($B35,Store!$B$6:$AG$308,COLUMN()-1,0) -> Kitchen Towel | K35: =VLOOKUP($B35,Store!$B$6:$AG$308,COLUMN()-1,0) -> Flat | L35: =VLOOKUP($B35,Store!$B$6:$AG$308,COLUMN()-1,0) -> Flat | M35: =VLOOKUP($B35,Store!$B$6:$AG$308,COLUMN()-1,0) -> 50 X 70 | N35: =VLOOKUP($B35,Store!$B$6:$AG$308,COLUMN()-1,0) -> 50 X 70 | O35: =VLOOKUP($B35,Store!$B$6:$AG$308,COLUMN()-1,0) -> 70 | P35: =VLOOKUP($B35,Store!$B$6:$AG$308,COLUMN()-1,0) -> 70 | Q35: =VLOOKUP($B35,Store!$B$6:$AG$308,COLUMN()-1,0) -> 200 | R35: =VLOOKUP($B35,Store!$B$6:$AG$308,COLUMN()-1,0) -> Very Light weight | S35: =VLOOKUP($B35,Store!$B$6:$AG$308,COLUMN()-1,0) -> dark | T35: =VLOOKUP($B35,Store!$B$6:$AG$308,COLUMN()-1,0) -> Second Choice | U35: =VLOOKUP($B35,Store!$B$6:$AG$308,COLUMN()-1,0) -> 100% cotton | V35: =VLOOKUP($B35,Store!$B$6:$AG$308,COLUMN()-1,0) -> 100% cotton | W35: =VLOOKUP($B35,Store!$B$6:$AG$308,COLUMN()-1,0) -> 24/2 - 16/1 | X35: =VLOOKUP($B35,Store!$B$6:$AG$308,COLUMN()-1,0) -> 24/2 - 16/1 | Y35: =VLOOKUP($B35,Store!$B$6:$AG$308,COLUMN()-1,0) -> Fresh | Z35: =VLOOKUP($B35,Store!$B$6:$AG$308,COLUMN()-1,0) -> Fresh | AA35: =VLOOKUP($B35,Store!$B$6:$AG$308,COLUMN()-1,0) -> 0 | AB35: =VLOOKUP($B35,Store!$B$6:$AG$308,COLUMN()-1,0) -> محمود | AC35: =VLOOKUP($B35,Store!$B$6:$AG$308,COLUMN()-1,0) -> 2.1 | AD35: =VLOOKUP($B35,Store!$B$6:$AG$308,COLUMN()-1,0) -> 30 | AE35: =VLOOKUP($B35,Store!$B$6:$AG$308,COLUMN()-1,0) -> 2.1 | AF35: =VLOOKUP($B35,Store!$B$6:$AG$308,COLUMN()-1,0) -> Dobby | AG35: =VLOOKUP($B35,Store!$B$6:$AG$308,COLUMN()-1,0) -> Normal | AJ35: =SUMIFS(Store!$AD$6:$AD$308,Store!$B$6:$B$308,Rassed!B35,Store!$AH$6:$AH$308,"اضافه") -> 42 | AK35: =SUMIFS(Store!$AD$6:$AD$308,Store!$B$6:$B$308,Rassed!B35,Store!$AN$6:$AN$308,"صرف") -> 54 | AL35: -12
B36: 0005 - 55 | C36: =VLOOKUP($B36,Store!$B$6:$AG$308,COLUMN()-1,0) -> palm red | D36: =VLOOKUP($B36,Store!$B$6:$AG$308,COLUMN()-1,0) -> 9114000028 | E36: =VLOOKUP($B36,Store!$B$6:$AG$308,COLUMN()-1,0) -> مشكل عميل 55 اوردر 7009 | F36: =VLOOKUP($B36,Store!$B$6:$AG$308,COLUMN()-1,0) -> 55 | G36: =VLOOKUP($B36,Store!$B$6:$AG$308,COLUMN()-1,0) -> 7009 | H36: =VLOOKUP($B36,Store!$B$6:$AG$308,COLUMN()-1,0) -> 7009 | I36: =VLOOKUP($B36,Store!$B$6:$AG$308,COLUMN()-1,0) -> Kitchen Towel | J36: =VLOOKUP($B36,Store!$B$6:$AG$308,COLUMN()-1,0) -> Kitchen Towel | K36: =VLOOKUP($B36,Store!$B$6:$AG$308,COLUMN()-1,0) -> Flat | L36: =VLOOKUP($B36,Store!$B$6:$AG$308,COLUMN()-1,0) -> Flat | M36: =VLOOKUP($B36,Store!$B$6:$AG$308,COLUMN()-1,0) -> 50 X 70 | N36: =VLOOKUP($B36,Store!$B$6:$AG$308,COLUMN()-1,0) -> 50 X 70 | O36: =VLOOKUP($B36,Store!$B$6:$AG$308,COLUMN()-1,0) -> 70 | P36: =VLOOKUP($B36,Store!$B$6:$AG$308,COLUMN()-1,0) -> 70 | Q36: =VLOOKUP($B36,Store!$B$6:$AG$308,COLUMN()-1,0) -> 200 | R36: =VLOOKUP($B36,Store!$B$6:$AG$308,COLUMN()-1,0) -> Very Light weight | S36: =VLOOKUP($B36,Store!$B$6:$AG$308,COLUMN()-1,0) -> dark | T36: =VLOOKUP($B36,Store!$B$6:$AG$308,COLUMN()-1,0) -> Second Choice | U36: =VLOOKUP($B36,Store!$B$6:$AG$308,COLUMN()-1,0) -> 100% cotton | V36: =VLOOKUP($B36,Store!$B$6:$AG$308,COLUMN()-1,0) -> 100% cotton | W36: =VLOOKUP($B36,Store!$B$6:$AG$308,COLUMN()-1,0) -> 24/2 - 16/1 | X36: =VLOOKUP($B36,Store!$B$6:$AG$308,COLUMN()-1,0) -> 24/2 - 16/1 | Y36: =VLOOKUP($B36,Store!$B$6:$AG$308,COLUMN()-1,0) -> Fresh | Z36: =VLOOKUP($B36,Store!$B$6:$AG$308,COLUMN()-1,0) -> Fresh | AA36: =VLOOKUP($B36,Store!$B$6:$AG$308,COLUMN()-1,0) -> 0 | AB36: =VLOOKUP($B36,Store!$B$6:$AG$308,COLUMN()-1,0) -> محمود | AC36: =VLOOKUP($B36,Store!$B$6:$AG$308,COLUMN()-1,0) -> 0.84 | AD36: =VLOOKUP($B36,Store!$B$6:$AG$308,COLUMN()-1,0) -> 12 | AE36: =VLOOKUP($B36,Store!$B$6:$AG$308,COLUMN()-1,0) -> 0.84 | AF36: =VLOOKUP($B36,Store!$B$6:$AG$308,COLUMN()-1,0) -> Dobby | AG36: =VLOOKUP($B36,Store!$B$6:$AG$308,COLUMN()-1,0) -> Normal | AJ36: =SUMIFS(Store!$AD$6:$AD$308,Store!$B$6:$B$308,Rassed!B36,Store!$AH$6:$AH$308,"اضافه") -> 42 | AK36: =SUMIFS(Store!$AD$6:$AD$308,Store!$B$6:$B$308,Rassed!B36,Store!$AN$6:$AN$308,"صرف") -> 72 | AL36: -30
B37: 0006 - 55 | C37: =VLOOKUP($B37,Store!$B$6:$AG$308,COLUMN()-1,0) -> palm Brown | D37: =VLOOKUP($B37,Store!$B$6:$AG$308,COLUMN()-1,0) -> 9114000029 | E37: =VLOOKUP($B37,Store!$B$6:$AG$308,COLUMN()-1,0) -> مشكل عميل 55 اوردر 7009 | F37: =VLOOKUP($B37,Store!$B$6:$AG$308,COLUMN()-1,0) -> 55 | G37: =VLOOKUP($B37,Store!$B$6:$AG$308,COLUMN()-1,0) -> 7009 | H37: =VLOOKUP($B37,Store!$B$6:$AG$308,COLUMN()-1,0) -> 7009 | I37: =VLOOKUP($B37,Store!$B$6:$AG$308,COLUMN()-1,0) -> Kitchen Towel | J37: =VLOOKUP($B37,Store!$B$6:$AG$308,COLUMN()-1,0) -> Kitchen Towel | K37: =VLOOKUP($B37,Store!$B$6:$AG$308,COLUMN()-1,0) -> Flat | L37: =VLOOKUP($B37,Store!$B$6:$AG$308,COLUMN()-1,0) -> Flat | M37: =VLOOKUP($B37,Store!$B$6:$AG$308,COLUMN()-1,0) -> 50 X 70 | N37: =VLOOKUP($B37,Store!$B$6:$AG$308,COLUMN()-1,0) -> 50 X 70 | O37: =VLOOKUP($B37,Store!$B$6:$AG$308,COLUMN()-1,0) -> 70 | P37: =VLOOKUP($B37,Store!$B$6:$AG$308,COLUMN()-1,0) -> 70 | Q37: =VLOOKUP($B37,Store!$B$6:$AG$308,COLUMN()-1,0) -> 200 | R37: =VLOOKUP($B37,Store!$B$6:$AG$308,COLUMN()-1,0) -> Very Light weight | S37: =VLOOKUP($B37,Store!$B$6:$AG$308,COLUMN()-1,0) -> dark | T37: =VLOOKUP($B37,Store!$B$6:$AG$308,COLUMN()-1,0) -> Second Choice | U37: =VLOOKUP($B37,Store!$B$6:$AG$308,COLUMN()-1,0) -> 100% cotton | V37: =VLOOKUP($B37,Store!$B$6:$AG$308,COLUMN()-1,0) -> 100% cotton | W37: =VLOOKUP($B37,Store!$B$6:$AG$308,COLUMN()-1,0) -> 24/2 - 16/1 | X37: =VLOOKUP($B37,Store!$B$6:$AG$308,COLUMN()-1,0) -> 24/2 - 16/1 | Y37: =VLOOKUP($B37,Store!$B$6:$AG$308,COLUMN()-1,0) -> Fresh | Z37: =VLOOKUP($B37,Store!$B$6:$AG$308,COLUMN()-1,0) -> Fresh | AA37: =VLOOKUP($B37,Store!$B$6:$AG$308,COLUMN()-1,0) -> 0 | AB37: =VLOOKUP($B37,Store!$B$6:$AG$308,COLUMN()-1,0) -> محمود | AC37: =VLOOKUP($B37,Store!$B$6:$AG$308,COLUMN()-1,0) -> 0.56 | AD37: =VLOOKUP($B37,Store!$B$6:$AG$308,COLUMN()-1,0) -> 8 | AE37: =VLOOKUP($B37,Store!$B$6:$AG$308,COLUMN()-1,0) -> 0.56 | AF37: =VLOOKUP($B37,Store!$B$6:$AG$308,COLUMN()-1,0) -> Dobby | AG37: =VLOOKUP($B37,Store!$B$6:$AG$308,COLUMN()-1,0) -> Normal | AJ37: =SUMIFS(Store!$AD$6:$AD$308,Store!$B$6:$B$308,Rassed!B37,Store!$AH$6:$AH$308,"اضافه") -> 30 | AK37: =SUMIFS(Store!$AD$6:$AD$308,Store!$B$6:$B$308,Rassed!B37,Store!$AN$6:$AN$308,"صرف") -> 52 | AL37: -22
B38: 0007 - 55 | C38: =VLOOKUP($B38,Store!$B$6:$AG$308,COLUMN()-1,0) -> Moon - Blue | D38: =VLOOKUP($B38,Store!$B$6:$AG$308,COLUMN()-1,0) -> 9114000030 | E38: =VLOOKUP($B38,Store!$B$6:$AG$308,COLUMN()-1,0) -> مشكل عميل 55 اوردر 7010 | F38: =VLOOKUP($B38,Store!$B$6:$AG$308,COLUMN()-1,0) -> 55 | G38: =VLOOKUP($B38,Store!$B$6:$AG$308,COLUMN()-1,0) -> 7010 | H38: =VLOOKUP($B38,Store!$B$6:$AG$308,COLUMN()-1,0) -> 7010 | I38: =VLOOKUP($B38,Store!$B$6:$AG$308,COLUMN()-1,0) -> Kitchen Towel | J38: =VLOOKUP($B38,Store!$B$6:$AG$308,COLUMN()-1,0) -> Kitchen Towel | K38: =VLOOKUP($B38,Store!$B$6:$AG$308,COLUMN()-1,0) -> Flat | L38: =VLOOKUP($B38,Store!$B$6:$AG$308,COLUMN()-1,0) -> Flat | M38: =VLOOKUP($B38,Store!$B$6:$AG$308,COLUMN()-1,0) -> 50 X 70 | N38: =VLOOKUP($B38,Store!$B$6:$AG$308,COLUMN()-1,0) -> 50 X 70 | O38: =VLOOKUP($B38,Store!$B$6:$AG$308,COLUMN()-1,0) -> 70 | P38: =VLOOKUP($B38,Store!$B$6:$AG$308,COLUMN()-1,0) -> 70 | Q38: =VLOOKUP($B38,Store!$B$6:$AG$308,COLUMN()-1,0) -> 200 | R38: =VLOOKUP($B38,Store!$B$6:$AG$308,COLUMN()-1,0) -> Very Light weight | S38: =VLOOKUP($B38,Store!$B$6:$AG$308,COLUMN()-1,0) -> dark | T38: =VLOOKUP($B38,Store!$B$6:$AG$308,COLUMN()-1,0) -> Second Choice | U38: =VLOOKUP($B38,Store!$B$6:$AG$308,COLUMN()-1,0) -> 100% cotton | V38: =VLOOKUP($B38,Store!$B$6:$AG$308,COLUMN()-1,0) -> 100% cotton | W38: =VLOOKUP($B38,Store!$B$6:$AG$308,COLUMN()-1,0) -> 24/2 - 16/1 | X38: =VLOOKUP($B38,Store!$B$6:$AG$308,COLUMN()-1,0) -> 24/2 - 16/1 | Y38: =VLOOKUP($B38,Store!$B$6:$AG$308,COLUMN()-1,0) -> Fresh | Z38: =VLOOKUP($B38,Store!$B$6:$AG$308,COLUMN()-1,0) -> Fresh | AA38: =VLOOKUP($B38,Store!$B$6:$AG$308,COLUMN()-1,0) -> 0 | AB38: =VLOOKUP($B38,Store!$B$6:$AG$308,COLUMN()-1,0) -> محمود | AC38: =VLOOKUP($B38,Store!$B$6:$AG$308,COLUMN()-1,0) -> 28 | AD38: =VLOOKUP($B38,Store!$B$6:$AG$308,COLUMN()-1,0) -> 400 | AE38: =VLOOKUP($B38,Store!$B$6:$AG$308,COLUMN()-1,0) -> 28 | AF38: =VLOOKUP($B38,Store!$B$6:$AG$308,COLUMN()-1,0) -> Dobby | AG38: =VLOOKUP($B38,Store!$B$6:$AG$308,COLUMN()-1,0) -> Normal | AJ38: =SUMIFS(Store!$AD$6:$AD$308,Store!$B$6:$B$308,Rassed!B38,Store!$AH$6:$AH$308,"اضافه") -> 1800 | AK38: =SUMIFS(Store!$AD$6:$AD$308,Store!$B$6:$B$308,Rassed!B38,Store!$AN$6:$AN$308,"صرف") -> 3300 | AL38: -1500
B39: 0008 - 55 | C39: =VLOOKUP($B39,Store!$B$6:$AG$308,COLUMN()-1,0) -> Moon - Red | D39: =VLOOKUP($B39,Store!$B$6:$AG$308,COLUMN()-1,0) -> 9114000031 | E39: =VLOOKUP($B39,Store!$B$6:$AG$308,COLUMN()-1,0) -> مشكل عميل 55 اوردر 7010 | F39: =VLOOKUP($B39,Store!$B$6:$AG$308,COLUMN()-1,0) -> 55 | G39: =VLOOKUP($B39,Store!$B$6:$AG$308,COLUMN()-1,0) -> 7010 | H39: =VLOOKUP($B39,Store!$B$6:$AG$308,COLUMN()-1,0) -> 7010 | I39: =VLOOKUP($B39,Store!$B$6:$AG$308,COLUMN()-1,0) -> Kitchen Towel | J39: =VLOOKUP($B39,Store!$B$6:$AG$308,COLUMN()-1,0) -> Kitchen Towel | K39: =VLOOKUP($B39,Store!$B$6:$AG$308,COLUMN()-1,0) -> Flat | L39: =VLOOKUP($B39,Store!$B$6:$AG$308,COLUMN()-1,0) -> Flat | M39: =VLOOKUP($B39,Store!$B$6:$AG$308,COLUMN()-1,0) -> 50 X 70 | N39: =VLOOKUP($B39,Store!$B$6:$AG$308,COLUMN()-1,0) -> 50 X 70 | O39: =VLOOKUP($B39,Store!$B$6:$AG$308,COLUMN()-1,0) -> 70 | P39: =VLOOKUP($B39,Store!$B$6:$AG$308,COLUMN()-1,0) -> 70 | Q39: =VLOOKUP($B39,Store!$B$6:$AG$308,COLUMN()-1,0) -> 200 | R39: =VLOOKUP($B39,Store!$B$6:$AG$308,COLUMN()-1,0) -> Very Light weight | S39: =VLOOKUP($B39,Store!$B$6:$AG$308,COLUMN()-1,0) -> dark | T39: =VLOOKUP($B39,Store!$B$6:$AG$308,COLUMN()-1,0) -> Second Choice | U39: =VLOOKUP($B39,Store!$B$6:$AG$308,COLUMN()-1,0) -> 100% cotton | V39: =VLOOKUP($B39,Store!$B$6:$AG$308,COLUMN()-1,0) -> 100% cotton | W39: =VLOOKUP($B39,Store!$B$6:$AG$308,COLUMN()-1,0) -> 24/2 - 16/1 | X39: =VLOOKUP($B39,Store!$B$6:$AG$308,COLUMN()-1,0) -> 24/2 - 16/1 | Y39: =VLOOKUP($B39,Store!$B$6:$AG$308,COLUMN()-1,0) -> Fresh | Z39: =VLOOKUP($B39,Store!$B$6:$AG$308,COLUMN()-1,0) -> Fresh | AA39: =VLOOKUP($B39,Store!$B$6:$AG$308,COLUMN()-1,0) -> 0 | AB39: =VLOOKUP($B39,Store!$B$6:$AG$308,COLUMN()-1,0) -> محمود | AC39: =VLOOKUP($B39,Store!$B$6:$AG$308,COLUMN()-1,0) -> 8.4 | AD39: =VLOOKUP($B39,Store!$B$6:$AG$308,COLUMN()-1,0) -> 120 | AE39: =VLOOKUP($B39,Store!$B$6:$AG$308,COLUMN()-1,0) -> 8.4 | AF39: =VLOOKUP($B39,Store!$B$6:$AG$308,COLUMN()-1,0) -> Jacquard | AG39: =VLOOKUP($B39,Store!$B$6:$AG$308,COLUMN()-1,0) -> Normal | AJ39: =SUMIFS(Store!$AD$6:$AD$308,Store!$B$6:$B$308,Rassed!B39,Store!$AH$6:$AH$308,"اضافه") -> 120 | AK39: =SUMIFS(Store!$AD$6:$AD$308,Store!$B$6:$B$308,Rassed!B39,Store!$AN$6:$AN$308,"صرف") -> 240 | AL39: -120
B40: 0007 - 55 | C40: =VLOOKUP($B40,Store!$B$6:$AG$308,COLUMN()-1,0) -> Moon - Blue | D40: =VLOOKUP($B40,Store!$B$6:$AG$308,COLUMN()-1,0) -> 9114000030 | E40: =VLOOKUP($B40,Store!$B$6:$AG$308,COLUMN()-1,0) -> مشكل عميل 55 اوردر 7010 | F40: =VLOOKUP($B40,Store!$B$6:$AG$308,COLUMN()-1,0) -> 55 | G40: =VLOOKUP($B40,Store!$B$6:$AG$308,COLUMN()-1,0) -> 7010 | H40: =VLOOKUP($B40,Store!$B$6:$AG$308,COLUMN()-1,0) -> 7010 | I40: =VLOOKUP($B40,Store!$B$6:$AG$308,COLUMN()-1,0) -> Kitchen Towel | J40: =VLOOKUP($B40,Store!$B$6:$AG$308,COLUMN()-1,0) -> Kitchen Towel | K40: =VLOOKUP($B40,Store!$B$6:$AG$308,COLUMN()-1,0) -> Flat | L40: =VLOOKUP($B40,Store!$B$6:$AG$308,COLUMN()-1,0) -> Flat | M40: =VLOOKUP($B40,Store!$B$6:$AG$308,COLUMN()-1,0) -> 50 X 70 | N40: =VLOOKUP($B40,Store!$B$6:$AG$308,COLUMN()-1,0) -> 50 X 70 | O40: =VLOOKUP($B40,Store!$B$6:$AG$308,COLUMN()-1,0) -> 70 | P40: =VLOOKUP($B40,Store!$B$6:$AG$308,COLUMN()-1,0) -> 70 | Q40: =VLOOKUP($B40,Store!$B$6:$AG$308,COLUMN()-1,0) -> 200 | R40: =VLOOKUP($B40,Store!$B$6:$AG$308,COLUMN()-1,0) -> Very Light weight | S40: =VLOOKUP($B40,Store!$B$6:$AG$308,COLUMN()-1,0) -> dark | T40: =VLOOKUP($B40,Store!$B$6:$AG$308,COLUMN()-1,0) -> Second Choice | U40: =VLOOKUP($B40,Store!$B$6:$AG$308,COLUMN()-1,0) -> 100% cotton | V40: =VLOOKUP($B40,Store!$B$6:$AG$308,COLUMN()-1,0) -> 100% cotton | W40: =VLOOKUP($B40,Store!$B$6:$AG$308,COLUMN()-1,0) -> 24/2 - 16/1 | X40: =VLOOKUP($B40,Store!$B$6:$AG$308,COLUMN()-1,0) -> 24/2 - 16/1 | Y40: =VLOOKUP($B40,Store!$B$6:$AG$308,COLUMN()-1,0) -> Fresh | Z40: =VLOOKUP($B40,Store!$B$6:$AG$308,COLUMN()-1,0) -> Fresh | AA40: =VLOOKUP($B40,Store!$B$6:$AG$308,COLUMN()-1,0) -> 0 | AB40: =VLOOKUP($B40,Store!$B$6:$AG$308,COLUMN()-1,0) -> محمود | AC40: =VLOOKUP($B40,Store!$B$6:$AG$308,COLUMN()-1,0) -> 28 | AD40: =VLOOKUP($B40,Store!$B$6:$AG$308,COLUMN()-1,0) -> 400 | AE40: =VLOOKUP($B40,Store!$B$6:$AG$308,COLUMN()-1,0) -> 28 | AF40: =VLOOKUP($B40,Store!$B$6:$AG$308,COLUMN()-1,0) -> Dobby | AG40: =VLOOKUP($B40,Store!$B$6:$AG$308,COLUMN()-1,0) -> Normal | AJ40: =SUMIFS(Store!$AD$6:$AD$308,Store!$B$6:$B$308,Rassed!B40,Store!$AH$6:$AH$308,"اضافه") -> 1800 | AK40: =SUMIFS(Store!$AD$6:$AD$308,Store!$B$6:$B$308,Rassed!B40,Store!$AN$6:$AN$308,"صرف") -> 3300 | AL40: -1500
B41: 0001 - 60 | C41: =VLOOKUP($B41,Store!$B$6:$AG$308,COLUMN()-1,0) -> ttoo | D41: =VLOOKUP($B41,Store!$B$6:$AG$308,COLUMN()-1,0) -> 9114000032 | E41: =VLOOKUP($B41,Store!$B$6:$AG$308,COLUMN()-1,0) -> مشكل عميل 60 اوردر 7011 | F41: =VLOOKUP($B41,Store!$B$6:$AG$308,COLUMN()-1,0) -> 60 | G41: =VLOOKUP($B41,Store!$B$6:$AG$308,COLUMN()-1,0) -> 7011 | H41: =VLOOKUP($B41,Store!$B$6:$AG$308,COLUMN()-1,0) -> 7011 | I41: =VLOOKUP($B41,Store!$B$6:$AG$308,COLUMN()-1,0) -> Kitchen Towel | J41: =VLOOKUP($B41,Store!$B$6:$AG$308,COLUMN()-1,0) -> Kitchen Towel | K41: =VLOOKUP($B41,Store!$B$6:$AG$308,COLUMN()-1,0) -> Flat | L41: =VLOOKUP($B41,Store!$B$6:$AG$308,COLUMN()-1,0) -> Flat | M41: =VLOOKUP($B41,Store!$B$6:$AG$308,COLUMN()-1,0) -> 50 X 70 | N41: =VLOOKUP($B41,Store!$B$6:$AG$308,COLUMN()-1,0) -> 50 X 70 | O41: =VLOOKUP($B41,Store!$B$6:$AG$308,COLUMN()-1,0) -> 70 | P41: =VLOOKUP($B41,Store!$B$6:$AG$308,COLUMN()-1,0) -> 70 | Q41: =VLOOKUP($B41,Store!$B$6:$AG$308,COLUMN()-1,0) -> 200 | R41: =VLOOKUP($B41,Store!$B$6:$AG$308,COLUMN()-1,0) -> Very Light weight | S41: =VLOOKUP($B41,Store!$B$6:$AG$308,COLUMN()-1,0) -> dark | T41: =VLOOKUP($B41,Store!$B$6:$AG$308,COLUMN()-1,0) -> Second Choice | U41: =VLOOKUP($B41,Store!$B$6:$AG$308,COLUMN()-1,0) -> 100% cotton | V41: =VLOOKUP($B41,Store!$B$6:$AG$308,COLUMN()-1,0) -> 100% cotton | W41: =VLOOKUP($B41,Store!$B$6:$AG$308,COLUMN()-1,0) -> 24/2 - 16/1 | X41: =VLOOKUP($B41,Store!$B$6:$AG$308,COLUMN()-1,0) -> 24/2 - 16/1 | Y41: =VLOOKUP($B41,Store!$B$6:$AG$308,COLUMN()-1,0) -> Fresh | Z41: =VLOOKUP($B41,Store!$B$6:$AG$308,COLUMN()-1,0) -> Fresh | AA41: =VLOOKUP($B41,Store!$B$6:$AG$308,COLUMN()-1,0) -> 0 | AB41: =VLOOKUP($B41,Store!$B$6:$AG$308,COLUMN()-1,0) -> محمود | AC41: =VLOOKUP($B41,Store!$B$6:$AG$308,COLUMN()-1,0) -> 7 | AD41: =VLOOKUP($B41,Store!$B$6:$AG$308,COLUMN()-1,0) -> 100 | AE41: =VLOOKUP($B41,Store!$B$6:$AG$308,COLUMN()-1,0) -> 7 | AF41: =VLOOKUP($B41,Store!$B$6:$AG$308,COLUMN()-1,0) -> Dobby | AG41: =VLOOKUP($B41,Store!$B$6:$AG$308,COLUMN()-1,0) -> Normal | AJ41: =SUMIFS(Store!$AD$6:$AD$308,Store!$B$6:$B$308,Rassed!B41,Store!$AH$6:$AH$308,"اضافه") -> 320 | AK41: =SUMIFS(Store!$AD$6:$AD$308,Store!$B$6:$B$308,Rassed!B41,Store!$AN$6:$AN$308,"صرف") -> 420 | AL41: -100
B42: 0002 - 60 | C42: =VLOOKUP($B42,Store!$B$6:$AG$308,COLUMN()-1,0) -> cairo | D42: =VLOOKUP($B42,Store!$B$6:$AG$308,COLUMN()-1,0) -> 9114000033 | E42: =VLOOKUP($B42,Store!$B$6:$AG$308,COLUMN()-1,0) -> مشكل عميل 60 اوردر 7011 | F42: =VLOOKUP($B42,Store!$B$6:$AG$308,COLUMN()-1,0) -> 60 | G42: =VLOOKUP($B42,Store!$B$6:$AG$308,COLUMN()-1,0) -> 7011 | H42: =VLOOKUP($B42,Store!$B$6:$AG$308,COLUMN()-1,0) -> 7011 | I42: =VLOOKUP($B42,Store!$B$6:$AG$308,COLUMN()-1,0) -> Kitchen Towel | J42: =VLOOKUP($B42,Store!$B$6:$AG$308,COLUMN()-1,0) -> Kitchen Towel | K42: =VLOOKUP($B42,Store!$B$6:$AG$308,COLUMN()-1,0) -> Flat | L42: =VLOOKUP($B42,Store!$B$6:$AG$308,COLUMN()-1,0) -> Flat | M42: =VLOOKUP($B42,Store!$B$6:$AG$308,COLUMN()-1,0) -> 50 X 70 | N42: =VLOOKUP($B42,Store!$B$6:$AG$308,COLUMN()-1,0) -> 50 X 70 | O42: =VLOOKUP($B42,Store!$B$6:$AG$308,COLUMN()-1,0) -> 70 | P42: =VLOOKUP($B42,Store!$B$6:$AG$308,COLUMN()-1,0) -> 70 | Q42: =VLOOKUP($B42,Store!$B$6:$AG$308,COLUMN()-1,0) -> 200 | R42: =VLOOKUP($B42,Store!$B$6:$AG$308,COLUMN()-1,0) -> Very Light weight | S42: =VLOOKUP($B42,Store!$B$6:$AG$308,COLUMN()-1,0) -> dark | T42: =VLOOKUP($B42,Store!$B$6:$AG$308,COLUMN()-1,0) -> Second Choice | U42: =VLOOKUP($B42,Store!$B$6:$AG$308,COLUMN()-1,0) -> 100% cotton | V42: =VLOOKUP($B42,Store!$B$6:$AG$308,COLUMN()-1,0) -> 100% cotton | W42: =VLOOKUP($B42,Store!$B$6:$AG$308,COLUMN()-1,0) -> 24/2 - 16/1 | X42: =VLOOKUP($B42,Store!$B$6:$AG$308,COLUMN()-1,0) -> 24/2 - 16/1 | Y42: =VLOOKUP($B42,Store!$B$6:$AG$308,COLUMN()-1,0) -> Fresh | Z42: =VLOOKUP($B42,Store!$B$6:$AG$308,COLUMN()-1,0) -> Fresh | AA42: =VLOOKUP($B42,Store!$B$6:$AG$308,COLUMN()-1,0) -> 0 | AB42: =VLOOKUP($B42,Store!$B$6:$AG$308,COLUMN()-1,0) -> محمود | AC42: =VLOOKUP($B42,Store!$B$6:$AG$308,COLUMN()-1,0) -> 8.4 | AD42: =VLOOKUP($B42,Store!$B$6:$AG$308,COLUMN()-1,0) -> 120 | AE42: =VLOOKUP($B42,Store!$B$6:$AG$308,COLUMN()-1,0) -> 8.4 | AF42: =VLOOKUP($B42,Store!$B$6:$AG$308,COLUMN()-1,0) -> Jacquard | AG42: =VLOOKUP($B42,Store!$B$6:$AG$308,COLUMN()-1,0) -> Normal | AJ42: =SUMIFS(Store!$AD$6:$AD$308,Store!$B$6:$B$308,Rassed!B42,Store!$AH$6:$AH$308,"اضافه") -> 438 | AK42: =SUMIFS(Store!$AD$6:$AD$308,Store!$B$6:$B$308,Rassed!B42,Store!$AN$6:$AN$308,"صرف") -> 558 | AL42: -120
B43: 0003 - 60 | C43: =VLOOKUP($B43,Store!$B$6:$AG$308,COLUMN()-1,0) -> mansura | D43: =VLOOKUP($B43,Store!$B$6:$AG$308,COLUMN()-1,0) -> 9114000034 | E43: =VLOOKUP($B43,Store!$B$6:$AG$308,COLUMN()-1,0) -> مشكل عميل 60 اوردر 7011 | F43: =VLOOKUP($B43,Store!$B$6:$AG$308,COLUMN()-1,0) -> 60 | G43: =VLOOKUP($B43,Store!$B$6:$AG$308,COLUMN()-1,0) -> 7011 | H43: =VLOOKUP($B43,Store!$B$6:$AG$308,COLUMN()-1,0) -> 7011 | I43: =VLOOKUP($B43,Store!$B$6:$AG$308,COLUMN()-1,0) -> Kitchen Towel | J43: =VLOOKUP($B43,Store!$B$6:$AG$308,COLUMN()-1,0) -> Kitchen Towel | K43: =VLOOKUP($B43,Store!$B$6:$AG$308,COLUMN()-1,0) -> Flat | L43: =VLOOKUP($B43,Store!$B$6:$AG$308,COLUMN()-1,0) -> Flat | M43: =VLOOKUP($B43,Store!$B$6:$AG$308,COLUMN()-1,0) -> 50 X 70 | N43: =VLOOKUP($B43,Store!$B$6:$AG$308,COLUMN()-1,0) -> 50 X 70 | O43: =VLOOKUP($B43,Store!$B$6:$AG$308,COLUMN()-1,0) -> 70 | P43: =VLOOKUP($B43,Store!$B$6:$AG$308,COLUMN()-1,0) -> 70 | Q43: =VLOOKUP($B43,Store!$B$6:$AG$308,COLUMN()-1,0) -> 200 | R43: =VLOOKUP($B43,Store!$B$6:$AG$308,COLUMN()-1,0) -> Very Light weight | S43: =VLOOKUP($B43,Store!$B$6:$AG$308,COLUMN()-1,0) -> dark | T43: =VLOOKUP($B43,Store!$B$6:$AG$308,COLUMN()-1,0) -> Second Choice | U43: =VLOOKUP($B43,Store!$B$6:$AG$308,COLUMN()-1,0) -> 100% cotton | V43: =VLOOKUP($B43,Store!$B$6:$AG$308,COLUMN()-1,0) -> 100% cotton | W43: =VLOOKUP($B43,Store!$B$6:$AG$308,COLUMN()-1,0) -> 24/2 - 16/1 | X43: =VLOOKUP($B43,Store!$B$6:$AG$308,COLUMN()-1,0) -> 24/2 - 16/1 | Y43: =VLOOKUP($B43,Store!$B$6:$AG$308,COLUMN()-1,0) -> Fresh | Z43: =VLOOKUP($B43,Store!$B$6:$AG$308,COLUMN()-1,0) -> Fresh | AA43: =VLOOKUP($B43,Store!$B$6:$AG$308,COLUMN()-1,0) -> 0 | AB43: =VLOOKUP($B43,Store!$B$6:$AG$308,COLUMN()-1,0) -> محمود | AC43: =VLOOKUP($B43,Store!$B$6:$AG$308,COLUMN()-1,0) -> 2.1 | AD43: =VLOOKUP($B43,Store!$B$6:$AG$308,COLUMN()-1,0) -> 30 | AE43: =VLOOKUP($B43,Store!$B$6:$AG$308,COLUMN()-1,0) -> 2.1 | AF43: =VLOOKUP($B43,Store!$B$6:$AG$308,COLUMN()-1,0) -> Jacquard | AG43: =VLOOKUP($B43,Store!$B$6:$AG$308,COLUMN()-1,0) -> Normal | AJ43: =SUMIFS(Store!$AD$6:$AD$308,Store!$B$6:$B$308,Rassed!B43,Store!$AH$6:$AH$308,"اضافه") -> 30 | AK43: =SUMIFS(Store!$AD$6:$AD$308,Store!$B$6:$B$308,Rassed!B43,Store!$AN$6:$AN$308,"صرف") -> 60 | AL43: -30
B44: 0004 - 60 | C44: =VLOOKUP($B44,Store!$B$6:$AG$308,COLUMN()-1,0) -> mahalla | D44: =VLOOKUP($B44,Store!$B$6:$AG$308,COLUMN()-1,0) -> 9114000035 | E44: =VLOOKUP($B44,Store!$B$6:$AG$308,COLUMN()-1,0) -> مشكل عميل 60 اوردر 7011 | F44: =VLOOKUP($B44,Store!$B$6:$AG$308,COLUMN()-1,0) -> 60 | G44: =VLOOKUP($B44,Store!$B$6:$AG$308,COLUMN()-1,0) -> 7011 | H44: =VLOOKUP($B44,Store!$B$6:$AG$308,COLUMN()-1,0) -> 7011 | I44: =VLOOKUP($B44,Store!$B$6:$AG$308,COLUMN()-1,0) -> Kitchen Towel | J44: =VLOOKUP($B44,Store!$B$6:$AG$308,COLUMN()-1,0) -> Kitchen Towel | K44: =VLOOKUP($B44,Store!$B$6:$AG$308,COLUMN()-1,0) -> Flat | L44: =VLOOKUP($B44,Store!$B$6:$AG$308,COLUMN()-1,0) -> Flat | M44: =VLOOKUP($B44,Store!$B$6:$AG$308,COLUMN()-1,0) -> 50 X 70 | N44: =VLOOKUP($B44,Store!$B$6:$AG$308,COLUMN()-1,0) -> 50 X 70 | O44: =VLOOKUP($B44,Store!$B$6:$AG$308,COLUMN()-1,0) -> 70 | P44: =VLOOKUP($B44,Store!$B$6:$AG$308,COLUMN()-1,0) -> 70 | Q44: =VLOOKUP($B44,Store!$B$6:$AG$308,COLUMN()-1,0) -> 200 | R44: =VLOOKUP($B44,Store!$B$6:$AG$308,COLUMN()-1,0) -> Very Light weight | S44: =VLOOKUP($B44,Store!$B$6:$AG$308,COLUMN()-1,0) -> dark | T44: =VLOOKUP($B44,Store!$B$6:$AG$308,COLUMN()-1,0) -> Second Choice | U44: =VLOOKUP($B44,Store!$B$6:$AG$308,COLUMN()-1,0) -> 100% cotton | V44: =VLOOKUP($B44,Store!$B$6:$AG$308,COLUMN()-1,0) -> 100% cotton | W44: =VLOOKUP($B44,Store!$B$6:$AG$308,COLUMN()-1,0) -> 24/2 - 16/1 | X44: =VLOOKUP($B44,Store!$B$6:$AG$308,COLUMN()-1,0) -> 24/2 - 16/1 | Y44: =VLOOKUP($B44,Store!$B$6:$AG$308,COLUMN()-1,0) -> Fresh | Z44: =VLOOKUP($B44,Store!$B$6:$AG$308,COLUMN()-1,0) -> Fresh | AA44: =VLOOKUP($B44,Store!$B$6:$AG$308,COLUMN()-1,0) -> 0 | AB44: =VLOOKUP($B44,Store!$B$6:$AG$308,COLUMN()-1,0) -> محمود | AC44: =VLOOKUP($B44,Store!$B$6:$AG$308,COLUMN()-1,0) -> 1.05 | AD44: =VLOOKUP($B44,Store!$B$6:$AG$308,COLUMN()-1,0) -> 15 | AE44: =VLOOKUP($B44,Store!$B$6:$AG$308,COLUMN()-1,0) -> 1.05 | AF44: =VLOOKUP($B44,Store!$B$6:$AG$308,COLUMN()-1,0) -> Dobby | AG44: =VLOOKUP($B44,Store!$B$6:$AG$308,COLUMN()-1,0) -> Normal | AJ44: =SUMIFS(Store!$AD$6:$AD$308,Store!$B$6:$B$308,Rassed!B44,Store!$AH$6:$AH$308,"اضافه") -> 15 | AK44: =SUMIFS(Store!$AD$6:$AD$308,Store!$B$6:$B$308,Rassed!B44,Store!$AN$6:$AN$308,"صرف") -> 30 | AL44: -15
B45: 0005 - 60 | C45: =VLOOKUP($B45,Store!$B$6:$AG$308,COLUMN()-1,0) -> louxur | D45: =VLOOKUP($B45,Store!$B$6:$AG$308,COLUMN()-1,0) -> 9114000036 | E45: =VLOOKUP($B45,Store!$B$6:$AG$308,COLUMN()-1,0) -> مشكل عميل 60 اوردر 7011 | F45: =VLOOKUP($B45,Store!$B$6:$AG$308,COLUMN()-1,0) -> 60 | G45: =VLOOKUP($B45,Store!$B$6:$AG$308,COLUMN()-1,0) -> 7011 | H45: =VLOOKUP($B45,Store!$B$6:$AG$308,COLUMN()-1,0) -> 7011 | I45: =VLOOKUP($B45,Store!$B$6:$AG$308,COLUMN()-1,0) -> Kitchen Towel | J45: =VLOOKUP($B45,Store!$B$6:$AG$308,COLUMN()-1,0) -> Kitchen Towel | K45: =VLOOKUP($B45,Store!$B$6:$AG$308,COLUMN()-1,0) -> Flat | L45: =VLOOKUP($B45,Store!$B$6:$AG$308,COLUMN()-1,0) -> Flat | M45: =VLOOKUP($B45,Store!$B$6:$AG$308,COLUMN()-1,0) -> 50 X 70 | N45: =VLOOKUP($B45,Store!$B$6:$AG$308,COLUMN()-1,0) -> 50 X 70 | O45: =VLOOKUP($B45,Store!$B$6:$AG$308,COLUMN()-1,0) -> 70 | P45: =VLOOKUP($B45,Store!$B$6:$AG$308,COLUMN()-1,0) -> 70 | Q45: =VLOOKUP($B45,Store!$B$6:$AG$308,COLUMN()-1,0) -> 200 | R45: =VLOOKUP($B45,Store!$B$6:$AG$308,COLUMN()-1,0) -> Very Light weight | S45: =VLOOKUP($B45,Store!$B$6:$AG$308,COLUMN()-1,0) -> dark | T45: =VLOOKUP($B45,Store!$B$6:$AG$308,COLUMN()-1,0) -> Second Choice | U45: =VLOOKUP($B45,Store!$B$6:$AG$308,COLUMN()-1,0) -> 100% cotton | V45: =VLOOKUP($B45,Store!$B$6:$AG$308,COLUMN()-1,0) -> 100% cotton | W45: =VLOOKUP($B45,Store!$B$6:$AG$308,COLUMN()-1,0) -> 24/2 - 16/1 | X45: =VLOOKUP($B45,Store!$B$6:$AG$308,COLUMN()-1,0) -> 24/2 - 16/1 | Y45: =VLOOKUP($B45,Store!$B$6:$AG$308,COLUMN()-1,0) -> Fresh | Z45: =VLOOKUP($B45,Store!$B$6:$AG$308,COLUMN()-1,0) -> Fresh | AA45: =VLOOKUP($B45,Store!$B$6:$AG$308,COLUMN()-1,0) -> 0 | AB45: =VLOOKUP($B45,Store!$B$6:$AG$308,COLUMN()-1,0) -> محمود | AC45: =VLOOKUP($B45,Store!$B$6:$AG$308,COLUMN()-1,0) -> 0.7 | AD45: =VLOOKUP($B45,Store!$B$6:$AG$308,COLUMN()-1,0) -> 10 | AE45: =VLOOKUP($B45,Store!$B$6:$AG$308,COLUMN()-1,0) -> 0.7 | AF45: =VLOOKUP($B45,Store!$B$6:$AG$308,COLUMN()-1,0) -> Dobby | AG45: =VLOOKUP($B45,Store!$B$6:$AG$308,COLUMN()-1,0) -> Normal | AJ45: =SUMIFS(Store!$AD$6:$AD$308,Store!$B$6:$B$308,Rassed!B45,Store!$AH$6:$AH$308,"اضافه") -> 10 | AK45: =SUMIFS(Store!$AD$6:$AD$308,Store!$B$6:$B$308,Rassed!B45,Store!$AN$6:$AN$308,"صرف") -> 20 | AL45: -10
B46: 0006 - 60 | C46: =VLOOKUP($B46,Store!$B$6:$AG$308,COLUMN()-1,0) -> aswan | D46: =VLOOKUP($B46,Store!$B$6:$AG$308,COLUMN()-1,0) -> 9114000037 | E46: =VLOOKUP($B46,Store!$B$6:$AG$308,COLUMN()-1,0) -> مشكل عميل 60 اوردر 7011 | F46: =VLOOKUP($B46,Store!$B$6:$AG$308,COLUMN()-1,0) -> 60 | G46: =VLOOKUP($B46,Store!$B$6:$AG$308,COLUMN()-1,0) -> 7011 | H46: =VLOOKUP($B46,Store!$B$6:$AG$308,COLUMN()-1,0) -> 7011 | I46: =VLOOKUP($B46,Store!$B$6:$AG$308,COLUMN()-1,0) -> Kitchen Towel | J46: =VLOOKUP($B46,Store!$B$6:$AG$308,COLUMN()-1,0) -> Kitchen Towel | K46: =VLOOKUP($B46,Store!$B$6:$AG$308,COLUMN()-1,0) -> Flat | L46: =VLOOKUP($B46,Store!$B$6:$AG$308,COLUMN()-1,0) -> Flat | M46: =VLOOKUP($B46,Store!$B$6:$AG$308,COLUMN()-1,0) -> 50 X 70 | N46: =VLOOKUP($B46,Store!$B$6:$AG$308,COLUMN()-1,0) -> 50 X 70 | O46: =VLOOKUP($B46,Store!$B$6:$AG$308,COLUMN()-1,0) -> 70 | P46: =VLOOKUP($B46,Store!$B$6:$AG$308,COLUMN()-1,0) -> 70 | Q46: =VLOOKUP($B46,Store!$B$6:$AG$308,COLUMN()-1,0) -> 200 | R46: =VLOOKUP($B46,Store!$B$6:$AG$308,COLUMN()-1,0) -> Very Light weight | S46: =VLOOKUP($B46,Store!$B$6:$AG$308,COLUMN()-1,0) -> dark | T46: =VLOOKUP($B46,Store!$B$6:$AG$308,COLUMN()-1,0) -> Second Choice | U46: =VLOOKUP($B46,Store!$B$6:$AG$308,COLUMN()-1,0) -> 100% cotton | V46: =VLOOKUP($B46,Store!$B$6:$AG$308,COLUMN()-1,0) -> 100% cotton | W46: =VLOOKUP($B46,Store!$B$6:$AG$308,COLUMN()-1,0) -> 24/2 - 16/1 | X46: =VLOOKUP($B46,Store!$B$6:$AG$308,COLUMN()-1,0) -> 24/2 - 16/1 | Y46: =VLOOKUP($B46,Store!$B$6:$AG$308,COLUMN()-1,0) -> Fresh | Z46: =VLOOKUP($B46,Store!$B$6:$AG$308,COLUMN()-1,0) -> Fresh | AA46: =VLOOKUP($B46,Store!$B$6:$AG$308,COLUMN()-1,0) -> 0 | AB46: =VLOOKUP($B46,Store!$B$6:$AG$308,COLUMN()-1,0) -> محمود | AC46: =VLOOKUP($B46,Store!$B$6:$AG$308,COLUMN()-1,0) -> 1.75 | AD46: =VLOOKUP($B46,Store!$B$6:$AG$308,COLUMN()-1,0) -> 25 | AE46: =VLOOKUP($B46,Store!$B$6:$AG$308,COLUMN()-1,0) -> 1.75 | AF46: =VLOOKUP($B46,Store!$B$6:$AG$308,COLUMN()-1,0) -> Jacquard | AG46: =VLOOKUP($B46,Store!$B$6:$AG$308,COLUMN()-1,0) -> Normal | AJ46: =SUMIFS(Store!$AD$6:$AD$308,Store!$B$6:$B$308,Rassed!B46,Store!$AH$6:$AH$308,"اضافه") -> 25 | AK46: =SUMIFS(Store!$AD$6:$AD$308,Store!$B$6:$B$308,Rassed!B46,Store!$AN$6:$AN$308,"صرف") -> 50 | AL46: -25
B47: 0013 - 34 | C47: =VLOOKUP($B47,Store!$B$6:$AG$308,COLUMN()-1,0) -> AAAA | D47: =VLOOKUP($B47,Store!$B$6:$AG$308,COLUMN()-1,0) -> 9114000009 | E47: =VLOOKUP($B47,Store!$B$6:$AG$308,COLUMN()-1,0) -> مشكل عميل 34 اوردر 7002 | F47: =VLOOKUP($B47,Store!$B$6:$AG$308,COLUMN()-1,0) -> 34 | G47: =VLOOKUP($B47,Store!$B$6:$AG$308,COLUMN()-1,0) -> 7007 | H47: =VLOOKUP($B47,Store!$B$6:$AG$308,COLUMN()-1,0) -> 7007 | I47: =VLOOKUP($B47,Store!$B$6:$AG$308,COLUMN()-1,0) -> Kitchen Towel | J47: =VLOOKUP($B47,Store!$B$6:$AG$308,COLUMN()-1,0) -> Kitchen Towel | K47: =VLOOKUP($B47,Store!$B$6:$AG$308,COLUMN()-1,0) -> Flat | L47: =VLOOKUP($B47,Store!$B$6:$AG$308,COLUMN()-1,0) -> Flat | M47: =VLOOKUP($B47,Store!$B$6:$AG$308,COLUMN()-1,0) -> 50 X 70 | N47: =VLOOKUP($B47,Store!$B$6:$AG$308,COLUMN()-1,0) -> 50 X 70 | O47: =VLOOKUP($B47,Store!$B$6:$AG$308,COLUMN()-1,0) -> 70 | P47: =VLOOKUP($B47,Store!$B$6:$AG$308,COLUMN()-1,0) -> 70 | Q47: =VLOOKUP($B47,Store!$B$6:$AG$308,COLUMN()-1,0) -> 200 | R47: =VLOOKUP($B47,Store!$B$6:$AG$308,COLUMN()-1,0) -> Very Light weight | S47: =VLOOKUP($B47,Store!$B$6:$AG$308,COLUMN()-1,0) -> dark | T47: =VLOOKUP($B47,Store!$B$6:$AG$308,COLUMN()-1,0) -> Second Choice | U47: =VLOOKUP($B47,Store!$B$6:$AG$308,COLUMN()-1,0) -> 100% cotton | V47: =VLOOKUP($B47,Store!$B$6:$AG$308,COLUMN()-1,0) -> 100% cotton | W47: =VLOOKUP($B47,Store!$B$6:$AG$308,COLUMN()-1,0) -> 24/2 - 16/1 | X47: =VLOOKUP($B47,Store!$B$6:$AG$308,COLUMN()-1,0) -> 24/2 - 16/1 | Y47: =VLOOKUP($B47,Store!$B$6:$AG$308,COLUMN()-1,0) -> Fresh | Z47: =VLOOKUP($B47,Store!$B$6:$AG$308,COLUMN()-1,0) -> Fresh | AA47: =VLOOKUP($B47,Store!$B$6:$AG$308,COLUMN()-1,0) -> 0 | AB47: =VLOOKUP($B47,Store!$B$6:$AG$308,COLUMN()-1,0) -> محمود | AC47: =VLOOKUP($B47,Store!$B$6:$AG$308,COLUMN()-1,0) -> 1.2 | AD47: =VLOOKUP($B47,Store!$B$6:$AG$308,COLUMN()-1,0) -> 20 | AE47: =VLOOKUP($B47,Store!$B$6:$AG$308,COLUMN()-1,0) -> 1.4 | AF47: =VLOOKUP($B47,Store!$B$6:$AG$308,COLUMN()-1,0) -> Jacquard | AG47: =VLOOKUP($B47,Store!$B$6:$AG$308,COLUMN()-1,0) -> Normal | AJ47: =SUMIFS(Store!$AD$6:$AD$308,Store!$B$6:$B$308,Rassed!B47,Store!$AH$6:$AH$308,"اضافه") -> 52 | AK47: =SUMIFS(Store!$AD$6:$AD$308,Store!$B$6:$B$308,Rassed!B47,Store!$AN$6:$AN$308,"صرف") -> 112 | AL47: -60
B48: 0014 - 34 | C48: =VLOOKUP($B48,Store!$B$6:$AG$308,COLUMN()-1,0) -> BBBB | D48: =VLOOKUP($B48,Store!$B$6:$AG$308,COLUMN()-1,0) -> 9114000010 | E48: =VLOOKUP($B48,Store!$B$6:$AG$308,COLUMN()-1,0) -> مشكل عميل 34 اوردر 7002 | F48: =VLOOKUP($B48,Store!$B$6:$AG$308,COLUMN()-1,0) -> 34 | G48: =VLOOKUP($B48,Store!$B$6:$AG$308,COLUMN()-1,0) -> 7007 | H48: =VLOOKUP($B48,Store!$B$6:$AG$308,COLUMN()-1,0) -> 7007 | I48: =VLOOKUP($B48,Store!$B$6:$AG$308,COLUMN()-1,0) -> Kitchen Towel | J48: =VLOOKUP($B48,Store!$B$6:$AG$308,COLUMN()-1,0) -> Kitchen Towel | K48: =VLOOKUP($B48,Store!$B$6:$AG$308,COLUMN()-1,0) -> Flat | L48: =VLOOKUP($B48,Store!$B$6:$AG$308,COLUMN()-1,0) -> Flat | M48: =VLOOKUP($B48,Store!$B$6:$AG$308,COLUMN()-1,0) -> 50 X 70 | N48: =VLOOKUP($B48,Store!$B$6:$AG$308,COLUMN()-1,0) -> 50 X 70 | O48: =VLOOKUP($B48,Store!$B$6:$AG$308,COLUMN()-1,0) -> 70 | P48: =VLOOKUP($B48,Store!$B$6:$AG$308,COLUMN()-1,0) -> 70 | Q48: =VLOOKUP($B48,Store!$B$6:$AG$308,COLUMN()-1,0) -> 200 | R48: =VLOOKUP($B48,Store!$B$6:$AG$308,COLUMN()-1,0) -> Very Light weight | S48: =VLOOKUP($B48,Store!$B$6:$AG$308,COLUMN()-1,0) -> dark | T48: =VLOOKUP($B48,Store!$B$6:$AG$308,COLUMN()-1,0) -> Second Choice | U48: =VLOOKUP($B48,Store!$B$6:$AG$308,COLUMN()-1,0) -> 100% cotton | V48: =VLOOKUP($B48,Store!$B$6:$AG$308,COLUMN()-1,0) -> 100% cotton | W48: =VLOOKUP($B48,Store!$B$6:$AG$308,COLUMN()-1,0) -> 24/2 - 16/1 | X48: =VLOOKUP($B48,Store!$B$6:$AG$308,COLUMN()-1,0) -> 24/2 - 16/1 | Y48: =VLOOKUP($B48,Store!$B$6:$AG$308,COLUMN()-1,0) -> Fresh | Z48: =VLOOKUP($B48,Store!$B$6:$AG$308,COLUMN()-1,0) -> Fresh | AA48: =VLOOKUP($B48,Store!$B$6:$AG$308,COLUMN()-1,0) -> 0 | AB48: =VLOOKUP($B48,Store!$B$6:$AG$308,COLUMN()-1,0) -> محمود | AC48: =VLOOKUP($B48,Store!$B$6:$AG$308,COLUMN()-1,0) -> 1.2 | AD48: =VLOOKUP($B48,Store!$B$6:$AG$308,COLUMN()-1,0) -> 20 | AE48: =VLOOKUP($B48,Store!$B$6:$AG$308,COLUMN()-1,0) -> 1.4 | AF48: =VLOOKUP($B48,Store!$B$6:$AG$308,COLUMN()-1,0) -> Dobby | AG48: =VLOOKUP($B48,Store!$B$6:$AG$308,COLUMN()-1,0) -> Normal | AJ48: =SUMIFS(Store!$AD$6:$AD$308,Store!$B$6:$B$308,Rassed!B48,Store!$AH$6:$AH$308,"اضافه") -> 73 | AK48: =SUMIFS(Store!$AD$6:$AD$308,Store!$B$6:$B$308,Rassed!B48,Store!$AN$6:$AN$308,"صرف") -> 143 | AL48: -70
B49: 0015 - 34 | C49: =VLOOKUP($B49,Store!$B$6:$AG$308,COLUMN()-1,0) -> CCCC | D49: =VLOOKUP($B49,Store!$B$6:$AG$308,COLUMN()-1,0) -> 9114000011 | E49: =VLOOKUP($B49,Store!$B$6:$AG$308,COLUMN()-1,0) -> مشكل عميل 34 اوردر 7002 | F49: =VLOOKUP($B49,Store!$B$6:$AG$308,COLUMN()-1,0) -> 34 | G49: =VLOOKUP($B49,Store!$B$6:$AG$308,COLUMN()-1,0) -> 7007 | H49: =VLOOKUP($B49,Store!$B$6:$AG$308,COLUMN()-1,0) -> 7007 | I49: =VLOOKUP($B49,Store!$B$6:$AG$308,COLUMN()-1,0) -> Kitchen Towel | J49: =VLOOKUP($B49,Store!$B$6:$AG$308,COLUMN()-1,0) -> Kitchen Towel | K49: =VLOOKUP($B49,Store!$B$6:$AG$308,COLUMN()-1,0) -> Flat | L49: =VLOOKUP($B49,Store!$B$6:$AG$308,COLUMN()-1,0) -> Flat | M49: =VLOOKUP($B49,Store!$B$6:$AG$308,COLUMN()-1,0) -> 50 X 70 | N49: =VLOOKUP($B49,Store!$B$6:$AG$308,COLUMN()-1,0) -> 50 X 70 | O49: =VLOOKUP($B49,Store!$B$6:$AG$308,COLUMN()-1,0) -> 70 | P49: =VLOOKUP($B49,Store!$B$6:$AG$308,COLUMN()-1,0) -> 70 | Q49: =VLOOKUP($B49,Store!$B$6:$AG$308,COLUMN()-1,0) -> 200 | R49: =VLOOKUP($B49,Store!$B$6:$AG$308,COLUMN()-1,0) -> Very Light weight | S49: =VLOOKUP($B49,Store!$B$6:$AG$308,COLUMN()-1,0) -> dark | T49: =VLOOKUP($B49,Store!$B$6:$AG$308,COLUMN()-1,0) -> Second Choice | U49: =VLOOKUP($B49,Store!$B$6:$AG$308,COLUMN()-1,0) -> 100% cotton | V49: =VLOOKUP($B49,Store!$B$6:$AG$308,COLUMN()-1,0) -> 100% cotton | W49: =VLOOKUP($B49,Store!$B$6:$AG$308,COLUMN()-1,0) -> 24/2 - 16/1 | X49: =VLOOKUP($B49,Store!$B$6:$AG$308,COLUMN()-1,0) -> 24/2 - 16/1 | Y49: =VLOOKUP($B49,Store!$B$6:$AG$308,COLUMN()-1,0) -> Fresh | Z49: =VLOOKUP($B49,Store!$B$6:$AG$308,COLUMN()-1,0) -> Fresh | AA49: =VLOOKUP($B49,Store!$B$6:$AG$308,COLUMN()-1,0) -> 0 | AB49: =VLOOKUP($B49,Store!$B$6:$AG$308,COLUMN()-1,0) -> محمود | AC49: =VLOOKUP($B49,Store!$B$6:$AG$308,COLUMN()-1,0) -> 1.8 | AD49: =VLOOKUP($B49,Store!$B$6:$AG$308,COLUMN()-1,0) -> 30 | AE49: =VLOOKUP($B49,Store!$B$6:$AG$308,COLUMN()-1,0) -> 2.1 | AF49: =VLOOKUP($B49,Store!$B$6:$AG$308,COLUMN()-1,0) -> Jacquard | AG49: =VLOOKUP($B49,Store!$B$6:$AG$308,COLUMN()-1,0) -> Normal | AJ49: =SUMIFS(Store!$AD$6:$AD$308,Store!$B$6:$B$308,Rassed!B49,Store!$AH$6:$AH$308,"اضافه") -> 105 | AK49: =SUMIFS(Store!$AD$6:$AD$308,Store!$B$6:$B$308,Rassed!B49,Store!$AN$6:$AN$308,"صرف") -> 195 | AL49: -90
B50: 0016 - 34 | C50: =VLOOKUP($B50,Store!$B$6:$AG$308,COLUMN()-1,0) -> DDDD | D50: =VLOOKUP($B50,Store!$B$6:$AG$308,COLUMN()-1,0) -> 9114000012 | E50: =VLOOKUP($B50,Store!$B$6:$AG$308,COLUMN()-1,0) -> مشكل عميل 34 اوردر 7002 | F50: =VLOOKUP($B50,Store!$B$6:$AG$308,COLUMN()-1,0) -> 34 | G50: =VLOOKUP($B50,Store!$B$6:$AG$308,COLUMN()-1,0) -> 7007 | H50: =VLOOKUP($B50,Store!$B$6:$AG$308,COLUMN()-1,0) -> 7007 | I50: =VLOOKUP($B50,Store!$B$6:$AG$308,COLUMN()-1,0) -> Kitchen Towel | J50: =VLOOKUP($B50,Store!$B$6:$AG$308,COLUMN()-1,0) -> Kitchen Towel | K50: =VLOOKUP($B50,Store!$B$6:$AG$308,COLUMN()-1,0) -> Flat | L50: =VLOOKUP($B50,Store!$B$6:$AG$308,COLUMN()-1,0) -> Flat | M50: =VLOOKUP($B50,Store!$B$6:$AG$308,COLUMN()-1,0) -> 50 X 70 | N50: =VLOOKUP($B50,Store!$B$6:$AG$308,COLUMN()-1,0) -> 50 X 70 | O50: =VLOOKUP($B50,Store!$B$6:$AG$308,COLUMN()-1,0) -> 70 | P50: =VLOOKUP($B50,Store!$B$6:$AG$308,COLUMN()-1,0) -> 70 | Q50: =VLOOKUP($B50,Store!$B$6:$AG$308,COLUMN()-1,0) -> 200 | R50: =VLOOKUP($B50,Store!$B$6:$AG$308,COLUMN()-1,0) -> Very Light weight | S50: =VLOOKUP($B50,Store!$B$6:$AG$308,COLUMN()-1,0) -> dark | T50: =VLOOKUP($B50,Store!$B$6:$AG$308,COLUMN()-1,0) -> Second Choice | U50: =VLOOKUP($B50,Store!$B$6:$AG$308,COLUMN()-1,0) -> 100% cotton | V50: =VLOOKUP($B50,Store!$B$6:$AG$308,COLUMN()-1,0) -> 100% cotton | W50: =VLOOKUP($B50,Store!$B$6:$AG$308,COLUMN()-1,0) -> 24/2 - 16/1 | X50: =VLOOKUP($B50,Store!$B$6:$AG$308,COLUMN()-1,0) -> 24/2 - 16/1 | Y50: =VLOOKUP($B50,Store!$B$6:$AG$308,COLUMN()-1,0) -> Fresh | Z50: =VLOOKUP($B50,Store!$B$6:$AG$308,COLUMN()-1,0) -> Fresh | AA50: =VLOOKUP($B50,Store!$B$6:$AG$308,COLUMN()-1,0) -> 0 | AB50: =VLOOKUP($B50,Store!$B$6:$AG$308,COLUMN()-1,0) -> محمود | AC50: =VLOOKUP($B50,Store!$B$6:$AG$308,COLUMN()-1,0) -> 3 | AD50: =VLOOKUP($B50,Store!$B$6:$AG$308,COLUMN()-1,0) -> 50 | AE50: =VLOOKUP($B50,Store!$B$6:$AG$308,COLUMN()-1,0) -> 3.5 | AF50: =VLOOKUP($B50,Store!$B$6:$AG$308,COLUMN()-1,0) -> Dobby | AG50: =VLOOKUP($B50,Store!$B$6:$AG$308,COLUMN()-1,0) -> Normal | AJ50: =SUMIFS(Store!$AD$6:$AD$308,Store!$B$6:$B$308,Rassed!B50,Store!$AH$6:$AH$308,"اضافه") -> 112 | AK50: =SUMIFS(Store!$AD$6:$AD$308,Store!$B$6:$B$308,Rassed!B50,Store!$AN$6:$AN$308,"صرف") -> 224 | AL50: -112
B51: 0017 - 34 | C51: =VLOOKUP($B51,Store!$B$6:$AG$308,COLUMN()-1,0) -> EEEE | D51: =VLOOKUP($B51,Store!$B$6:$AG$308,COLUMN()-1,0) -> 9114000013 | E51: =VLOOKUP($B51,Store!$B$6:$AG$308,COLUMN()-1,0) -> مشكل عميل 34 اوردر 7002 | F51: =VLOOKUP($B51,Store!$B$6:$AG$308,COLUMN()-1,0) -> 34 | G51: =VLOOKUP($B51,Store!$B$6:$AG$308,COLUMN()-1,0) -> 7007 | H51: =VLOOKUP($B51,Store!$B$6:$AG$308,COLUMN()-1,0) -> 7007 | I51: =VLOOKUP($B51,Store!$B$6:$AG$308,COLUMN()-1,0) -> Kitchen Towel | J51: =VLOOKUP($B51,Store!$B$6:$AG$308,COLUMN()-1,0) -> Kitchen Towel | K51: =VLOOKUP($B51,Store!$B$6:$AG$308,COLUMN()-1,0) -> Flat | L51: =VLOOKUP($B51,Store!$B$6:$AG$308,COLUMN()-1,0) -> Flat | M51: =VLOOKUP($B51,Store!$B$6:$AG$308,COLUMN()-1,0) -> 50 X 70 | N51: =VLOOKUP($B51,Store!$B$6:$AG$308,COLUMN()-1,0) -> 50 X 70 | O51: =VLOOKUP($B51,Store!$B$6:$AG$308,COLUMN()-1,0) -> 70 | P51: =VLOOKUP($B51,Store!$B$6:$AG$308,COLUMN()-1,0) -> 70 | Q51: =VLOOKUP($B51,Store!$B$6:$AG$308,COLUMN()-1,0) -> 200 | R51: =VLOOKUP($B51,Store!$B$6:$AG$308,COLUMN()-1,0) -> Very Light weight | S51: =VLOOKUP($B51,Store!$B$6:$AG$308,COLUMN()-1,0) -> dark | T51: =VLOOKUP($B51,Store!$B$6:$AG$308,COLUMN()-1,0) -> Second Choice | U51: =VLOOKUP($B51,Store!$B$6:$AG$308,COLUMN()-1,0) -> 100% cotton | V51: =VLOOKUP($B51,Store!$B$6:$AG$308,COLUMN()-1,0) -> 100% cotton | W51: =VLOOKUP($B51,Store!$B$6:$AG$308,COLUMN()-1,0) -> 24/2 - 16/1 | X51: =VLOOKUP($B51,Store!$B$6:$AG$308,COLUMN()-1,0) -> 24/2 - 16/1 | Y51: =VLOOKUP($B51,Store!$B$6:$AG$308,COLUMN()-1,0) -> Fresh | Z51: =VLOOKUP($B51,Store!$B$6:$AG$308,COLUMN()-1,0) -> Fresh | AA51: =VLOOKUP($B51,Store!$B$6:$AG$308,COLUMN()-1,0) -> 0 | AB51: =VLOOKUP($B51,Store!$B$6:$AG$308,COLUMN()-1,0) -> محمود | AC51: =VLOOKUP($B51,Store!$B$6:$AG$308,COLUMN()-1,0) -> 0.6 | AD51: =VLOOKUP($B51,Store!$B$6:$AG$308,COLUMN()-1,0) -> 10 | AE51: =VLOOKUP($B51,Store!$B$6:$AG$308,COLUMN()-1,0) -> 0.7 | AF51: =VLOOKUP($B51,Store!$B$6:$AG$308,COLUMN()-1,0) -> Dobby | AG51: =VLOOKUP($B51,Store!$B$6:$AG$308,COLUMN()-1,0) -> Normal | AJ51: =SUMIFS(Store!$AD$6:$AD$308,Store!$B$6:$B$308,Rassed!B51,Store!$AH$6:$AH$308,"اضافه") -> 30 | AK51: =SUMIFS(Store!$AD$6:$AD$308,Store!$B$6:$B$308,Rassed!B51,Store!$AN$6:$AN$308,"صرف") -> 60 | AL51: -30
B52: 0018 - 34 | C52: =VLOOKUP($B52,Store!$B$6:$AG$308,COLUMN()-1,0) -> FFFFF | D52: =VLOOKUP($B52,Store!$B$6:$AG$308,COLUMN()-1,0) -> 9114000014 | E52: =VLOOKUP($B52,Store!$B$6:$AG$308,COLUMN()-1,0) -> مشكل عميل 34 اوردر 7002 | F52: =VLOOKUP($B52,Store!$B$6:$AG$308,COLUMN()-1,0) -> 34 | G52: =VLOOKUP($B52,Store!$B$6:$AG$308,COLUMN()-1,0) -> 7007 | H52: =VLOOKUP($B52,Store!$B$6:$AG$308,COLUMN()-1,0) -> 7007 | I52: =VLOOKUP($B52,Store!$B$6:$AG$308,COLUMN()-1,0) -> Kitchen Towel | J52: =VLOOKUP($B52,Store!$B$6:$AG$308,COLUMN()-1,0) -> Kitchen Towel | K52: =VLOOKUP($B52,Store!$B$6:$AG$308,COLUMN()-1,0) -> Flat | L52: =VLOOKUP($B52,Store!$B$6:$AG$308,COLUMN()-1,0) -> Flat | M52: =VLOOKUP($B52,Store!$B$6:$AG$308,COLUMN()-1,0) -> 50 X 70 | N52: =VLOOKUP($B52,Store!$B$6:$AG$308,COLUMN()-1,0) -> 50 X 70 | O52: =VLOOKUP($B52,Store!$B$6:$AG$308,COLUMN()-1,0) -> 70 | P52: =VLOOKUP($B52,Store!$B$6:$AG$308,COLUMN()-1,0) -> 70 | Q52: =VLOOKUP($B52,Store!$B$6:$AG$308,COLUMN()-1,0) -> 200 | R52: =VLOOKUP($B52,Store!$B$6:$AG$308,COLUMN()-1,0) -> Very Light weight | S52: =VLOOKUP($B52,Store!$B$6:$AG$308,COLUMN()-1,0) -> dark | T52: =VLOOKUP($B52,Store!$B$6:$AG$308,COLUMN()-1,0) -> Second Choice | U52: =VLOOKUP($B52,Store!$B$6:$AG$308,COLUMN()-1,0) -> 100% cotton | V52: =VLOOKUP($B52,Store!$B$6:$AG$308,COLUMN()-1,0) -> 100% cotton | W52: =VLOOKUP($B52,Store!$B$6:$AG$308,COLUMN()-1,0) -> 24/2 - 16/1 | X52: =VLOOKUP($B52,Store!$B$6:$AG$308,COLUMN()-1,0) -> 24/2 - 16/1 | Y52: =VLOOKUP($B52,Store!$B$6:$AG$308,COLUMN()-1,0) -> Fresh | Z52: =VLOOKUP($B52,Store!$B$6:$AG$308,COLUMN()-1,0) -> Fresh | AA52: =VLOOKUP($B52,Store!$B$6:$AG$308,COLUMN()-1,0) -> 0 | AB52: =VLOOKUP($B52,Store!$B$6:$AG$308,COLUMN()-1,0) -> محمود | AC52: =VLOOKUP($B52,Store!$B$6:$AG$308,COLUMN()-1,0) -> 1.5 | AD52: =VLOOKUP($B52,Store!$B$6:$AG$308,COLUMN()-1,0) -> 25 | AE52: =VLOOKUP($B52,Store!$B$6:$AG$308,COLUMN()-1,0) -> 1.75 | AF52: =VLOOKUP($B52,Store!$B$6:$AG$308,COLUMN()-1,0) -> Jacquard | AG52: =VLOOKUP($B52,Store!$B$6:$AG$308,COLUMN()-1,0) -> Normal | AJ52: =SUMIFS(Store!$AD$6:$AD$308,Store!$B$6:$B$308,Rassed!B52,Store!$AH$6:$AH$308,"اضافه") -> 50 | AK52: =SUMIFS(Store!$AD$6:$AD$308,Store!$B$6:$B$308,Rassed!B52,Store!$AN$6:$AN$308,"صرف") -> 114 | AL52: -64
B53: 0019 - 34 | C53: =VLOOKUP($B53,Store!$B$6:$AG$308,COLUMN()-1,0) -> GGGG | D53: =VLOOKUP($B53,Store!$B$6:$AG$308,COLUMN()-1,0) -> 9114000015 | E53: =VLOOKUP($B53,Store!$B$6:$AG$308,COLUMN()-1,0) -> مشكل عميل 34 اوردر 7002 | F53: =VLOOKUP($B53,Store!$B$6:$AG$308,COLUMN()-1,0) -> 34 | G53: =VLOOKUP($B53,Store!$B$6:$AG$308,COLUMN()-1,0) -> 7007 | H53: =VLOOKUP($B53,Store!$B$6:$AG$308,COLUMN()-1,0) -> 7007 | I53: =VLOOKUP($B53,Store!$B$6:$AG$308,COLUMN()-1,0) -> Kitchen Towel | J53: =VLOOKUP($B53,Store!$B$6:$AG$308,COLUMN()-1,0) -> Kitchen Towel | K53: =VLOOKUP($B53,Store!$B$6:$AG$308,COLUMN()-1,0) -> Flat | L53: =VLOOKUP($B53,Store!$B$6:$AG$308,COLUMN()-1,0) -> Flat | M53: =VLOOKUP($B53,Store!$B$6:$AG$308,COLUMN()-1,0) -> 50 X 70 | N53: =VLOOKUP($B53,Store!$B$6:$AG$308,COLUMN()-1,0) -> 50 X 70 | O53: =VLOOKUP($B53,Store!$B$6:$AG$308,COLUMN()-1,0) -> 70 | P53: =VLOOKUP($B53,Store!$B$6:$AG$308,COLUMN()-1,0) -> 70 | Q53: =VLOOKUP($B53,Store!$B$6:$AG$308,COLUMN()-1,0) -> 200 | R53: =VLOOKUP($B53,Store!$B$6:$AG$308,COLUMN()-1,0) -> Very Light weight | S53: =VLOOKUP($B53,Store!$B$6:$AG$308,COLUMN()-1,0) -> dark | T53: =VLOOKUP($B53,Store!$B$6:$AG$308,COLUMN()-1,0) -> Second Choice | U53: =VLOOKUP($B53,Store!$B$6:$AG$308,COLUMN()-1,0) -> 100% cotton | V53: =VLOOKUP($B53,Store!$B$6:$AG$308,COLUMN()-1,0) -> 100% cotton | W53: =VLOOKUP($B53,Store!$B$6:$AG$308,COLUMN()-1,0) -> 24/2 - 16/1 | X53: =VLOOKUP($B53,Store!$B$6:$AG$308,COLUMN()-1,0) -> 24/2 - 16/1 | Y53: =VLOOKUP($B53,Store!$B$6:$AG$308,COLUMN()-1,0) -> Fresh | Z53: =VLOOKUP($B53,Store!$B$6:$AG$308,COLUMN()-1,0) -> Fresh | AA53: =VLOOKUP($B53,Store!$B$6:$AG$308,COLUMN()-1,0) -> 0 | AB53: =VLOOKUP($B53,Store!$B$6:$AG$308,COLUMN()-1,0) -> محمود | AC53: =VLOOKUP($B53,Store!$B$6:$AG$308,COLUMN()-1,0) -> 1.5 | AD53: =VLOOKUP($B53,Store!$B$6:$AG$308,COLUMN()-1,0) -> 25 | AE53: =VLOOKUP($B53,Store!$B$6:$AG$308,COLUMN()-1,0) -> 1.75 | AF53: =VLOOKUP($B53,Store!$B$6:$AG$308,COLUMN()-1,0) -> Dobby | AG53: =VLOOKUP($B53,Store!$B$6:$AG$308,COLUMN()-1,0) -> Normal | AJ53: =SUMIFS(Store!$AD$6:$AD$308,Store!$B$6:$B$308,Rassed!B53,Store!$AH$6:$AH$308,"اضافه") -> 57 | AK53: =SUMIFS(Store!$AD$6:$AD$308,Store!$B$6:$B$308,Rassed!B53,Store!$AN$6:$AN$308,"صرف") -> 132 | AL53: -75
B54: 0020 - 34 | C54: =VLOOKUP($B54,Store!$B$6:$AG$308,COLUMN()-1,0) -> HHHHH | D54: =VLOOKUP($B54,Store!$B$6:$AG$308,COLUMN()-1,0) -> 9114000016 | E54: =VLOOKUP($B54,Store!$B$6:$AG$308,COLUMN()-1,0) -> مشكل عميل 34 اوردر 7002 | F54: =VLOOKUP($B54,Store!$B$6:$AG$308,COLUMN()-1,0) -> 34 | G54: =VLOOKUP($B54,Store!$B$6:$AG$308,COLUMN()-1,0) -> 7007 | H54: =VLOOKUP($B54,Store!$B$6:$AG$308,COLUMN()-1,0) -> 7007 | I54: =VLOOKUP($B54,Store!$B$6:$AG$308,COLUMN()-1,0) -> Kitchen Towel | J54: =VLOOKUP($B54,Store!$B$6:$AG$308,COLUMN()-1,0) -> Kitchen Towel | K54: =VLOOKUP($B54,Store!$B$6:$AG$308,COLUMN()-1,0) -> Flat | L54: =VLOOKUP($B54,Store!$B$6:$AG$308,COLUMN()-1,0) -> Flat | M54: =VLOOKUP($B54,Store!$B$6:$AG$308,COLUMN()-1,0) -> 50 X 70 | N54: =VLOOKUP($B54,Store!$B$6:$AG$308,COLUMN()-1,0) -> 50 X 70 | O54: =VLOOKUP($B54,Store!$B$6:$AG$308,COLUMN()-1,0) -> 70 | P54: =VLOOKUP($B54,Store!$B$6:$AG$308,COLUMN()-1,0) -> 70 | Q54: =VLOOKUP($B54,Store!$B$6:$AG$308,COLUMN()-1,0) -> 200 | R54: =VLOOKUP($B54,Store!$B$6:$AG$308,COLUMN()-1,0) -> Very Light weight | S54: =VLOOKUP($B54,Store!$B$6:$AG$308,COLUMN()-1,0) -> dark | T54: =VLOOKUP($B54,Store!$B$6:$AG$308,COLUMN()-1,0) -> Second Choice | U54: =VLOOKUP($B54,Store!$B$6:$AG$308,COLUMN()-1,0) -> 100% cotton | V54: =VLOOKUP($B54,Store!$B$6:$AG$308,COLUMN()-1,0) -> 100% cotton | W54: =VLOOKUP($B54,Store!$B$6:$AG$308,COLUMN()-1,0) -> 24/2 - 16/1 | X54: =VLOOKUP($B54,Store!$B$6:$AG$308,COLUMN()-1,0) -> 24/2 - 16/1 | Y54: =VLOOKUP($B54,Store!$B$6:$AG$308,COLUMN()-1,0) -> Fresh | Z54: =VLOOKUP($B54,Store!$B$6:$AG$308,COLUMN()-1,0) -> Fresh | AA54: =VLOOKUP($B54,Store!$B$6:$AG$308,COLUMN()-1,0) -> 0 | AB54: =VLOOKUP($B54,Store!$B$6:$AG$308,COLUMN()-1,0) -> محمود | AC54: =VLOOKUP($B54,Store!$B$6:$AG$308,COLUMN()-1,0) -> 0.6 | AD54: =VLOOKUP($B54,Store!$B$6:$AG$308,COLUMN()-1,0) -> 10 | AE54: =VLOOKUP($B54,Store!$B$6:$AG$308,COLUMN()-1,0) -> 0.7 | AF54: =VLOOKUP($B54,Store!$B$6:$AG$308,COLUMN()-1,0) -> Dobby | AG54: =VLOOKUP($B54,Store!$B$6:$AG$308,COLUMN()-1,0) -> Normal | AJ54: =SUMIFS(Store!$AD$6:$AD$308,Store!$B$6:$B$308,Rassed!B54,Store!$AH$6:$AH$308,"اضافه") -> 32 | AK54: =SUMIFS(Store!$AD$6:$AD$308,Store!$B$6:$B$308,Rassed!B54,Store!$AN$6:$AN$308,"صرف") -> 62 | AL54: -30
B55: 0021 - 34 | C55: =VLOOKUP($B55,Store!$B$6:$AG$308,COLUMN()-1,0) -> JJJJJJ | D55: =VLOOKUP($B55,Store!$B$6:$AG$308,COLUMN()-1,0) -> 9114000017 | E55: =VLOOKUP($B55,Store!$B$6:$AG$308,COLUMN()-1,0) -> مشكل عميل 34 اوردر 7002 | F55: =VLOOKUP($B55,Store!$B$6:$AG$308,COLUMN()-1,0) -> 34 | G55: =VLOOKUP($B55,Store!$B$6:$AG$308,COLUMN()-1,0) -> 7007 | H55: =VLOOKUP($B55,Store!$B$6:$AG$308,COLUMN()-1,0) -> 7007 | I55: =VLOOKUP($B55,Store!$B$6:$AG$308,COLUMN()-1,0) -> Kitchen Towel | J55: =VLOOKUP($B55,Store!$B$6:$AG$308,COLUMN()-1,0) -> Kitchen Towel | K55: =VLOOKUP($B55,Store!$B$6:$AG$308,COLUMN()-1,0) -> Flat | L55: =VLOOKUP($B55,Store!$B$6:$AG$308,COLUMN()-1,0) -> Flat | M55: =VLOOKUP($B55,Store!$B$6:$AG$308,COLUMN()-1,0) -> 50 X 70 | N55: =VLOOKUP($B55,Store!$B$6:$AG$308,COLUMN()-1,0) -> 50 X 70 | O55: =VLOOKUP($B55,Store!$B$6:$AG$308,COLUMN()-1,0) -> 70 | P55: =VLOOKUP($B55,Store!$B$6:$AG$308,COLUMN()-1,0) -> 70 | Q55: =VLOOKUP($B55,Store!$B$6:$AG$308,COLUMN()-1,0) -> 200 | R55: =VLOOKUP($B55,Store!$B$6:$AG$308,COLUMN()-1,0) -> Very Light weight | S55: =VLOOKUP($B55,Store!$B$6:$AG$308,COLUMN()-1,0) -> dark | T55: =VLOOKUP($B55,Store!$B$6:$AG$308,COLUMN()-1,0) -> Second Choice | U55: =VLOOKUP($B55,Store!$B$6:$AG$308,COLUMN()-1,0) -> 100% cotton | V55: =VLOOKUP($B55,Store!$B$6:$AG$308,COLUMN()-1,0) -> 100% cotton | W55: =VLOOKUP($B55,Store!$B$6:$AG$308,COLUMN()-1,0) -> 24/2 - 16/1 | X55: =VLOOKUP($B55,Store!$B$6:$AG$308,COLUMN()-1,0) -> 24/2 - 16/1 | Y55: =VLOOKUP($B55,Store!$B$6:$AG$308,COLUMN()-1,0) -> Fresh | Z55: =VLOOKUP($B55,Store!$B$6:$AG$308,COLUMN()-1,0) -> Fresh | AA55: =VLOOKUP($B55,Store!$B$6:$AG$308,COLUMN()-1,0) -> 0 | AB55: =VLOOKUP($B55,Store!$B$6:$AG$308,COLUMN()-1,0) -> محمود | AC55: =VLOOKUP($B55,Store!$B$6:$AG$308,COLUMN()-1,0) -> 0.6 | AD55: =VLOOKUP($B55,Store!$B$6:$AG$308,COLUMN()-1,0) -> 10 | AE55: =VLOOKUP($B55,Store!$B$6:$AG$308,COLUMN()-1,0) -> 0.7 | AF55: =VLOOKUP($B55,Store!$B$6:$AG$308,COLUMN()-1,0) -> Jacquard | AG55: =VLOOKUP($B55,Store!$B$6:$AG$308,COLUMN()-1,0) -> Normal | AJ55: =SUMIFS(Store!$AD$6:$AD$308,Store!$B$6:$B$308,Rassed!B55,Store!$AH$6:$AH$308,"اضافه") -> 40 | AK55: =SUMIFS(Store!$AD$6:$AD$308,Store!$B$6:$B$308,Rassed!B55,Store!$AN$6:$AN$308,"صرف") -> 70 | AL55: -30
B56: 0002 - 34 | C56: =VLOOKUP($B56,Store!$B$6:$AG$308,COLUMN()-1,0) -> lion - Blue | D56: =VLOOKUP($B56,Store!$B$6:$AG$308,COLUMN()-1,0) -> 9114000002 | E56: =VLOOKUP($B56,Store!$B$6:$AG$308,COLUMN()-1,0) -> مشكل عميل 34 اوردر 7002 | F56: =VLOOKUP($B56,Store!$B$6:$AG$308,COLUMN()-1,0) -> 34 | G56: =VLOOKUP($B56,Store!$B$6:$AG$308,COLUMN()-1,0) -> 7002 | H56: =VLOOKUP($B56,Store!$B$6:$AG$308,COLUMN()-1,0) -> 7001 | I56: =VLOOKUP($B56,Store!$B$6:$AG$308,COLUMN()-1,0) -> Kitchen Towel | J56: =VLOOKUP($B56,Store!$B$6:$AG$308,COLUMN()-1,0) -> Kitchen Towel | K56: =VLOOKUP($B56,Store!$B$6:$AG$308,COLUMN()-1,0) -> Flat | L56: =VLOOKUP($B56,Store!$B$6:$AG$308,COLUMN()-1,0) -> Flat | M56: =VLOOKUP($B56,Store!$B$6:$AG$308,COLUMN()-1,0) -> 50 X 70 | N56: =VLOOKUP($B56,Store!$B$6:$AG$308,COLUMN()-1,0) -> 50 X 70 | O56: =VLOOKUP($B56,Store!$B$6:$AG$308,COLUMN()-1,0) -> 75 | P56: =VLOOKUP($B56,Store!$B$6:$AG$308,COLUMN()-1,0) -> 0.088 | Q56: =VLOOKUP($B56,Store!$B$6:$AG$308,COLUMN()-1,0) -> 250 | R56: =VLOOKUP($B56,Store!$B$6:$AG$308,COLUMN()-1,0) -> Light weight | S56: =VLOOKUP($B56,Store!$B$6:$AG$308,COLUMN()-1,0) -> dark | T56: =VLOOKUP($B56,Store!$B$6:$AG$308,COLUMN()-1,0) -> Second Choice | U56: =VLOOKUP($B56,Store!$B$6:$AG$308,COLUMN()-1,0) -> 100% cotton | V56: =VLOOKUP($B56,Store!$B$6:$AG$308,COLUMN()-1,0) -> 100% cotton - Organic | W56: =VLOOKUP($B56,Store!$B$6:$AG$308,COLUMN()-1,0) -> 24/2 - 16/1 | X56: =VLOOKUP($B56,Store!$B$6:$AG$308,COLUMN()-1,0) -> 24/2 - 16/1 | Y56: =VLOOKUP($B56,Store!$B$6:$AG$308,COLUMN()-1,0) -> Fresh | Z56: =VLOOKUP($B56,Store!$B$6:$AG$308,COLUMN()-1,0) -> Fresh | AA56: =VLOOKUP($B56,Store!$B$6:$AG$308,COLUMN()-1,0) -> 0 | AB56: =VLOOKUP($B56,Store!$B$6:$AG$308,COLUMN()-1,0) -> محمود | AC56: =VLOOKUP($B56,Store!$B$6:$AG$308,COLUMN()-1,0) -> 16 | AD56: =VLOOKUP($B56,Store!$B$6:$AG$308,COLUMN()-1,0) -> 20 | AE56: =VLOOKUP($B56,Store!$B$6:$AG$308,COLUMN()-1,0) -> 1.5 | AF56: =VLOOKUP($B56,Store!$B$6:$AG$308,COLUMN()-1,0) -> 0 | AG56: =VLOOKUP($B56,Store!$B$6:$AG$308,COLUMN()-1,0) -> Normal | AJ56: =SUMIFS(Store!$AD$6:$AD$308,Store!$B$6:$B$308,Rassed!B56,Store!$AH$6:$AH$308,"اضافه") -> 60 | AK56: =SUMIFS(Store!$AD$6:$AD$308,Store!$B$6:$B$308,Rassed!B56,Store!$AN$6:$AN$308,"صرف") -> 60 | AL56: 0
B57: 0001 - 34 | C57: =VLOOKUP($B57,Store!$B$6:$AG$308,COLUMN()-1,0) -> lion - Brown | D57: =VLOOKUP($B57,Store!$B$6:$AG$308,COLUMN()-1,0) -> 9114000001 | E57: =VLOOKUP($B57,Store!$B$6:$AG$308,COLUMN()-1,0) -> مشكل عميل 34 اوردر 7002 | F57: =VLOOKUP($B57,Store!$B$6:$AG$308,COLUMN()-1,0) -> 34 | G57: =VLOOKUP($B57,Store!$B$6:$AG$308,COLUMN()-1,0) -> 7002 | H57: =VLOOKUP($B57,Store!$B$6:$AG$308,COLUMN()-1,0) -> 7001 | I57: =VLOOKUP($B57,Store!$B$6:$AG$308,COLUMN()-1,0) -> Kitchen Towel | J57: =VLOOKUP($B57,Store!$B$6:$AG$308,COLUMN()-1,0) -> Kitchen Towel | K57: =VLOOKUP($B57,Store!$B$6:$AG$308,COLUMN()-1,0) -> Flat | L57: =VLOOKUP($B57,Store!$B$6:$AG$308,COLUMN()-1,0) -> Flat | M57: =VLOOKUP($B57,Store!$B$6:$AG$308,COLUMN()-1,0) -> 50 X 70 | N57: =VLOOKUP($B57,Store!$B$6:$AG$308,COLUMN()-1,0) -> 50 X 70 | O57: =VLOOKUP($B57,Store!$B$6:$AG$308,COLUMN()-1,0) -> 75 | P57: =VLOOKUP($B57,Store!$B$6:$AG$308,COLUMN()-1,0) -> 0.088 | Q57: =VLOOKUP($B57,Store!$B$6:$AG$308,COLUMN()-1,0) -> 250 | R57: =VLOOKUP($B57,Store!$B$6:$AG$308,COLUMN()-1,0) -> Light weight | S57: =VLOOKUP($B57,Store!$B$6:$AG$308,COLUMN()-1,0) -> dark | T57: =VLOOKUP($B57,Store!$B$6:$AG$308,COLUMN()-1,0) -> Second Choice | U57: =VLOOKUP($B57,Store!$B$6:$AG$308,COLUMN()-1,0) -> 100% cotton | V57: =VLOOKUP($B57,Store!$B$6:$AG$308,COLUMN()-1,0) -> 100% cotton - Organic | W57: =VLOOKUP($B57,Store!$B$6:$AG$308,COLUMN()-1,0) -> 24/2 - 16/1 | X57: =VLOOKUP($B57,Store!$B$6:$AG$308,COLUMN()-1,0) -> 24/2 - 16/1 | Y57: =VLOOKUP($B57,Store!$B$6:$AG$308,COLUMN()-1,0) -> Fresh | Z57: =VLOOKUP($B57,Store!$B$6:$AG$308,COLUMN()-1,0) -> Fresh | AA57: =VLOOKUP($B57,Store!$B$6:$AG$308,COLUMN()-1,0) -> 0 | AB57: =VLOOKUP($B57,Store!$B$6:$AG$308,COLUMN()-1,0) -> محمود | AC57: =VLOOKUP($B57,Store!$B$6:$AG$308,COLUMN()-1,0) -> 16 | AD57: =VLOOKUP($B57,Store!$B$6:$AG$308,COLUMN()-1,0) -> 20 | AE57: =VLOOKUP($B57,Store!$B$6:$AG$308,COLUMN()-1,0) -> 1.5 | AF57: =VLOOKUP($B57,Store!$B$6:$AG$308,COLUMN()-1,0) -> 0 | AG57: =VLOOKUP($B57,Store!$B$6:$AG$308,COLUMN()-1,0) -> Normal | AJ57: =SUMIFS(Store!$AD$6:$AD$308,Store!$B$6:$B$308,Rassed!B57,Store!$AH$6:$AH$308,"اضافه") -> 60 | AK57: =SUMIFS(Store!$AD$6:$AD$308,Store!$B$6:$B$308,Rassed!B57,Store!$AN$6:$AN$308,"صرف") -> 60 | AL57: 0
B58: 0003 - 34 | C58: =VLOOKUP($B58,Store!$B$6:$AG$308,COLUMN()-1,0) -> tiger - yellow | D58: =VLOOKUP($B58,Store!$B$6:$AG$308,COLUMN()-1,0) -> 9112000001 | E58: =VLOOKUP($B58,Store!$B$6:$AG$308,COLUMN()-1,0) -> مشكل عميل 34 اوردر 7002 | F58: =VLOOKUP($B58,Store!$B$6:$AG$308,COLUMN()-1,0) -> 34 | G58: =VLOOKUP($B58,Store!$B$6:$AG$308,COLUMN()-1,0) -> 7002 | H58: =VLOOKUP($B58,Store!$B$6:$AG$308,COLUMN()-1,0) -> 7001 | I58: =VLOOKUP($B58,Store!$B$6:$AG$308,COLUMN()-1,0) -> Kitchen Towel | J58: =VLOOKUP($B58,Store!$B$6:$AG$308,COLUMN()-1,0) -> Beach Towel | K58: =VLOOKUP($B58,Store!$B$6:$AG$308,COLUMN()-1,0) -> Flat | L58: =VLOOKUP($B58,Store!$B$6:$AG$308,COLUMN()-1,0) -> Velour | M58: =VLOOKUP($B58,Store!$B$6:$AG$308,COLUMN()-1,0) -> 50 X 70 | N58: =VLOOKUP($B58,Store!$B$6:$AG$308,COLUMN()-1,0) -> 100 x 170 | O58: =VLOOKUP($B58,Store!$B$6:$AG$308,COLUMN()-1,0) -> 75 | P58: =VLOOKUP($B58,Store!$B$6:$AG$308,COLUMN()-1,0) -> 0.714 | Q58: =VLOOKUP($B58,Store!$B$6:$AG$308,COLUMN()-1,0) -> 420 | R58: =VLOOKUP($B58,Store!$B$6:$AG$308,COLUMN()-1,0) -> Medium weight | S58: =VLOOKUP($B58,Store!$B$6:$AG$308,COLUMN()-1,0) -> dark | T58: =VLOOKUP($B58,Store!$B$6:$AG$308,COLUMN()-1,0) -> Second Choice | U58: =VLOOKUP($B58,Store!$B$6:$AG$308,COLUMN()-1,0) -> 100% cotton | V58: =VLOOKUP($B58,Store!$B$6:$AG$308,COLUMN()-1,0) -> 100% cotton - Organic | W58: =VLOOKUP($B58,Store!$B$6:$AG$308,COLUMN()-1,0) -> 24/2 - 16/1 | X58: =VLOOKUP($B58,Store!$B$6:$AG$308,COLUMN()-1,0) -> 24/2 - 24/2 - 16/1 | Y58: =VLOOKUP($B58,Store!$B$6:$AG$308,COLUMN()-1,0) -> Fresh | Z58: =VLOOKUP($B58,Store!$B$6:$AG$308,COLUMN()-1,0) -> Fresh | AA58: =VLOOKUP($B58,Store!$B$6:$AG$308,COLUMN()-1,0) -> 0 | AB58: =VLOOKUP($B58,Store!$B$6:$AG$308,COLUMN()-1,0) -> محمود | AC58: =VLOOKUP($B58,Store!$B$6:$AG$308,COLUMN()-1,0) -> 16 | AD58: =VLOOKUP($B58,Store!$B$6:$AG$308,COLUMN()-1,0) -> 30 | AE58: =VLOOKUP($B58,Store!$B$6:$AG$308,COLUMN()-1,0) -> 2.25 | AF58: =VLOOKUP($B58,Store!$B$6:$AG$308,COLUMN()-1,0) -> 0 | AG58: =VLOOKUP($B58,Store!$B$6:$AG$308,COLUMN()-1,0) -> Normal | AJ58: =SUMIFS(Store!$AD$6:$AD$308,Store!$B$6:$B$308,Rassed!B58,Store!$AH$6:$AH$308,"اضافه") -> 90 | AK58: =SUMIFS(Store!$AD$6:$AD$308,Store!$B$6:$B$308,Rassed!B58,Store!$AN$6:$AN$308,"صرف") -> 90 | AL58: 0
B59: 0004 - 34 | C59: =VLOOKUP($B59,Store!$B$6:$AG$308,COLUMN()-1,0) -> tiger - Orange | D59: =VLOOKUP($B59,Store!$B$6:$AG$308,COLUMN()-1,0) -> 9112000002 | E59: =VLOOKUP($B59,Store!$B$6:$AG$308,COLUMN()-1,0) -> مشكل عميل 34 اوردر 7002 | F59: =VLOOKUP($B59,Store!$B$6:$AG$308,COLUMN()-1,0) -> 34 | G59: =VLOOKUP($B59,Store!$B$6:$AG$308,COLUMN()-1,0) -> 7002 | H59: =VLOOKUP($B59,Store!$B$6:$AG$308,COLUMN()-1,0) -> 7001 | I59: =VLOOKUP($B59,Store!$B$6:$AG$308,COLUMN()-1,0) -> Kitchen Towel | J59: =VLOOKUP($B59,Store!$B$6:$AG$308,COLUMN()-1,0) -> Beach Towel | K59: =VLOOKUP($B59,Store!$B$6:$AG$308,COLUMN()-1,0) -> Flat | L59: =VLOOKUP($B59,Store!$B$6:$AG$308,COLUMN()-1,0) -> Velour | M59: =VLOOKUP($B59,Store!$B$6:$AG$308,COLUMN()-1,0) -> 50 X 70 | N59: =VLOOKUP($B59,Store!$B$6:$AG$308,COLUMN()-1,0) -> 100 x 170 | O59: =VLOOKUP($B59,Store!$B$6:$AG$308,COLUMN()-1,0) -> 75 | P59: =VLOOKUP($B59,Store!$B$6:$AG$308,COLUMN()-1,0) -> 0.714 | Q59: =VLOOKUP($B59,Store!$B$6:$AG$308,COLUMN()-1,0) -> 420 | R59: =VLOOKUP($B59,Store!$B$6:$AG$308,COLUMN()-1,0) -> Medium weight | S59: =VLOOKUP($B59,Store!$B$6:$AG$308,COLUMN()-1,0) -> dark | T59: =VLOOKUP($B59,Store!$B$6:$AG$308,COLUMN()-1,0) -> Second Choice | U59: =VLOOKUP($B59,Store!$B$6:$AG$308,COLUMN()-1,0) -> 100% cotton | V59: =VLOOKUP($B59,Store!$B$6:$AG$308,COLUMN()-1,0) -> 100% cotton - Organic | W59: =VLOOKUP($B59,Store!$B$6:$AG$308,COLUMN()-1,0) -> 24/2 - 16/1 | X59: =VLOOKUP($B59,Store!$B$6:$AG$308,COLUMN()-1,0) -> 24/2 - 24/2 - 16/1 | Y59: =VLOOKUP($B59,Store!$B$6:$AG$308,COLUMN()-1,0) -> Fresh | Z59: =VLOOKUP($B59,Store!$B$6:$AG$308,COLUMN()-1,0) -> Fresh | AA59: =VLOOKUP($B59,Store!$B$6:$AG$308,COLUMN()-1,0) -> 0 | AB59: =VLOOKUP($B59,Store!$B$6:$AG$308,COLUMN()-1,0) -> محمود | AC59: =VLOOKUP($B59,Store!$B$6:$AG$308,COLUMN()-1,0) -> 16 | AD59: =VLOOKUP($B59,Store!$B$6:$AG$308,COLUMN()-1,0) -> 50 | AE59: =VLOOKUP($B59,Store!$B$6:$AG$308,COLUMN()-1,0) -> 3.75 | AF59: =VLOOKUP($B59,Store!$B$6:$AG$308,COLUMN()-1,0) -> 0 | AG59: =VLOOKUP($B59,Store!$B$6:$AG$308,COLUMN()-1,0) -> Normal | AJ59: =SUMIFS(Store!$AD$6:$AD$308,Store!$B$6:$B$308,Rassed!B59,Store!$AH$6:$AH$308,"اضافه") -> 150 | AK59: =SUMIFS(Store!$AD$6:$AD$308,Store!$B$6:$B$308,Rassed!B59,Store!$AN$6:$AN$308,"صرف") -> 150 | AL59: 0
B60: 0005 - 34 | C60: =VLOOKUP($B60,Store!$B$6:$AG$308,COLUMN()-1,0) -> sun - red | D60: =VLOOKUP($B60,Store!$B$6:$AG$308,COLUMN()-1,0) -> 9112000003 | E60: =VLOOKUP($B60,Store!$B$6:$AG$308,COLUMN()-1,0) -> مشكل عميل 34 اوردر 7002 | F60: =VLOOKUP($B60,Store!$B$6:$AG$308,COLUMN()-1,0) -> 34 | G60: =VLOOKUP($B60,Store!$B$6:$AG$308,COLUMN()-1,0) -> 7002 | H60: =VLOOKUP($B60,Store!$B$6:$AG$308,COLUMN()-1,0) -> 7002 | I60: =VLOOKUP($B60,Store!$B$6:$AG$308,COLUMN()-1,0) -> Kitchen Towel | J60: =VLOOKUP($B60,Store!$B$6:$AG$308,COLUMN()-1,0) -> Beach Towel | K60: =VLOOKUP($B60,Store!$B$6:$AG$308,COLUMN()-1,0) -> Flat | L60: =VLOOKUP($B60,Store!$B$6:$AG$308,COLUMN()-1,0) -> Velour | M60: =VLOOKUP($B60,Store!$B$6:$AG$308,COLUMN()-1,0) -> 50 X 70 | N60: =VLOOKUP($B60,Store!$B$6:$AG$308,COLUMN()-1,0) -> 90 x 160 | O60: =VLOOKUP($B60,Store!$B$6:$AG$308,COLUMN()-1,0) -> 75 | P60: =VLOOKUP($B60,Store!$B$6:$AG$308,COLUMN()-1,0) -> 0.576 | Q60: =VLOOKUP($B60,Store!$B$6:$AG$308,COLUMN()-1,0) -> 400 | R60: =VLOOKUP($B60,Store!$B$6:$AG$308,COLUMN()-1,0) -> Medium weight | S60: =VLOOKUP($B60,Store!$B$6:$AG$308,COLUMN()-1,0) -> dark | T60: =VLOOKUP($B60,Store!$B$6:$AG$308,COLUMN()-1,0) -> Second Choice | U60: =VLOOKUP($B60,Store!$B$6:$AG$308,COLUMN()-1,0) -> 100% cotton | V60: =VLOOKUP($B60,Store!$B$6:$AG$308,COLUMN()-1,0) -> 100% cotton | W60: =VLOOKUP($B60,Store!$B$6:$AG$308,COLUMN()-1,0) -> 24/2 - 16/1 | X60: =VLOOKUP($B60,Store!$B$6:$AG$308,COLUMN()-1,0) -> 24/2 - 24/2 - 16/1 | Y60: =VLOOKUP($B60,Store!$B$6:$AG$308,COLUMN()-1,0) -> Fresh | Z60: =VLOOKUP($B60,Store!$B$6:$AG$308,COLUMN()-1,0) -> Fresh | AA60: =VLOOKUP($B60,Store!$B$6:$AG$308,COLUMN()-1,0) -> 0 | AB60: =VLOOKUP($B60,Store!$B$6:$AG$308,COLUMN()-1,0) -> محمود | AC60: =VLOOKUP($B60,Store!$B$6:$AG$308,COLUMN()-1,0) -> 16 | AD60: =VLOOKUP($B60,Store!$B$6:$AG$308,COLUMN()-1,0) -> 10 | AE60: =VLOOKUP($B60,Store!$B$6:$AG$308,COLUMN()-1,0) -> 0.75 | AF60: =VLOOKUP($B60,Store!$B$6:$AG$308,COLUMN()-1,0) -> 0 | AG60: =VLOOKUP($B60,Store!$B$6:$AG$308,COLUMN()-1,0) -> Normal | AJ60: =SUMIFS(Store!$AD$6:$AD$308,Store!$B$6:$B$308,Rassed!B60,Store!$AH$6:$AH$308,"اضافه") -> 30 | AK60: =SUMIFS(Store!$AD$6:$AD$308,Store!$B$6:$B$308,Rassed!B60,Store!$AN$6:$AN$308,"صرف") -> 30 | AL60: 0
B61: 0006 - 34 | C61: =VLOOKUP($B61,Store!$B$6:$AG$308,COLUMN()-1,0) -> sun - orange | D61: =VLOOKUP($B61,Store!$B$6:$AG$308,COLUMN()-1,0) -> 9112000004 | E61: =VLOOKUP($B61,Store!$B$6:$AG$308,COLUMN()-1,0) -> مشكل عميل 34 اوردر 7002 | F61: =VLOOKUP($B61,Store!$B$6:$AG$308,COLUMN()-1,0) -> 34 | G61: =VLOOKUP($B61,Store!$B$6:$AG$308,COLUMN()-1,0) -> 7002 | H61: =VLOOKUP($B61,Store!$B$6:$AG$308,COLUMN()-1,0) -> 7002 | I61: =VLOOKUP($B61,Store!$B$6:$AG$308,COLUMN()-1,0) -> Kitchen Towel | J61: =VLOOKUP($B61,Store!$B$6:$AG$308,COLUMN()-1,0) -> Beach Towel | K61: =VLOOKUP($B61,Store!$B$6:$AG$308,COLUMN()-1,0) -> Flat | L61: =VLOOKUP($B61,Store!$B$6:$AG$308,COLUMN()-1,0) -> Velour | M61: =VLOOKUP($B61,Store!$B$6:$AG$308,COLUMN()-1,0) -> 50 X 70 | N61: =VLOOKUP($B61,Store!$B$6:$AG$308,COLUMN()-1,0) -> 90 x 160 | O61: =VLOOKUP($B61,Store!$B$6:$AG$308,COLUMN()-1,0) -> 75 | P61: =VLOOKUP($B61,Store!$B$6:$AG$308,COLUMN()-1,0) -> 0.576 | Q61: =VLOOKUP($B61,Store!$B$6:$AG$308,COLUMN()-1,0) -> 400 | R61: =VLOOKUP($B61,Store!$B$6:$AG$308,COLUMN()-1,0) -> Medium weight | S61: =VLOOKUP($B61,Store!$B$6:$AG$308,COLUMN()-1,0) -> dark | T61: =VLOOKUP($B61,Store!$B$6:$AG$308,COLUMN()-1,0) -> Second Choice | U61: =VLOOKUP($B61,Store!$B$6:$AG$308,COLUMN()-1,0) -> 100% cotton | V61: =VLOOKUP($B61,Store!$B$6:$AG$308,COLUMN()-1,0) -> 100% cotton | W61: =VLOOKUP($B61,Store!$B$6:$AG$308,COLUMN()-1,0) -> 24/2 - 16/1 | X61: =VLOOKUP($B61,Store!$B$6:$AG$308,COLUMN()-1,0) -> 24/2 - 24/2 - 16/1 | Y61: =VLOOKUP($B61,Store!$B$6:$AG$308,COLUMN()-1,0) -> Fresh | Z61: =VLOOKUP($B61,Store!$B$6:$AG$308,COLUMN()-1,0) -> Fresh | AA61: =VLOOKUP($B61,Store!$B$6:$AG$308,COLUMN()-1,0) -> 0 | AB61: =VLOOKUP($B61,Store!$B$6:$AG$308,COLUMN()-1,0) -> محمود | AC61: =VLOOKUP($B61,Store!$B$6:$AG$308,COLUMN()-1,0) -> 16 | AD61: =VLOOKUP($B61,Store!$B$6:$AG$308,COLUMN()-1,0) -> 25 | AE61: =VLOOKUP($B61,Store!$B$6:$AG$308,COLUMN()-1,0) -> 1.875 | AF61: =VLOOKUP($B61,Store!$B$6:$AG$308,COLUMN()-1,0) -> DOBBY | AG61: =VLOOKUP($B61,Store!$B$6:$AG$308,COLUMN()-1,0) -> Normal | AJ61: =SUMIFS(Store!$AD$6:$AD$308,Store!$B$6:$B$308,Rassed!B61,Store!$AH$6:$AH$308,"اضافه") -> 75 | AK61: =SUMIFS(Store!$AD$6:$AD$308,Store!$B$6:$B$308,Rassed!B61,Store!$AN$6:$AN$308,"صرف") -> 75 | AL61: 0
B62: 0007 - 34 | C62: =VLOOKUP($B62,Store!$B$6:$AG$308,COLUMN()-1,0) -> LOO | D62: =VLOOKUP($B62,Store!$B$6:$AG$308,COLUMN()-1,0) -> 9114000003 | E62: =VLOOKUP($B62,Store!$B$6:$AG$308,COLUMN()-1,0) -> مشكل عميل 34 اوردر 7002 | F62: =VLOOKUP($B62,Store!$B$6:$AG$308,COLUMN()-1,0) -> 34 | G62: =VLOOKUP($B62,Store!$B$6:$AG$308,COLUMN()-1,0) -> 7002 | H62: =VLOOKUP($B62,Store!$B$6:$AG$308,COLUMN()-1,0) -> 7003 | I62: =VLOOKUP($B62,Store!$B$6:$AG$308,COLUMN()-1,0) -> Kitchen Towel | J62: =VLOOKUP($B62,Store!$B$6:$AG$308,COLUMN()-1,0) -> Kitchen Towel | K62: =VLOOKUP($B62,Store!$B$6:$AG$308,COLUMN()-1,0) -> Flat | L62: =VLOOKUP($B62,Store!$B$6:$AG$308,COLUMN()-1,0) -> Flat | M62: =VLOOKUP($B62,Store!$B$6:$AG$308,COLUMN()-1,0) -> 50 X 70 | N62: =VLOOKUP($B62,Store!$B$6:$AG$308,COLUMN()-1,0) -> 50 X 70 | O62: =VLOOKUP($B62,Store!$B$6:$AG$308,COLUMN()-1,0) -> 75 | P62: =VLOOKUP($B62,Store!$B$6:$AG$308,COLUMN()-1,0) -> 0.07 | Q62: =VLOOKUP($B62,Store!$B$6:$AG$308,COLUMN()-1,0) -> 200 | R62: =VLOOKUP($B62,Store!$B$6:$AG$308,COLUMN()-1,0) -> Very Light weight | S62: =VLOOKUP($B62,Store!$B$6:$AG$308,COLUMN()-1,0) -> dark | T62: =VLOOKUP($B62,Store!$B$6:$AG$308,COLUMN()-1,0) -> Second Choice | U62: =VLOOKUP($B62,Store!$B$6:$AG$308,COLUMN()-1,0) -> 100% cotton | V62: =VLOOKUP($B62,Store!$B$6:$AG$308,COLUMN()-1,0) -> 100% cotton | W62: =VLOOKUP($B62,Store!$B$6:$AG$308,COLUMN()-1,0) -> 24/2 - 16/1 | X62: =VLOOKUP($B62,Store!$B$6:$AG$308,COLUMN()-1,0) -> 24/2 - 16/1 | Y62: =VLOOKUP($B62,Store!$B$6:$AG$308,COLUMN()-1,0) -> Fresh | Z62: =VLOOKUP($B62,Store!$B$6:$AG$308,COLUMN()-1,0) -> Fresh | AA62: =VLOOKUP($B62,Store!$B$6:$AG$308,COLUMN()-1,0) -> 0 | AB62: =VLOOKUP($B62,Store!$B$6:$AG$308,COLUMN()-1,0) -> محمود | AC62: =VLOOKUP($B62,Store!$B$6:$AG$308,COLUMN()-1,0) -> 16 | AD62: =VLOOKUP($B62,Store!$B$6:$AG$308,COLUMN()-1,0) -> 25 | AE62: =VLOOKUP($B62,Store!$B$6:$AG$308,COLUMN()-1,0) -> 1.875 | AF62: =VLOOKUP($B62,Store!$B$6:$AG$308,COLUMN()-1,0) -> Jacquard | AG62: =VLOOKUP($B62,Store!$B$6:$AG$308,COLUMN()-1,0) -> Normal | AJ62: =SUMIFS(Store!$AD$6:$AD$308,Store!$B$6:$B$308,Rassed!B62,Store!$AH$6:$AH$308,"اضافه") -> 75 | AK62: =SUMIFS(Store!$AD$6:$AD$308,Store!$B$6:$B$308,Rassed!B62,Store!$AN$6:$AN$308,"صرف") -> 75 | AL62: 0
B63: 0008 - 34 | C63: =VLOOKUP($B63,Store!$B$6:$AG$308,COLUMN()-1,0) -> TOO | D63: =VLOOKUP($B63,Store!$B$6:$AG$308,COLUMN()-1,0) -> 9114000004 | E63: =VLOOKUP($B63,Store!$B$6:$AG$308,COLUMN()-1,0) -> مشكل عميل 34 اوردر 7002 | F63: =VLOOKUP($B63,Store!$B$6:$AG$308,COLUMN()-1,0) -> 34 | G63: =VLOOKUP($B63,Store!$B$6:$AG$308,COLUMN()-1,0) -> 7002 | H63: =VLOOKUP($B63,Store!$B$6:$AG$308,COLUMN()-1,0) -> 7003 | I63: =VLOOKUP($B63,Store!$B$6:$AG$308,COLUMN()-1,0) -> Kitchen Towel | J63: =VLOOKUP($B63,Store!$B$6:$AG$308,COLUMN()-1,0) -> Kitchen Towel | K63: =VLOOKUP($B63,Store!$B$6:$AG$308,COLUMN()-1,0) -> Flat | L63: =VLOOKUP($B63,Store!$B$6:$AG$308,COLUMN()-1,0) -> Flat | M63: =VLOOKUP($B63,Store!$B$6:$AG$308,COLUMN()-1,0) -> 50 X 70 | N63: =VLOOKUP($B63,Store!$B$6:$AG$308,COLUMN()-1,0) -> 50 X 70 | O63: =VLOOKUP($B63,Store!$B$6:$AG$308,COLUMN()-1,0) -> 75 | P63: =VLOOKUP($B63,Store!$B$6:$AG$308,COLUMN()-1,0) -> 0.07 | Q63: =VLOOKUP($B63,Store!$B$6:$AG$308,COLUMN()-1,0) -> 200 | R63: =VLOOKUP($B63,Store!$B$6:$AG$308,COLUMN()-1,0) -> Very Light weight | S63: =VLOOKUP($B63,Store!$B$6:$AG$308,COLUMN()-1,0) -> dark | T63: =VLOOKUP($B63,Store!$B$6:$AG$308,COLUMN()-1,0) -> Second Choice | U63: =VLOOKUP($B63,Store!$B$6:$AG$308,COLUMN()-1,0) -> 100% cotton | V63: =VLOOKUP($B63,Store!$B$6:$AG$308,COLUMN()-1,0) -> 100% cotton | W63: =VLOOKUP($B63,Store!$B$6:$AG$308,COLUMN()-1,0) -> 24/2 - 16/1 | X63: =VLOOKUP($B63,Store!$B$6:$AG$308,COLUMN()-1,0) -> 24/2 - 16/1 | Y63: =VLOOKUP($B63,Store!$B$6:$AG$308,COLUMN()-1,0) -> Fresh | Z63: =VLOOKUP($B63,Store!$B$6:$AG$308,COLUMN()-1,0) -> Fresh | AA63: =VLOOKUP($B63,Store!$B$6:$AG$308,COLUMN()-1,0) -> 0 | AB63: =VLOOKUP($B63,Store!$B$6:$AG$308,COLUMN()-1,0) -> محمود | AC63: =VLOOKUP($B63,Store!$B$6:$AG$308,COLUMN()-1,0) -> 16 | AD63: =VLOOKUP($B63,Store!$B$6:$AG$308,COLUMN()-1,0) -> 10 | AE63: =VLOOKUP($B63,Store!$B$6:$AG$308,COLUMN()-1,0) -> 0.75 | AF63: =VLOOKUP($B63,Store!$B$6:$AG$308,COLUMN()-1,0) -> Jacquard | AG63: =VLOOKUP($B63,Store!$B$6:$AG$308,COLUMN()-1,0) -> Normal | AJ63: =SUMIFS(Store!$AD$6:$AD$308,Store!$B$6:$B$308,Rassed!B63,Store!$AH$6:$AH$308,"اضافه") -> 30 | AK63: =SUMIFS(Store!$AD$6:$AD$308,Store!$B$6:$B$308,Rassed!B63,Store!$AN$6:$AN$308,"صرف") -> 30 | AL63: 0
B64: 0010 - 34 | C64: =VLOOKUP($B64,Store!$B$6:$AG$308,COLUMN()-1,0) -> BOO | D64: =VLOOKUP($B64,Store!$B$6:$AG$308,COLUMN()-1,0) -> 9114000006 | E64: =VLOOKUP($B64,Store!$B$6:$AG$308,COLUMN()-1,0) -> مشكل عميل 34 اوردر 7002 | F64: =VLOOKUP($B64,Store!$B$6:$AG$308,COLUMN()-1,0) -> 34 | G64: =VLOOKUP($B64,Store!$B$6:$AG$308,COLUMN()-1,0) -> 7002 | H64: =VLOOKUP($B64,Store!$B$6:$AG$308,COLUMN()-1,0) -> 7003 | I64: =VLOOKUP($B64,Store!$B$6:$AG$308,COLUMN()-1,0) -> Kitchen Towel | J64: =VLOOKUP($B64,Store!$B$6:$AG$308,COLUMN()-1,0) -> Kitchen Towel | K64: =VLOOKUP($B64,Store!$B$6:$AG$308,COLUMN()-1,0) -> Flat | L64: =VLOOKUP($B64,Store!$B$6:$AG$308,COLUMN()-1,0) -> Flat | M64: =VLOOKUP($B64,Store!$B$6:$AG$308,COLUMN()-1,0) -> 50 X 70 | N64: =VLOOKUP($B64,Store!$B$6:$AG$308,COLUMN()-1,0) -> 50 X 70 | O64: =VLOOKUP($B64,Store!$B$6:$AG$308,COLUMN()-1,0) -> 75 | P64: =VLOOKUP($B64,Store!$B$6:$AG$308,COLUMN()-1,0) -> 0.07 | Q64: =VLOOKUP($B64,Store!$B$6:$AG$308,COLUMN()-1,0) -> 200 | R64: =VLOOKUP($B64,Store!$B$6:$AG$308,COLUMN()-1,0) -> Very Light weight | S64: =VLOOKUP($B64,Store!$B$6:$AG$308,COLUMN()-1,0) -> dark | T64: =VLOOKUP($B64,Store!$B$6:$AG$308,COLUMN()-1,0) -> Second Choice | U64: =VLOOKUP($B64,Store!$B$6:$AG$308,COLUMN()-1,0) -> 100% cotton | V64: =VLOOKUP($B64,Store!$B$6:$AG$308,COLUMN()-1,0) -> 100% cotton | W64: =VLOOKUP($B64,Store!$B$6:$AG$308,COLUMN()-1,0) -> 24/2 - 16/1 | X64: =VLOOKUP($B64,Store!$B$6:$AG$308,COLUMN()-1,0) -> 24/2 - 16/1 | Y64: =VLOOKUP($B64,Store!$B$6:$AG$308,COLUMN()-1,0) -> Fresh | Z64: =VLOOKUP($B64,Store!$B$6:$AG$308,COLUMN()-1,0) -> Fresh | AA64: =VLOOKUP($B64,Store!$B$6:$AG$308,COLUMN()-1,0) -> 0 | AB64: =VLOOKUP($B64,Store!$B$6:$AG$308,COLUMN()-1,0) -> محمود | AC64: =VLOOKUP($B64,Store!$B$6:$AG$308,COLUMN()-1,0) -> 16 | AD64: =VLOOKUP($B64,Store!$B$6:$AG$308,COLUMN()-1,0) -> 10 | AE64: =VLOOKUP($B64,Store!$B$6:$AG$308,COLUMN()-1,0) -> 0.75 | AF64: =VLOOKUP($B64,Store!$B$6:$AG$308,COLUMN()-1,0) -> Jacquard | AG64: =VLOOKUP($B64,Store!$B$6:$AG$308,COLUMN()-1,0) -> Normal | AJ64: =SUMIFS(Store!$AD$6:$AD$308,Store!$B$6:$B$308,Rassed!B64,Store!$AH$6:$AH$308,"اضافه") -> 30 | AK64: =SUMIFS(Store!$AD$6:$AD$308,Store!$B$6:$B$308,Rassed!B64,Store!$AN$6:$AN$308,"صرف") -> 30 | AL64: 0
B65: 0001 - 75 | C65: =VLOOKUP($B65,Store!$B$6:$AG$308,COLUMN()-1,0) -> frgg | D65: =VLOOKUP($B65,Store!$B$6:$AG$308,COLUMN()-1,0) -> 9114000001 | E65: =VLOOKUP($B65,Store!$B$6:$AG$308,COLUMN()-1,0) -> yhy | F65: =VLOOKUP($B65,Store!$B$6:$AG$308,COLUMN()-1,0) -> 75 | G65: =VLOOKUP($B65,Store!$B$6:$AG$308,COLUMN()-1,0) -> 7015 | H65: =VLOOKUP($B65,Store!$B$6:$AG$308,COLUMN()-1,0) -> 7015 | I65: =VLOOKUP($B65,Store!$B$6:$AG$308,COLUMN()-1,0) -> Kitchen Towel | J65: =VLOOKUP($B65,Store!$B$6:$AG$308,COLUMN()-1,0) -> Kitchen Towel | K65: =VLOOKUP($B65,Store!$B$6:$AG$308,COLUMN()-1,0) -> Flat | L65: =VLOOKUP($B65,Store!$B$6:$AG$308,COLUMN()-1,0) -> Flat | M65: =VLOOKUP($B65,Store!$B$6:$AG$308,COLUMN()-1,0) -> 50 X 70 | N65: =VLOOKUP($B65,Store!$B$6:$AG$308,COLUMN()-1,0) -> 50 X 70 | O65: =VLOOKUP($B65,Store!$B$6:$AG$308,COLUMN()-1,0) -> 60.9 | P65: =VLOOKUP($B65,Store!$B$6:$AG$308,COLUMN()-1,0) -> 70 | Q65: =VLOOKUP($B65,Store!$B$6:$AG$308,COLUMN()-1,0) -> 200 | R65: =VLOOKUP($B65,Store!$B$6:$AG$308,COLUMN()-1,0) -> Very Light weight | S65: =VLOOKUP($B65,Store!$B$6:$AG$308,COLUMN()-1,0) -> dark | T65: =VLOOKUP($B65,Store!$B$6:$AG$308,COLUMN()-1,0) -> Second Choice | U65: =VLOOKUP($B65,Store!$B$6:$AG$308,COLUMN()-1,0) -> 100% cotton | V65: =VLOOKUP($B65,Store!$B$6:$AG$308,COLUMN()-1,0) -> 100% cotton | W65: =VLOOKUP($B65,Store!$B$6:$AG$308,COLUMN()-1,0) -> 24/2 - 16/1 | X65: =VLOOKUP($B65,Store!$B$6:$AG$308,COLUMN()-1,0) -> 24/2 - 16/1 | Y65: =VLOOKUP($B65,Store!$B$6:$AG$308,COLUMN()-1,0) -> Fresh | Z65: =VLOOKUP($B65,Store!$B$6:$AG$308,COLUMN()-1,0) -> Fresh | AA65: =VLOOKUP($B65,Store!$B$6:$AG$308,COLUMN()-1,0) -> 0 | AB65: =VLOOKUP($B65,Store!$B$6:$AG$308,COLUMN()-1,0) -> محمود | AC65: =VLOOKUP($B65,Store!$B$6:$AG$308,COLUMN()-1,0) -> 14.02298851 | AD65: =VLOOKUP($B65,Store!$B$6:$AG$308,COLUMN()-1,0) -> 200 | AE65: =VLOOKUP($B65,Store!$B$6:$AG$308,COLUMN()-1,0) -> 14 | AF65: =VLOOKUP($B65,Store!$B$6:$AG$308,COLUMN()-1,0) -> Dobby | AG65: =VLOOKUP($B65,Store!$B$6:$AG$308,COLUMN()-1,0) -> Normal | AJ65: =SUMIFS(Store!$AD$6:$AD$308,Store!$B$6:$B$308,Rassed!B65,Store!$AH$6:$AH$308,"اضافه") -> 900 | AK65: =SUMIFS(Store!$AD$6:$AD$308,Store!$B$6:$B$308,Rassed!B65,Store!$AN$6:$AN$308,"صرف") -> 900 | AL65: 0
B66: 0002 - 75 | C66: =VLOOKUP($B66,Store!$B$6:$AG$308,COLUMN()-1,0) -> dfgdfg | D66: =VLOOKUP($B66,Store!$B$6:$AG$308,COLUMN()-1,0) -> 9114000002 | E66: =VLOOKUP($B66,Store!$B$6:$AG$308,COLUMN()-1,0) -> yhy | F66: =VLOOKUP($B66,Store!$B$6:$AG$308,COLUMN()-1,0) -> 75 | G66: =VLOOKUP($B66,Store!$B$6:$AG$308,COLUMN()-1,0) -> 7015 | H66: =VLOOKUP($B66,Store!$B$6:$AG$308,COLUMN()-1,0) -> 7015 | I66: =VLOOKUP($B66,Store!$B$6:$AG$308,COLUMN()-1,0) -> Kitchen Towel | J66: =VLOOKUP($B66,Store!$B$6:$AG$308,COLUMN()-1,0) -> Kitchen Towel | K66: =VLOOKUP($B66,Store!$B$6:$AG$308,COLUMN()-1,0) -> Flat | L66: =VLOOKUP($B66,Store!$B$6:$AG$308,COLUMN()-1,0) -> Flat | M66: =VLOOKUP($B66,Store!$B$6:$AG$308,COLUMN()-1,0) -> 40 x 60 | N66: =VLOOKUP($B66,Store!$B$6:$AG$308,COLUMN()-1,0) -> 40 x 60 | O66: =VLOOKUP($B66,Store!$B$6:$AG$308,COLUMN()-1,0) -> 60.9 | P66: =VLOOKUP($B66,Store!$B$6:$AG$308,COLUMN()-1,0) -> 48 | Q66: =VLOOKUP($B66,Store!$B$6:$AG$308,COLUMN()-1,0) -> 200 | R66: =VLOOKUP($B66,Store!$B$6:$AG$308,COLUMN()-1,0) -> Very Light weight | S66: =VLOOKUP($B66,Store!$B$6:$AG$308,COLUMN()-1,0) -> dark | T66: =VLOOKUP($B66,Store!$B$6:$AG$308,COLUMN()-1,0) -> Second Choice | U66: =VLOOKUP($B66,Store!$B$6:$AG$308,COLUMN()-1,0) -> 100% cotton | V66: =VLOOKUP($B66,Store!$B$6:$AG$308,COLUMN()-1,0) -> 100% cotton | W66: =VLOOKUP($B66,Store!$B$6:$AG$308,COLUMN()-1,0) -> 24/2 - 16/1 | X66: =VLOOKUP($B66,Store!$B$6:$AG$308,COLUMN()-1,0) -> 24/2 - 16/1 | Y66: =VLOOKUP($B66,Store!$B$6:$AG$308,COLUMN()-1,0) -> Fresh | Z66: =VLOOKUP($B66,Store!$B$6:$AG$308,COLUMN()-1,0) -> Fresh | AA66: =VLOOKUP($B66,Store!$B$6:$AG$308,COLUMN()-1,0) -> 0 | AB66: =VLOOKUP($B66,Store!$B$6:$AG$308,COLUMN()-1,0) -> محمود | AC66: =VLOOKUP($B66,Store!$B$6:$AG$308,COLUMN()-1,0) -> 14.42364532 | AD66: =VLOOKUP($B66,Store!$B$6:$AG$308,COLUMN()-1,0) -> 300 | AE66: =VLOOKUP($B66,Store!$B$6:$AG$308,COLUMN()-1,0) -> 14.4 | AF66: =VLOOKUP($B66,Store!$B$6:$AG$308,COLUMN()-1,0) -> Jacquard | AG66: =VLOOKUP($B66,Store!$B$6:$AG$308,COLUMN()-1,0) -> Normal | AJ66: =SUMIFS(Store!$AD$6:$AD$308,Store!$B$6:$B$308,Rassed!B66,Store!$AH$6:$AH$308,"اضافه") -> 312 | AK66: =SUMIFS(Store!$AD$6:$AD$308,Store!$B$6:$B$308,Rassed!B66,Store!$AN$6:$AN$308,"صرف") -> 312 | AL66: 0
B67: 0003 - 75 | C67: =VLOOKUP($B67,Store!$B$6:$AG$308,COLUMN()-1,0) -> dfgdfg | D67: =VLOOKUP($B67,Store!$B$6:$AG$308,COLUMN()-1,0) -> 9114000003 | E67: =VLOOKUP($B67,Store!$B$6:$AG$308,COLUMN()-1,0) -> yhy | F67: =VLOOKUP($B67,Store!$B$6:$AG$308,COLUMN()-1,0) -> 75 | G67: =VLOOKUP($B67,Store!$B$6:$AG$308,COLUMN()-1,0) -> 7015 | H67: =VLOOKUP($B67,Store!$B$6:$AG$308,COLUMN()-1,0) -> 7015 | I67: =VLOOKUP($B67,Store!$B$6:$AG$308,COLUMN()-1,0) -> Kitchen Towel | J67: =VLOOKUP($B67,Store!$B$6:$AG$308,COLUMN()-1,0) -> Kitchen Towel | K67: =VLOOKUP($B67,Store!$B$6:$AG$308,COLUMN()-1,0) -> Flat | L67: =VLOOKUP($B67,Store!$B$6:$AG$308,COLUMN()-1,0) -> Flat | M67: =VLOOKUP($B67,Store!$B$6:$AG$308,COLUMN()-1,0) -> 50 x 65 | N67: =VLOOKUP($B67,Store!$B$6:$AG$308,COLUMN()-1,0) -> 50 x 65 | O67: =VLOOKUP($B67,Store!$B$6:$AG$308,COLUMN()-1,0) -> 60.9 | P67: =VLOOKUP($B67,Store!$B$6:$AG$308,COLUMN()-1,0) -> 65 | Q67: =VLOOKUP($B67,Store!$B$6:$AG$308,COLUMN()-1,0) -> 200 | R67: =VLOOKUP($B67,Store!$B$6:$AG$308,COLUMN()-1,0) -> Very Light weight | S67: =VLOOKUP($B67,Store!$B$6:$AG$308,COLUMN()-1,0) -> dark | T67: =VLOOKUP($B67,Store!$B$6:$AG$308,COLUMN()-1,0) -> Second Choice | U67: =VLOOKUP($B67,Store!$B$6:$AG$308,COLUMN()-1,0) -> 100% cotton | V67: =VLOOKUP($B67,Store!$B$6:$AG$308,COLUMN()-1,0) -> 100% cotton | W67: =VLOOKUP($B67,Store!$B$6:$AG$308,COLUMN()-1,0) -> 24/2 - 16/1 | X67: =VLOOKUP($B67,Store!$B$6:$AG$308,COLUMN()-1,0) -> 24/2 - 16/1 | Y67: =VLOOKUP($B67,Store!$B$6:$AG$308,COLUMN()-1,0) -> Fresh | Z67: =VLOOKUP($B67,Store!$B$6:$AG$308,COLUMN()-1,0) -> Fresh | AA67: =VLOOKUP($B67,Store!$B$6:$AG$308,COLUMN()-1,0) -> 0 | AB67: =VLOOKUP($B67,Store!$B$6:$AG$308,COLUMN()-1,0) -> محمود | AC67: =VLOOKUP($B67,Store!$B$6:$AG$308,COLUMN()-1,0) -> 32.55336617 | AD67: =VLOOKUP($B67,Store!$B$6:$AG$308,COLUMN()-1,0) -> 500 | AE67: =VLOOKUP($B67,Store!$B$6:$AG$308,COLUMN()-1,0) -> 32.5 | AF67: =VLOOKUP($B67,Store!$B$6:$AG$308,COLUMN()-1,0) -> Jacquard | AG67: =VLOOKUP($B67,Store!$B$6:$AG$308,COLUMN()-1,0) -> Normal | AJ67: =SUMIFS(Store!$AD$6:$AD$308,Store!$B$6:$B$308,Rassed!B67,Store!$AH$6:$AH$308,"اضافه") -> 555 | AK67: =SUMIFS(Store!$AD$6:$AD$308,Store!$B$6:$B$308,Rassed!B67,Store!$AN$6:$AN$308,"صرف") -> 555 | AL67: 0
B68: 0009 - 75 | C68: =VLOOKUP($B68,Store!$B$6:$AG$308,COLUMN()-1,0) -> dfgdfg | D68: =VLOOKUP($B68,Store!$B$6:$AG$308,COLUMN()-1,0) -> 9114000009 | E68: =VLOOKUP($B68,Store!$B$6:$AG$308,COLUMN()-1,0) -> بيبل | F68: =VLOOKUP($B68,Store!$B$6:$AG$308,COLUMN()-1,0) -> 75 | G68: =VLOOKUP($B68,Store!$B$6:$AG$308,COLUMN()-1,0) -> 7015 | H68: =VLOOKUP($B68,Store!$B$6:$AG$308,COLUMN()-1,0) -> 7015 | I68: =VLOOKUP($B68,Store!$B$6:$AG$308,COLUMN()-1,0) -> Kitchen Towel | J68: =VLOOKUP($B68,Store!$B$6:$AG$308,COLUMN()-1,0) -> Kitchen Towel | K68: =VLOOKUP($B68,Store!$B$6:$AG$308,COLUMN()-1,0) -> Flat | L68: =VLOOKUP($B68,Store!$B$6:$AG$308,COLUMN()-1,0) -> Flat | M68: =VLOOKUP($B68,Store!$B$6:$AG$308,COLUMN()-1,0) -> 50 x 65 | N68: =VLOOKUP($B68,Store!$B$6:$AG$308,COLUMN()-1,0) -> 50 x 65 | O68: =VLOOKUP($B68,Store!$B$6:$AG$308,COLUMN()-1,0) -> 65 | P68: =VLOOKUP($B68,Store!$B$6:$AG$308,COLUMN()-1,0) -> 65 | Q68: =VLOOKUP($B68,Store!$B$6:$AG$308,COLUMN()-1,0) -> 200 | R68: =VLOOKUP($B68,Store!$B$6:$AG$308,COLUMN()-1,0) -> Very Light weight | S68: =VLOOKUP($B68,Store!$B$6:$AG$308,COLUMN()-1,0) -> dark | T68: =VLOOKUP($B68,Store!$B$6:$AG$308,COLUMN()-1,0) -> Second Choice | U68: =VLOOKUP($B68,Store!$B$6:$AG$308,COLUMN()-1,0) -> 100% cotton | V68: =VLOOKUP($B68,Store!$B$6:$AG$308,COLUMN()-1,0) -> 100% cotton | W68: =VLOOKUP($B68,Store!$B$6:$AG$308,COLUMN()-1,0) -> 24/2 - 16/1 | X68: =VLOOKUP($B68,Store!$B$6:$AG$308,COLUMN()-1,0) -> 24/2 - 16/1 | Y68: =VLOOKUP($B68,Store!$B$6:$AG$308,COLUMN()-1,0) -> Fresh | Z68: =VLOOKUP($B68,Store!$B$6:$AG$308,COLUMN()-1,0) -> Fresh | AA68: =VLOOKUP($B68,Store!$B$6:$AG$308,COLUMN()-1,0) -> 0 | AB68: =VLOOKUP($B68,Store!$B$6:$AG$308,COLUMN()-1,0) -> بل | AC68: =VLOOKUP($B68,Store!$B$6:$AG$308,COLUMN()-1,0) -> 1.379310345 | AD68: =VLOOKUP($B68,Store!$B$6:$AG$308,COLUMN()-1,0) -> 20 | AE68: =VLOOKUP($B68,Store!$B$6:$AG$308,COLUMN()-1,0) -> 1.3 | AF68: =VLOOKUP($B68,Store!$B$6:$AG$308,COLUMN()-1,0) -> Jacquard | AG68: =VLOOKUP($B68,Store!$B$6:$AG$308,COLUMN()-1,0) -> Normal | AJ68: =SUMIFS(Store!$AD$6:$AD$308,Store!$B$6:$B$308,Rassed!B68,Store!$AH$6:$AH$308,"اضافه") -> 50 | AK68: =SUMIFS(Store!$AD$6:$AD$308,Store!$B$6:$B$308,Rassed!B68,Store!$AN$6:$AN$308,"صرف") -> 50 | AL68: 0
B69: 0005 - 75 | C69: =VLOOKUP($B69,Store!$B$6:$AG$308,COLUMN()-1,0) -> dfgdfg | D69: =VLOOKUP($B69,Store!$B$6:$AG$308,COLUMN()-1,0) -> 9114000005 | E69: =VLOOKUP($B69,Store!$B$6:$AG$308,COLUMN()-1,0) -> بيبل | F69: =VLOOKUP($B69,Store!$B$6:$AG$308,COLUMN()-1,0) -> 75 | G69: =VLOOKUP($B69,Store!$B$6:$AG$308,COLUMN()-1,0) -> 7015 | H69: =VLOOKUP($B69,Store!$B$6:$AG$308,COLUMN()-1,0) -> 7015 | I69: =VLOOKUP($B69,Store!$B$6:$AG$308,COLUMN()-1,0) -> Kitchen Towel | J69: =VLOOKUP($B69,Store!$B$6:$AG$308,COLUMN()-1,0) -> Kitchen Towel | K69: =VLOOKUP($B69,Store!$B$6:$AG$308,COLUMN()-1,0) -> Flat | L69: =VLOOKUP($B69,Store!$B$6:$AG$308,COLUMN()-1,0) -> Flat | M69: =VLOOKUP($B69,Store!$B$6:$AG$308,COLUMN()-1,0) -> 50 x 65 | N69: =VLOOKUP($B69,Store!$B$6:$AG$308,COLUMN()-1,0) -> 50 x 65 | O69: =VLOOKUP($B69,Store!$B$6:$AG$308,COLUMN()-1,0) -> 65 | P69: =VLOOKUP($B69,Store!$B$6:$AG$308,COLUMN()-1,0) -> 65 | Q69: =VLOOKUP($B69,Store!$B$6:$AG$308,COLUMN()-1,0) -> 200 | R69: =VLOOKUP($B69,Store!$B$6:$AG$308,COLUMN()-1,0) -> Very Light weight | S69: =VLOOKUP($B69,Store!$B$6:$AG$308,COLUMN()-1,0) -> dark | T69: =VLOOKUP($B69,Store!$B$6:$AG$308,COLUMN()-1,0) -> Second Choice | U69: =VLOOKUP($B69,Store!$B$6:$AG$308,COLUMN()-1,0) -> 100% cotton | V69: =VLOOKUP($B69,Store!$B$6:$AG$308,COLUMN()-1,0) -> 100% cotton | W69: =VLOOKUP($B69,Store!$B$6:$AG$308,COLUMN()-1,0) -> 24/2 - 16/1 | X69: =VLOOKUP($B69,Store!$B$6:$AG$308,COLUMN()-1,0) -> 24/2 - 16/1 | Y69: =VLOOKUP($B69,Store!$B$6:$AG$308,COLUMN()-1,0) -> Fresh | Z69: =VLOOKUP($B69,Store!$B$6:$AG$308,COLUMN()-1,0) -> Fresh | AA69: =VLOOKUP($B69,Store!$B$6:$AG$308,COLUMN()-1,0) -> 0 | AB69: =VLOOKUP($B69,Store!$B$6:$AG$308,COLUMN()-1,0) -> بل | AC69: =VLOOKUP($B69,Store!$B$6:$AG$308,COLUMN()-1,0) -> 0.8275862069 | AD69: =VLOOKUP($B69,Store!$B$6:$AG$308,COLUMN()-1,0) -> 12 | AE69: =VLOOKUP($B69,Store!$B$6:$AG$308,COLUMN()-1,0) -> 0.78 | AF69: =VLOOKUP($B69,Store!$B$6:$AG$308,COLUMN()-1,0) -> Jacquard | AG69: =VLOOKUP($B69,Store!$B$6:$AG$308,COLUMN()-1,0) -> Normal | AJ69: =SUMIFS(Store!$AD$6:$AD$308,Store!$B$6:$B$308,Rassed!B69,Store!$AH$6:$AH$308,"اضافه") -> 29 | AK69: =SUMIFS(Store!$AD$6:$AD$308,Store!$B$6:$B$308,Rassed!B69,Store!$AN$6:$AN$308,"صرف") -> 29 | AL69: 0
B70: 0008 - 75 | C70: =VLOOKUP($B70,Store!$B$6:$AG$308,COLUMN()-1,0) -> dfgdfg | D70: =VLOOKUP($B70,Store!$B$6:$AG$308,COLUMN()-1,0) -> 9114000008 | E70: =VLOOKUP($B70,Store!$B$6:$AG$308,COLUMN()-1,0) -> بيبل | F70: =VLOOKUP($B70,Store!$B$6:$AG$308,COLUMN()-1,0) -> 75 | G70: =VLOOKUP($B70,Store!$B$6:$AG$308,COLUMN()-1,0) -> 7015 | H70: =VLOOKUP($B70,Store!$B$6:$AG$308,COLUMN()-1,0) -> 7015 | I70: =VLOOKUP($B70,Store!$B$6:$AG$308,COLUMN()-1,0) -> Kitchen Towel | J70: =VLOOKUP($B70,Store!$B$6:$AG$308,COLUMN()-1,0) -> Kitchen Towel | K70: =VLOOKUP($B70,Store!$B$6:$AG$308,COLUMN()-1,0) -> Flat | L70: =VLOOKUP($B70,Store!$B$6:$AG$308,COLUMN()-1,0) -> Flat | M70: =VLOOKUP($B70,Store!$B$6:$AG$308,COLUMN()-1,0) -> 50 x 65 | N70: =VLOOKUP($B70,Store!$B$6:$AG$308,COLUMN()-1,0) -> 50 x 65 | O70: =VLOOKUP($B70,Store!$B$6:$AG$308,COLUMN()-1,0) -> 65 | P70: =VLOOKUP($B70,Store!$B$6:$AG$308,COLUMN()-1,0) -> 65 | Q70: =VLOOKUP($B70,Store!$B$6:$AG$308,COLUMN()-1,0) -> 200 | R70: =VLOOKUP($B70,Store!$B$6:$AG$308,COLUMN()-1,0) -> Very Light weight | S70: =VLOOKUP($B70,Store!$B$6:$AG$308,COLUMN()-1,0) -> dark | T70: =VLOOKUP($B70,Store!$B$6:$AG$308,COLUMN()-1,0) -> Second Choice | U70: =VLOOKUP($B70,Store!$B$6:$AG$308,COLUMN()-1,0) -> 100% cotton | V70: =VLOOKUP($B70,Store!$B$6:$AG$308,COLUMN()-1,0) -> 100% cotton | W70: =VLOOKUP($B70,Store!$B$6:$AG$308,COLUMN()-1,0) -> 24/2 - 16/1 | X70: =VLOOKUP($B70,Store!$B$6:$AG$308,COLUMN()-1,0) -> 24/2 - 16/1 | Y70: =VLOOKUP($B70,Store!$B$6:$AG$308,COLUMN()-1,0) -> Fresh | Z70: =VLOOKUP($B70,Store!$B$6:$AG$308,COLUMN()-1,0) -> Fresh | AA70: =VLOOKUP($B70,Store!$B$6:$AG$308,COLUMN()-1,0) -> 0 | AB70: =VLOOKUP($B70,Store!$B$6:$AG$308,COLUMN()-1,0) -> بل | AC70: =VLOOKUP($B70,Store!$B$6:$AG$308,COLUMN()-1,0) -> 0.5517241379 | AD70: =VLOOKUP($B70,Store!$B$6:$AG$308,COLUMN()-1,0) -> 8 | AE70: =VLOOKUP($B70,Store!$B$6:$AG$308,COLUMN()-1,0) -> 0.52 | AF70: =VLOOKUP($B70,Store!$B$6:$AG$308,COLUMN()-1,0) -> Jacquard | AG70: =VLOOKUP($B70,Store!$B$6:$AG$308,COLUMN()-1,0) -> Normal | AJ70: =SUMIFS(Store!$AD$6:$AD$308,Store!$B$6:$B$308,Rassed!B70,Store!$AH$6:$AH$308,"اضافه") -> 8 | AK70: =SUMIFS(Store!$AD$6:$AD$308,Store!$B$6:$B$308,Rassed!B70,Store!$AN$6:$AN$308,"صرف") -> 8 | AL70: 0
B71: 0006 - 75 | C71: =VLOOKUP($B71,Store!$B$6:$AG$308,COLUMN()-1,0) -> dfgdfg | D71: =VLOOKUP($B71,Store!$B$6:$AG$308,COLUMN()-1,0) -> 9114000006 | E71: =VLOOKUP($B71,Store!$B$6:$AG$308,COLUMN()-1,0) -> بيبل | F71: =VLOOKUP($B71,Store!$B$6:$AG$308,COLUMN()-1,0) -> 75 | G71: =VLOOKUP($B71,Store!$B$6:$AG$308,COLUMN()-1,0) -> 7015 | H71: =VLOOKUP($B71,Store!$B$6:$AG$308,COLUMN()-1,0) -> 7015 | I71: =VLOOKUP($B71,Store!$B$6:$AG$308,COLUMN()-1,0) -> Kitchen Towel | J71: =VLOOKUP($B71,Store!$B$6:$AG$308,COLUMN()-1,0) -> Kitchen Towel | K71: =VLOOKUP($B71,Store!$B$6:$AG$308,COLUMN()-1,0) -> Flat | L71: =VLOOKUP($B71,Store!$B$6:$AG$308,COLUMN()-1,0) -> Flat | M71: =VLOOKUP($B71,Store!$B$6:$AG$308,COLUMN()-1,0) -> 50 x 65 | N71: =VLOOKUP($B71,Store!$B$6:$AG$308,COLUMN()-1,0) -> 50 x 65 | O71: =VLOOKUP($B71,Store!$B$6:$AG$308,COLUMN()-1,0) -> 65 | P71: =VLOOKUP($B71,Store!$B$6:$AG$308,COLUMN()-1,0) -> 65 | Q71: =VLOOKUP($B71,Store!$B$6:$AG$308,COLUMN()-1,0) -> 200 | R71: =VLOOKUP($B71,Store!$B$6:$AG$308,COLUMN()-1,0) -> Very Light weight | S71: =VLOOKUP($B71,Store!$B$6:$AG$308,COLUMN()-1,0) -> dark | T71: =VLOOKUP($B71,Store!$B$6:$AG$308,COLUMN()-1,0) -> Second Choice | U71: =VLOOKUP($B71,Store!$B$6:$AG$308,COLUMN()-1,0) -> 100% cotton | V71: =VLOOKUP($B71,Store!$B$6:$AG$308,COLUMN()-1,0) -> 100% cotton | W71: =VLOOKUP($B71,Store!$B$6:$AG$308,COLUMN()-1,0) -> 24/2 - 16/1 | X71: =VLOOKUP($B71,Store!$B$6:$AG$308,COLUMN()-1,0) -> 24/2 - 16/1 | Y71: =VLOOKUP($B71,Store!$B$6:$AG$308,COLUMN()-1,0) -> Fresh | Z71: =VLOOKUP($B71,Store!$B$6:$AG$308,COLUMN()-1,0) -> Fresh | AA71: =VLOOKUP($B71,Store!$B$6:$AG$308,COLUMN()-1,0) -> 0 | AB71: =VLOOKUP($B71,Store!$B$6:$AG$308,COLUMN()-1,0) -> بل | AC71: =VLOOKUP($B71,Store!$B$6:$AG$308,COLUMN()-1,0) -> 0.4827586207 | AD71: =VLOOKUP($B71,Store!$B$6:$AG$308,COLUMN()-1,0) -> 7 | AE71: =VLOOKUP($B71,Store!$B$6:$AG$308,COLUMN()-1,0) -> 0.455 | AF71: =VLOOKUP($B71,Store!$B$6:$AG$308,COLUMN()-1,0) -> Jacquard | AG71: =VLOOKUP($B71,Store!$B$6:$AG$308,COLUMN()-1,0) -> Normal | AJ71: =SUMIFS(Store!$AD$6:$AD$308,Store!$B$6:$B$308,Rassed!B71,Store!$AH$6:$AH$308,"اضافه") -> 7 | AK71: =SUMIFS(Store!$AD$6:$AD$308,Store!$B$6:$B$308,Rassed!B71,Store!$AN$6:$AN$308,"صرف") -> 7 | AL71: 0
B72: 0001 - 44 | C72: =VLOOKUP($B72,Store!$B$6:$AG$308,COLUMN()-1,0) -> Elephnt | D72: =VLOOKUP($B72,Store!$B$6:$AG$308,COLUMN()-1,0) -> 9114000018 | E72: =VLOOKUP($B72,Store!$B$6:$AG$308,COLUMN()-1,0) -> مشكل عميل 44 اوردر 7008 | F72: =VLOOKUP($B72,Store!$B$6:$AG$308,COLUMN()-1,0) -> 44 | G72: =VLOOKUP($B72,Store!$B$6:$AG$308,COLUMN()-1,0) -> 7008 | H72: =VLOOKUP($B72,Store!$B$6:$AG$308,COLUMN()-1,0) -> 7008 | I72: =VLOOKUP($B72,Store!$B$6:$AG$308,COLUMN()-1,0) -> Kitchen Towel | J72: =VLOOKUP($B72,Store!$B$6:$AG$308,COLUMN()-1,0) -> Kitchen Towel | K72: =VLOOKUP($B72,Store!$B$6:$AG$308,COLUMN()-1,0) -> Flat | L72: =VLOOKUP($B72,Store!$B$6:$AG$308,COLUMN()-1,0) -> Flat | M72: =VLOOKUP($B72,Store!$B$6:$AG$308,COLUMN()-1,0) -> 50 X 70 | N72: =VLOOKUP($B72,Store!$B$6:$AG$308,COLUMN()-1,0) -> 50 X 70 | O72: =VLOOKUP($B72,Store!$B$6:$AG$308,COLUMN()-1,0) -> 70 | P72: =VLOOKUP($B72,Store!$B$6:$AG$308,COLUMN()-1,0) -> 70 | Q72: =VLOOKUP($B72,Store!$B$6:$AG$308,COLUMN()-1,0) -> 200 | R72: =VLOOKUP($B72,Store!$B$6:$AG$308,COLUMN()-1,0) -> Very Light weight | S72: =VLOOKUP($B72,Store!$B$6:$AG$308,COLUMN()-1,0) -> dark | T72: =VLOOKUP($B72,Store!$B$6:$AG$308,COLUMN()-1,0) -> Second Choice | U72: =VLOOKUP($B72,Store!$B$6:$AG$308,COLUMN()-1,0) -> 100% cotton | V72: =VLOOKUP($B72,Store!$B$6:$AG$308,COLUMN()-1,0) -> 100% cotton | W72: =VLOOKUP($B72,Store!$B$6:$AG$308,COLUMN()-1,0) -> 24/2 - 16/1 | X72: =VLOOKUP($B72,Store!$B$6:$AG$308,COLUMN()-1,0) -> 24/2 - 16/1 | Y72: =VLOOKUP($B72,Store!$B$6:$AG$308,COLUMN()-1,0) -> Fresh | Z72: =VLOOKUP($B72,Store!$B$6:$AG$308,COLUMN()-1,0) -> Fresh | AA72: =VLOOKUP($B72,Store!$B$6:$AG$308,COLUMN()-1,0) -> 0 | AB72: =VLOOKUP($B72,Store!$B$6:$AG$308,COLUMN()-1,0) -> محمود | AC72: =VLOOKUP($B72,Store!$B$6:$AG$308,COLUMN()-1,0) -> 7.272727273 | AD72: =VLOOKUP($B72,Store!$B$6:$AG$308,COLUMN()-1,0) -> 100 | AE72: =VLOOKUP($B72,Store!$B$6:$AG$308,COLUMN()-1,0) -> 7 | AF72: =VLOOKUP($B72,Store!$B$6:$AG$308,COLUMN()-1,0) -> Dobby | AG72: =VLOOKUP($B72,Store!$B$6:$AG$308,COLUMN()-1,0) -> Normal | AJ72: =SUMIFS(Store!$AD$6:$AD$308,Store!$B$6:$B$308,Rassed!B72,Store!$AH$6:$AH$308,"اضافه") -> 1550 | AK72: =SUMIFS(Store!$AD$6:$AD$308,Store!$B$6:$B$308,Rassed!B72,Store!$AN$6:$AN$308,"صرف") -> 2050 | AL72: -500
B73: 0002 - 44 | C73: =VLOOKUP($B73,Store!$B$6:$AG$308,COLUMN()-1,0) -> BroB | D73: =VLOOKUP($B73,Store!$B$6:$AG$308,COLUMN()-1,0) -> 9114000019 | E73: =VLOOKUP($B73,Store!$B$6:$AG$308,COLUMN()-1,0) -> مشكل عميل 44 اوردر 7008 | F73: =VLOOKUP($B73,Store!$B$6:$AG$308,COLUMN()-1,0) -> 44 | G73: =VLOOKUP($B73,Store!$B$6:$AG$308,COLUMN()-1,0) -> 7008 | H73: =VLOOKUP($B73,Store!$B$6:$AG$308,COLUMN()-1,0) -> 7008 | I73: =VLOOKUP($B73,Store!$B$6:$AG$308,COLUMN()-1,0) -> Kitchen Towel | J73: =VLOOKUP($B73,Store!$B$6:$AG$308,COLUMN()-1,0) -> Kitchen Towel | K73: =VLOOKUP($B73,Store!$B$6:$AG$308,COLUMN()-1,0) -> Flat | L73: =VLOOKUP($B73,Store!$B$6:$AG$308,COLUMN()-1,0) -> Flat | M73: =VLOOKUP($B73,Store!$B$6:$AG$308,COLUMN()-1,0) -> 50 X 70 | N73: =VLOOKUP($B73,Store!$B$6:$AG$308,COLUMN()-1,0) -> 50 X 70 | O73: =VLOOKUP($B73,Store!$B$6:$AG$308,COLUMN()-1,0) -> 70 | P73: =VLOOKUP($B73,Store!$B$6:$AG$308,COLUMN()-1,0) -> 70 | Q73: =VLOOKUP($B73,Store!$B$6:$AG$308,COLUMN()-1,0) -> 200 | R73: =VLOOKUP($B73,Store!$B$6:$AG$308,COLUMN()-1,0) -> Very Light weight | S73: =VLOOKUP($B73,Store!$B$6:$AG$308,COLUMN()-1,0) -> dark | T73: =VLOOKUP($B73,Store!$B$6:$AG$308,COLUMN()-1,0) -> Second Choice | U73: =VLOOKUP($B73,Store!$B$6:$AG$308,COLUMN()-1,0) -> 100% cotton | V73: =VLOOKUP($B73,Store!$B$6:$AG$308,COLUMN()-1,0) -> 100% cotton | W73: =VLOOKUP($B73,Store!$B$6:$AG$308,COLUMN()-1,0) -> 24/2 - 16/1 | X73: =VLOOKUP($B73,Store!$B$6:$AG$308,COLUMN()-1,0) -> 24/2 - 16/1 | Y73: =VLOOKUP($B73,Store!$B$6:$AG$308,COLUMN()-1,0) -> Fresh | Z73: =VLOOKUP($B73,Store!$B$6:$AG$308,COLUMN()-1,0) -> Fresh | AA73: =VLOOKUP($B73,Store!$B$6:$AG$308,COLUMN()-1,0) -> 0 | AB73: =VLOOKUP($B73,Store!$B$6:$AG$308,COLUMN()-1,0) -> محمود | AC73: =VLOOKUP($B73,Store!$B$6:$AG$308,COLUMN()-1,0) -> 10.90909091 | AD73: =VLOOKUP($B73,Store!$B$6:$AG$308,COLUMN()-1,0) -> 150 | AE73: =VLOOKUP($B73,Store!$B$6:$AG$308,COLUMN()-1,0) -> 10.5 | AF73: =VLOOKUP($B73,Store!$B$6:$AG$308,COLUMN()-1,0) -> Dobby | AG73: =VLOOKUP($B73,Store!$B$6:$AG$308,COLUMN()-1,0) -> Normal | AJ73: =SUMIFS(Store!$AD$6:$AD$308,Store!$B$6:$B$308,Rassed!B73,Store!$AH$6:$AH$308,"اضافه") -> 150 | AK73: =SUMIFS(Store!$AD$6:$AD$308,Store!$B$6:$B$308,Rassed!B73,Store!$AN$6:$AN$308,"صرف") -> 300 | AL73: =AJ73-AK73 -> -150
B74: 0003 - 44 | C74: =VLOOKUP($B74,Store!$B$6:$AG$308,COLUMN()-1,0) -> hgh | D74: =VLOOKUP($B74,Store!$B$6:$AG$308,COLUMN()-1,0) -> 9114000020 | E74: =VLOOKUP($B74,Store!$B$6:$AG$308,COLUMN()-1,0) -> مشكل عميل 44 اوردر 7008 | F74: =VLOOKUP($B74,Store!$B$6:$AG$308,COLUMN()-1,0) -> 44 | G74: =VLOOKUP($B74,Store!$B$6:$AG$308,COLUMN()-1,0) -> 7008 | H74: =VLOOKUP($B74,Store!$B$6:$AG$308,COLUMN()-1,0) -> 7008 | I74: =VLOOKUP($B74,Store!$B$6:$AG$308,COLUMN()-1,0) -> Kitchen Towel | J74: =VLOOKUP($B74,Store!$B$6:$AG$308,COLUMN()-1,0) -> Kitchen Towel | K74: =VLOOKUP($B74,Store!$B$6:$AG$308,COLUMN()-1,0) -> Flat | L74: =VLOOKUP($B74,Store!$B$6:$AG$308,COLUMN()-1,0) -> Flat | M74: =VLOOKUP($B74,Store!$B$6:$AG$308,COLUMN()-1,0) -> 50 X 70 | N74: =VLOOKUP($B74,Store!$B$6:$AG$308,COLUMN()-1,0) -> 50 X 70 | O74: =VLOOKUP($B74,Store!$B$6:$AG$308,COLUMN()-1,0) -> 70 | P74: =VLOOKUP($B74,Store!$B$6:$AG$308,COLUMN()-1,0) -> 70 | Q74: =VLOOKUP($B74,Store!$B$6:$AG$308,COLUMN()-1,0) -> 200 | R74: =VLOOKUP($B74,Store!$B$6:$AG$308,COLUMN()-1,0) -> Very Light weight | S74: =VLOOKUP($B74,Store!$B$6:$AG$308,COLUMN()-1,0) -> dark | T74: =VLOOKUP($B74,Store!$B$6:$AG$308,COLUMN()-1,0) -> Second Choice | U74: =VLOOKUP($B74,Store!$B$6:$AG$308,COLUMN()-1,0) -> 100% cotton | V74: =VLOOKUP($B74,Store!$B$6:$AG$308,COLUMN()-1,0) -> 100% cotton | W74: =VLOOKUP($B74,Store!$B$6:$AG$308,COLUMN()-1,0) -> 24/2 - 16/1 | X74: =VLOOKUP($B74,Store!$B$6:$AG$308,COLUMN()-1,0) -> 24/2 - 16/2 | Y74: =VLOOKUP($B74,Store!$B$6:$AG$308,COLUMN()-1,0) -> Fresh | Z74: =VLOOKUP($B74,Store!$B$6:$AG$308,COLUMN()-1,0) -> Fresh | AA74: =VLOOKUP($B74,Store!$B$6:$AG$308,COLUMN()-1,0) -> 0 | AB74: =VLOOKUP($B74,Store!$B$6:$AG$308,COLUMN()-1,0) -> محمود | AC74: =VLOOKUP($B74,Store!$B$6:$AG$308,COLUMN()-1,0) -> 14.54545455 | AD74: =VLOOKUP($B74,Store!$B$6:$AG$308,COLUMN()-1,0) -> 200 | AE74: =VLOOKUP($B74,Store!$B$6:$AG$308,COLUMN()-1,0) -> 14 | AF74: =VLOOKUP($B74,Store!$B$6:$AG$308,COLUMN()-1,0) -> Jacquard | AG74: =VLOOKUP($B74,Store!$B$6:$AG$308,COLUMN()-1,0) -> Normal | AJ74: =SUMIFS(Store!$AD$6:$AD$308,Store!$B$6:$B$308,Rassed!B74,Store!$AH$6:$AH$308,"اضافه") -> 200 | AK74: =SUMIFS(Store!$AD$6:$AD$308,Store!$B$6:$B$308,Rassed!B74,Store!$AN$6:$AN$308,"صرف") -> 400 | AL74: -200
B75: 0004 - 44 | C75: =VLOOKUP($B75,Store!$B$6:$AG$308,COLUMN()-1,0) -> yurturhy | D75: =VLOOKUP($B75,Store!$B$6:$AG$308,COLUMN()-1,0) -> 9114000021 | E75: =VLOOKUP($B75,Store!$B$6:$AG$308,COLUMN()-1,0) -> مشكل عميل 44 اوردر 7008 | F75: =VLOOKUP($B75,Store!$B$6:$AG$308,COLUMN()-1,0) -> 44 | G75: =VLOOKUP($B75,Store!$B$6:$AG$308,COLUMN()-1,0) -> 7008 | H75: =VLOOKUP($B75,Store!$B$6:$AG$308,COLUMN()-1,0) -> 7008 | I75: =VLOOKUP($B75,Store!$B$6:$AG$308,COLUMN()-1,0) -> Kitchen Towel | J75: =VLOOKUP($B75,Store!$B$6:$AG$308,COLUMN()-1,0) -> Kitchen Towel | K75: =VLOOKUP($B75,Store!$B$6:$AG$308,COLUMN()-1,0) -> Flat | L75: =VLOOKUP($B75,Store!$B$6:$AG$308,COLUMN()-1,0) -> Flat | M75: =VLOOKUP($B75,Store!$B$6:$AG$308,COLUMN()-1,0) -> 50 X 70 | N75: =VLOOKUP($B75,Store!$B$6:$AG$308,COLUMN()-1,0) -> 50 X 70 | O75: =VLOOKUP($B75,Store!$B$6:$AG$308,COLUMN()-1,0) -> 70 | P75: =VLOOKUP($B75,Store!$B$6:$AG$308,COLUMN()-1,0) -> 70 | Q75: =VLOOKUP($B75,Store!$B$6:$AG$308,COLUMN()-1,0) -> 200 | R75: =VLOOKUP($B75,Store!$B$6:$AG$308,COLUMN()-1,0) -> Very Light weight | S75: =VLOOKUP($B75,Store!$B$6:$AG$308,COLUMN()-1,0) -> dark | T75: =VLOOKUP($B75,Store!$B$6:$AG$308,COLUMN()-1,0) -> Second Choice | U75: =VLOOKUP($B75,Store!$B$6:$AG$308,COLUMN()-1,0) -> 100% cotton | V75: =VLOOKUP($B75,Store!$B$6:$AG$308,COLUMN()-1,0) -> 100% cotton | W75: =VLOOKUP($B75,Store!$B$6:$AG$308,COLUMN()-1,0) -> 24/2 - 16/1 | X75: =VLOOKUP($B75,Store!$B$6:$AG$308,COLUMN()-1,0) -> 24/2 - 16/3 | Y75: =VLOOKUP($B75,Store!$B$6:$AG$308,COLUMN()-1,0) -> Fresh | Z75: =VLOOKUP($B75,Store!$B$6:$AG$308,COLUMN()-1,0) -> Fresh | AA75: =VLOOKUP($B75,Store!$B$6:$AG$308,COLUMN()-1,0) -> 0 | AB75: =VLOOKUP($B75,Store!$B$6:$AG$308,COLUMN()-1,0) -> محمود | AC75: =VLOOKUP($B75,Store!$B$6:$AG$308,COLUMN()-1,0) -> 21.81818182 | AD75: =VLOOKUP($B75,Store!$B$6:$AG$308,COLUMN()-1,0) -> 300 | AE75: =VLOOKUP($B75,Store!$B$6:$AG$308,COLUMN()-1,0) -> 21 | AF75: =VLOOKUP($B75,Store!$B$6:$AG$308,COLUMN()-1,0) -> Jacquard | AG75: =VLOOKUP($B75,Store!$B$6:$AG$308,COLUMN()-1,0) -> Normal | AJ75: =SUMIFS(Store!$AD$6:$AD$308,Store!$B$6:$B$308,Rassed!B75,Store!$AH$6:$AH$308,"اضافه") -> 300 | AK75: =SUMIFS(Store!$AD$6:$AD$308,Store!$B$6:$B$308,Rassed!B75,Store!$AN$6:$AN$308,"صرف") -> 600 | AL75: -300
B76: 0005 - 44 | C76: =VLOOKUP($B76,Store!$B$6:$AG$308,COLUMN()-1,0) -> dytrto | D76: =VLOOKUP($B76,Store!$B$6:$AG$308,COLUMN()-1,0) -> 9114000022 | E76: =VLOOKUP($B76,Store!$B$6:$AG$308,COLUMN()-1,0) -> مشكل عميل 44 اوردر 7008 | F76: =VLOOKUP($B76,Store!$B$6:$AG$308,COLUMN()-1,0) -> 44 | G76: =VLOOKUP($B76,Store!$B$6:$AG$308,COLUMN()-1,0) -> 7008 | H76: =VLOOKUP($B76,Store!$B$6:$AG$308,COLUMN()-1,0) -> 7008 | I76: =VLOOKUP($B76,Store!$B$6:$AG$308,COLUMN()-1,0) -> Kitchen Towel | J76: =VLOOKUP($B76,Store!$B$6:$AG$308,COLUMN()-1,0) -> Kitchen Towel | K76: =VLOOKUP($B76,Store!$B$6:$AG$308,COLUMN()-1,0) -> Flat | L76: =VLOOKUP($B76,Store!$B$6:$AG$308,COLUMN()-1,0) -> Flat | M76: =VLOOKUP($B76,Store!$B$6:$AG$308,COLUMN()-1,0) -> 50 X 70 | N76: =VLOOKUP($B76,Store!$B$6:$AG$308,COLUMN()-1,0) -> 50 X 70 | O76: =VLOOKUP($B76,Store!$B$6:$AG$308,COLUMN()-1,0) -> 70 | P76: =VLOOKUP($B76,Store!$B$6:$AG$308,COLUMN()-1,0) -> 70 | Q76: =VLOOKUP($B76,Store!$B$6:$AG$308,COLUMN()-1,0) -> 200 | R76: =VLOOKUP($B76,Store!$B$6:$AG$308,COLUMN()-1,0) -> Very Light weight | S76: =VLOOKUP($B76,Store!$B$6:$AG$308,COLUMN()-1,0) -> dark | T76: =VLOOKUP($B76,Store!$B$6:$AG$308,COLUMN()-1,0) -> Second Choice | U76: =VLOOKUP($B76,Store!$B$6:$AG$308,COLUMN()-1,0) -> 100% cotton | V76: =VLOOKUP($B76,Store!$B$6:$AG$308,COLUMN()-1,0) -> 100% cotton | W76: =VLOOKUP($B76,Store!$B$6:$AG$308,COLUMN()-1,0) -> 24/2 - 16/1 | X76: =VLOOKUP($B76,Store!$B$6:$AG$308,COLUMN()-1,0) -> 24/2 - 16/4 | Y76: =VLOOKUP($B76,Store!$B$6:$AG$308,COLUMN()-1,0) -> Fresh | Z76: =VLOOKUP($B76,Store!$B$6:$AG$308,COLUMN()-1,0) -> Fresh | AA76: =VLOOKUP($B76,Store!$B$6:$AG$308,COLUMN()-1,0) -> 0 | AB76: =VLOOKUP($B76,Store!$B$6:$AG$308,COLUMN()-1,0) -> محمود | AC76: =VLOOKUP($B76,Store!$B$6:$AG$308,COLUMN()-1,0) -> 29.09090909 | AD76: =VLOOKUP($B76,Store!$B$6:$AG$308,COLUMN()-1,0) -> 400 | AE76: =VLOOKUP($B76,Store!$B$6:$AG$308,COLUMN()-1,0) -> 28 | AF76: =VLOOKUP($B76,Store!$B$6:$AG$308,COLUMN()-1,0) -> Jacquard | AG76: =VLOOKUP($B76,Store!$B$6:$AG$308,COLUMN()-1,0) -> Normal | AJ76: =SUMIFS(Store!$AD$6:$AD$308,Store!$B$6:$B$308,Rassed!B76,Store!$AH$6:$AH$308,"اضافه") -> 400 | AK76: =SUMIFS(Store!$AD$6:$AD$308,Store!$B$6:$B$308,Rassed!B76,Store!$AN$6:$AN$308,"صرف") -> 800 | AL76: -400
B77: 0006 - 44 | C77: =VLOOKUP($B77,Store!$B$6:$AG$308,COLUMN()-1,0) -> srttLLLLl | D77: =VLOOKUP($B77,Store!$B$6:$AG$308,COLUMN()-1,0) -> 9114000023 | E77: =VLOOKUP($B77,Store!$B$6:$AG$308,COLUMN()-1,0) -> مشكل عميل 44 اوردر 7008 | F77: =VLOOKUP($B77,Store!$B$6:$AG$308,COLUMN()-1,0) -> 44 | G77: =VLOOKUP($B77,Store!$B$6:$AG$308,COLUMN()-1,0) -> 7008 | H77: =VLOOKUP($B77,Store!$B$6:$AG$308,COLUMN()-1,0) -> 7008 | I77: =VLOOKUP($B77,Store!$B$6:$AG$308,COLUMN()-1,0) -> Kitchen Towel | J77: =VLOOKUP($B77,Store!$B$6:$AG$308,COLUMN()-1,0) -> Kitchen Towel | K77: =VLOOKUP($B77,Store!$B$6:$AG$308,COLUMN()-1,0) -> Flat | L77: =VLOOKUP($B77,Store!$B$6:$AG$308,COLUMN()-1,0) -> Flat | M77: =VLOOKUP($B77,Store!$B$6:$AG$308,COLUMN()-1,0) -> 50 X 70 | N77: =VLOOKUP($B77,Store!$B$6:$AG$308,COLUMN()-1,0) -> 50 X 70 | O77: =VLOOKUP($B77,Store!$B$6:$AG$308,COLUMN()-1,0) -> 70 | P77: =VLOOKUP($B77,Store!$B$6:$AG$308,COLUMN()-1,0) -> 70 | Q77: =VLOOKUP($B77,Store!$B$6:$AG$308,COLUMN()-1,0) -> 200 | R77: =VLOOKUP($B77,Store!$B$6:$AG$308,COLUMN()-1,0) -> Very Light weight | S77: =VLOOKUP($B77,Store!$B$6:$AG$308,COLUMN()-1,0) -> dark | T77: =VLOOKUP($B77,Store!$B$6:$AG$308,COLUMN()-1,0) -> Second Choice | U77: =VLOOKUP($B77,Store!$B$6:$AG$308,COLUMN()-1,0) -> 100% cotton | V77: =VLOOKUP($B77,Store!$B$6:$AG$308,COLUMN()-1,0) -> 100% cotton | W77: =VLOOKUP($B77,Store!$B$6:$AG$308,COLUMN()-1,0) -> 24/2 - 16/1 | X77: =VLOOKUP($B77,Store!$B$6:$AG$308,COLUMN()-1,0) -> 24/2 - 16/5 | Y77: =VLOOKUP($B77,Store!$B$6:$AG$308,COLUMN()-1,0) -> Fresh | Z77: =VLOOKUP($B77,Store!$B$6:$AG$308,COLUMN()-1,0) -> Fresh | AA77: =VLOOKUP($B77,Store!$B$6:$AG$308,COLUMN()-1,0) -> 0 | AB77: =VLOOKUP($B77,Store!$B$6:$AG$308,COLUMN()-1,0) -> محمود | AC77: =VLOOKUP($B77,Store!$B$6:$AG$308,COLUMN()-1,0) -> 36.36363636 | AD77: =VLOOKUP($B77,Store!$B$6:$AG$308,COLUMN()-1,0) -> 500 | AE77: =VLOOKUP($B77,Store!$B$6:$AG$308,COLUMN()-1,0) -> 35 | AF77: =VLOOKUP($B77,Store!$B$6:$AG$308,COLUMN()-1,0) -> Jacquard | AG77: =VLOOKUP($B77,Store!$B$6:$AG$308,COLUMN()-1,0) -> Normal | AJ77: =SUMIFS(Store!$AD$6:$AD$308,Store!$B$6:$B$308,Rassed!B77,Store!$AH$6:$AH$308,"اضافه") -> 500 | AK77: =SUMIFS(Store!$AD$6:$AD$308,Store!$B$6:$B$308,Rassed!B77,Store!$AN$6:$AN$308,"صرف") -> 1000 | AL77: -500
B78: 0001 - 55 | C78: =VLOOKUP($B78,Store!$B$6:$AG$308,COLUMN()-1,0) -> palm blue | D78: =VLOOKUP($B78,Store!$B$6:$AG$308,COLUMN()-1,0) -> 9114000024 | E78: =VLOOKUP($B78,Store!$B$6:$AG$308,COLUMN()-1,0) -> مشكل عميل 55 اوردر 7009 | F78: =VLOOKUP($B78,Store!$B$6:$AG$308,COLUMN()-1,0) -> 55 | G78: =VLOOKUP($B78,Store!$B$6:$AG$308,COLUMN()-1,0) -> 7009 | H78: =VLOOKUP($B78,Store!$B$6:$AG$308,COLUMN()-1,0) -> 7009 | I78: =VLOOKUP($B78,Store!$B$6:$AG$308,COLUMN()-1,0) -> Kitchen Towel | J78: =VLOOKUP($B78,Store!$B$6:$AG$308,COLUMN()-1,0) -> Kitchen Towel | K78: =VLOOKUP($B78,Store!$B$6:$AG$308,COLUMN()-1,0) -> Flat | L78: =VLOOKUP($B78,Store!$B$6:$AG$308,COLUMN()-1,0) -> Flat | M78: =VLOOKUP($B78,Store!$B$6:$AG$308,COLUMN()-1,0) -> 50 X 70 | N78: =VLOOKUP($B78,Store!$B$6:$AG$308,COLUMN()-1,0) -> 50 X 70 | O78: =VLOOKUP($B78,Store!$B$6:$AG$308,COLUMN()-1,0) -> 70 | P78: =VLOOKUP($B78,Store!$B$6:$AG$308,COLUMN()-1,0) -> 70 | Q78: =VLOOKUP($B78,Store!$B$6:$AG$308,COLUMN()-1,0) -> 200 | R78: =VLOOKUP($B78,Store!$B$6:$AG$308,COLUMN()-1,0) -> Very Light weight | S78: =VLOOKUP($B78,Store!$B$6:$AG$308,COLUMN()-1,0) -> dark | T78: =VLOOKUP($B78,Store!$B$6:$AG$308,COLUMN()-1,0) -> Second Choice | U78: =VLOOKUP($B78,Store!$B$6:$AG$308,COLUMN()-1,0) -> 100% cotton | V78: =VLOOKUP($B78,Store!$B$6:$AG$308,COLUMN()-1,0) -> 100% cotton | W78: =VLOOKUP($B78,Store!$B$6:$AG$308,COLUMN()-1,0) -> 24/2 - 16/1 | X78: =VLOOKUP($B78,Store!$B$6:$AG$308,COLUMN()-1,0) -> 24/2 - 16/1 | Y78: =VLOOKUP($B78,Store!$B$6:$AG$308,COLUMN()-1,0) -> Fresh | Z78: =VLOOKUP($B78,Store!$B$6:$AG$308,COLUMN()-1,0) -> Fresh | AA78: =VLOOKUP($B78,Store!$B$6:$AG$308,COLUMN()-1,0) -> 0 | AB78: =VLOOKUP($B78,Store!$B$6:$AG$308,COLUMN()-1,0) -> محمود | AC78: =VLOOKUP($B78,Store!$B$6:$AG$308,COLUMN()-1,0) -> 14 | AD78: =VLOOKUP($B78,Store!$B$6:$AG$308,COLUMN()-1,0) -> 200 | AE78: =VLOOKUP($B78,Store!$B$6:$AG$308,COLUMN()-1,0) -> 14 | AF78: =VLOOKUP($B78,Store!$B$6:$AG$308,COLUMN()-1,0) -> Dobby | AG78: =VLOOKUP($B78,Store!$B$6:$AG$308,COLUMN()-1,0) -> Normal | AJ78: =SUMIFS(Store!$AD$6:$AD$308,Store!$B$6:$B$308,Rassed!B78,Store!$AH$6:$AH$308,"اضافه") -> 600 | AK78: =SUMIFS(Store!$AD$6:$AD$308,Store!$B$6:$B$308,Rassed!B78,Store!$AN$6:$AN$308,"صرف") -> 1000 | AL78: -400
B79: 0002 - 55 | C79: =VLOOKUP($B79,Store!$B$6:$AG$308,COLUMN()-1,0) -> palm nel | D79: =VLOOKUP($B79,Store!$B$6:$AG$308,COLUMN()-1,0) -> 9114000025 | E79: =VLOOKUP($B79,Store!$B$6:$AG$308,COLUMN()-1,0) -> مشكل عميل 55 اوردر 7009 | F79: =VLOOKUP($B79,Store!$B$6:$AG$308,COLUMN()-1,0) -> 55 | G79: =VLOOKUP($B79,Store!$B$6:$AG$308,COLUMN()-1,0) -> 7009 | H79: =VLOOKUP($B79,Store!$B$6:$AG$308,COLUMN()-1,0) -> 7009 | I79: =VLOOKUP($B79,Store!$B$6:$AG$308,COLUMN()-1,0) -> Kitchen Towel | J79: =VLOOKUP($B79,Store!$B$6:$AG$308,COLUMN()-1,0) -> Kitchen Towel | K79: =VLOOKUP($B79,Store!$B$6:$AG$308,COLUMN()-1,0) -> Flat | L79: =VLOOKUP($B79,Store!$B$6:$AG$308,COLUMN()-1,0) -> Flat | M79: =VLOOKUP($B79,Store!$B$6:$AG$308,COLUMN()-1,0) -> 50 X 70 | N79: =VLOOKUP($B79,Store!$B$6:$AG$308,COLUMN()-1,0) -> 50 X 70 | O79: =VLOOKUP($B79,Store!$B$6:$AG$308,COLUMN()-1,0) -> 70 | P79: =VLOOKUP($B79,Store!$B$6:$AG$308,COLUMN()-1,0) -> 70 | Q79: =VLOOKUP($B79,Store!$B$6:$AG$308,COLUMN()-1,0) -> 200 | R79: =VLOOKUP($B79,Store!$B$6:$AG$308,COLUMN()-1,0) -> Very Light weight | S79: =VLOOKUP($B79,Store!$B$6:$AG$308,COLUMN()-1,0) -> dark | T79: =VLOOKUP($B79,Store!$B$6:$AG$308,COLUMN()-1,0) -> Second Choice | U79: =VLOOKUP($B79,Store!$B$6:$AG$308,COLUMN()-1,0) -> 100% cotton | V79: =VLOOKUP($B79,Store!$B$6:$AG$308,COLUMN()-1,0) -> 100% cotton | W79: =VLOOKUP($B79,Store!$B$6:$AG$308,COLUMN()-1,0) -> 24/2 - 16/1 | X79: =VLOOKUP($B79,Store!$B$6:$AG$308,COLUMN()-1,0) -> 24/2 - 16/1 | Y79: =VLOOKUP($B79,Store!$B$6:$AG$308,COLUMN()-1,0) -> Fresh | Z79: =VLOOKUP($B79,Store!$B$6:$AG$308,COLUMN()-1,0) -> Fresh | AA79: =VLOOKUP($B79,Store!$B$6:$AG$308,COLUMN()-1,0) -> 0 | AB79: =VLOOKUP($B79,Store!$B$6:$AG$308,COLUMN()-1,0) -> محمود | AC79: =VLOOKUP($B79,Store!$B$6:$AG$308,COLUMN()-1,0) -> 3.5 | AD79: =VLOOKUP($B79,Store!$B$6:$AG$308,COLUMN()-1,0) -> 50 | AE79: =VLOOKUP($B79,Store!$B$6:$AG$308,COLUMN()-1,0) -> 3.5 | AF79: =VLOOKUP($B79,Store!$B$6:$AG$308,COLUMN()-1,0) -> Dobby | AG79: =VLOOKUP($B79,Store!$B$6:$AG$308,COLUMN()-1,0) -> Normal | AJ79: =SUMIFS(Store!$AD$6:$AD$308,Store!$B$6:$B$308,Rassed!B79,Store!$AH$6:$AH$308,"اضافه") -> 170 | AK79: =SUMIFS(Store!$AD$6:$AD$308,Store!$B$6:$B$308,Rassed!B79,Store!$AN$6:$AN$308,"صرف") -> 290 | AL79: -120
B80: 0003 - 55 | C80: =VLOOKUP($B80,Store!$B$6:$AG$308,COLUMN()-1,0) -> palm Turq | D80: =VLOOKUP($B80,Store!$B$6:$AG$308,COLUMN()-1,0) -> 9114000026 | E80: =VLOOKUP($B80,Store!$B$6:$AG$308,COLUMN()-1,0) -> مشكل عميل 55 اوردر 7009 | F80: =VLOOKUP($B80,Store!$B$6:$AG$308,COLUMN()-1,0) -> 55 | G80: =VLOOKUP($B80,Store!$B$6:$AG$308,COLUMN()-1,0) -> 7009 | H80: =VLOOKUP($B80,Store!$B$6:$AG$308,COLUMN()-1,0) -> 7009 | I80: =VLOOKUP($B80,Store!$B$6:$AG$308,COLUMN()-1,0) -> Kitchen Towel | J80: =VLOOKUP($B80,Store!$B$6:$AG$308,COLUMN()-1,0) -> Kitchen Towel | K80: =VLOOKUP($B80,Store!$B$6:$AG$308,COLUMN()-1,0) -> Flat | L80: =VLOOKUP($B80,Store!$B$6:$AG$308,COLUMN()-1,0) -> Flat | M80: =VLOOKUP($B80,Store!$B$6:$AG$308,COLUMN()-1,0) -> 50 X 70 | N80: =VLOOKUP($B80,Store!$B$6:$AG$308,COLUMN()-1,0) -> 50 X 70 | O80: =VLOOKUP($B80,Store!$B$6:$AG$308,COLUMN()-1,0) -> 70 | P80: =VLOOKUP($B80,Store!$B$6:$AG$308,COLUMN()-1,0) -> 70 | Q80: =VLOOKUP($B80,Store!$B$6:$AG$308,COLUMN()-1,0) -> 200 | R80: =VLOOKUP($B80,Store!$B$6:$AG$308,COLUMN()-1,0) -> Very Light weight | S80: =VLOOKUP($B80,Store!$B$6:$AG$308,COLUMN()-1,0) -> dark | T80: =VLOOKUP($B80,Store!$B$6:$AG$308,COLUMN()-1,0) -> Second Choice | U80: =VLOOKUP($B80,Store!$B$6:$AG$308,COLUMN()-1,0) -> 100% cotton | V80: =VLOOKUP($B80,Store!$B$6:$AG$308,COLUMN()-1,0) -> 100% cotton | W80: =VLOOKUP($B80,Store!$B$6:$AG$308,COLUMN()-1,0) -> 24/2 - 16/1 | X80: =VLOOKUP($B80,Store!$B$6:$AG$308,COLUMN()-1,0) -> 24/2 - 16/1 | Y80: =VLOOKUP($B80,Store!$B$6:$AG$308,COLUMN()-1,0) -> Fresh | Z80: =VLOOKUP($B80,Store!$B$6:$AG$308,COLUMN()-1,0) -> Fresh | AA80: =VLOOKUP($B80,Store!$B$6:$AG$308,COLUMN()-1,0) -> 0 | AB80: =VLOOKUP($B80,Store!$B$6:$AG$308,COLUMN()-1,0) -> محمود | AC80: =VLOOKUP($B80,Store!$B$6:$AG$308,COLUMN()-1,0) -> 1.75 | AD80: =VLOOKUP($B80,Store!$B$6:$AG$308,COLUMN()-1,0) -> 25 | AE80: =VLOOKUP($B80,Store!$B$6:$AG$308,COLUMN()-1,0) -> 1.75 | AF80: =VLOOKUP($B80,Store!$B$6:$AG$308,COLUMN()-1,0) -> Dobby | AG80: =VLOOKUP($B80,Store!$B$6:$AG$308,COLUMN()-1,0) -> Normal | AJ80: =SUMIFS(Store!$AD$6:$AD$308,Store!$B$6:$B$308,Rassed!B80,Store!$AH$6:$AH$308,"اضافه") -> 33 | AK80: =SUMIFS(Store!$AD$6:$AD$308,Store!$B$6:$B$308,Rassed!B80,Store!$AN$6:$AN$308,"صرف") -> 41 | AL80: -8
B81: 0004 - 55 | C81: =VLOOKUP($B81,Store!$B$6:$AG$308,COLUMN()-1,0) -> palm orange | D81: =VLOOKUP($B81,Store!$B$6:$AG$308,COLUMN()-1,0) -> 9114000027 | E81: =VLOOKUP($B81,Store!$B$6:$AG$308,COLUMN()-1,0) -> مشكل عميل 55 اوردر 7009 | F81: =VLOOKUP($B81,Store!$B$6:$AG$308,COLUMN()-1,0) -> 55 | G81: =VLOOKUP($B81,Store!$B$6:$AG$308,COLUMN()-1,0) -> 7009 | H81: =VLOOKUP($B81,Store!$B$6:$AG$308,COLUMN()-1,0) -> 7009 | I81: =VLOOKUP($B81,Store!$B$6:$AG$308,COLUMN()-1,0) -> Kitchen Towel | J81: =VLOOKUP($B81,Store!$B$6:$AG$308,COLUMN()-1,0) -> Kitchen Towel | K81: =VLOOKUP($B81,Store!$B$6:$AG$308,COLUMN()-1,0) -> Flat | L81: =VLOOKUP($B81,Store!$B$6:$AG$308,COLUMN()-1,0) -> Flat | M81: =VLOOKUP($B81,Store!$B$6:$AG$308,COLUMN()-1,0) -> 50 X 70 | N81: =VLOOKUP($B81,Store!$B$6:$AG$308,COLUMN()-1,0) -> 50 X 70 | O81: =VLOOKUP($B81,Store!$B$6:$AG$308,COLUMN()-1,0) -> 70 | P81: =VLOOKUP($B81,Store!$B$6:$AG$308,COLUMN()-1,0) -> 70 | Q81: =VLOOKUP($B81,Store!$B$6:$AG$308,COLUMN()-1,0) -> 200 | R81: =VLOOKUP($B81,Store!$B$6:$AG$308,COLUMN()-1,0) -> Very Light weight | S81: =VLOOKUP($B81,Store!$B$6:$AG$308,COLUMN()-1,0) -> dark | T81: =VLOOKUP($B81,Store!$B$6:$AG$308,COLUMN()-1,0) -> Second Choice | U81: =VLOOKUP($B81,Store!$B$6:$AG$308,COLUMN()-1,0) -> 100% cotton | V81: =VLOOKUP($B81,Store!$B$6:$AG$308,COLUMN()-1,0) -> 100% cotton | W81: =VLOOKUP($B81,Store!$B$6:$AG$308,COLUMN()-1,0) -> 24/2 - 16/1 | X81: =VLOOKUP($B81,Store!$B$6:$AG$308,COLUMN()-1,0) -> 24/2 - 16/1 | Y81: =VLOOKUP($B81,Store!$B$6:$AG$308,COLUMN()-1,0) -> Fresh | Z81: =VLOOKUP($B81,Store!$B$6:$AG$308,COLUMN()-1,0) -> Fresh | AA81: =VLOOKUP($B81,Store!$B$6:$AG$308,COLUMN()-1,0) -> 0 | AB81: =VLOOKUP($B81,Store!$B$6:$AG$308,COLUMN()-1,0) -> محمود | AC81: =VLOOKUP($B81,Store!$B$6:$AG$308,COLUMN()-1,0) -> 2.1 | AD81: =VLOOKUP($B81,Store!$B$6:$AG$308,COLUMN()-1,0) -> 30 | AE81: =VLOOKUP($B81,Store!$B$6:$AG$308,COLUMN()-1,0) -> 2.1 | AF81: =VLOOKUP($B81,Store!$B$6:$AG$308,COLUMN()-1,0) -> Dobby | AG81: =VLOOKUP($B81,Store!$B$6:$AG$308,COLUMN()-1,0) -> Normal | AJ81: =SUMIFS(Store!$AD$6:$AD$308,Store!$B$6:$B$308,Rassed!B81,Store!$AH$6:$AH$308,"اضافه") -> 42 | AK81: =SUMIFS(Store!$AD$6:$AD$308,Store!$B$6:$B$308,Rassed!B81,Store!$AN$6:$AN$308,"صرف") -> 54 | AL81: -12
B82: 0005 - 55 | C82: =VLOOKUP($B82,Store!$B$6:$AG$308,COLUMN()-1,0) -> palm red | D82: =VLOOKUP($B82,Store!$B$6:$AG$308,COLUMN()-1,0) -> 9114000028 | E82: =VLOOKUP($B82,Store!$B$6:$AG$308,COLUMN()-1,0) -> مشكل عميل 55 اوردر 7009 | F82: =VLOOKUP($B82,Store!$B$6:$AG$308,COLUMN()-1,0) -> 55 | G82: =VLOOKUP($B82,Store!$B$6:$AG$308,COLUMN()-1,0) -> 7009 | H82: =VLOOKUP($B82,Store!$B$6:$AG$308,COLUMN()-1,0) -> 7009 | I82: =VLOOKUP($B82,Store!$B$6:$AG$308,COLUMN()-1,0) -> Kitchen Towel | J82: =VLOOKUP($B82,Store!$B$6:$AG$308,COLUMN()-1,0) -> Kitchen Towel | K82: =VLOOKUP($B82,Store!$B$6:$AG$308,COLUMN()-1,0) -> Flat | L82: =VLOOKUP($B82,Store!$B$6:$AG$308,COLUMN()-1,0) -> Flat | M82: =VLOOKUP($B82,Store!$B$6:$AG$308,COLUMN()-1,0) -> 50 X 70 | N82: =VLOOKUP($B82,Store!$B$6:$AG$308,COLUMN()-1,0) -> 50 X 70 | O82: =VLOOKUP($B82,Store!$B$6:$AG$308,COLUMN()-1,0) -> 70 | P82: =VLOOKUP($B82,Store!$B$6:$AG$308,COLUMN()-1,0) -> 70 | Q82: =VLOOKUP($B82,Store!$B$6:$AG$308,COLUMN()-1,0) -> 200 | R82: =VLOOKUP($B82,Store!$B$6:$AG$308,COLUMN()-1,0) -> Very Light weight | S82: =VLOOKUP($B82,Store!$B$6:$AG$308,COLUMN()-1,0) -> dark | T82: =VLOOKUP($B82,Store!$B$6:$AG$308,COLUMN()-1,0) -> Second Choice | U82: =VLOOKUP($B82,Store!$B$6:$AG$308,COLUMN()-1,0) -> 100% cotton | V82: =VLOOKUP($B82,Store!$B$6:$AG$308,COLUMN()-1,0) -> 100% cotton | W82: =VLOOKUP($B82,Store!$B$6:$AG$308,COLUMN()-1,0) -> 24/2 - 16/1 | X82: =VLOOKUP($B82,Store!$B$6:$AG$308,COLUMN()-1,0) -> 24/2 - 16/1 | Y82: =VLOOKUP($B82,Store!$B$6:$AG$308,COLUMN()-1,0) -> Fresh | Z82: =VLOOKUP($B82,Store!$B$6:$AG$308,COLUMN()-1,0) -> Fresh | AA82: =VLOOKUP($B82,Store!$B$6:$AG$308,COLUMN()-1,0) -> 0 | AB82: =VLOOKUP($B82,Store!$B$6:$AG$308,COLUMN()-1,0) -> محمود | AC82: =VLOOKUP($B82,Store!$B$6:$AG$308,COLUMN()-1,0) -> 0.84 | AD82: =VLOOKUP($B82,Store!$B$6:$AG$308,COLUMN()-1,0) -> 12 | AE82: =VLOOKUP($B82,Store!$B$6:$AG$308,COLUMN()-1,0) -> 0.84 | AF82: =VLOOKUP($B82,Store!$B$6:$AG$308,COLUMN()-1,0) -> Dobby | AG82: =VLOOKUP($B82,Store!$B$6:$AG$308,COLUMN()-1,0) -> Normal | AJ82: =SUMIFS(Store!$AD$6:$AD$308,Store!$B$6:$B$308,Rassed!B82,Store!$AH$6:$AH$308,"اضافه") -> 42 | AK82: =SUMIFS(Store!$AD$6:$AD$308,Store!$B$6:$B$308,Rassed!B82,Store!$AN$6:$AN$308,"صرف") -> 72 | AL82: -30
B83: 0006 - 55 | C83: =VLOOKUP($B83,Store!$B$6:$AG$308,COLUMN()-1,0) -> palm Brown | D83: =VLOOKUP($B83,Store!$B$6:$AG$308,COLUMN()-1,0) -> 9114000029 | E83: =VLOOKUP($B83,Store!$B$6:$AG$308,COLUMN()-1,0) -> مشكل عميل 55 اوردر 7009 | F83: =VLOOKUP($B83,Store!$B$6:$AG$308,COLUMN()-1,0) -> 55 | G83: =VLOOKUP($B83,Store!$B$6:$AG$308,COLUMN()-1,0) -> 7009 | H83: =VLOOKUP($B83,Store!$B$6:$AG$308,COLUMN()-1,0) -> 7009 | I83: =VLOOKUP($B83,Store!$B$6:$AG$308,COLUMN()-1,0) -> Kitchen Towel | J83: =VLOOKUP($B83,Store!$B$6:$AG$308,COLUMN()-1,0) -> Kitchen Towel | K83: =VLOOKUP($B83,Store!$B$6:$AG$308,COLUMN()-1,0) -> Flat | L83: =VLOOKUP($B83,Store!$B$6:$AG$308,COLUMN()-1,0) -> Flat | M83: =VLOOKUP($B83,Store!$B$6:$AG$308,COLUMN()-1,0) -> 50 X 70 | N83: =VLOOKUP($B83,Store!$B$6:$AG$308,COLUMN()-1,0) -> 50 X 70 | O83: =VLOOKUP($B83,Store!$B$6:$AG$308,COLUMN()-1,0) -> 70 | P83: =VLOOKUP($B83,Store!$B$6:$AG$308,COLUMN()-1,0) -> 70 | Q83: =VLOOKUP($B83,Store!$B$6:$AG$308,COLUMN()-1,0) -> 200 | R83: =VLOOKUP($B83,Store!$B$6:$AG$308,COLUMN()-1,0) -> Very Light weight | S83: =VLOOKUP($B83,Store!$B$6:$AG$308,COLUMN()-1,0) -> dark | T83: =VLOOKUP($B83,Store!$B$6:$AG$308,COLUMN()-1,0) -> Second Choice | U83: =VLOOKUP($B83,Store!$B$6:$AG$308,COLUMN()-1,0) -> 100% cotton | V83: =VLOOKUP($B83,Store!$B$6:$AG$308,COLUMN()-1,0) -> 100% cotton | W83: =VLOOKUP($B83,Store!$B$6:$AG$308,COLUMN()-1,0) -> 24/2 - 16/1 | X83: =VLOOKUP($B83,Store!$B$6:$AG$308,COLUMN()-1,0) -> 24/2 - 16/1 | Y83: =VLOOKUP($B83,Store!$B$6:$AG$308,COLUMN()-1,0) -> Fresh | Z83: =VLOOKUP($B83,Store!$B$6:$AG$308,COLUMN()-1,0) -> Fresh | AA83: =VLOOKUP($B83,Store!$B$6:$AG$308,COLUMN()-1,0) -> 0 | AB83: =VLOOKUP($B83,Store!$B$6:$AG$308,COLUMN()-1,0) -> محمود | AC83: =VLOOKUP($B83,Store!$B$6:$AG$308,COLUMN()-1,0) -> 0.56 | AD83: =VLOOKUP($B83,Store!$B$6:$AG$308,COLUMN()-1,0) -> 8 | AE83: =VLOOKUP($B83,Store!$B$6:$AG$308,COLUMN()-1,0) -> 0.56 | AF83: =VLOOKUP($B83,Store!$B$6:$AG$308,COLUMN()-1,0) -> Dobby | AG83: =VLOOKUP($B83,Store!$B$6:$AG$308,COLUMN()-1,0) -> Normal | AJ83: =SUMIFS(Store!$AD$6:$AD$308,Store!$B$6:$B$308,Rassed!B83,Store!$AH$6:$AH$308,"اضافه") -> 30 | AK83: =SUMIFS(Store!$AD$6:$AD$308,Store!$B$6:$B$308,Rassed!B83,Store!$AN$6:$AN$308,"صرف") -> 52 | AL83: -22
B84: 0008 - 55 | C84: =VLOOKUP($B84,Store!$B$6:$AG$308,COLUMN()-1,0) -> Moon - Red | D84: =VLOOKUP($B84,Store!$B$6:$AG$308,COLUMN()-1,0) -> 9114000031 | E84: =VLOOKUP($B84,Store!$B$6:$AG$308,COLUMN()-1,0) -> مشكل عميل 55 اوردر 7010 | F84: =VLOOKUP($B84,Store!$B$6:$AG$308,COLUMN()-1,0) -> 55 | G84: =VLOOKUP($B84,Store!$B$6:$AG$308,COLUMN()-1,0) -> 7010 | H84: =VLOOKUP($B84,Store!$B$6:$AG$308,COLUMN()-1,0) -> 7010 | I84: =VLOOKUP($B84,Store!$B$6:$AG$308,COLUMN()-1,0) -> Kitchen Towel | J84: =VLOOKUP($B84,Store!$B$6:$AG$308,COLUMN()-1,0) -> Kitchen Towel | K84: =VLOOKUP($B84,Store!$B$6:$AG$308,COLUMN()-1,0) -> Flat | L84: =VLOOKUP($B84,Store!$B$6:$AG$308,COLUMN()-1,0) -> Flat | M84: =VLOOKUP($B84,Store!$B$6:$AG$308,COLUMN()-1,0) -> 50 X 70 | N84: =VLOOKUP($B84,Store!$B$6:$AG$308,COLUMN()-1,0) -> 50 X 70 | O84: =VLOOKUP($B84,Store!$B$6:$AG$308,COLUMN()-1,0) -> 70 | P84: =VLOOKUP($B84,Store!$B$6:$AG$308,COLUMN()-1,0) -> 70 | Q84: =VLOOKUP($B84,Store!$B$6:$AG$308,COLUMN()-1,0) -> 200 | R84: =VLOOKUP($B84,Store!$B$6:$AG$308,COLUMN()-1,0) -> Very Light weight | S84: =VLOOKUP($B84,Store!$B$6:$AG$308,COLUMN()-1,0) -> dark | T84: =VLOOKUP($B84,Store!$B$6:$AG$308,COLUMN()-1,0) -> Second Choice | U84: =VLOOKUP($B84,Store!$B$6:$AG$308,COLUMN()-1,0) -> 100% cotton | V84: =VLOOKUP($B84,Store!$B$6:$AG$308,COLUMN()-1,0) -> 100% cotton | W84: =VLOOKUP($B84,Store!$B$6:$AG$308,COLUMN()-1,0) -> 24/2 - 16/1 | X84: =VLOOKUP($B84,Store!$B$6:$AG$308,COLUMN()-1,0) -> 24/2 - 16/1 | Y84: =VLOOKUP($B84,Store!$B$6:$AG$308,COLUMN()-1,0) -> Fresh | Z84: =VLOOKUP($B84,Store!$B$6:$AG$308,COLUMN()-1,0) -> Fresh | AA84: =VLOOKUP($B84,Store!$B$6:$AG$308,COLUMN()-1,0) -> 0 | AB84: =VLOOKUP($B84,Store!$B$6:$AG$308,COLUMN()-1,0) -> محمود | AC84: =VLOOKUP($B84,Store!$B$6:$AG$308,COLUMN()-1,0) -> 8.4 | AD84: =VLOOKUP($B84,Store!$B$6:$AG$308,COLUMN()-1,0) -> 120 | AE84: =VLOOKUP($B84,Store!$B$6:$AG$308,COLUMN()-1,0) -> 8.4 | AF84: =VLOOKUP($B84,Store!$B$6:$AG$308,COLUMN()-1,0) -> Jacquard | AG84: =VLOOKUP($B84,Store!$B$6:$AG$308,COLUMN()-1,0) -> Normal | AJ84: =SUMIFS(Store!$AD$6:$AD$308,Store!$B$6:$B$308,Rassed!B84,Store!$AH$6:$AH$308,"اضافه") -> 120 | AK84: =SUMIFS(Store!$AD$6:$AD$308,Store!$B$6:$B$308,Rassed!B84,Store!$AN$6:$AN$308,"صرف") -> 240 | AL84: -120
B85: 0003 - 40 | C85: =VLOOKUP($B85,Store!$B$6:$AG$308,COLUMN()-1,0) -> dfsg | D85: =VLOOKUP($B85,Store!$B$6:$AG$308,COLUMN()-1,0) -> 9111000001 | E85: =VLOOKUP($B85,Store!$B$6:$AG$308,COLUMN()-1,0) -> jfghj | F85: =VLOOKUP($B85,Store!$B$6:$AG$308,COLUMN()-1,0) -> 40 | G85: =VLOOKUP($B85,Store!$B$6:$AG$308,COLUMN()-1,0) -> 7017 | H85: =VLOOKUP($B85,Store!$B$6:$AG$308,COLUMN()-1,0) -> 7017 | I85: =VLOOKUP($B85,Store!$B$6:$AG$308,COLUMN()-1,0) -> Bath towel | J85: =VLOOKUP($B85,Store!$B$6:$AG$308,COLUMN()-1,0) -> Bath towel | K85: =VLOOKUP($B85,Store!$B$6:$AG$308,COLUMN()-1,0) -> Terry | L85: =VLOOKUP($B85,Store!$B$6:$AG$308,COLUMN()-1,0) -> Terry | M85: =VLOOKUP($B85,Store!$B$6:$AG$308,COLUMN()-1,0) -> 90 x 160 | N85: =VLOOKUP($B85,Store!$B$6:$AG$308,COLUMN()-1,0) -> 90 x 160 | O85: =VLOOKUP($B85,Store!$B$6:$AG$308,COLUMN()-1,0) -> 720 | P85: =VLOOKUP($B85,Store!$B$6:$AG$308,COLUMN()-1,0) -> 720 | Q85: =VLOOKUP($B85,Store!$B$6:$AG$308,COLUMN()-1,0) -> 500 | R85: =VLOOKUP($B85,Store!$B$6:$AG$308,COLUMN()-1,0) -> Heavy | S85: =VLOOKUP($B85,Store!$B$6:$AG$308,COLUMN()-1,0) -> dark | T85: =VLOOKUP($B85,Store!$B$6:$AG$308,COLUMN()-1,0) -> Second Choice | U85: =VLOOKUP($B85,Store!$B$6:$AG$308,COLUMN()-1,0) -> 100% cotton | V85: =VLOOKUP($B85,Store!$B$6:$AG$308,COLUMN()-1,0) -> 100% cotton | W85: =VLOOKUP($B85,Store!$B$6:$AG$308,COLUMN()-1,0) -> 24/2 - 24/2 - 16/1 | X85: =VLOOKUP($B85,Store!$B$6:$AG$308,COLUMN()-1,0) -> 24/2 - 24/2 - 16/1 | Y85: =VLOOKUP($B85,Store!$B$6:$AG$308,COLUMN()-1,0) -> Fresh | Z85: =VLOOKUP($B85,Store!$B$6:$AG$308,COLUMN()-1,0) -> Fresh | AA85: =VLOOKUP($B85,Store!$B$6:$AG$308,COLUMN()-1,0) -> 0 | AB85: =VLOOKUP($B85,Store!$B$6:$AG$308,COLUMN()-1,0) -> yt | AC85: =VLOOKUP($B85,Store!$B$6:$AG$308,COLUMN()-1,0) -> 1.5 | AD85: =VLOOKUP($B85,Store!$B$6:$AG$308,COLUMN()-1,0) -> 2 | AE85: =VLOOKUP($B85,Store!$B$6:$AG$308,COLUMN()-1,0) -> 1.44 | AF85: =VLOOKUP($B85,Store!$B$6:$AG$308,COLUMN()-1,0) -> Jacquard | AG85: =VLOOKUP($B85,Store!$B$6:$AG$308,COLUMN()-1,0) -> Promotional | AJ85: =SUMIFS(Store!$AD$6:$AD$308,Store!$B$6:$B$308,Rassed!B85,Store!$AH$6:$AH$308,"اضافه") -> 2 | AK85: =SUMIFS(Store!$AD$6:$AD$308,Store!$B$6:$B$308,Rassed!B85,Store!$AN$6:$AN$308,"صرف") -> 2 | AL85: 0
B86: 0004 - 40 | C86: =VLOOKUP($B86,Store!$B$6:$AG$308,COLUMN()-1,0) -> cvsde | D86: =VLOOKUP($B86,Store!$B$6:$AG$308,COLUMN()-1,0) -> 9111000002 | E86: =VLOOKUP($B86,Store!$B$6:$AG$308,COLUMN()-1,0) -> jfghj | F86: =VLOOKUP($B86,Store!$B$6:$AG$308,COLUMN()-1,0) -> 40 | G86: =VLOOKUP($B86,Store!$B$6:$AG$308,COLUMN()-1,0) -> 7017 | H86: =VLOOKUP($B86,Store!$B$6:$AG$308,COLUMN()-1,0) -> 7017 | I86: =VLOOKUP($B86,Store!$B$6:$AG$308,COLUMN()-1,0) -> Bath towel | J86: =VLOOKUP($B86,Store!$B$6:$AG$308,COLUMN()-1,0) -> Bath towel | K86: =VLOOKUP($B86,Store!$B$6:$AG$308,COLUMN()-1,0) -> Terry | L86: =VLOOKUP($B86,Store!$B$6:$AG$308,COLUMN()-1,0) -> Terry | M86: =VLOOKUP($B86,Store!$B$6:$AG$308,COLUMN()-1,0) -> 90 x 160 | N86: =VLOOKUP($B86,Store!$B$6:$AG$308,COLUMN()-1,0) -> 90 x 160 | O86: =VLOOKUP($B86,Store!$B$6:$AG$308,COLUMN()-1,0) -> 720 | P86: =VLOOKUP($B86,Store!$B$6:$AG$308,COLUMN()-1,0) -> 720 | Q86: =VLOOKUP($B86,Store!$B$6:$AG$308,COLUMN()-1,0) -> 500 | R86: =VLOOKUP($B86,Store!$B$6:$AG$308,COLUMN()-1,0) -> Heavy | S86: =VLOOKUP($B86,Store!$B$6:$AG$308,COLUMN()-1,0) -> dark | T86: =VLOOKUP($B86,Store!$B$6:$AG$308,COLUMN()-1,0) -> Second Choice | U86: =VLOOKUP($B86,Store!$B$6:$AG$308,COLUMN()-1,0) -> 100% cotton | V86: =VLOOKUP($B86,Store!$B$6:$AG$308,COLUMN()-1,0) -> 100% cotton | W86: =VLOOKUP($B86,Store!$B$6:$AG$308,COLUMN()-1,0) -> 24/2 - 24/2 - 16/1 | X86: =VLOOKUP($B86,Store!$B$6:$AG$308,COLUMN()-1,0) -> 24/2 - 24/2 - 16/1 | Y86: =VLOOKUP($B86,Store!$B$6:$AG$308,COLUMN()-1,0) -> Fresh | Z86: =VLOOKUP($B86,Store!$B$6:$AG$308,COLUMN()-1,0) -> Fresh | AA86: =VLOOKUP($B86,Store!$B$6:$AG$308,COLUMN()-1,0) -> 0 | AB86: =VLOOKUP($B86,Store!$B$6:$AG$308,COLUMN()-1,0) -> yt | AC86: =VLOOKUP($B86,Store!$B$6:$AG$308,COLUMN()-1,0) -> 3.75 | AD86: =VLOOKUP($B86,Store!$B$6:$AG$308,COLUMN()-1,0) -> 5 | AE86: =VLOOKUP($B86,Store!$B$6:$AG$308,COLUMN()-1,0) -> 3.6 | AF86: =VLOOKUP($B86,Store!$B$6:$AG$308,COLUMN()-1,0) -> Jacquard | AG86: =VLOOKUP($B86,Store!$B$6:$AG$308,COLUMN()-1,0) -> Promotional | AJ86: =SUMIFS(Store!$AD$6:$AD$308,Store!$B$6:$B$308,Rassed!B86,Store!$AH$6:$AH$308,"اضافه") -> 73 | AK86: =SUMIFS(Store!$AD$6:$AD$308,Store!$B$6:$B$308,Rassed!B86,Store!$AN$6:$AN$308,"صرف") -> 73 | AL86: 0
B87: 0005 - 40 | C87: =VLOOKUP($B87,Store!$B$6:$AG$308,COLUMN()-1,0) -> setv | D87: =VLOOKUP($B87,Store!$B$6:$AG$308,COLUMN()-1,0) -> 9111000003 | E87: =VLOOKUP($B87,Store!$B$6:$AG$308,COLUMN()-1,0) -> jfghj | F87: =VLOOKUP($B87,Store!$B$6:$AG$308,COLUMN()-1,0) -> 40 | G87: =VLOOKUP($B87,Store!$B$6:$AG$308,COLUMN()-1,0) -> 7017 | H87: =VLOOKUP($B87,Store!$B$6:$AG$308,COLUMN()-1,0) -> 7017 | I87: =VLOOKUP($B87,Store!$B$6:$AG$308,COLUMN()-1,0) -> Bath towel | J87: =VLOOKUP($B87,Store!$B$6:$AG$308,COLUMN()-1,0) -> Bath towel | K87: =VLOOKUP($B87,Store!$B$6:$AG$308,COLUMN()-1,0) -> Terry | L87: =VLOOKUP($B87,Store!$B$6:$AG$308,COLUMN()-1,0) -> Terry | M87: =VLOOKUP($B87,Store!$B$6:$AG$308,COLUMN()-1,0) -> 90 x 160 | N87: =VLOOKUP($B87,Store!$B$6:$AG$308,COLUMN()-1,0) -> 90 x 160 | O87: =VLOOKUP($B87,Store!$B$6:$AG$308,COLUMN()-1,0) -> 720 | P87: =VLOOKUP($B87,Store!$B$6:$AG$308,COLUMN()-1,0) -> 720 | Q87: =VLOOKUP($B87,Store!$B$6:$AG$308,COLUMN()-1,0) -> 500 | R87: =VLOOKUP($B87,Store!$B$6:$AG$308,COLUMN()-1,0) -> Heavy | S87: =VLOOKUP($B87,Store!$B$6:$AG$308,COLUMN()-1,0) -> dark | T87: =VLOOKUP($B87,Store!$B$6:$AG$308,COLUMN()-1,0) -> Second Choice | U87: =VLOOKUP($B87,Store!$B$6:$AG$308,COLUMN()-1,0) -> 100% cotton | V87: =VLOOKUP($B87,Store!$B$6:$AG$308,COLUMN()-1,0) -> 100% cotton | W87: =VLOOKUP($B87,Store!$B$6:$AG$308,COLUMN()-1,0) -> 24/2 - 24/2 - 16/1 | X87: =VLOOKUP($B87,Store!$B$6:$AG$308,COLUMN()-1,0) -> 24/2 - 24/2 - 16/1 | Y87: =VLOOKUP($B87,Store!$B$6:$AG$308,COLUMN()-1,0) -> Fresh | Z87: =VLOOKUP($B87,Store!$B$6:$AG$308,COLUMN()-1,0) -> Fresh | AA87: =VLOOKUP($B87,Store!$B$6:$AG$308,COLUMN()-1,0) -> 0 | AB87: =VLOOKUP($B87,Store!$B$6:$AG$308,COLUMN()-1,0) -> yt | AC87: =VLOOKUP($B87,Store!$B$6:$AG$308,COLUMN()-1,0) -> 1.5 | AD87: =VLOOKUP($B87,Store!$B$6:$AG$308,COLUMN()-1,0) -> 2 | AE87: =VLOOKUP($B87,Store!$B$6:$AG$308,COLUMN()-1,0) -> 1.44 | AF87: =VLOOKUP($B87,Store!$B$6:$AG$308,COLUMN()-1,0) -> Jacquard | AG87: =VLOOKUP($B87,Store!$B$6:$AG$308,COLUMN()-1,0) -> Promotional | AJ87: =SUMIFS(Store!$AD$6:$AD$308,Store!$B$6:$B$308,Rassed!B87,Store!$AH$6:$AH$308,"اضافه") -> 2 | AK87: =SUMIFS(Store!$AD$6:$AD$308,Store!$B$6:$B$308,Rassed!B87,Store!$AN$6:$AN$308,"صرف") -> 2 | AL87: 0
B88: 0006 - 40 | C88: =VLOOKUP($B88,Store!$B$6:$AG$308,COLUMN()-1,0) -> fbdg5yf | D88: =VLOOKUP($B88,Store!$B$6:$AG$308,COLUMN()-1,0) -> 9111000004 | E88: =VLOOKUP($B88,Store!$B$6:$AG$308,COLUMN()-1,0) -> jfghj | F88: =VLOOKUP($B88,Store!$B$6:$AG$308,COLUMN()-1,0) -> 40 | G88: =VLOOKUP($B88,Store!$B$6:$AG$308,COLUMN()-1,0) -> 7017 | H88: =VLOOKUP($B88,Store!$B$6:$AG$308,COLUMN()-1,0) -> 7017 | I88: =VLOOKUP($B88,Store!$B$6:$AG$308,COLUMN()-1,0) -> Bath towel | J88: =VLOOKUP($B88,Store!$B$6:$AG$308,COLUMN()-1,0) -> Bath towel | K88: =VLOOKUP($B88,Store!$B$6:$AG$308,COLUMN()-1,0) -> Terry | L88: =VLOOKUP($B88,Store!$B$6:$AG$308,COLUMN()-1,0) -> Terry | M88: =VLOOKUP($B88,Store!$B$6:$AG$308,COLUMN()-1,0) -> 90 x 160 | N88: =VLOOKUP($B88,Store!$B$6:$AG$308,COLUMN()-1,0) -> 90 x 160 | O88: =VLOOKUP($B88,Store!$B$6:$AG$308,COLUMN()-1,0) -> 720 | P88: =VLOOKUP($B88,Store!$B$6:$AG$308,COLUMN()-1,0) -> 720 | Q88: =VLOOKUP($B88,Store!$B$6:$AG$308,COLUMN()-1,0) -> 500 | R88: =VLOOKUP($B88,Store!$B$6:$AG$308,COLUMN()-1,0) -> Heavy | S88: =VLOOKUP($B88,Store!$B$6:$AG$308,COLUMN()-1,0) -> dark | T88: =VLOOKUP($B88,Store!$B$6:$AG$308,COLUMN()-1,0) -> Second Choice | U88: =VLOOKUP($B88,Store!$B$6:$AG$308,COLUMN()-1,0) -> 100% cotton | V88: =VLOOKUP($B88,Store!$B$6:$AG$308,COLUMN()-1,0) -> 100% cotton | W88: =VLOOKUP($B88,Store!$B$6:$AG$308,COLUMN()-1,0) -> 24/2 - 24/2 - 16/1 | X88: =VLOOKUP($B88,Store!$B$6:$AG$308,COLUMN()-1,0) -> 24/2 - 24/2 - 16/1 | Y88: =VLOOKUP($B88,Store!$B$6:$AG$308,COLUMN()-1,0) -> Fresh | Z88: =VLOOKUP($B88,Store!$B$6:$AG$308,COLUMN()-1,0) -> Fresh | AA88: =VLOOKUP($B88,Store!$B$6:$AG$308,COLUMN()-1,0) -> 0 | AB88: =VLOOKUP($B88,Store!$B$6:$AG$308,COLUMN()-1,0) -> yt | AC88: =VLOOKUP($B88,Store!$B$6:$AG$308,COLUMN()-1,0) -> 6 | AD88: =VLOOKUP($B88,Store!$B$6:$AG$308,COLUMN()-1,0) -> 8 | AE88: =VLOOKUP($B88,Store!$B$6:$AG$308,COLUMN()-1,0) -> 5.76 | AF88: =VLOOKUP($B88,Store!$B$6:$AG$308,COLUMN()-1,0) -> Jacquard | AG88: =VLOOKUP($B88,Store!$B$6:$AG$308,COLUMN()-1,0) -> Promotional | AJ88: =SUMIFS(Store!$AD$6:$AD$308,Store!$B$6:$B$308,Rassed!B88,Store!$AH$6:$AH$308,"اضافه") -> 8 | AK88: =SUMIFS(Store!$AD$6:$AD$308,Store!$B$6:$B$308,Rassed!B88,Store!$AN$6:$AN$308,"صرف") -> 8 | AL88: 0
B89: 0007 - 40 | C89: =VLOOKUP($B89,Store!$B$6:$AG$308,COLUMN()-1,0) -> ewtwt ef34 | D89: =VLOOKUP($B89,Store!$B$6:$AG$308,COLUMN()-1,0) -> 9111000005 | E89: =VLOOKUP($B89,Store!$B$6:$AG$308,COLUMN()-1,0) -> jfghj | F89: =VLOOKUP($B89,Store!$B$6:$AG$308,COLUMN()-1,0) -> 40 | G89: =VLOOKUP($B89,Store!$B$6:$AG$308,COLUMN()-1,0) -> 7017 | H89: =VLOOKUP($B89,Store!$B$6:$AG$308,COLUMN()-1,0) -> 7017 | I89: =VLOOKUP($B89,Store!$B$6:$AG$308,COLUMN()-1,0) -> Bath towel | J89: =VLOOKUP($B89,Store!$B$6:$AG$308,COLUMN()-1,0) -> Bath towel | K89: =VLOOKUP($B89,Store!$B$6:$AG$308,COLUMN()-1,0) -> Terry | L89: =VLOOKUP($B89,Store!$B$6:$AG$308,COLUMN()-1,0) -> Terry | M89: =VLOOKUP($B89,Store!$B$6:$AG$308,COLUMN()-1,0) -> 90 x 160 | N89: =VLOOKUP($B89,Store!$B$6:$AG$308,COLUMN()-1,0) -> 90 x 160 | O89: =VLOOKUP($B89,Store!$B$6:$AG$308,COLUMN()-1,0) -> 720 | P89: =VLOOKUP($B89,Store!$B$6:$AG$308,COLUMN()-1,0) -> 720 | Q89: =VLOOKUP($B89,Store!$B$6:$AG$308,COLUMN()-1,0) -> 500 | R89: =VLOOKUP($B89,Store!$B$6:$AG$308,COLUMN()-1,0) -> Heavy | S89: =VLOOKUP($B89,Store!$B$6:$AG$308,COLUMN()-1,0) -> dark | T89: =VLOOKUP($B89,Store!$B$6:$AG$308,COLUMN()-1,0) -> Second Choice | U89: =VLOOKUP($B89,Store!$B$6:$AG$308,COLUMN()-1,0) -> 100% cotton | V89: =VLOOKUP($B89,Store!$B$6:$AG$308,COLUMN()-1,0) -> 100% cotton | W89: =VLOOKUP($B89,Store!$B$6:$AG$308,COLUMN()-1,0) -> 24/2 - 24/2 - 16/1 | X89: =VLOOKUP($B89,Store!$B$6:$AG$308,COLUMN()-1,0) -> 24/2 - 24/2 - 16/1 | Y89: =VLOOKUP($B89,Store!$B$6:$AG$308,COLUMN()-1,0) -> Fresh | Z89: =VLOOKUP($B89,Store!$B$6:$AG$308,COLUMN()-1,0) -> Fresh | AA89: =VLOOKUP($B89,Store!$B$6:$AG$308,COLUMN()-1,0) -> 0 | AB89: =VLOOKUP($B89,Store!$B$6:$AG$308,COLUMN()-1,0) -> yt | AC89: =VLOOKUP($B89,Store!$B$6:$AG$308,COLUMN()-1,0) -> 0.75 | AD89: =VLOOKUP($B89,Store!$B$6:$AG$308,COLUMN()-1,0) -> 1 | AE89: =VLOOKUP($B89,Store!$B$6:$AG$308,COLUMN()-1,0) -> 0.72 | AF89: =VLOOKUP($B89,Store!$B$6:$AG$308,COLUMN()-1,0) -> Jacquard | AG89: =VLOOKUP($B89,Store!$B$6:$AG$308,COLUMN()-1,0) -> Promotional | AJ89: =SUMIFS(Store!$AD$6:$AD$308,Store!$B$6:$B$308,Rassed!B89,Store!$AH$6:$AH$308,"اضافه") -> 1 | AK89: =SUMIFS(Store!$AD$6:$AD$308,Store!$B$6:$B$308,Rassed!B89,Store!$AN$6:$AN$308,"صرف") -> 1 | AL89: 0
